Workbook

Sheet Instruções
A1: http://authenticator.sapphirebusinesstech.com:8080/access/v1/validate
A2: 123456789
A3: contact@sapphirebusinesstech.com
A5: 200
A7: =IF(A12="",0,TODAY()-A12) -> 0
C13: CONTROLE DE RECURSOS HUMANOS
C14: Sistema integrado de gestão de pessoas | F14: Any use for this file other than sample using and technical analysis without authorization is stricly prohibited and protected by copyright
C15: Versão 1.0 | F15: Qualquer uso desse arquivo sem autorização outro que uso de exemplo e análise técnica é extritamente proibida e protegida por direitos autorais.
F16: Cualquier uso de este archivo sin autorización que no sea para fines de ejemplo o análisis técnico está estrictamente prohibido y está protegido por derechos de autor.
C18: INDICADORES RÁPIDOS
C19: Funcionários Ativos | E19: =COUNTIFS(tb_funcionarios[Status_Funcionario],"Ativo") -> 50
C20: Férias Programadas | E20: =COUNTIFS(tb_ferias[Status_Ferias],"Programada") -> 0
C21: Média Geral Desempenho | E21: =IFERROR(AVERAGE(tb_avaliacoes[Media_Final]),0) -> 7.8
C24: INSTRUÇÕES DE USO
C26: 1. OBJETIVO
C27: Esta planilha centraliza o controle de Recursos Humanos: cadastro de funcionários, férias, ponto, avaliações e pagamentos.
C29: 2. ORDEM CORRETA DE PREENCHIMENTO
C30: 1º — Cadastros (listas de apoio: setor, cargo, status)
C31: 2º — Funcionários (dados pessoais e contratuais)
C32: 3º — Férias (períodos e saldos)
C33: 4º — Ponto (registros diários de jornada)
C34: 5º — Avaliações (notas periódicas)
C35: 6º — Pagamentos (conferência de variáveis)
C36: 7º — Relatórios (análise consolid.)
C38: 3. CAMPOS QUE NÃO DEVEM SER ALTERADOS
C39: Colunas com sinalizações de cores ou fórmulas (Ex: Nome_Funcionario, Setor via PROCV, Média_Final, Classificação, Horas_Trabalhadas, etc.)
C40: Toda a aba Cálculos (alimentada automaticamente pelas demais abas)
C42: 4. LEGENDA DE STATUS
C43: Funcionário: Ativo / Afastado / Desligado
C44: Férias: Programada / Em Gozo / Concluída / Cancelada
C45: Dia (Ponto): Normal / Falta / Atestado / Férias / Folga / Feriado
C47: 5. ORIENTAÇÕES DE FILTRO
C48: Todas as tabelas possuem filtro automático nos cabeçalhos. Use-os para localizar registros específicos.
C50: 6. FORMATO DE PREENCHIMENTO
C52: Campo | D52: Como preencher | E52: Exemplo
C53: Data | D53: dd/mm/aaaa | E53: 2026-02-05
C54: Entrada / Saída | D54: hh:mm | E54: 08:00:00
C55: Status | D55: Selecionar da lista | E55: Normal
C56: Salário | D56: Número sem R$ | E56: 4500
C57: CPF | D57: Texto com pontos | E57: 123.456.789-00

Sheet Cadastros (hidden)
C7: Tipo_Lista | D7: Valor | E7: Ordem | F7: Ativo
C8: Setor | D8: Administrativo | E8: 1 | F8: Sim
C9: Setor | D9: Financeiro | E9: 2 | F9: Sim
C10: Setor | D10: Comercial | E10: 3 | F10: Sim
C11: Setor | D11: Operações | E11: 4 | F11: Sim
C12: Setor | D12: RH | E12: 5 | F12: Sim
C13: Setor | D13: TI | E13: 6 | F13: Sim
C14: Cargo | D14: Analista | E14: 1 | F14: Sim
C15: Cargo | D15: Assistente | E15: 2 | F15: Sim
C16: Cargo | D16: Coordenador | E16: 3 | F16: Sim
C17: Cargo | D17: Gerente | E17: 4 | F17: Sim
C18: Cargo | D18: Diretor | E18: 5 | F18: Sim
C19: Cargo | D19: Estagiário | E19: 6 | F19: Sim
C20: Tipo_Contrato | D20: CLT | E20: 1 | F20: Sim
C21: Tipo_Contrato | D21: PJ | E21: 2 | F21: Sim
C22: Tipo_Contrato | D22: Temporário | E22: 3 | F22: Sim
C23: Tipo_Contrato | D23: Estágio | E23: 4 | F23: Sim
C24: Status_Funcionario | D24: Ativo | E24: 1 | F24: Sim
C25: Status_Funcionario | D25: Afastado | E25: 2 | F25: Sim
C26: Status_Funcionario | D26: Desligado | E26: 3 | F26: Sim
C27: Status_Ferias | D27: Programada | E27: 1 | F27: Sim
C28: Status_Ferias | D28: Em Gozo | E28: 2 | F28: Sim
C29: Status_Ferias | D29: Concluída | E29: 3 | F29: Sim
C30: Status_Ferias | D30: Cancelada | E30: 4 | F30: Sim
C31: Status_Dia | D31: Normal | E31: 1 | F31: Sim
C32: Status_Dia | D32: Falta | E32: 2 | F32: Sim
C33: Status_Dia | D33: Atestado | E33: 3 | F33: Sim
C34: Status_Dia | D34: Férias | E34: 4 | F34: Sim
C35: Status_Dia | D35: Folga | E35: 5 | F35: Sim
C36: Status_Dia | D36: Feriado | E36: 6 | F36: Sim
C37: Classificacao_Desempenho | D37: Excelente | E37: 1 | F37: Sim
C38: Classificacao_Desempenho | D38: Bom | E38: 2 | F38: Sim
C39: Classificacao_Desempenho | D39: Regular | E39: 3 | F39: Sim
C40: Classificacao_Desempenho | D40: A Desenvolver | E40: 4 | F40: Sim

Sheet Funcionários (hidden)
C7: Cod_Funcionario | D7: Nome_Completo | E7: CPF | F7: Data_Nascimento | G7: Telefone | H7: Email | I7: Endereco | J7: Setor | K7: Cargo | L7: Gestor_Imediato | M7: Tipo_Contrato | N7: Data_Admissao | O7: Salario_Base | P7: Jornada_Diaria_Horas | Q7: Status_Funcionario | R7: Data_Desligamento | S7: Observacoes | T7: Tempo_Empresa_Dias | U7: Valor_Hora | V7: Ferias_Acumuladas (em dias) | W7: Ferias_Abonadas (em dias) | X7: Ferias_saldo (em dias)
C8: F001 | D8: Ana Lima | E8: 754.214.125-45 | F8: 1982-04-04 | G8: (11) 92679-9935 | H8: ana1@empresa.com | I8: Rua B, 90 | J8: RH | K8: Gerente | L8: Maria Souza | M8: CLT | N8: 2018-04-07 | O8: 10,058.00 | P8: 08:00:00 | Q8: Ativo | T8: =IF(N8="","",TODAY()-N8) -> 3050 | U8: =IFERROR(O8/220,0) -> 45.72 | V8: =tb_funcionarios[[#This Row],[Tempo_Empresa_Dias]]/365*30 -> 251 | W8: =SUMIFS(tb_ferias[Dias_Gozados],tb_ferias[Cod_Funcionario],tb_funcionarios[[#This Row],[Cod_Funcionario]]) -> 0 | X8: =tb_funcionarios[[#This Row],[Ferias_Acumuladas (em dias)]]-tb_funcionarios[[#This Row],[Ferias_Abonadas (em dias)]] -> 251
C9: F002 | D9: Bruno Costa | E9: 321.765.543-12 | F9: 1990-07-14 | G9: (11) 93412-5521 | H9: bruno2@empresa.com | I9: Rua C, 210 | J9: TI | K9: Analista | L9: Carlos Lima | M9: CLT | N9: 2020-03-11 | O9: 4,680.00 | P9: 08:00:00 | Q9: Ativo | T9: 2346 | U9: 21.27 | V9: =tb_funcionarios[[#This Row],[Tempo_Empresa_Dias]]/365*30 -> 193 | W9: =SUMIFS(tb_ferias[Dias_Gozados],tb_ferias[Cod_Funcionario],tb_funcionarios[[#This Row],[Cod_Funcionario]]) -> 15 | X9: =tb_funcionarios[[#This Row],[Ferias_Acumuladas (em dias)]]-tb_funcionarios[[#This Row],[Ferias_Abonadas (em dias)]] -> 178
C10: F003 | D10: Carla Dias | E10: 543.876.234-67 | F10: 1985-11-21 | G10: (11) 91234-8876 | H10: carla3@empresa.com | I10: Rua D, 55 | J10: Financeiro | K10: Coordenador | L10: Ana Paula | M10: CLT | N10: 2019-05-31 | O10: 7,120.00 | P10: 08:00:00 | Q10: Ativo | T10: 2631 | U10: 32.36 | V10: =tb_funcionarios[[#This Row],[Tempo_Empresa_Dias]]/365*30 -> 216 | W10: =SUMIFS(tb_ferias[Dias_Gozados],tb_ferias[Cod_Funcionario],tb_funcionarios[[#This Row],[Cod_Funcionario]]) -> 0 | X10: =tb_funcionarios[[#This Row],[Ferias_Acumuladas (em dias)]]-tb_funcionarios[[#This Row],[Ferias_Abonadas (em dias)]] -> 216
C11: F004 | D11: Daniel Rocha | E11: 876.543.210-33 | F11: 1993-03-17 | G11: (11) 94567-3312 | H11: daniel4@empresa.com | I11: Rua E, 88 | J11: Comercial | K11: Assistente | L11: Roberto Dias | M11: CLT | N11: 2021-09-14 | O11: 2,350.00 | P11: 08:00:00 | Q11: Ativo | T11: 1794 | U11: 10.68 | V11: =tb_funcionarios[[#This Row],[Tempo_Empresa_Dias]]/365*30 -> 147 | W11: =SUMIFS(tb_ferias[Dias_Gozados],tb_ferias[Cod_Funcionario],tb_funcionarios[[#This Row],[Cod_Funcionario]]) -> 0 | X11: =tb_funcionarios[[#This Row],[Ferias_Acumuladas (em dias)]]-tb_funcionarios[[#This Row],[Ferias_Abonadas (em dias)]] -> 147
C12: F005 | D12: Elena Ferreira | E12: 234.567.891-44 | F12: 1988-08-29 | G12: (11) 95678-4423 | H12: elena5@empresa.com | I12: Rua F, 123 | J12: RH | K12: Analista | L12: Sandra Melo | M12: CLT | N12: 2020-01-19 | O12: 4,550.00 | P12: 08:00:00 | Q12: Ativo | T12: 2398 | U12: 20.68 | V12: =tb_funcionarios[[#This Row],[Tempo_Empresa_Dias]]/365*30 -> 197 | W12: =SUMIFS(tb_ferias[Dias_Gozados],tb_ferias[Cod_Funcionario],tb_funcionarios[[#This Row],[Cod_Funcionario]]) -> 30 | X12: =tb_funcionarios[[#This Row],[Ferias_Acumuladas (em dias)]]-tb_funcionarios[[#This Row],[Ferias_Abonadas (em dias)]] -> 167
C13: F006 | D13: Felipe Alves | E13: 567.890.123-55 | F13: 2000-01-09 | G13: (11) 96789-5534 | H13: felipe6@empresa.com | I13: Rua G, 45 | J13: TI | K13: Estagiário | L13: Carlos Lima | M13: Estágio | N13: 2023-02-28 | O13: 1,620.00 | P13: 08:00:00 | Q13: Ativo | T13: 1262 | U13: 7.36 | V13: =tb_funcionarios[[#This Row],[Tempo_Empresa_Dias]]/365*30 -> 104 | W13: =SUMIFS(tb_ferias[Dias_Gozados],tb_ferias[Cod_Funcionario],tb_funcionarios[[#This Row],[Cod_Funcionario]]) -> 0 | X13: =tb_funcionarios[[#This Row],[Ferias_Acumuladas (em dias)]]-tb_funcionarios[[#This Row],[Ferias_Abonadas (em dias)]] -> 104
C14: F007 | D14: Gabriela Nunes | E14: 890.123.456-66 | F14: 1991-05-24 | G14: (11) 97890-6645 | H14: gabriela7@empresa.com | I14: Rua H, 321 | J14: Administrativo | K14: Assistente | L14: Maria Souza | M14: CLT | N14: 2022-07-09 | O14: 2,180.00 | P14: 08:00:00 | Q14: Ativo | T14: 1496 | U14: 9.91 | V14: =tb_funcionarios[[#This Row],[Tempo_Empresa_Dias]]/365*30 -> 123 | W14: =SUMIFS(tb_ferias[Dias_Gozados],tb_ferias[Cod_Funcionario],tb_funcionarios[[#This Row],[Cod_Funcionario]]) -> 0 | X14: =tb_funcionarios[[#This Row],[Ferias_Acumuladas (em dias)]]-tb_funcionarios[[#This Row],[Ferias_Abonadas (em dias)]] -> 123
C15: F008 | D15: Henrique Pinto | E15: 123.456.789-77 | F15: 1979-12-02 | G15: (11) 98901-7756 | H15: henrique8@empresa.com | I15: Rua I, 67 | J15: Operações | K15: Gerente | L15: Roberto Dias | M15: CLT | N15: 2018-11-04 | O15: 9,850.00 | P15: 08:00:00 | Q15: Ativo | T15: 2839 | U15: 44.77 | V15: =tb_funcionarios[[#This Row],[Tempo_Empresa_Dias]]/365*30 -> 233 | W15: =SUMIFS(tb_ferias[Dias_Gozados],tb_ferias[Cod_Funcionario],tb_funcionarios[[#This Row],[Cod_Funcionario]]) -> 20 | X15: =tb_funcionarios[[#This Row],[Ferias_Acumuladas (em dias)]]-tb_funcionarios[[#This Row],[Ferias_Abonadas (em dias)]] -> 213
C16: F009 | D16: Isabela Mendes | E16: 456.789.012-88 | F16: 1995-09-13 | G16: (11) 99012-8867 | H16: isabela9@empresa.com | I16: Rua J, 200 | J16: Comercial | K16: Analista | L16: Roberto Dias | M16: CLT | N16: 2021-02-27 | O16: 4,420.00 | P16: 08:00:00 | Q16: Ativo | T16: 1993 | U16: 20.09 | V16: =tb_funcionarios[[#This Row],[Tempo_Empresa_Dias]]/365*30 -> 164 | W16: =SUMIFS(tb_ferias[Dias_Gozados],tb_ferias[Cod_Funcionario],tb_funcionarios[[#This Row],[Cod_Funcionario]]) -> 0 | X16: =tb_funcionarios[[#This Row],[Ferias_Acumuladas (em dias)]]-tb_funcionarios[[#This Row],[Ferias_Abonadas (em dias)]] -> 164
C17: F010 | D17: João Cardoso | E17: 789.012.345-99 | F17: 1983-06-06 | G17: (11) 91234-9978 | H17: joao10@empresa.com | I17: Rua K, 150 | J17: Financeiro | K17: Coordenador | L17: Ana Paula | M17: CLT | N17: 2019-08-14 | O17: 7,200.00 | P17: 08:00:00 | Q17: Ativo | T17: 2556 | U17: 32.73 | V17: =tb_funcionarios[[#This Row],[Tempo_Empresa_Dias]]/365*30 -> 210 | W17: =SUMIFS(tb_ferias[Dias_Gozados],tb_ferias[Cod_Funcionario],tb_funcionarios[[#This Row],[Cod_Funcionario]]) -> 15 | X17: =tb_funcionarios[[#This Row],[Ferias_Acumuladas (em dias)]]-tb_funcionarios[[#This Row],[Ferias_Abonadas (em dias)]] -> 195
C18: F011 | D18: Karina Souza | E18: 012.345.678-11 | F18: 1997-02-18 | G18: (11) 92345-1189 | H18: karina11@empresa.com | I18: Rua L, 77 | J18: RH | K18: Assistente | L18: Sandra Melo | M18: CLT | N18: 2022-10-31 | O18: 2,280.00 | P18: 08:00:00 | Q18: Ativo | T18: 1382 | U18: 10.36 | V18: =tb_funcionarios[[#This Row],[Tempo_Empresa_Dias]]/365*30 -> 114 | W18: =SUMIFS(tb_ferias[Dias_Gozados],tb_ferias[Cod_Funcionario],tb_funcionarios[[#This Row],[Cod_Funcionario]]) -> 0 | X18: =tb_funcionarios[[#This Row],[Ferias_Acumuladas (em dias)]]-tb_funcionarios[[#This Row],[Ferias_Abonadas (em dias)]] -> 114
C19: F012 | D19: Lucas Barbosa | E19: 345.678.901-22 | F19: 1987-10-30 | G19: (11) 93456-2290 | H19: lucas12@empresa.com | I19: Rua M, 400 | J19: TI | K19: Coordenador | L19: Carlos Lima | M19: CLT | N19: 2020-05-17 | O19: 6,980.00 | P19: 08:00:00 | Q19: Ativo | T19: 2279 | U19: 31.73 | V19: =tb_funcionarios[[#This Row],[Tempo_Empresa_Dias]]/365*30 -> 187 | W19: =SUMIFS(tb_ferias[Dias_Gozados],tb_ferias[Cod_Funcionario],tb_funcionarios[[#This Row],[Cod_Funcionario]]) -> 0 | X19: =tb_funcionarios[[#This Row],[Ferias_Acumuladas (em dias)]]-tb_funcionarios[[#This Row],[Ferias_Abonadas (em dias)]] -> 187
C20: F013 | D20: Mariana Castro | E20: 678.901.234-33 | F20: 1992-04-21 | G20: (11) 94567-3301 | H20: mariana13@empresa.com | I20: Rua N, 33 | J20: Administrativo | K20: Analista | L20: Maria Souza | M20: CLT | N20: 2021-01-03 | O20: 4,600.00 | P20: 08:00:00 | Q20: Ativo | T20: 2048 | U20: 20.91 | V20: =tb_funcionarios[[#This Row],[Tempo_Empresa_Dias]]/365*30 -> 168 | W20: =SUMIFS(tb_ferias[Dias_Gozados],tb_ferias[Cod_Funcionario],tb_funcionarios[[#This Row],[Cod_Funcionario]]) -> 30 | X20: =tb_funcionarios[[#This Row],[Ferias_Acumuladas (em dias)]]-tb_funcionarios[[#This Row],[Ferias_Abonadas (em dias)]] -> 138
C21: F014 | D21: Nicolas Santos | E21: 901.234.567-44 | F21: 1999-07-07 | G21: (11) 95678-4412 | H21: nicolas14@empresa.com | I21: Rua O, 99 | J21: Comercial | K21: Estagiário | L21: Roberto Dias | M21: Estágio | N21: 2023-06-11 | O21: 1,550.00 | P21: 08:00:00 | Q21: Ativo | T21: 1159 | U21: 7.05 | V21: =tb_funcionarios[[#This Row],[Tempo_Empresa_Dias]]/365*30 -> 95 | W21: =SUMIFS(tb_ferias[Dias_Gozados],tb_ferias[Cod_Funcionario],tb_funcionarios[[#This Row],[Cod_Funcionario]]) -> 0 | X21: =tb_funcionarios[[#This Row],[Ferias_Acumuladas (em dias)]]-tb_funcionarios[[#This Row],[Ferias_Abonadas (em dias)]] -> 95
C22: F015 | D22: Olivia Moreira | E22: 234.890.123-55 | F22: 1986-03-15 | G22: (11) 96789-5523 | H22: olivia15@empresa.com | I22: Rua P, 11 | J22: Financeiro | K22: Analista | L22: Ana Paula | M22: CLT | N22: 2020-09-21 | O22: 4,510.00 | P22: 08:00:00 | Q22: Ativo | T22: 2152 | U22: 20.50 | V22: =tb_funcionarios[[#This Row],[Tempo_Empresa_Dias]]/365*30 -> 177 | W22: =SUMIFS(tb_ferias[Dias_Gozados],tb_ferias[Cod_Funcionario],tb_funcionarios[[#This Row],[Cod_Funcionario]]) -> 0 | X22: =tb_funcionarios[[#This Row],[Ferias_Acumuladas (em dias)]]-tb_funcionarios[[#This Row],[Ferias_Abonadas (em dias)]] -> 177
C23: F016 | D23: Paulo Gomes | E23: 567.123.456-66 | F23: 1975-01-28 | G23: (11) 97890-6634 | H23: paulo16@empresa.com | I23: Rua Q, 500 | J23: Operações | K23: Diretor | L23: Maria Souza | M23: CLT | N23: 2018-02-13 | O23: 15,150.00 | P23: 08:00:00 | Q23: Ativo | T23: 3103 | U23: 68.86 | V23: =tb_funcionarios[[#This Row],[Tempo_Empresa_Dias]]/365*30 -> 255 | W23: =SUMIFS(tb_ferias[Dias_Gozados],tb_ferias[Cod_Funcionario],tb_funcionarios[[#This Row],[Cod_Funcionario]]) -> 30 | X23: =tb_funcionarios[[#This Row],[Ferias_Acumuladas (em dias)]]-tb_funcionarios[[#This Row],[Ferias_Abonadas (em dias)]] -> 225
C24: F017 | D24: Queila Ribeiro | E24: 890.456.789-77 | F24: 1994-11-04 | G24: (11) 98901-7745 | H24: queila17@empresa.com | I24: Rua R, 250 | J24: RH | K24: Analista | L24: Sandra Melo | M24: CLT | N24: 2022-03-06 | O24: 4,490.00 | P24: 08:00:00 | Q24: Ativo | T24: 1621 | U24: 20.41 | V24: =tb_funcionarios[[#This Row],[Tempo_Empresa_Dias]]/365*30 -> 133 | W24: =SUMIFS(tb_ferias[Dias_Gozados],tb_ferias[Cod_Funcionario],tb_funcionarios[[#This Row],[Cod_Funcionario]]) -> 0 | X24: =tb_funcionarios[[#This Row],[Ferias_Acumuladas (em dias)]]-tb_funcionarios[[#This Row],[Ferias_Abonadas (em dias)]] -> 133
C25: F018 | D25: Rafael Torres | E25: 123.789.012-88 | F25: 1989-06-19 | G25: (11) 99012-8856 | H25: rafael18@empresa.com | I25: Rua S, 180 | J25: TI | K25: Analista | L25: Carlos Lima | M25: PJ | N25: 2021-07-18 | O25: 4,700.00 | P25: 08:00:00 | Q25: Ativo | T25: 1852 | U25: 21.36 | V25: =tb_funcionarios[[#This Row],[Tempo_Empresa_Dias]]/365*30 -> 152 | W25: =SUMIFS(tb_ferias[Dias_Gozados],tb_ferias[Cod_Funcionario],tb_funcionarios[[#This Row],[Cod_Funcionario]]) -> 0 | X25: =tb_funcionarios[[#This Row],[Ferias_Acumuladas (em dias)]]-tb_funcionarios[[#This Row],[Ferias_Abonadas (em dias)]] -> 152
C26: F019 | D26: Sabrina Faria | E26: 456.012.345-99 | F26: 1996-08-10 | G26: (11) 91234-9967 | H26: sabrina19@empresa.com | I26: Rua T, 62 | J26: Comercial | K26: Assistente | L26: Roberto Dias | M26: CLT | N26: 2023-01-15 | O26: 2,200.00 | P26: 08:00:00 | Q26: Ativo | T26: 1306 | U26: 10.00 | V26: =tb_funcionarios[[#This Row],[Tempo_Empresa_Dias]]/365*30 -> 107 | W26: =SUMIFS(tb_ferias[Dias_Gozados],tb_ferias[Cod_Funcionario],tb_funcionarios[[#This Row],[Cod_Funcionario]]) -> 0 | X26: =tb_funcionarios[[#This Row],[Ferias_Acumuladas (em dias)]]-tb_funcionarios[[#This Row],[Ferias_Abonadas (em dias)]] -> 107
C27: F020 | D27: Thiago Lopes | E27: 789.345.678-10 | F27: 1984-02-27 | G27: (11) 92345-1078 | H27: thiago20@empresa.com | I27: Rua U, 370 | J27: Administrativo | K27: Coordenador | L27: Maria Souza | M27: CLT | N27: 2019-04-29 | O27: 7,050.00 | P27: 08:00:00 | Q27: Ativo | T27: 2663 | U27: 32.05 | V27: =tb_funcionarios[[#This Row],[Tempo_Empresa_Dias]]/365*30 -> 219 | W27: =SUMIFS(tb_ferias[Dias_Gozados],tb_ferias[Cod_Funcionario],tb_funcionarios[[#This Row],[Cod_Funcionario]]) -> 20 | X27: =tb_funcionarios[[#This Row],[Ferias_Acumuladas (em dias)]]-tb_funcionarios[[#This Row],[Ferias_Abonadas (em dias)]] -> 199
C28: F021 | D28: Ursula Melo | E28: 012.678.901-21 | F28: 1991-12-16 | G28: (11) 93456-2189 | H28: ursula21@empresa.com | I28: Rua V, 144 | J28: Financeiro | K28: Assistente | L28: Ana Paula | M28: CLT | N28: 2022-08-22 | O28: 2,250.00 | P28: 08:00:00 | Q28: Ativo | T28: 1452 | U28: 10.23 | V28: =tb_funcionarios[[#This Row],[Tempo_Empresa_Dias]]/365*30 -> 119 | W28: =SUMIFS(tb_ferias[Dias_Gozados],tb_ferias[Cod_Funcionario],tb_funcionarios[[#This Row],[Cod_Funcionario]]) -> 0 | X28: =tb_funcionarios[[#This Row],[Ferias_Acumuladas (em dias)]]-tb_funcionarios[[#This Row],[Ferias_Abonadas (em dias)]] -> 119
C29: F022 | D29: Vitor Araújo | E29: 345.901.234-32 | F29: 1980-05-03 | G29: (11) 94567-3290 | H29: vitor22@empresa.com | I29: Rua W, 88 | J29: TI | K29: Gerente | L29: Carlos Lima | M29: CLT | N29: 2018-09-09 | O29: 10,200.00 | P29: 08:00:00 | Q29: Ativo | T29: 2895 | U29: 46.36 | V29: =tb_funcionarios[[#This Row],[Tempo_Empresa_Dias]]/365*30 -> 238 | W29: =SUMIFS(tb_ferias[Dias_Gozados],tb_ferias[Cod_Funcionario],tb_funcionarios[[#This Row],[Cod_Funcionario]]) -> 15 | X29: =tb_funcionarios[[#This Row],[Ferias_Acumuladas (em dias)]]-tb_funcionarios[[#This Row],[Ferias_Abonadas (em dias)]] -> 223
C30: F023 | D30: Wendy Correia | E30: 678.234.567-43 | F30: 1998-09-25 | G30: (11) 95678-4301 | H30: wendy23@empresa.com | I30: Rua X, 215 | J30: Operações | K30: Assistente | L30: Roberto Dias | M30: CLT | N30: 2023-02-05 | O30: 2,320.00 | P30: 08:00:00 | Q30: Ativo | T30: 1285 | U30: 10.55 | V30: =tb_funcionarios[[#This Row],[Tempo_Empresa_Dias]]/365*30 -> 106 | W30: =SUMIFS(tb_ferias[Dias_Gozados],tb_ferias[Cod_Funcionario],tb_funcionarios[[#This Row],[Cod_Funcionario]]) -> 0 | X30: =tb_funcionarios[[#This Row],[Ferias_Acumuladas (em dias)]]-tb_funcionarios[[#This Row],[Ferias_Abonadas (em dias)]] -> 106
C31: F024 | D31: Xavier Pereira | E31: 901.567.890-54 | F31: 1985-07-12 | G31: (11) 96789-5412 | H31: xavier24@empresa.com | I31: Rua Y, 56 | J31: Administrativo | K31: Analista | L31: Maria Souza | M31: CLT | N31: 2020-11-30 | O31: 4,530.00 | P31: 08:00:00 | Q31: Ativo | T31: 2082 | U31: 20.59 | V31: =tb_funcionarios[[#This Row],[Tempo_Empresa_Dias]]/365*30 -> 171 | W31: =SUMIFS(tb_ferias[Dias_Gozados],tb_ferias[Cod_Funcionario],tb_funcionarios[[#This Row],[Cod_Funcionario]]) -> 0 | X31: =tb_funcionarios[[#This Row],[Ferias_Acumuladas (em dias)]]-tb_funcionarios[[#This Row],[Ferias_Abonadas (em dias)]] -> 171
C32: F025 | D32: Yasmin Andrade | E32: 234.890.123-65 | F32: 2001-04-08 | G32: (11) 97890-6523 | H32: yasmin25@empresa.com | I32: Rua Z, 300 | J32: RH | K32: Estagiário | L32: Sandra Melo | M32: Estágio | N32: 2023-08-13 | O32: 1,500.00 | P32: 08:00:00 | Q32: Ativo | T32: 1096 | U32: 6.82 | V32: =tb_funcionarios[[#This Row],[Tempo_Empresa_Dias]]/365*30 -> 90 | W32: =SUMIFS(tb_ferias[Dias_Gozados],tb_ferias[Cod_Funcionario],tb_funcionarios[[#This Row],[Cod_Funcionario]]) -> 0 | X32: =tb_funcionarios[[#This Row],[Ferias_Acumuladas (em dias)]]-tb_funcionarios[[#This Row],[Ferias_Abonadas (em dias)]] -> 90
C33: F026 | D33: Zélia Carvalho | E33: 567.123.456-76 | F33: 1977-10-20 | G33: (11) 98901-7634 | H33: zelia26@empresa.com | I33: Rua A, 410 | J33: Financeiro | K33: Coordenador | L33: Ana Paula | M33: CLT | N33: 2018-07-24 | O33: 7,100.00 | P33: 08:00:00 | Q33: Ativo | T33: 2942 | U33: 32.27 | V33: =tb_funcionarios[[#This Row],[Tempo_Empresa_Dias]]/365*30 -> 242 | W33: =SUMIFS(tb_ferias[Dias_Gozados],tb_ferias[Cod_Funcionario],tb_funcionarios[[#This Row],[Cod_Funcionario]]) -> 30 | X33: =tb_funcionarios[[#This Row],[Ferias_Acumuladas (em dias)]]-tb_funcionarios[[#This Row],[Ferias_Abonadas (em dias)]] -> 212
C34: F027 | D34: André Martins | E34: 890.456.789-87 | F34: 1988-01-29 | G34: (11) 99012-8745 | H34: andre27@empresa.com | I34: Rua B, 130 | J34: Comercial | K34: Coordenador | L34: Roberto Dias | M34: CLT | N34: 2019-10-07 | O34: 7,080.00 | P34: 08:00:00 | Q34: Ativo | T34: 2502 | U34: 32.18 | V34: =tb_funcionarios[[#This Row],[Tempo_Empresa_Dias]]/365*30 -> 206 | W34: =SUMIFS(tb_ferias[Dias_Gozados],tb_ferias[Cod_Funcionario],tb_funcionarios[[#This Row],[Cod_Funcionario]]) -> 0 | X34: =tb_funcionarios[[#This Row],[Ferias_Acumuladas (em dias)]]-tb_funcionarios[[#This Row],[Ferias_Abonadas (em dias)]] -> 206
C35: F028 | D35: Beatriz Oliveira | E35: 123.789.012-98 | F35: 1993-06-14 | G35: (11) 91234-8856 | H35: beatriz28@empresa.com | I35: Rua C, 75 | J35: TI | K35: Assistente | L35: Carlos Lima | M35: CLT | N35: 2022-01-16 | O35: 2,190.00 | P35: 08:00:00 | Q35: Ativo | T35: 1670 | U35: 9.95 | V35: =tb_funcionarios[[#This Row],[Tempo_Empresa_Dias]]/365*30 -> 137 | W35: =SUMIFS(tb_ferias[Dias_Gozados],tb_ferias[Cod_Funcionario],tb_funcionarios[[#This Row],[Cod_Funcionario]]) -> 0 | X35: =tb_funcionarios[[#This Row],[Ferias_Acumuladas (em dias)]]-tb_funcionarios[[#This Row],[Ferias_Abonadas (em dias)]] -> 137
C36: F029 | D36: Caio Fernandes | E36: 456.012.345-09 | F36: 1990-03-21 | G36: (11) 92345-9967 | H36: caio29@empresa.com | I36: Rua D, 680 | J36: Operações | K36: Analista | L36: Roberto Dias | M36: CLT | N36: 2021-05-10 | O36: 4,560.00 | P36: 08:00:00 | Q36: Ativo | T36: 1921 | U36: 20.73 | V36: =tb_funcionarios[[#This Row],[Tempo_Empresa_Dias]]/365*30 -> 158 | W36: =SUMIFS(tb_ferias[Dias_Gozados],tb_ferias[Cod_Funcionario],tb_funcionarios[[#This Row],[Cod_Funcionario]]) -> 0 | X36: =tb_funcionarios[[#This Row],[Ferias_Acumuladas (em dias)]]-tb_funcionarios[[#This Row],[Ferias_Abonadas (em dias)]] -> 158
C37: F030 | D37: Débora Ramos | E37: 789.345.678-20 | F37: 1986-09-07 | G37: (11) 93456-1078 | H37: debora30@empresa.com | I37: Rua E, 29 | J37: Administrativo | K37: Analista | L37: Maria Souza | M37: CLT | N37: 2020-11-29 | O37: 4,470.00 | P37: 08:00:00 | Q37: Ativo | T37: 2083 | U37: 20.32 | V37: =tb_funcionarios[[#This Row],[Tempo_Empresa_Dias]]/365*30 -> 171 | W37: =SUMIFS(tb_ferias[Dias_Gozados],tb_ferias[Cod_Funcionario],tb_funcionarios[[#This Row],[Cod_Funcionario]]) -> 0 | X37: =tb_funcionarios[[#This Row],[Ferias_Acumuladas (em dias)]]-tb_funcionarios[[#This Row],[Ferias_Abonadas (em dias)]] -> 171
C38: F031 | D38: Eduardo Cunha | E38: 012.678.901-31 | F38: 1981-12-24 | G38: (11) 94567-2189 | H38: eduardo31@empresa.com | I38: Rua F, 505 | J38: Financeiro | K38: Gerente | L38: Ana Paula | M38: CLT | N38: 2018-06-19 | O38: 9,950.00 | P38: 08:00:00 | Q38: Ativo | T38: 2977 | U38: 45.23 | V38: =tb_funcionarios[[#This Row],[Tempo_Empresa_Dias]]/365*30 -> 245 | W38: =SUMIFS(tb_ferias[Dias_Gozados],tb_ferias[Cod_Funcionario],tb_funcionarios[[#This Row],[Cod_Funcionario]]) -> 20 | X38: =tb_funcionarios[[#This Row],[Ferias_Acumuladas (em dias)]]-tb_funcionarios[[#This Row],[Ferias_Abonadas (em dias)]] -> 225
C39: F032 | D39: Fernanda Assis | E39: 345.901.234-42 | F39: 1995-04-11 | G39: (11) 95678-3290 | H39: fernanda32@empresa.com | I39: Rua G, 190 | J39: RH | K39: Assistente | L39: Sandra Melo | M39: CLT | N39: 2022-09-04 | O39: 2,300.00 | P39: 08:00:00 | Q39: Ativo | T39: 1439 | U39: 10.45 | V39: =tb_funcionarios[[#This Row],[Tempo_Empresa_Dias]]/365*30 -> 118 | W39: =SUMIFS(tb_ferias[Dias_Gozados],tb_ferias[Cod_Funcionario],tb_funcionarios[[#This Row],[Cod_Funcionario]]) -> 0 | X39: =tb_funcionarios[[#This Row],[Ferias_Acumuladas (em dias)]]-tb_funcionarios[[#This Row],[Ferias_Abonadas (em dias)]] -> 118
C40: F033 | D40: Gustavo Braga | E40: 678.234.567-53 | F40: 1984-07-26 | G40: (11) 96789-4301 | H40: gustavo33@empresa.com | I40: Rua H, 430 | J40: TI | K40: Analista | L40: Carlos Lima | M40: PJ | N40: 2021-03-23 | O40: 4,650.00 | P40: 08:00:00 | Q40: Ativo | T40: =IF(N40="","",TODAY()-N40) -> 1969 | U40: =IFERROR(O40/220,0) -> 21.14 | V40: =tb_funcionarios[[#This Row],[Tempo_Empresa_Dias]]/365*30 -> 162 | W40: =SUMIFS(tb_ferias[Dias_Gozados],tb_ferias[Cod_Funcionario],tb_funcionarios[[#This Row],[Cod_Funcionario]]) -> 0 | X40: =tb_funcionarios[[#This Row],[Ferias_Acumuladas (em dias)]]-tb_funcionarios[[#This Row],[Ferias_Abonadas (em dias)]] -> 162
C41: F034 | D41: Hana Vieira | E41: 901.567.890-64 | F41: 1999-01-17 | G41: (11) 97890-5412 | H41: hana34@empresa.com | I41: Rua I, 77 | J41: Comercial | K41: Estagiário | L41: Roberto Dias | M41: Estágio | N41: 2023-07-02 | O41: 1,480.00 | P41: 08:00:00 | Q41: Ativo | T41: 1138 | U41: 6.73 | V41: =tb_funcionarios[[#This Row],[Tempo_Empresa_Dias]]/365*30 -> 94 | W41: =SUMIFS(tb_ferias[Dias_Gozados],tb_ferias[Cod_Funcionario],tb_funcionarios[[#This Row],[Cod_Funcionario]]) -> 0 | X41: =tb_funcionarios[[#This Row],[Ferias_Acumuladas (em dias)]]-tb_funcionarios[[#This Row],[Ferias_Abonadas (em dias)]] -> 94
C42: F035 | D42: Igor Campos | E42: 234.890.123-75 | F42: 1987-05-05 | G42: (11) 98901-6523 | H42: igor35@empresa.com | I42: Rua J, 350 | J42: Operações | K42: Coordenador | L42: Roberto Dias | M42: CLT | N42: 2020-04-14 | O42: 7,030.00 | P42: 08:00:00 | Q42: Ativo | T42: 2312 | U42: 31.95 | V42: =tb_funcionarios[[#This Row],[Tempo_Empresa_Dias]]/365*30 -> 190 | W42: =SUMIFS(tb_ferias[Dias_Gozados],tb_ferias[Cod_Funcionario],tb_funcionarios[[#This Row],[Cod_Funcionario]]) -> 15 | X42: =tb_funcionarios[[#This Row],[Ferias_Acumuladas (em dias)]]-tb_funcionarios[[#This Row],[Ferias_Abonadas (em dias)]] -> 175
C43: F036 | D43: Julia Freitas | E43: 567.123.456-86 | F43: 1992-11-13 | G43: (11) 99012-7634 | H43: julia36@empresa.com | I43: Rua K, 98 | J43: Administrativo | K43: Assistente | L43: Maria Souza | M43: CLT | N43: 2022-06-19 | O43: 2,210.00 | P43: 08:00:00 | Q43: Ativo | T43: 1516 | U43: 10.05 | V43: =tb_funcionarios[[#This Row],[Tempo_Empresa_Dias]]/365*30 -> 125 | W43: =SUMIFS(tb_ferias[Dias_Gozados],tb_ferias[Cod_Funcionario],tb_funcionarios[[#This Row],[Cod_Funcionario]]) -> 0 | X43: =tb_funcionarios[[#This Row],[Ferias_Acumuladas (em dias)]]-tb_funcionarios[[#This Row],[Ferias_Abonadas (em dias)]] -> 125
C44: F037 | D44: Kleber Monteiro | E44: 890.456.789-97 | F44: 1978-08-22 | G44: (11) 91234-8745 | H44: kleber37@empresa.com | I44: Rua L, 720 | J44: Financeiro | K44: Diretor | L44: Ana Paula | M44: CLT | N44: 2018-03-10 | O44: 15,080.00 | P44: 08:00:00 | Q44: Ativo | T44: 3078 | U44: 68.55 | V44: =tb_funcionarios[[#This Row],[Tempo_Empresa_Dias]]/365*30 -> 253 | W44: =SUMIFS(tb_ferias[Dias_Gozados],tb_ferias[Cod_Funcionario],tb_funcionarios[[#This Row],[Cod_Funcionario]]) -> 0 | X44: =tb_funcionarios[[#This Row],[Ferias_Acumuladas (em dias)]]-tb_funcionarios[[#This Row],[Ferias_Abonadas (em dias)]] -> 253
C45: F038 | D45: Laura Nascimento | E45: 123.789.012-08 | F45: 1996-02-08 | G45: (11) 92345-9856 | H45: laura38@empresa.com | I45: Rua M, 162 | J45: RH | K45: Analista | L45: Sandra Melo | M45: CLT | N45: 2021-11-21 | O45: 4,480.00 | P45: 08:00:00 | Q45: Ativo | T45: 1726 | U45: 20.36 | V45: =tb_funcionarios[[#This Row],[Tempo_Empresa_Dias]]/365*30 -> 142 | W45: =SUMIFS(tb_ferias[Dias_Gozados],tb_ferias[Cod_Funcionario],tb_funcionarios[[#This Row],[Cod_Funcionario]]) -> 0 | X45: =tb_funcionarios[[#This Row],[Ferias_Acumuladas (em dias)]]-tb_funcionarios[[#This Row],[Ferias_Abonadas (em dias)]] -> 142
C46: F039 | D46: Marcio Tavares | E46: 456.012.345-19 | F46: 1983-09-30 | G46: (11) 93456-9967 | H46: marcio39@empresa.com | I46: Rua N, 44 | J46: TI | K46: Coordenador | L46: Carlos Lima | M46: CLT | N46: 2019-12-08 | O46: 7,060.00 | P46: 08:00:00 | Q46: Ativo | T46: 2440 | U46: 32.09 | V46: =tb_funcionarios[[#This Row],[Tempo_Empresa_Dias]]/365*30 -> 201 | W46: =SUMIFS(tb_ferias[Dias_Gozados],tb_ferias[Cod_Funcionario],tb_funcionarios[[#This Row],[Cod_Funcionario]]) -> 0 | X46: =tb_funcionarios[[#This Row],[Ferias_Acumuladas (em dias)]]-tb_funcionarios[[#This Row],[Ferias_Abonadas (em dias)]] -> 201
C47: F040 | D47: Natália Coelho | E47: 789.345.678-30 | F47: 1994-06-27 | G47: (11) 94567-1078 | H47: natalia40@empresa.com | I47: Rua O, 275 | J47: Comercial | K47: Analista | L47: Roberto Dias | M47: CLT | N47: 2021-08-17 | O47: 4,540.00 | P47: 08:00:00 | Q47: Ativo | T47: 1822 | U47: 20.64 | V47: =tb_funcionarios[[#This Row],[Tempo_Empresa_Dias]]/365*30 -> 150 | W47: =SUMIFS(tb_ferias[Dias_Gozados],tb_ferias[Cod_Funcionario],tb_funcionarios[[#This Row],[Cod_Funcionario]]) -> 0 | X47: =tb_funcionarios[[#This Row],[Ferias_Acumuladas (em dias)]]-tb_funcionarios[[#This Row],[Ferias_Abonadas (em dias)]] -> 150
C48: F041 | D48: Otávio Leite | E48: 012.678.901-41 | F48: 1989-03-16 | G48: (11) 95678-2189 | H48: otavio41@empresa.com | I48: Rua P, 555 | J48: Operações | K48: Analista | L48: Roberto Dias | M48: CLT | N48: 2020-07-26 | O48: 4,590.00 | P48: 08:00:00 | Q48: Ativo | T48: 2209 | U48: 20.86 | V48: =tb_funcionarios[[#This Row],[Tempo_Empresa_Dias]]/365*30 -> 182 | W48: =SUMIFS(tb_ferias[Dias_Gozados],tb_ferias[Cod_Funcionario],tb_funcionarios[[#This Row],[Cod_Funcionario]]) -> 0 | X48: =tb_funcionarios[[#This Row],[Ferias_Acumuladas (em dias)]]-tb_funcionarios[[#This Row],[Ferias_Abonadas (em dias)]] -> 182
C49: F042 | D49: Patricia Borges | E49: 345.901.234-52 | F49: 1980-11-03 | G49: (11) 96789-3290 | H49: patricia42@empresa.com | I49: Rua Q, 119 | J49: Administrativo | K49: Gerente | L49: Maria Souza | M49: CLT | N49: 2018-10-13 | O49: 10,100.00 | P49: 08:00:00 | Q49: Ativo | T49: 2861 | U49: 45.91 | V49: =tb_funcionarios[[#This Row],[Tempo_Empresa_Dias]]/365*30 -> 235 | W49: =SUMIFS(tb_ferias[Dias_Gozados],tb_ferias[Cod_Funcionario],tb_funcionarios[[#This Row],[Cod_Funcionario]]) -> 30 | X49: =tb_funcionarios[[#This Row],[Ferias_Acumuladas (em dias)]]-tb_funcionarios[[#This Row],[Ferias_Abonadas (em dias)]] -> 205
C50: F043 | D50: Quirino Duarte | E50: 678.234.567-63 | F50: 1997-07-19 | G50: (11) 97890-4301 | H50: quirino43@empresa.com | I50: Rua R, 390 | J50: Financeiro | K50: Assistente | L50: Ana Paula | M50: CLT | N50: 2022-04-03 | O50: 2,270.00 | P50: 08:00:00 | Q50: Ativo | T50: 1593 | U50: 10.32 | V50: =tb_funcionarios[[#This Row],[Tempo_Empresa_Dias]]/365*30 -> 131 | W50: =SUMIFS(tb_ferias[Dias_Gozados],tb_ferias[Cod_Funcionario],tb_funcionarios[[#This Row],[Cod_Funcionario]]) -> 0 | X50: =tb_funcionarios[[#This Row],[Ferias_Acumuladas (em dias)]]-tb_funcionarios[[#This Row],[Ferias_Abonadas (em dias)]] -> 131
C51: F044 | D51: Renata Xavier | E51: 901.567.890-74 | F51: 1991-01-10 | G51: (11) 98901-5412 | H51: renata44@empresa.com | I51: Rua S, 85 | J51: RH | K51: Coordenador | L51: Sandra Melo | M51: CLT | N51: 2020-02-16 | O51: 7,150.00 | P51: 08:00:00 | Q51: Ativo | T51: 2370 | U51: 32.50 | V51: =tb_funcionarios[[#This Row],[Tempo_Empresa_Dias]]/365*30 -> 195 | W51: =SUMIFS(tb_ferias[Dias_Gozados],tb_ferias[Cod_Funcionario],tb_funcionarios[[#This Row],[Cod_Funcionario]]) -> 0 | X51: =tb_funcionarios[[#This Row],[Ferias_Acumuladas (em dias)]]-tb_funcionarios[[#This Row],[Ferias_Abonadas (em dias)]] -> 195
C52: F045 | D52: Sandro Azevedo | E52: 234.890.123-85 | F52: 1985-04-23 | G52: (11) 99012-6523 | H52: sandro45@empresa.com | I52: Rua T, 440 | J52: TI | K52: Analista | L52: Carlos Lima | M52: PJ | N52: 2021-06-29 | O52: 4,670.00 | P52: 08:00:00 | Q52: Ativo | T52: 1871 | U52: 21.23 | V52: =tb_funcionarios[[#This Row],[Tempo_Empresa_Dias]]/365*30 -> 154 | W52: =SUMIFS(tb_ferias[Dias_Gozados],tb_ferias[Cod_Funcionario],tb_funcionarios[[#This Row],[Cod_Funcionario]]) -> 0 | X52: =tb_funcionarios[[#This Row],[Ferias_Acumuladas (em dias)]]-tb_funcionarios[[#This Row],[Ferias_Abonadas (em dias)]] -> 154
C53: F046 | D53: Tatiane Macedo | E53: 567.123.456-96 | F53: 1993-09-02 | G53: (11) 91234-7634 | H53: tatiane46@empresa.com | I53: Rua U, 222 | J53: Comercial | K53: Analista | L53: Roberto Dias | M53: CLT | N53: 2021-10-24 | O53: 4,520.00 | P53: 08:00:00 | Q53: Ativo | T53: 1754 | U53: 20.55 | V53: =tb_funcionarios[[#This Row],[Tempo_Empresa_Dias]]/365*30 -> 144 | W53: =SUMIFS(tb_ferias[Dias_Gozados],tb_ferias[Cod_Funcionario],tb_funcionarios[[#This Row],[Cod_Funcionario]]) -> 0 | X53: =tb_funcionarios[[#This Row],[Ferias_Acumuladas (em dias)]]-tb_funcionarios[[#This Row],[Ferias_Abonadas (em dias)]] -> 144
C54: F047 | D54: Ulisses Peixoto | E54: 890.456.789-07 | F54: 1976-06-29 | G54: (11) 92345-8745 | H54: ulisses47@empresa.com | I54: Rua V, 610 | J54: Operações | K54: Diretor | L54: Roberto Dias | M54: CLT | N54: 2018-05-15 | O54: 15,200.00 | P54: 08:00:00 | Q54: Ativo | T54: 3012 | U54: 69.09 | V54: =tb_funcionarios[[#This Row],[Tempo_Empresa_Dias]]/365*30 -> 248 | W54: =SUMIFS(tb_ferias[Dias_Gozados],tb_ferias[Cod_Funcionario],tb_funcionarios[[#This Row],[Cod_Funcionario]]) -> 30 | X54: =tb_funcionarios[[#This Row],[Ferias_Acumuladas (em dias)]]-tb_funcionarios[[#This Row],[Ferias_Abonadas (em dias)]] -> 218
C55: F048 | D55: Vanessa Falcão | E55: 123.789.012-18 | F55: 1998-12-06 | G55: (11) 93456-9856 | H55: vanessa48@empresa.com | I55: Rua W, 38 | J55: Administrativo | K55: Estagiário | L55: Maria Souza | M55: Estágio | N55: 2023-09-10 | O55: 1,530.00 | P55: 08:00:00 | Q55: Ativo | T55: 1068 | U55: 6.95 | V55: =tb_funcionarios[[#This Row],[Tempo_Empresa_Dias]]/365*30 -> 88 | W55: =SUMIFS(tb_ferias[Dias_Gozados],tb_ferias[Cod_Funcionario],tb_funcionarios[[#This Row],[Cod_Funcionario]]) -> 0 | X55: =tb_funcionarios[[#This Row],[Ferias_Acumuladas (em dias)]]-tb_funcionarios[[#This Row],[Ferias_Abonadas (em dias)]] -> 88
C56: F049 | D56: Wagner Brito | E56: 456.012.345-29 | F56: 1982-08-14 | G56: (11) 94567-9967 | H56: wagner49@empresa.com | I56: Rua X, 480 | J56: Financeiro | K56: Analista | L56: Ana Paula | M56: CLT | N56: 2020-06-07 | O56: 4,460.00 | P56: 08:00:00 | Q56: Ativo | T56: 2258 | U56: 20.27 | V56: =tb_funcionarios[[#This Row],[Tempo_Empresa_Dias]]/365*30 -> 186 | W56: =SUMIFS(tb_ferias[Dias_Gozados],tb_ferias[Cod_Funcionario],tb_funcionarios[[#This Row],[Cod_Funcionario]]) -> 0 | X56: =tb_funcionarios[[#This Row],[Ferias_Acumuladas (em dias)]]-tb_funcionarios[[#This Row],[Ferias_Abonadas (em dias)]] -> 186
C57: F050 | D57: Xanda Nogueira | E57: 789.345.678-40 | F57: 1990-05-18 | G57: (11) 95678-1078 | H57: xanda50@empresa.com | I57: Rua Y, 165 | J57: Comercial | K57: Coordenador | L57: Roberto Dias | M57: CLT | N57: 2019-11-27 | O57: 7,010.00 | P57: 08:00:00 | Q57: Ativo | T57: 2451 | U57: 31.86 | V57: =tb_funcionarios[[#This Row],[Tempo_Empresa_Dias]]/365*30 -> 201 | W57: =SUMIFS(tb_ferias[Dias_Gozados],tb_ferias[Cod_Funcionario],tb_funcionarios[[#This Row],[Cod_Funcionario]]) -> 0 | X57: =tb_funcionarios[[#This Row],[Ferias_Acumuladas (em dias)]]-tb_funcionarios[[#This Row],[Ferias_Abonadas (em dias)]] -> 201

Sheet Férias (hidden)
C7: ID_Ferias | D7: Cod_Funcionario | E7: Nome_Funcionario | F7: Setor | G7: Data_Admissao | H7: Periodo_Aquisitivo_Inicio | I7: Periodo_Aquisitivo_Fim | J7: Dias_Direito | K7: Dias_Gozados | L7: Dias_Abono | M7: Saldo_Dias | N7: Data_Programada_Inicio | O7: Data_Programada_Fim | P7: Data_Efetiva_Inicio | Q7: Data_Efetiva_Fim | R7: Status_Ferias | S7: Observacoes | T7: Comp_Inicio
C8: FE001 | D8: F002 | E8: =IFERROR(VLOOKUP(D8,tb_funcionarios[[Cod_Funcionario]:[Nome_Completo]],2,FALSE),"") -> Bruno Costa | F8: =IFERROR(VLOOKUP(D8,tb_funcionarios[[Cod_Funcionario]:[Setor]],8,FALSE),"") -> TI | G8: =IFERROR(VLOOKUP(D8,tb_funcionarios[[Cod_Funcionario]:[Data_Admissao]],12,FALSE),"") -> 2020-03-11 | H8: 2025-03-11 | I8: =IF(H8="","",DATE(YEAR(H8)+1,MONTH(H8),DAY(H8))-1) -> 2026-03-10 | J8: 30 | K8: 15 | L8: 0 | M8: =IFERROR(J8-K8-L8,"") -> 15 | N8: 2026-01-04 | O8: 2026-01-18 | P8: 2026-01-04 | Q8: 2026-01-18 | R8: Concluída | T8: =TEXT(DATE(YEAR(tb_ferias[[#This Row],[Data_Programada_Inicio]]),MONTH(tb_ferias[[#This Row],[Data_Programada_Inicio]]),1),"MMM-YY") -> Jan-26
C9: FE002 | D9: F005 | E9: =IFERROR(VLOOKUP(D9,tb_funcionarios[[Cod_Funcionario]:[Nome_Completo]],2,FALSE),"") -> Elena Ferreira | F9: =IFERROR(VLOOKUP(D9,tb_funcionarios[[Cod_Funcionario]:[Setor]],8,FALSE),"") -> RH | G9: =IFERROR(VLOOKUP(D9,tb_funcionarios[[Cod_Funcionario]:[Data_Admissao]],12,FALSE),"") -> 2020-01-19 | H9: 2025-01-19 | I9: 2026-01-18 | J9: 30 | K9: 30 | L9: 0 | M9: 0 | N9: 2026-01-09 | O9: 2026-02-07 | P9: 2026-01-09 | Q9: 2026-02-07 | R9: Concluída | T9: =TEXT(DATE(YEAR(tb_ferias[[#This Row],[Data_Programada_Inicio]]),MONTH(tb_ferias[[#This Row],[Data_Programada_Inicio]]),1),"MMM-YY") -> Jan-26
C10: FE003 | D10: F008 | E10: =IFERROR(VLOOKUP(D10,tb_funcionarios[[Cod_Funcionario]:[Nome_Completo]],2,FALSE),"") -> Henrique Pinto | F10: =IFERROR(VLOOKUP(D10,tb_funcionarios[[Cod_Funcionario]:[Setor]],8,FALSE),"") -> Operações | G10: =IFERROR(VLOOKUP(D10,tb_funcionarios[[Cod_Funcionario]:[Data_Admissao]],12,FALSE),"") -> 2018-11-04 | H10: 2025-11-04 | I10: 2026-11-03 | J10: 30 | K10: 20 | L10: 0 | M10: 10 | N10: 2026-02-01 | O10: 2026-02-20 | P10: 2026-02-01 | Q10: 2026-02-20 | R10: Concluída | T10: =TEXT(DATE(YEAR(tb_ferias[[#This Row],[Data_Programada_Inicio]]),MONTH(tb_ferias[[#This Row],[Data_Programada_Inicio]]),1),"MMM-YY") -> Feb-26
C11: FE004 | D11: F010 | E11: =IFERROR(VLOOKUP(D11,tb_funcionarios[[Cod_Funcionario]:[Nome_Completo]],2,FALSE),"") -> João Cardoso | F11: =IFERROR(VLOOKUP(D11,tb_funcionarios[[Cod_Funcionario]:[Setor]],8,FALSE),"") -> Financeiro | G11: =IFERROR(VLOOKUP(D11,tb_funcionarios[[Cod_Funcionario]:[Data_Admissao]],12,FALSE),"") -> 2019-08-14 | H11: 2025-08-14 | I11: 2026-08-13 | J11: 30 | K11: 15 | L11: 10 | M11: 5 | N11: 2026-02-15 | O11: 2026-03-01 | P11: 2026-02-15 | Q11: 2026-03-01 | R11: Concluída | S11: Abono pecuniário | T11: =TEXT(DATE(YEAR(tb_ferias[[#This Row],[Data_Programada_Inicio]]),MONTH(tb_ferias[[#This Row],[Data_Programada_Inicio]]),1),"MMM-YY") -> Feb-26
C12: FE005 | D12: F013 | E12: =IFERROR(VLOOKUP(D12,tb_funcionarios[[Cod_Funcionario]:[Nome_Completo]],2,FALSE),"") -> Mariana Castro | F12: =IFERROR(VLOOKUP(D12,tb_funcionarios[[Cod_Funcionario]:[Setor]],8,FALSE),"") -> Administrativo | G12: =IFERROR(VLOOKUP(D12,tb_funcionarios[[Cod_Funcionario]:[Data_Admissao]],12,FALSE),"") -> 2021-01-03 | H12: 2025-01-03 | I12: 2026-01-02 | J12: 30 | K12: 30 | L12: 0 | M12: 0 | N12: 2026-01-19 | O12: 2026-02-17 | P12: 2026-01-19 | Q12: 2026-02-17 | R12: Concluída | T12: =TEXT(DATE(YEAR(tb_ferias[[#This Row],[Data_Programada_Inicio]]),MONTH(tb_ferias[[#This Row],[Data_Programada_Inicio]]),1),"MMM-YY") -> Jan-26
C13: FE006 | D13: F016 | E13: =IFERROR(VLOOKUP(D13,tb_funcionarios[[Cod_Funcionario]:[Nome_Completo]],2,FALSE),"") -> Paulo Gomes | F13: =IFERROR(VLOOKUP(D13,tb_funcionarios[[Cod_Funcionario]:[Setor]],8,FALSE),"") -> Operações | G13: =IFERROR(VLOOKUP(D13,tb_funcionarios[[Cod_Funcionario]:[Data_Admissao]],12,FALSE),"") -> 2018-02-13 | H13: 2025-02-13 | I13: 2026-02-12 | J13: 30 | K13: 30 | L13: 0 | M13: 0 | N13: 2026-03-01 | O13: 2026-03-30 | P13: 2026-03-01 | Q13: 2026-03-30 | R13: Em Gozo | S13: Diretor | T13: =TEXT(DATE(YEAR(tb_ferias[[#This Row],[Data_Programada_Inicio]]),MONTH(tb_ferias[[#This Row],[Data_Programada_Inicio]]),1),"MMM-YY") -> Mar-26
C14: FE007 | D14: F020 | E14: =IFERROR(VLOOKUP(D14,tb_funcionarios[[Cod_Funcionario]:[Nome_Completo]],2,FALSE),"") -> Thiago Lopes | F14: =IFERROR(VLOOKUP(D14,tb_funcionarios[[Cod_Funcionario]:[Setor]],8,FALSE),"") -> Administrativo | G14: =IFERROR(VLOOKUP(D14,tb_funcionarios[[Cod_Funcionario]:[Data_Admissao]],12,FALSE),"") -> 2019-04-29 | H14: 2025-04-29 | I14: 2026-04-28 | J14: 30 | K14: 20 | L14: 0 | M14: 10 | N14: 2026-01-11 | O14: 2026-01-30 | P14: 2026-01-11 | Q14: 2026-01-30 | R14: Concluída | T14: =TEXT(DATE(YEAR(tb_ferias[[#This Row],[Data_Programada_Inicio]]),MONTH(tb_ferias[[#This Row],[Data_Programada_Inicio]]),1),"MMM-YY") -> Jan-26
C15: FE008 | D15: F022 | E15: =IFERROR(VLOOKUP(D15,tb_funcionarios[[Cod_Funcionario]:[Nome_Completo]],2,FALSE),"") -> Vitor Araújo | F15: =IFERROR(VLOOKUP(D15,tb_funcionarios[[Cod_Funcionario]:[Setor]],8,FALSE),"") -> TI | G15: =IFERROR(VLOOKUP(D15,tb_funcionarios[[Cod_Funcionario]:[Data_Admissao]],12,FALSE),"") -> 2018-09-09 | H15: 2025-09-09 | I15: 2026-09-08 | J15: 30 | K15: 15 | L15: 0 | M15: 15 | N15: 2026-02-08 | O15: 2026-02-22 | P15: 2026-02-08 | Q15: 2026-02-22 | R15: Concluída | T15: =TEXT(DATE(YEAR(tb_ferias[[#This Row],[Data_Programada_Inicio]]),MONTH(tb_ferias[[#This Row],[Data_Programada_Inicio]]),1),"MMM-YY") -> Feb-26
C16: FE009 | D16: F026 | E16: =IFERROR(VLOOKUP(D16,tb_funcionarios[[Cod_Funcionario]:[Nome_Completo]],2,FALSE),"") -> Zélia Carvalho | F16: =IFERROR(VLOOKUP(D16,tb_funcionarios[[Cod_Funcionario]:[Setor]],8,FALSE),"") -> Financeiro | G16: =IFERROR(VLOOKUP(D16,tb_funcionarios[[Cod_Funcionario]:[Data_Admissao]],12,FALSE),"") -> 2018-07-24 | H16: 2025-07-24 | I16: 2026-07-23 | J16: 30 | K16: 30 | L16: 0 | M16: 0 | N16: 2026-03-02 | O16: 2026-03-31 | P16: 2026-03-02 | Q16: 2026-03-31 | R16: Em Gozo | T16: =TEXT(DATE(YEAR(tb_ferias[[#This Row],[Data_Programada_Inicio]]),MONTH(tb_ferias[[#This Row],[Data_Programada_Inicio]]),1),"MMM-YY") -> Mar-26
C17: FE010 | D17: F031 | E17: =IFERROR(VLOOKUP(D17,tb_funcionarios[[Cod_Funcionario]:[Nome_Completo]],2,FALSE),"") -> Eduardo Cunha | F17: =IFERROR(VLOOKUP(D17,tb_funcionarios[[Cod_Funcionario]:[Setor]],8,FALSE),"") -> Financeiro | G17: =IFERROR(VLOOKUP(D17,tb_funcionarios[[Cod_Funcionario]:[Data_Admissao]],12,FALSE),"") -> 2018-06-19 | H17: 2025-06-19 | I17: 2026-06-18 | J17: 30 | K17: 20 | L17: 10 | M17: 0 | N17: 2026-01-25 | O17: 2026-02-13 | P17: 2026-01-25 | Q17: 2026-02-13 | R17: Concluída | S17: Abono pecuniário | T17: =TEXT(DATE(YEAR(tb_ferias[[#This Row],[Data_Programada_Inicio]]),MONTH(tb_ferias[[#This Row],[Data_Programada_Inicio]]),1),"MMM-YY") -> Jan-26
C18: FE011 | D18: F035 | E18: =IFERROR(VLOOKUP(D18,tb_funcionarios[[Cod_Funcionario]:[Nome_Completo]],2,FALSE),"") -> Igor Campos | F18: =IFERROR(VLOOKUP(D18,tb_funcionarios[[Cod_Funcionario]:[Setor]],8,FALSE),"") -> Operações | G18: =IFERROR(VLOOKUP(D18,tb_funcionarios[[Cod_Funcionario]:[Data_Admissao]],12,FALSE),"") -> 2020-04-14 | H18: 2025-04-14 | I18: 2026-04-13 | J18: 30 | K18: 15 | L18: 0 | M18: 15 | N18: 2026-03-08 | O18: 2026-03-22 | P18: 2026-03-08 | Q18: 2026-03-22 | R18: Concluída | T18: =TEXT(DATE(YEAR(tb_ferias[[#This Row],[Data_Programada_Inicio]]),MONTH(tb_ferias[[#This Row],[Data_Programada_Inicio]]),1),"MMM-YY") -> Mar-26
C19: FE012 | D19: F042 | E19: =IFERROR(VLOOKUP(D19,tb_funcionarios[[Cod_Funcionario]:[Nome_Completo]],2,FALSE),"") -> Patricia Borges | F19: =IFERROR(VLOOKUP(D19,tb_funcionarios[[Cod_Funcionario]:[Setor]],8,FALSE),"") -> Administrativo | G19: =IFERROR(VLOOKUP(D19,tb_funcionarios[[Cod_Funcionario]:[Data_Admissao]],12,FALSE),"") -> 2018-10-13 | H19: 2025-10-13 | I19: 2026-10-12 | J19: 30 | K19: 30 | L19: 0 | M19: 0 | N19: 2026-02-22 | O19: 2026-03-23 | P19: 2026-02-22 | Q19: 2026-03-23 | R19: Concluída | S19: Gerente | T19: =TEXT(DATE(YEAR(tb_ferias[[#This Row],[Data_Programada_Inicio]]),MONTH(tb_ferias[[#This Row],[Data_Programada_Inicio]]),1),"MMM-YY") -> Feb-26
C20: FE013 | D20: F047 | E20: =IFERROR(VLOOKUP(D20,tb_funcionarios[[Cod_Funcionario]:[Nome_Completo]],2,FALSE),"") -> Ulisses Peixoto | F20: =IFERROR(VLOOKUP(D20,tb_funcionarios[[Cod_Funcionario]:[Setor]],8,FALSE),"") -> Operações | G20: =IFERROR(VLOOKUP(D20,tb_funcionarios[[Cod_Funcionario]:[Data_Admissao]],12,FALSE),"") -> 2018-05-15 | H20: 2025-05-15 | I20: 2026-05-14 | J20: 30 | K20: 30 | L20: 0 | M20: 0 | N20: 2026-01-02 | O20: 2026-01-31 | P20: 2026-01-02 | Q20: 2026-01-31 | R20: Concluída | S20: Diretor | T20: =TEXT(DATE(YEAR(tb_ferias[[#This Row],[Data_Programada_Inicio]]),MONTH(tb_ferias[[#This Row],[Data_Programada_Inicio]]),1),"MMM-YY") -> Jan-26

Sheet Ponto (hidden)
C7: ID_Ponto | D7: Data | E7: Cod_Funcionario | F7: Nome_Funcionario | G7: Setor | H7: Status_Dia | I7: Entrada_1 | J7: Saida_1 | K7: Entrada_2 | L7: Saida_2 | M7: Horas_Trabalhadas | N7: Jornada_Padrao | O7: Horas_Normais | P7: Horas_Extras | Q7: Horas_Atraso | R7: Falta_Dia | S7: Observacoes | T7: Competencia | U7: Custo_HE
C8: P00001 | D8: 2025-12-31 | E8: F001 | F8: =VLOOKUP(tb_ponto[[#This Row],[Cod_Funcionario]],tb_funcionarios[[Cod_Funcionario]:[Nome_Completo]],2,0) -> Ana Lima | G8: =VLOOKUP(tb_ponto[[#This Row],[Cod_Funcionario]],tb_funcionarios[[Cod_Funcionario]:[Setor]],8,0) -> RH | H8: Feriado | M8: =(tb_ponto[[#This Row],[Saida_1]]-tb_ponto[[#This Row],[Entrada_1]])+(tb_ponto[[#This Row],[Saida_2]]-tb_ponto[[#This Row],[Entrada_2]]) -> 00:00:00 | N8: =VLOOKUP(tb_ponto[[#This Row],[Cod_Funcionario]],tb_funcionarios[[Cod_Funcionario]:[Jornada_Diaria_Horas]],14,0) -> 08:00:00 | O8: =IF(tb_ponto[[#This Row],[Horas_Trabalhadas]]>tb_ponto[[#This Row],[Jornada_Padrao]],tb_ponto[[#This Row],[Jornada_Padrao]],tb_ponto[[#This Row],[Horas_Trabalhadas]]) -> 00:00:00 | P8: =IF(tb_ponto[[#This Row],[Horas_Trabalhadas]]>tb_ponto[[#This Row],[Horas_Normais]],tb_ponto[[#This Row],[Horas_Trabalhadas]]-tb_ponto[[#This Row],[Jornada_Padrao]],0) -> 00:00:00 | Q8: 00:00:00 | R8: =COUNTIFS(tb_ponto[Status_Dia],"Falta",tb_ponto[Cod_Funcionario],tb_ponto[[#This Row],[Cod_Funcionario]],tb_ponto[Competencia],tb_ponto[[#This Row],[Competencia]]) -> 0 | T8: =TEXT(tb_ponto[[#This Row],[Data]],"MMM-YY") -> Dec-25 | U8: =tb_ponto[[#This Row],[Horas_Extras]]*(24*VLOOKUP(tb_ponto[[#This Row],[Cod_Funcionario]],tb_funcionarios[[Cod_Funcionario]:[Valor_Hora]],19,0)) -> 0.00
C9: P00002 | D9: 2026-01-01 | E9: F001 | F9: =VLOOKUP(tb_ponto[[#This Row],[Cod_Funcionario]],tb_funcionarios[[Cod_Funcionario]:[Nome_Completo]],2,0) -> Ana Lima | G9: =VLOOKUP(tb_ponto[[#This Row],[Cod_Funcionario]],tb_funcionarios[[Cod_Funcionario]:[Setor]],8,0) -> RH | H9: Normal | I9: 07:59:45.947 | J9: 12:00:04.769 | K9: 13:00:17.852 | L9: 18:05:00 | M9: =(tb_ponto[[#This Row],[Saida_1]]-tb_ponto[[#This Row],[Entrada_1]])+(tb_ponto[[#This Row],[Saida_2]]-tb_ponto[[#This Row],[Entrada_2]]) -> 09:05:00.971 | N9: =VLOOKUP(tb_ponto[[#This Row],[Cod_Funcionario]],tb_funcionarios[[Cod_Funcionario]:[Jornada_Diaria_Horas]],14,0) -> 08:00:00 | O9: =IF(tb_ponto[[#This Row],[Horas_Trabalhadas]]>tb_ponto[[#This Row],[Jornada_Padrao]],tb_ponto[[#This Row],[Jornada_Padrao]],tb_ponto[[#This Row],[Horas_Trabalhadas]]) -> 08:00:00 | P9: =IF(tb_ponto[[#This Row],[Horas_Trabalhadas]]>tb_ponto[[#This Row],[Horas_Normais]],tb_ponto[[#This Row],[Horas_Trabalhadas]]-tb_ponto[[#This Row],[Jornada_Padrao]],0) -> 01:05:00.971 | Q9: 00:00:00 | R9: =COUNTIFS(tb_ponto[Status_Dia],"Falta",tb_ponto[Cod_Funcionario],tb_ponto[[#This Row],[Cod_Funcionario]],tb_ponto[Competencia],tb_ponto[[#This Row],[Competencia]]) -> 0 | T9: =TEXT(tb_ponto[[#This Row],[Data]],"MMM-YY") -> Jan-26 | U9: =tb_ponto[[#This Row],[Horas_Extras]]*(24*VLOOKUP(tb_ponto[[#This Row],[Cod_Funcionario]],tb_funcionarios[[Cod_Funcionario]:[Valor_Hora]],19,0)) -> 49.54
C10: P00003 | D10: 2026-01-02 | E10: F001 | F10: =VLOOKUP(tb_ponto[[#This Row],[Cod_Funcionario]],tb_funcionarios[[Cod_Funcionario]:[Nome_Completo]],2,0) -> Ana Lima | G10: =VLOOKUP(tb_ponto[[#This Row],[Cod_Funcionario]],tb_funcionarios[[Cod_Funcionario]:[Setor]],8,0) -> RH | H10: Normal | I10: 07:59:36.434 | J10: 12:00:13.794 | K10: 13:00:07.462 | L10: 16:09:49.562 | M10: =(tb_ponto[[#This Row],[Saida_1]]-tb_ponto[[#This Row],[Entrada_1]])+(tb_ponto[[#This Row],[Saida_2]]-tb_ponto[[#This Row],[Entrada_2]]) -> 07:10:19.460 | N10: =VLOOKUP(tb_ponto[[#This Row],[Cod_Funcionario]],tb_funcionarios[[Cod_Funcionario]:[Jornada_Diaria_Horas]],14,0) -> 08:00:00 | O10: =IF(tb_ponto[[#This Row],[Horas_Trabalhadas]]>tb_ponto[[#This Row],[Jornada_Padrao]],tb_ponto[[#This Row],[Jornada_Padrao]],tb_ponto[[#This Row],[Horas_Trabalhadas]]) -> 07:10:19.460 | P10: =IF(tb_ponto[[#This Row],[Horas_Trabalhadas]]>tb_ponto[[#This Row],[Horas_Normais]],tb_ponto[[#This Row],[Horas_Trabalhadas]]-tb_ponto[[#This Row],[Jornada_Padrao]],0) -> 00:00:00 | Q10: 00:00:00 | R10: =COUNTIFS(tb_ponto[Status_Dia],"Falta",tb_ponto[Cod_Funcionario],tb_ponto[[#This Row],[Cod_Funcionario]],tb_ponto[Competencia],tb_ponto[[#This Row],[Competencia]]) -> 0 | T10: =TEXT(tb_ponto[[#This Row],[Data]],"MMM-YY") -> Jan-26 | U10: =tb_ponto[[#This Row],[Horas_Extras]]*(24*VLOOKUP(tb_ponto[[#This Row],[Cod_Funcionario]],tb_funcionarios[[Cod_Funcionario]:[Valor_Hora]],19,0)) -> 0.00
C11: P00004 | D11: 2026-01-03 | E11: F001 | F11: =VLOOKUP(tb_ponto[[#This Row],[Cod_Funcionario]],tb_funcionarios[[Cod_Funcionario]:[Nome_Completo]],2,0) -> Ana Lima | G11: =VLOOKUP(tb_ponto[[#This Row],[Cod_Funcionario]],tb_funcionarios[[Cod_Funcionario]:[Setor]],8,0) -> RH | H11: Folga | M11: =(tb_ponto[[#This Row],[Saida_1]]-tb_ponto[[#This Row],[Entrada_1]])+(tb_ponto[[#This Row],[Saida_2]]-tb_ponto[[#This Row],[Entrada_2]]) -> 00:00:00 | N11: =VLOOKUP(tb_ponto[[#This Row],[Cod_Funcionario]],tb_funcionarios[[Cod_Funcionario]:[Jornada_Diaria_Horas]],14,0) -> 08:00:00 | O11: =IF(tb_ponto[[#This Row],[Horas_Trabalhadas]]>tb_ponto[[#This Row],[Jornada_Padrao]],tb_ponto[[#This Row],[Jornada_Padrao]],tb_ponto[[#This Row],[Horas_Trabalhadas]]) -> 00:00:00 | P11: =IF(tb_ponto[[#This Row],[Horas_Trabalhadas]]>tb_ponto[[#This Row],[Horas_Normais]],tb_ponto[[#This Row],[Horas_Trabalhadas]]-tb_ponto[[#This Row],[Jornada_Padrao]],0) -> 00:00:00 | Q11: 00:00:00 | R11: =COUNTIFS(tb_ponto[Status_Dia],"Falta",tb_ponto[Cod_Funcionario],tb_ponto[[#This Row],[Cod_Funcionario]],tb_ponto[Competencia],tb_ponto[[#This Row],[Competencia]]) -> 0 | T11: =TEXT(tb_ponto[[#This Row],[Data]],"MMM-YY") -> Jan-26 | U11: =tb_ponto[[#This Row],[Horas_Extras]]*(24*VLOOKUP(tb_ponto[[#This Row],[Cod_Funcionario]],tb_funcionarios[[Cod_Funcionario]:[Valor_Hora]],19,0)) -> 0.00
C12: P00005 | D12: 2026-01-04 | E12: F001 | F12: =VLOOKUP(tb_ponto[[#This Row],[Cod_Funcionario]],tb_funcionarios[[Cod_Funcionario]:[Nome_Completo]],2,0) -> Ana Lima | G12: =VLOOKUP(tb_ponto[[#This Row],[Cod_Funcionario]],tb_funcionarios[[Cod_Funcionario]:[Setor]],8,0) -> RH | H12: Folga | M12: =(tb_ponto[[#This Row],[Saida_1]]-tb_ponto[[#This Row],[Entrada_1]])+(tb_ponto[[#This Row],[Saida_2]]-tb_ponto[[#This Row],[Entrada_2]]) -> 00:00:00 | N12: =VLOOKUP(tb_ponto[[#This Row],[Cod_Funcionario]],tb_funcionarios[[Cod_Funcionario]:[Jornada_Diaria_Horas]],14,0) -> 08:00:00 | O12: =IF(tb_ponto[[#This Row],[Horas_Trabalhadas]]>tb_ponto[[#This Row],[Jornada_Padrao]],tb_ponto[[#This Row],[Jornada_Padrao]],tb_ponto[[#This Row],[Horas_Trabalhadas]]) -> 00:00:00 | P12: =IF(tb_ponto[[#This Row],[Horas_Trabalhadas]]>tb_ponto[[#This Row],[Horas_Normais]],tb_ponto[[#This Row],[Horas_Trabalhadas]]-tb_ponto[[#This Row],[Jornada_Padrao]],0) -> 00:00:00 | Q12: 00:00:00 | R12: =COUNTIFS(tb_ponto[Status_Dia],"Falta",tb_ponto[Cod_Funcionario],tb_ponto[[#This Row],[Cod_Funcionario]],tb_ponto[Competencia],tb_ponto[[#This Row],[Competencia]]) -> 0 | T12: =TEXT(tb_ponto[[#This Row],[Data]],"MMM-YY") -> Jan-26 | U12: =tb_ponto[[#This Row],[Horas_Extras]]*(24*VLOOKUP(tb_ponto[[#This Row],[Cod_Funcionario]],tb_funcionarios[[Cod_Funcionario]:[Valor_Hora]],19,0)) -> 0.00
C13: P00006 | D13: 2026-01-05 | E13: F001 | F13: =VLOOKUP(tb_ponto[[#This Row],[Cod_Funcionario]],tb_funcionarios[[Cod_Funcionario]:[Nome_Completo]],2,0) -> Ana Lima | G13: =VLOOKUP(tb_ponto[[#This Row],[Cod_Funcionario]],tb_funcionarios[[Cod_Funcionario]:[Setor]],8,0) -> RH | H13: Normal | I13: 07:59:48.317 | J13: 12:00:10.580 | K13: 12:59:48.920 | L13: 16:02:23.769 | M13: =(tb_ponto[[#This Row],[Saida_1]]-tb_ponto[[#This Row],[Entrada_1]])+(tb_ponto[[#This Row],[Saida_2]]-tb_ponto[[#This Row],[Entrada_2]]) -> 07:02:57.112 | N13: =VLOOKUP(tb_ponto[[#This Row],[Cod_Funcionario]],tb_funcionarios[[Cod_Funcionario]:[Jornada_Diaria_Horas]],14,0) -> 08:00:00 | O13: =IF(tb_ponto[[#This Row],[Horas_Trabalhadas]]>tb_ponto[[#This Row],[Jornada_Padrao]],tb_ponto[[#This Row],[Jornada_Padrao]],tb_ponto[[#This Row],[Horas_Trabalhadas]]) -> 07:02:57.112 | P13: =IF(tb_ponto[[#This Row],[Horas_Trabalhadas]]>tb_ponto[[#This Row],[Horas_Normais]],tb_ponto[[#This Row],[Horas_Trabalhadas]]-tb_ponto[[#This Row],[Jornada_Padrao]],0) -> 00:00:00 | Q13: 00:00:00 | R13: =COUNTIFS(tb_ponto[Status_Dia],"Falta",tb_ponto[Cod_Funcionario],tb_ponto[[#This Row],[Cod_Funcionario]],tb_ponto[Competencia],tb_ponto[[#This Row],[Competencia]]) -> 0 | T13: =TEXT(tb_ponto[[#This Row],[Data]],"MMM-YY") -> Jan-26 | U13: =tb_ponto[[#This Row],[Horas_Extras]]*(24*VLOOKUP(tb_ponto[[#This Row],[Cod_Funcionario]],tb_funcionarios[[Cod_Funcionario]:[Valor_Hora]],19,0)) -> 0.00
C14: P00007 | D14: 2026-01-06 | E14: F001 | F14: =VLOOKUP(tb_ponto[[#This Row],[Cod_Funcionario]],tb_funcionarios[[Cod_Funcionario]:[Nome_Completo]],2,0) -> Ana Lima | G14: =VLOOKUP(tb_ponto[[#This Row],[Cod_Funcionario]],tb_funcionarios[[Cod_Funcionario]:[Setor]],8,0) -> RH | H14: Normal | I14: 07:59:39.044 | J14: 12:00:10.353 | K14: 13:00:13.367 | L14: 16:10:19.177 | M14: =(tb_ponto[[#This Row],[Saida_1]]-tb_ponto[[#This Row],[Entrada_1]])+(tb_ponto[[#This Row],[Saida_2]]-tb_ponto[[#This Row],[Entrada_2]]) -> 07:10:37.119 | N14: =VLOOKUP(tb_ponto[[#This Row],[Cod_Funcionario]],tb_funcionarios[[Cod_Funcionario]:[Jornada_Diaria_Horas]],14,0) -> 08:00:00 | O14: =IF(tb_ponto[[#This Row],[Horas_Trabalhadas]]>tb_ponto[[#This Row],[Jornada_Padrao]],tb_ponto[[#This Row],[Jornada_Padrao]],tb_ponto[[#This Row],[Horas_Trabalhadas]]) -> 07:10:37.119 | P14: =IF(tb_ponto[[#This Row],[Horas_Trabalhadas]]>tb_ponto[[#This Row],[Horas_Normais]],tb_ponto[[#This Row],[Horas_Trabalhadas]]-tb_ponto[[#This Row],[Jornada_Padrao]],0) -> 00:00:00 | Q14: 00:00:00 | R14: =COUNTIFS(tb_ponto[Status_Dia],"Falta",tb_ponto[Cod_Funcionario],tb_ponto[[#This Row],[Cod_Funcionario]],tb_ponto[Competencia],tb_ponto[[#This Row],[Competencia]]) -> 0 | T14: =TEXT(tb_ponto[[#This Row],[Data]],"MMM-YY") -> Jan-26 | U14: =tb_ponto[[#This Row],[Horas_Extras]]*(24*VLOOKUP(tb_ponto[[#This Row],[Cod_Funcionario]],tb_funcionarios[[Cod_Funcionario]:[Valor_Hora]],19,0)) -> 0.00
C15: P00008 | D15: 2026-01-07 | E15: F001 | F15: =VLOOKUP(tb_ponto[[#This Row],[Cod_Funcionario]],tb_funcionarios[[Cod_Funcionario]:[Nome_Completo]],2,0) -> Ana Lima | G15: =VLOOKUP(tb_ponto[[#This Row],[Cod_Funcionario]],tb_funcionarios[[Cod_Funcionario]:[Setor]],8,0) -> RH | H15: Normal | I15: 07:59:57.868 | J15: 12:00:08.328 | K15: 12:59:55.176 | L15: 15:53:22.771 | M15: =(tb_ponto[[#This Row],[Saida_1]]-tb_ponto[[#This Row],[Entrada_1]])+(tb_ponto[[#This Row],[Saida_2]]-tb_ponto[[#This Row],[Entrada_2]]) -> 06:53:38.055 | N15: =VLOOKUP(tb_ponto[[#This Row],[Cod_Funcionario]],tb_funcionarios[[Cod_Funcionario]:[Jornada_Diaria_Horas]],14,0) -> 08:00:00 | O15: =IF(tb_ponto[[#This Row],[Horas_Trabalhadas]]>tb_ponto[[#This Row],[Jornada_Padrao]],tb_ponto[[#This Row],[Jornada_Padrao]],tb_ponto[[#This Row],[Horas_Trabalhadas]]) -> 06:53:38.055 | P15: =IF(tb_ponto[[#This Row],[Horas_Trabalhadas]]>tb_ponto[[#This Row],[Horas_Normais]],tb_ponto[[#This Row],[Horas_Trabalhadas]]-tb_ponto[[#This Row],[Jornada_Padrao]],0) -> 00:00:00 | Q15: 00:00:00 | R15: =COUNTIFS(tb_ponto[Status_Dia],"Falta",tb_ponto[Cod_Funcionario],tb_ponto[[#This Row],[Cod_Funcionario]],tb_ponto[Competencia],tb_ponto[[#This Row],[Competencia]]) -> 0 | T15: =TEXT(tb_ponto[[#This Row],[Data]],"MMM-YY") -> Jan-26 | U15: =tb_ponto[[#This Row],[Horas_Extras]]*(24*VLOOKUP(tb_ponto[[#This Row],[Cod_Funcionario]],tb_funcionarios[[Cod_Funcionario]:[Valor_Hora]],19,0)) -> 0.00
C16: P00009 | D16: 2026-01-08 | E16: F001 | F16: =VLOOKUP(tb_ponto[[#This Row],[Cod_Funcionario]],tb_funcionarios[[Cod_Funcionario]:[Nome_Completo]],2,0) -> Ana Lima | G16: =VLOOKUP(tb_ponto[[#This Row],[Cod_Funcionario]],tb_funcionarios[[Cod_Funcionario]:[Setor]],8,0) -> RH | H16: Normal | I16: 08:00:30.148 | J16: 12:00:13.348 | K16: 12:59:57.094 | L16: 15:57:51.580 | M16: =(tb_ponto[[#This Row],[Saida_1]]-tb_ponto[[#This Row],[Entrada_1]])+(tb_ponto[[#This Row],[Saida_2]]-tb_ponto[[#This Row],[Entrada_2]]) -> 06:57:37.686 | N16: =VLOOKUP(tb_ponto[[#This Row],[Cod_Funcionario]],tb_funcionarios[[Cod_Funcionario]:[Jornada_Diaria_Horas]],14,0) -> 08:00:00 | O16: =IF(tb_ponto[[#This Row],[Horas_Trabalhadas]]>tb_ponto[[#This Row],[Jornada_Padrao]],tb_ponto[[#This Row],[Jornada_Padrao]],tb_ponto[[#This Row],[Horas_Trabalhadas]]) -> 06:57:37.686 | P16: =IF(tb_ponto[[#This Row],[Horas_Trabalhadas]]>tb_ponto[[#This Row],[Horas_Normais]],tb_ponto[[#This Row],[Horas_Trabalhadas]]-tb_ponto[[#This Row],[Jornada_Padrao]],0) -> 00:00:00 | Q16: 00:00:00 | R16: =COUNTIFS(tb_ponto[Status_Dia],"Falta",tb_ponto[Cod_Funcionario],tb_ponto[[#This Row],[Cod_Funcionario]],tb_ponto[Competencia],tb_ponto[[#This Row],[Competencia]]) -> 0 | T16: =TEXT(tb_ponto[[#This Row],[Data]],"MMM-YY") -> Jan-26 | U16: =tb_ponto[[#This Row],[Horas_Extras]]*(24*VLOOKUP(tb_ponto[[#This Row],[Cod_Funcionario]],tb_funcionarios[[Cod_Funcionario]:[Valor_Hora]],19,0)) -> 0.00
C17: P00010 | D17: 2026-01-09 | E17: F001 | F17: =VLOOKUP(tb_ponto[[#This Row],[Cod_Funcionario]],tb_funcionarios[[Cod_Funcionario]:[Nome_Completo]],2,0) -> Ana Lima | G17: =VLOOKUP(tb_ponto[[#This Row],[Cod_Funcionario]],tb_funcionarios[[Cod_Funcionario]:[Setor]],8,0) -> RH | H17: Normal | I17: 07:59:36.436 | J17: 11:59:47.699 | K17: 12:59:53.443 | L17: 15:56:18.562 | M17: =(tb_ponto[[#This Row],[Saida_1]]-tb_ponto[[#This Row],[Entrada_1]])+(tb_ponto[[#This Row],[Saida_2]]-tb_ponto[[#This Row],[Entrada_2]]) -> 06:56:36.382 | N17: =VLOOKUP(tb_ponto[[#This Row],[Cod_Funcionario]],tb_funcionarios[[Cod_Funcionario]:[Jornada_Diaria_Horas]],14,0) -> 08:00:00 | O17: =IF(tb_ponto[[#This Row],[Horas_Trabalhadas]]>tb_ponto[[#This Row],[Jornada_Padrao]],tb_ponto[[#This Row],[Jornada_Padrao]],tb_ponto[[#This Row],[Horas_Trabalhadas]]) -> 06:56:36.382 | P17: =IF(tb_ponto[[#This Row],[Horas_Trabalhadas]]>tb_ponto[[#This Row],[Horas_Normais]],tb_ponto[[#This Row],[Horas_Trabalhadas]]-tb_ponto[[#This Row],[Jornada_Padrao]],0) -> 00:00:00 | Q17: 00:00:00 | R17: =COUNTIFS(tb_ponto[Status_Dia],"Falta",tb_ponto[Cod_Funcionario],tb_ponto[[#This Row],[Cod_Funcionario]],tb_ponto[Competencia],tb_ponto[[#This Row],[Competencia]]) -> 0 | T17: =TEXT(tb_ponto[[#This Row],[Data]],"MMM-YY") -> Jan-26 | U17: =tb_ponto[[#This Row],[Horas_Extras]]*(24*VLOOKUP(tb_ponto[[#This Row],[Cod_Funcionario]],tb_funcionarios[[Cod_Funcionario]:[Valor_Hora]],19,0)) -> 0.00
C18: P00011 | D18: 2026-01-10 | E18: F001 | F18: =VLOOKUP(tb_ponto[[#This Row],[Cod_Funcionario]],tb_funcionarios[[Cod_Funcionario]:[Nome_Completo]],2,0) -> Ana Lima | G18: =VLOOKUP(tb_ponto[[#This Row],[Cod_Funcionario]],tb_funcionarios[[Cod_Funcionario]:[Setor]],8,0) -> RH | H18: Folga | M18: =(tb_ponto[[#This Row],[Saida_1]]-tb_ponto[[#This Row],[Entrada_1]])+(tb_ponto[[#This Row],[Saida_2]]-tb_ponto[[#This Row],[Entrada_2]]) -> 00:00:00 | N18: =VLOOKUP(tb_ponto[[#This Row],[Cod_Funcionario]],tb_funcionarios[[Cod_Funcionario]:[Jornada_Diaria_Horas]],14,0) -> 08:00:00 | O18: =IF(tb_ponto[[#This Row],[Horas_Trabalhadas]]>tb_ponto[[#This Row],[Jornada_Padrao]],tb_ponto[[#This Row],[Jornada_Padrao]],tb_ponto[[#This Row],[Horas_Trabalhadas]]) -> 00:00:00 | P18: =IF(tb_ponto[[#This Row],[Horas_Trabalhadas]]>tb_ponto[[#This Row],[Horas_Normais]],tb_ponto[[#This Row],[Horas_Trabalhadas]]-tb_ponto[[#This Row],[Jornada_Padrao]],0) -> 00:00:00 | Q18: 00:00:00 | R18: =COUNTIFS(tb_ponto[Status_Dia],"Falta",tb_ponto[Cod_Funcionario],tb_ponto[[#This Row],[Cod_Funcionario]],tb_ponto[Competencia],tb_ponto[[#This Row],[Competencia]]) -> 0 | T18: =TEXT(tb_ponto[[#This Row],[Data]],"MMM-YY") -> Jan-26 | U18: =tb_ponto[[#This Row],[Horas_Extras]]*(24*VLOOKUP(tb_ponto[[#This Row],[Cod_Funcionario]],tb_funcionarios[[Cod_Funcionario]:[Valor_Hora]],19,0)) -> 0.00
C19: P00012 | D19: 2026-01-11 | E19: F001 | F19: =VLOOKUP(tb_ponto[[#This Row],[Cod_Funcionario]],tb_funcionarios[[Cod_Funcionario]:[Nome_Completo]],2,0) -> Ana Lima | G19: =VLOOKUP(tb_ponto[[#This Row],[Cod_Funcionario]],tb_funcionarios[[Cod_Funcionario]:[Setor]],8,0) -> RH | H19: Folga | M19: =(tb_ponto[[#This Row],[Saida_1]]-tb_ponto[[#This Row],[Entrada_1]])+(tb_ponto[[#This Row],[Saida_2]]-tb_ponto[[#This Row],[Entrada_2]]) -> 00:00:00 | N19: =VLOOKUP(tb_ponto[[#This Row],[Cod_Funcionario]],tb_funcionarios[[Cod_Funcionario]:[Jornada_Diaria_Horas]],14,0) -> 08:00:00 | O19: =IF(tb_ponto[[#This Row],[Horas_Trabalhadas]]>tb_ponto[[#This Row],[Jornada_Padrao]],tb_ponto[[#This Row],[Jornada_Padrao]],tb_ponto[[#This Row],[Horas_Trabalhadas]]) -> 00:00:00 | P19: =IF(tb_ponto[[#This Row],[Horas_Trabalhadas]]>tb_ponto[[#This Row],[Horas_Normais]],tb_ponto[[#This Row],[Horas_Trabalhadas]]-tb_ponto[[#This Row],[Jornada_Padrao]],0) -> 00:00:00 | Q19: 00:00:00 | R19: =COUNTIFS(tb_ponto[Status_Dia],"Falta",tb_ponto[Cod_Funcionario],tb_ponto[[#This Row],[Cod_Funcionario]],tb_ponto[Competencia],tb_ponto[[#This Row],[Competencia]]) -> 0 | T19: =TEXT(tb_ponto[[#This Row],[Data]],"MMM-YY") -> Jan-26 | U19: =tb_ponto[[#This Row],[Horas_Extras]]*(24*VLOOKUP(tb_ponto[[#This Row],[Cod_Funcionario]],tb_funcionarios[[Cod_Funcionario]:[Valor_Hora]],19,0)) -> 0.00
C20: P00013 | D20: 2026-01-12 | E20: F001 | F20: =VLOOKUP(tb_ponto[[#This Row],[Cod_Funcionario]],tb_funcionarios[[Cod_Funcionario]:[Nome_Completo]],2,0) -> Ana Lima | G20: =VLOOKUP(tb_ponto[[#This Row],[Cod_Funcionario]],tb_funcionarios[[Cod_Funcionario]:[Setor]],8,0) -> RH | H20: Normal | I20: 08:00:34.054 | J20: 11:59:58.831 | K20: 13:00:09.126 | L20: 15:51:45.542 | M20: =(tb_ponto[[#This Row],[Saida_1]]-tb_ponto[[#This Row],[Entrada_1]])+(tb_ponto[[#This Row],[Saida_2]]-tb_ponto[[#This Row],[Entrada_2]]) -> 06:51:01.193 | N20: =VLOOKUP(tb_ponto[[#This Row],[Cod_Funcionario]],tb_funcionarios[[Cod_Funcionario]:[Jornada_Diaria_Horas]],14,0) -> 08:00:00 | O20: =IF(tb_ponto[[#This Row],[Horas_Trabalhadas]]>tb_ponto[[#This Row],[Jornada_Padrao]],tb_ponto[[#This Row],[Jornada_Padrao]],tb_ponto[[#This Row],[Horas_Trabalhadas]]) -> 06:51:01.193 | P20: =IF(tb_ponto[[#This Row],[Horas_Trabalhadas]]>tb_ponto[[#This Row],[Horas_Normais]],tb_ponto[[#This Row],[Horas_Trabalhadas]]-tb_ponto[[#This Row],[Jornada_Padrao]],0) -> 00:00:00 | Q20: 00:00:00 | R20: =COUNTIFS(tb_ponto[Status_Dia],"Falta",tb_ponto[Cod_Funcionario],tb_ponto[[#This Row],[Cod_Funcionario]],tb_ponto[Competencia],tb_ponto[[#This Row],[Competencia]]) -> 0 | T20: =TEXT(tb_ponto[[#This Row],[Data]],"MMM-YY") -> Jan-26 | U20: =tb_ponto[[#This Row],[Horas_Extras]]*(24*VLOOKUP(tb_ponto[[#This Row],[Cod_Funcionario]],tb_funcionarios[[Cod_Funcionario]:[Valor_Hora]],19,0)) -> 0.00
C21: P00014 | D21: 2026-01-13 | E21: F001 | F21: =VLOOKUP(tb_ponto[[#This Row],[Cod_Funcionario]],tb_funcionarios[[Cod_Funcionario]:[Nome_Completo]],2,0) -> Ana Lima | G21: =VLOOKUP(tb_ponto[[#This Row],[Cod_Funcionario]],tb_funcionarios[[Cod_Funcionario]:[Setor]],8,0) -> RH | H21: Normal | I21: 08:00:26.887 | J21: 12:00:11.482 | K21: 12:59:53.083 | L21: 16:01:04.435 | M21: =(tb_ponto[[#This Row],[Saida_1]]-tb_ponto[[#This Row],[Entrada_1]])+(tb_ponto[[#This Row],[Saida_2]]-tb_ponto[[#This Row],[Entrada_2]]) -> 07:00:55.946 | N21: =VLOOKUP(tb_ponto[[#This Row],[Cod_Funcionario]],tb_funcionarios[[Cod_Funcionario]:[Jornada_Diaria_Horas]],14,0) -> 08:00:00 | O21: =IF(tb_ponto[[#This Row],[Horas_Trabalhadas]]>tb_ponto[[#This Row],[Jornada_Padrao]],tb_ponto[[#This Row],[Jornada_Padrao]],tb_ponto[[#This Row],[Horas_Trabalhadas]]) -> 07:00:55.946 | P21: =IF(tb_ponto[[#This Row],[Horas_Trabalhadas]]>tb_ponto[[#This Row],[Horas_Normais]],tb_ponto[[#This Row],[Horas_Trabalhadas]]-tb_ponto[[#This Row],[Jornada_Padrao]],0) -> 00:00:00 | Q21: 00:00:00 | R21: =COUNTIFS(tb_ponto[Status_Dia],"Falta",tb_ponto[Cod_Funcionario],tb_ponto[[#This Row],[Cod_Funcionario]],tb_ponto[Competencia],tb_ponto[[#This Row],[Competencia]]) -> 0 | T21: =TEXT(tb_ponto[[#This Row],[Data]],"MMM-YY") -> Jan-26 | U21: =tb_ponto[[#This Row],[Horas_Extras]]*(24*VLOOKUP(tb_ponto[[#This Row],[Cod_Funcionario]],tb_funcionarios[[Cod_Funcionario]:[Valor_Hora]],19,0)) -> 0.00
C22: P00015 | D22: 2026-01-14 | E22: F001 | F22: =VLOOKUP(tb_ponto[[#This Row],[Cod_Funcionario]],tb_funcionarios[[Cod_Funcionario]:[Nome_Completo]],2,0) -> Ana Lima | G22: =VLOOKUP(tb_ponto[[#This Row],[Cod_Funcionario]],tb_funcionarios[[Cod_Funcionario]:[Setor]],8,0) -> RH | H22: Normal | I22: 08:00:14.416 | J22: 11:59:45.998 | K22: 13:00:03.213 | L22: 15:47:45.825 | M22: =(tb_ponto[[#This Row],[Saida_1]]-tb_ponto[[#This Row],[Entrada_1]])+(tb_ponto[[#This Row],[Saida_2]]-tb_ponto[[#This Row],[Entrada_2]]) -> 06:47:14.195 | N22: =VLOOKUP(tb_ponto[[#This Row],[Cod_Funcionario]],tb_funcionarios[[Cod_Funcionario]:[Jornada_Diaria_Horas]],14,0) -> 08:00:00 | O22: =IF(tb_ponto[[#This Row],[Horas_Trabalhadas]]>tb_ponto[[#This Row],[Jornada_Padrao]],tb_ponto[[#This Row],[Jornada_Padrao]],tb_ponto[[#This Row],[Horas_Trabalhadas]]) -> 06:47:14.195 | P22: =IF(tb_ponto[[#This Row],[Horas_Trabalhadas]]>tb_ponto[[#This Row],[Horas_Normais]],tb_ponto[[#This Row],[Horas_Trabalhadas]]-tb_ponto[[#This Row],[Jornada_Padrao]],0) -> 00:00:00 | Q22: 00:00:00 | R22: =COUNTIFS(tb_ponto[Status_Dia],"Falta",tb_ponto[Cod_Funcionario],tb_ponto[[#This Row],[Cod_Funcionario]],tb_ponto[Competencia],tb_ponto[[#This Row],[Competencia]]) -> 0 | T22: =TEXT(tb_ponto[[#This Row],[Data]],"MMM-YY") -> Jan-26 | U22: =tb_ponto[[#This Row],[Horas_Extras]]*(24*VLOOKUP(tb_ponto[[#This Row],[Cod_Funcionario]],tb_funcionarios[[Cod_Funcionario]:[Valor_Hora]],19,0)) -> 0.00
C23: P00016 | D23: 2026-01-15 | E23: F001 | F23: =VLOOKUP(tb_ponto[[#This Row],[Cod_Funcionario]],tb_funcionarios[[Cod_Funcionario]:[Nome_Completo]],2,0) -> Ana Lima | G23: =VLOOKUP(tb_ponto[[#This Row],[Cod_Funcionario]],tb_funcionarios[[Cod_Funcionario]:[Setor]],8,0) -> RH | H23: Normal | I23: 07:59:52.771 | J23: 12:00:07.188 | K23: 12:59:51.149 | L23: 15:56:28.088 | M23: =(tb_ponto[[#This Row],[Saida_1]]-tb_ponto[[#This Row],[Entrada_1]])+(tb_ponto[[#This Row],[Saida_2]]-tb_ponto[[#This Row],[Entrada_2]]) -> 06:56:51.356 | N23: =VLOOKUP(tb_ponto[[#This Row],[Cod_Funcionario]],tb_funcionarios[[Cod_Funcionario]:[Jornada_Diaria_Horas]],14,0) -> 08:00:00 | O23: =IF(tb_ponto[[#This Row],[Horas_Trabalhadas]]>tb_ponto[[#This Row],[Jornada_Padrao]],tb_ponto[[#This Row],[Jornada_Padrao]],tb_ponto[[#This Row],[Horas_Trabalhadas]]) -> 06:56:51.356 | P23: =IF(tb_ponto[[#This Row],[Horas_Trabalhadas]]>tb_ponto[[#This Row],[Horas_Normais]],tb_ponto[[#This Row],[Horas_Trabalhadas]]-tb_ponto[[#This Row],[Jornada_Padrao]],0) -> 00:00:00 | Q23: 00:00:00 | R23: =COUNTIFS(tb_ponto[Status_Dia],"Falta",tb_ponto[Cod_Funcionario],tb_ponto[[#This Row],[Cod_Funcionario]],tb_ponto[Competencia],tb_ponto[[#This Row],[Competencia]]) -> 0 | T23: =TEXT(tb_ponto[[#This Row],[Data]],"MMM-YY") -> Jan-26 | U23: =tb_ponto[[#This Row],[Horas_Extras]]*(24*VLOOKUP(tb_ponto[[#This Row],[Cod_Funcionario]],tb_funcionarios[[Cod_Funcionario]:[Valor_Hora]],19,0)) -> 0.00
C24: P00017 | D24: 2026-01-16 | E24: F001 | F24: =VLOOKUP(tb_ponto[[#This Row],[Cod_Funcionario]],tb_funcionarios[[Cod_Funcionario]:[Nome_Completo]],2,0) -> Ana Lima | G24: =VLOOKUP(tb_ponto[[#This Row],[Cod_Funcionario]],tb_funcionarios[[Cod_Funcionario]:[Setor]],8,0) -> RH | H24: Normal | I24: 07:59:54.110 | J24: 12:00:15.988 | K24: 12:59:57.499 | L24: 15:45:41.030 | M24: =(tb_ponto[[#This Row],[Saida_1]]-tb_ponto[[#This Row],[Entrada_1]])+(tb_ponto[[#This Row],[Saida_2]]-tb_ponto[[#This Row],[Entrada_2]]) -> 06:46:05.409 | N24: =VLOOKUP(tb_ponto[[#This Row],[Cod_Funcionario]],tb_funcionarios[[Cod_Funcionario]:[Jornada_Diaria_Horas]],14,0) -> 08:00:00 | O24: =IF(tb_ponto[[#This Row],[Horas_Trabalhadas]]>tb_ponto[[#This Row],[Jornada_Padrao]],tb_ponto[[#This Row],[Jornada_Padrao]],tb_ponto[[#This Row],[Horas_Trabalhadas]]) -> 06:46:05.409 | P24: =IF(tb_ponto[[#This Row],[Horas_Trabalhadas]]>tb_ponto[[#This Row],[Horas_Normais]],tb_ponto[[#This Row],[Horas_Trabalhadas]]-tb_ponto[[#This Row],[Jornada_Padrao]],0) -> 00:00:00 | Q24: 00:00:00 | R24: =COUNTIFS(tb_ponto[Status_Dia],"Falta",tb_ponto[Cod_Funcionario],tb_ponto[[#This Row],[Cod_Funcionario]],tb_ponto[Competencia],tb_ponto[[#This Row],[Competencia]]) -> 0 | T24: =TEXT(tb_ponto[[#This Row],[Data]],"MMM-YY") -> Jan-26 | U24: =tb_ponto[[#This Row],[Horas_Extras]]*(24*VLOOKUP(tb_ponto[[#This Row],[Cod_Funcionario]],tb_funcionarios[[Cod_Funcionario]:[Valor_Hora]],19,0)) -> 0.00
C25: P00018 | D25: 2026-01-17 | E25: F001 | F25: =VLOOKUP(tb_ponto[[#This Row],[Cod_Funcionario]],tb_funcionarios[[Cod_Funcionario]:[Nome_Completo]],2,0) -> Ana Lima | G25: =VLOOKUP(tb_ponto[[#This Row],[Cod_Funcionario]],tb_funcionarios[[Cod_Funcionario]:[Setor]],8,0) -> RH | H25: Folga | M25: =(tb_ponto[[#This Row],[Saida_1]]-tb_ponto[[#This Row],[Entrada_1]])+(tb_ponto[[#This Row],[Saida_2]]-tb_ponto[[#This Row],[Entrada_2]]) -> 00:00:00 | N25: =VLOOKUP(tb_ponto[[#This Row],[Cod_Funcionario]],tb_funcionarios[[Cod_Funcionario]:[Jornada_Diaria_Horas]],14,0) -> 08:00:00 | O25: =IF(tb_ponto[[#This Row],[Horas_Trabalhadas]]>tb_ponto[[#This Row],[Jornada_Padrao]],tb_ponto[[#This Row],[Jornada_Padrao]],tb_ponto[[#This Row],[Horas_Trabalhadas]]) -> 00:00:00 | P25: =IF(tb_ponto[[#This Row],[Horas_Trabalhadas]]>tb_ponto[[#This Row],[Horas_Normais]],tb_ponto[[#This Row],[Horas_Trabalhadas]]-tb_ponto[[#This Row],[Jornada_Padrao]],0) -> 00:00:00 | Q25: 00:00:00 | R25: =COUNTIFS(tb_ponto[Status_Dia],"Falta",tb_ponto[Cod_Funcionario],tb_ponto[[#This Row],[Cod_Funcionario]],tb_ponto[Competencia],tb_ponto[[#This Row],[Competencia]]) -> 0 | T25: =TEXT(tb_ponto[[#This Row],[Data]],"MMM-YY") -> Jan-26 | U25: =tb_ponto[[#This Row],[Horas_Extras]]*(24*VLOOKUP(tb_ponto[[#This Row],[Cod_Funcionario]],tb_funcionarios[[Cod_Funcionario]:[Valor_Hora]],19,0)) -> 0.00
C26: P00019 | D26: 2026-01-18 | E26: F001 | F26: =VLOOKUP(tb_ponto[[#This Row],[Cod_Funcionario]],tb_funcionarios[[Cod_Funcionario]:[Nome_Completo]],2,0) -> Ana Lima | G26: =VLOOKUP(tb_ponto[[#This Row],[Cod_Funcionario]],tb_funcionarios[[Cod_Funcionario]:[Setor]],8,0) -> RH | H26: Folga | M26: =(tb_ponto[[#This Row],[Saida_1]]-tb_ponto[[#This Row],[Entrada_1]])+(tb_ponto[[#This Row],[Saida_2]]-tb_ponto[[#This Row],[Entrada_2]]) -> 00:00:00 | N26: =VLOOKUP(tb_ponto[[#This Row],[Cod_Funcionario]],tb_funcionarios[[Cod_Funcionario]:[Jornada_Diaria_Horas]],14,0) -> 08:00:00 | O26: =IF(tb_ponto[[#This Row],[Horas_Trabalhadas]]>tb_ponto[[#This Row],[Jornada_Padrao]],tb_ponto[[#This Row],[Jornada_Padrao]],tb_ponto[[#This Row],[Horas_Trabalhadas]]) -> 00:00:00 | P26: =IF(tb_ponto[[#This Row],[Horas_Trabalhadas]]>tb_ponto[[#This Row],[Horas_Normais]],tb_ponto[[#This Row],[Horas_Trabalhadas]]-tb_ponto[[#This Row],[Jornada_Padrao]],0) -> 00:00:00 | Q26: 00:00:00 | R26: =COUNTIFS(tb_ponto[Status_Dia],"Falta",tb_ponto[Cod_Funcionario],tb_ponto[[#This Row],[Cod_Funcionario]],tb_ponto[Competencia],tb_ponto[[#This Row],[Competencia]]) -> 0 | T26: =TEXT(tb_ponto[[#This Row],[Data]],"MMM-YY") -> Jan-26 | U26: =tb_ponto[[#This Row],[Horas_Extras]]*(24*VLOOKUP(tb_ponto[[#This Row],[Cod_Funcionario]],tb_funcionarios[[Cod_Funcionario]:[Valor_Hora]],19,0)) -> 0.00
C27: P00020 | D27: 2026-01-19 | E27: F001 | F27: =VLOOKUP(tb_ponto[[#This Row],[Cod_Funcionario]],tb_funcionarios[[Cod_Funcionario]:[Nome_Completo]],2,0) -> Ana Lima | G27: =VLOOKUP(tb_ponto[[#This Row],[Cod_Funcionario]],tb_funcionarios[[Cod_Funcionario]:[Setor]],8,0) -> RH | H27: Normal | I27: 07:59:33.569 | J27: 12:00:06.007 | K27: 12:59:42.198 | L27: 15:53:35.269 | M27: =(tb_ponto[[#This Row],[Saida_1]]-tb_ponto[[#This Row],[Entrada_1]])+(tb_ponto[[#This Row],[Saida_2]]-tb_ponto[[#This Row],[Entrada_2]]) -> 06:54:25.510 | N27: =VLOOKUP(tb_ponto[[#This Row],[Cod_Funcionario]],tb_funcionarios[[Cod_Funcionario]:[Jornada_Diaria_Horas]],14,0) -> 08:00:00 | O27: =IF(tb_ponto[[#This Row],[Horas_Trabalhadas]]>tb_ponto[[#This Row],[Jornada_Padrao]],tb_ponto[[#This Row],[Jornada_Padrao]],tb_ponto[[#This Row],[Horas_Trabalhadas]]) -> 06:54:25.510 | P27: =IF(tb_ponto[[#This Row],[Horas_Trabalhadas]]>tb_ponto[[#This Row],[Horas_Normais]],tb_ponto[[#This Row],[Horas_Trabalhadas]]-tb_ponto[[#This Row],[Jornada_Padrao]],0) -> 00:00:00 | Q27: 00:00:00 | R27: =COUNTIFS(tb_ponto[Status_Dia],"Falta",tb_ponto[Cod_Funcionario],tb_ponto[[#This Row],[Cod_Funcionario]],tb_ponto[Competencia],tb_ponto[[#This Row],[Competencia]]) -> 0 | T27: =TEXT(tb_ponto[[#This Row],[Data]],"MMM-YY") -> Jan-26 | U27: =tb_ponto[[#This Row],[Horas_Extras]]*(24*VLOOKUP(tb_ponto[[#This Row],[Cod_Funcionario]],tb_funcionarios[[Cod_Funcionario]:[Valor_Hora]],19,0)) -> 0.00
C28: P00021 | D28: 2026-01-20 | E28: F001 | F28: =VLOOKUP(tb_ponto[[#This Row],[Cod_Funcionario]],tb_funcionarios[[Cod_Funcionario]:[Nome_Completo]],2,0) -> Ana Lima | G28: =VLOOKUP(tb_ponto[[#This Row],[Cod_Funcionario]],tb_funcionarios[[Cod_Funcionario]:[Setor]],8,0) -> RH | H28: Normal | I28: 07:59:54.081 | J28: 11:59:49.848 | K28: 13:00:10.919 | L28: 15:59:22.874 | M28: =(tb_ponto[[#This Row],[Saida_1]]-tb_ponto[[#This Row],[Entrada_1]])+(tb_ponto[[#This Row],[Saida_2]]-tb_ponto[[#This Row],[Entrada_2]]) -> 06:59:07.722 | N28: =VLOOKUP(tb_ponto[[#This Row],[Cod_Funcionario]],tb_funcionarios[[Cod_Funcionario]:[Jornada_Diaria_Horas]],14,0) -> 08:00:00 | O28: =IF(tb_ponto[[#This Row],[Horas_Trabalhadas]]>tb_ponto[[#This Row],[Jornada_Padrao]],tb_ponto[[#This Row],[Jornada_Padrao]],tb_ponto[[#This Row],[Horas_Trabalhadas]]) -> 06:59:07.722 | P28: =IF(tb_ponto[[#This Row],[Horas_Trabalhadas]]>tb_ponto[[#This Row],[Horas_Normais]],tb_ponto[[#This Row],[Horas_Trabalhadas]]-tb_ponto[[#This Row],[Jornada_Padrao]],0) -> 00:00:00 | Q28: 00:00:00 | R28: =COUNTIFS(tb_ponto[Status_Dia],"Falta",tb_ponto[Cod_Funcionario],tb_ponto[[#This Row],[Cod_Funcionario]],tb_ponto[Competencia],tb_ponto[[#This Row],[Competencia]]) -> 0 | T28: =TEXT(tb_ponto[[#This Row],[Data]],"MMM-YY") -> Jan-26 | U28: =tb_ponto[[#This Row],[Horas_Extras]]*(24*VLOOKUP(tb_ponto[[#This Row],[Cod_Funcionario]],tb_funcionarios[[Cod_Funcionario]:[Valor_Hora]],19,0)) -> 0.00
C29: P00022 | D29: 2026-01-21 | E29: F001 | F29: =VLOOKUP(tb_ponto[[#This Row],[Cod_Funcionario]],tb_funcionarios[[Cod_Funcionario]:[Nome_Completo]],2,0) -> Ana Lima | G29: =VLOOKUP(tb_ponto[[#This Row],[Cod_Funcionario]],tb_funcionarios[[Cod_Funcionario]:[Setor]],8,0) -> RH | H29: Normal | I29: 08:00:25.060 | J29: 12:00:04.079 | K29: 13:00:07.178 | L29: 15:45:37.451 | M29: =(tb_ponto[[#This Row],[Saida_1]]-tb_ponto[[#This Row],[Entrada_1]])+(tb_ponto[[#This Row],[Saida_2]]-tb_ponto[[#This Row],[Entrada_2]]) -> 06:45:09.293 | N29: =VLOOKUP(tb_ponto[[#This Row],[Cod_Funcionario]],tb_funcionarios[[Cod_Funcionario]:[Jornada_Diaria_Horas]],14,0) -> 08:00:00 | O29: =IF(tb_ponto[[#This Row],[Horas_Trabalhadas]]>tb_ponto[[#This Row],[Jornada_Padrao]],tb_ponto[[#This Row],[Jornada_Padrao]],tb_ponto[[#This Row],[Horas_Trabalhadas]]) -> 06:45:09.293 | P29: =IF(tb_ponto[[#This Row],[Horas_Trabalhadas]]>tb_ponto[[#This Row],[Horas_Normais]],tb_ponto[[#This Row],[Horas_Trabalhadas]]-tb_ponto[[#This Row],[Jornada_Padrao]],0) -> 00:00:00 | Q29: 00:00:00 | R29: =COUNTIFS(tb_ponto[Status_Dia],"Falta",tb_ponto[Cod_Funcionario],tb_ponto[[#This Row],[Cod_Funcionario]],tb_ponto[Competencia],tb_ponto[[#This Row],[Competencia]]) -> 0 | T29: =TEXT(tb_ponto[[#This Row],[Data]],"MMM-YY") -> Jan-26 | U29: =tb_ponto[[#This Row],[Horas_Extras]]*(24*VLOOKUP(tb_ponto[[#This Row],[Cod_Funcionario]],tb_funcionarios[[Cod_Funcionario]:[Valor_Hora]],19,0)) -> 0.00
C30: P00023 | D30: 2026-01-22 | E30: F001 | F30: =VLOOKUP(tb_ponto[[#This Row],[Cod_Funcionario]],tb_funcionarios[[Cod_Funcionario]:[Nome_Completo]],2,0) -> Ana Lima | G30: =VLOOKUP(tb_ponto[[#This Row],[Cod_Funcionario]],tb_funcionarios[[Cod_Funcionario]:[Setor]],8,0) -> RH | H30: Normal | I30: 07:59:56.305 | J30: 12:00:00.391 | K30: 13:00:05.892 | L30: 15:53:45.319 | M30: =(tb_ponto[[#This Row],[Saida_1]]-tb_ponto[[#This Row],[Entrada_1]])+(tb_ponto[[#This Row],[Saida_2]]-tb_ponto[[#This Row],[Entrada_2]]) -> 06:53:43.513 | N30: =VLOOKUP(tb_ponto[[#This Row],[Cod_Funcionario]],tb_funcionarios[[Cod_Funcionario]:[Jornada_Diaria_Horas]],14,0) -> 08:00:00 | O30: =IF(tb_ponto[[#This Row],[Horas_Trabalhadas]]>tb_ponto[[#This Row],[Jornada_Padrao]],tb_ponto[[#This Row],[Jornada_Padrao]],tb_ponto[[#This Row],[Horas_Trabalhadas]]) -> 06:53:43.513 | P30: =IF(tb_ponto[[#This Row],[Horas_Trabalhadas]]>tb_ponto[[#This Row],[Horas_Normais]],tb_ponto[[#This Row],[Horas_Trabalhadas]]-tb_ponto[[#This Row],[Jornada_Padrao]],0) -> 00:00:00 | Q30: 00:00:00 | R30: =COUNTIFS(tb_ponto[Status_Dia],"Falta",tb_ponto[Cod_Funcionario],tb_ponto[[#This Row],[Cod_Funcionario]],tb_ponto[Competencia],tb_ponto[[#This Row],[Competencia]]) -> 0 | T30: =TEXT(tb_ponto[[#This Row],[Data]],"MMM-YY") -> Jan-26 | U30: =tb_ponto[[#This Row],[Horas_Extras]]*(24*VLOOKUP(tb_ponto[[#This Row],[Cod_Funcionario]],tb_funcionarios[[Cod_Funcionario]:[Valor_Hora]],19,0)) -> 0.00
C31: P00024 | D31: 2026-01-23 | E31: F001 | F31: =VLOOKUP(tb_ponto[[#This Row],[Cod_Funcionario]],tb_funcionarios[[Cod_Funcionario]:[Nome_Completo]],2,0) -> Ana Lima | G31: =VLOOKUP(tb_ponto[[#This Row],[Cod_Funcionario]],tb_funcionarios[[Cod_Funcionario]:[Setor]],8,0) -> RH | H31: Normal | I31: 08:00:32.704 | J31: 11:59:49.255 | K31: 13:00:00.691 | L31: 16:12:11.271 | M31: =(tb_ponto[[#This Row],[Saida_1]]-tb_ponto[[#This Row],[Entrada_1]])+(tb_ponto[[#This Row],[Saida_2]]-tb_ponto[[#This Row],[Entrada_2]]) -> 07:11:27.132 | N31: =VLOOKUP(tb_ponto[[#This Row],[Cod_Funcionario]],tb_funcionarios[[Cod_Funcionario]:[Jornada_Diaria_Horas]],14,0) -> 08:00:00 | O31: =IF(tb_ponto[[#This Row],[Horas_Trabalhadas]]>tb_ponto[[#This Row],[Jornada_Padrao]],tb_ponto[[#This Row],[Jornada_Padrao]],tb_ponto[[#This Row],[Horas_Trabalhadas]]) -> 07:11:27.132 | P31: =IF(tb_ponto[[#This Row],[Horas_Trabalhadas]]>tb_ponto[[#This Row],[Horas_Normais]],tb_ponto[[#This Row],[Horas_Trabalhadas]]-tb_ponto[[#This Row],[Jornada_Padrao]],0) -> 00:00:00 | Q31: 00:00:00 | R31: =COUNTIFS(tb_ponto[Status_Dia],"Falta",tb_ponto[Cod_Funcionario],tb_ponto[[#This Row],[Cod_Funcionario]],tb_ponto[Competencia],tb_ponto[[#This Row],[Competencia]]) -> 0 | T31: =TEXT(tb_ponto[[#This Row],[Data]],"MMM-YY") -> Jan-26 | U31: =tb_ponto[[#This Row],[Horas_Extras]]*(24*VLOOKUP(tb_ponto[[#This Row],[Cod_Funcionario]],tb_funcionarios[[Cod_Funcionario]:[Valor_Hora]],19,0)) -> 0.00
C32: P00025 | D32: 2026-01-24 | E32: F001 | F32: =VLOOKUP(tb_ponto[[#This Row],[Cod_Funcionario]],tb_funcionarios[[Cod_Funcionario]:[Nome_Completo]],2,0) -> Ana Lima | G32: =VLOOKUP(tb_ponto[[#This Row],[Cod_Funcionario]],tb_funcionarios[[Cod_Funcionario]:[Setor]],8,0) -> RH | H32: Folga | M32: =(tb_ponto[[#This Row],[Saida_1]]-tb_ponto[[#This Row],[Entrada_1]])+(tb_ponto[[#This Row],[Saida_2]]-tb_ponto[[#This Row],[Entrada_2]]) -> 00:00:00 | N32: =VLOOKUP(tb_ponto[[#This Row],[Cod_Funcionario]],tb_funcionarios[[Cod_Funcionario]:[Jornada_Diaria_Horas]],14,0) -> 08:00:00 | O32: =IF(tb_ponto[[#This Row],[Horas_Trabalhadas]]>tb_ponto[[#This Row],[Jornada_Padrao]],tb_ponto[[#This Row],[Jornada_Padrao]],tb_ponto[[#This Row],[Horas_Trabalhadas]]) -> 00:00:00 | P32: =IF(tb_ponto[[#This Row],[Horas_Trabalhadas]]>tb_ponto[[#This Row],[Horas_Normais]],tb_ponto[[#This Row],[Horas_Trabalhadas]]-tb_ponto[[#This Row],[Jornada_Padrao]],0) -> 00:00:00 | Q32: 00:00:00 | R32: =COUNTIFS(tb_ponto[Status_Dia],"Falta",tb_ponto[Cod_Funcionario],tb_ponto[[#This Row],[Cod_Funcionario]],tb_ponto[Competencia],tb_ponto[[#This Row],[Competencia]]) -> 0 | T32: =TEXT(tb_ponto[[#This Row],[Data]],"MMM-YY") -> Jan-26 | U32: =tb_ponto[[#This Row],[Horas_Extras]]*(24*VLOOKUP(tb_ponto[[#This Row],[Cod_Funcionario]],tb_funcionarios[[Cod_Funcionario]:[Valor_Hora]],19,0)) -> 0.00
C33: P00026 | D33: 2026-01-25 | E33: F001 | F33: =VLOOKUP(tb_ponto[[#This Row],[Cod_Funcionario]],tb_funcionarios[[Cod_Funcionario]:[Nome_Completo]],2,0) -> Ana Lima | G33: =VLOOKUP(tb_ponto[[#This Row],[Cod_Funcionario]],tb_funcionarios[[Cod_Funcionario]:[Setor]],8,0) -> RH | H33: Folga | M33: =(tb_ponto[[#This Row],[Saida_1]]-tb_ponto[[#This Row],[Entrada_1]])+(tb_ponto[[#This Row],[Saida_2]]-tb_ponto[[#This Row],[Entrada_2]]) -> 00:00:00 | N33: =VLOOKUP(tb_ponto[[#This Row],[Cod_Funcionario]],tb_funcionarios[[Cod_Funcionario]:[Jornada_Diaria_Horas]],14,0) -> 08:00:00 | O33: =IF(tb_ponto[[#This Row],[Horas_Trabalhadas]]>tb_ponto[[#This Row],[Jornada_Padrao]],tb_ponto[[#This Row],[Jornada_Padrao]],tb_ponto[[#This Row],[Horas_Trabalhadas]]) -> 00:00:00 | P33: =IF(tb_ponto[[#This Row],[Horas_Trabalhadas]]>tb_ponto[[#This Row],[Horas_Normais]],tb_ponto[[#This Row],[Horas_Trabalhadas]]-tb_ponto[[#This Row],[Jornada_Padrao]],0) -> 00:00:00 | Q33: 00:00:00 | R33: =COUNTIFS(tb_ponto[Status_Dia],"Falta",tb_ponto[Cod_Funcionario],tb_ponto[[#This Row],[Cod_Funcionario]],tb_ponto[Competencia],tb_ponto[[#This Row],[Competencia]]) -> 0 | T33: =TEXT(tb_ponto[[#This Row],[Data]],"MMM-YY") -> Jan-26 | U33: =tb_ponto[[#This Row],[Horas_Extras]]*(24*VLOOKUP(tb_ponto[[#This Row],[Cod_Funcionario]],tb_funcionarios[[Cod_Funcionario]:[Valor_Hora]],19,0)) -> 0.00
C34: P00027 | D34: 2026-01-26 | E34: F001 | F34: =VLOOKUP(tb_ponto[[#This Row],[Cod_Funcionario]],tb_funcionarios[[Cod_Funcionario]:[Nome_Completo]],2,0) -> Ana Lima | G34: =VLOOKUP(tb_ponto[[#This Row],[Cod_Funcionario]],tb_funcionarios[[Cod_Funcionario]:[Setor]],8,0) -> RH | H34: Normal | I34: 07:59:25.021 | J34: 12:00:05.033 | K34: 13:00:05.361 | L34: 15:56:58.221 | M34: =(tb_ponto[[#This Row],[Saida_1]]-tb_ponto[[#This Row],[Entrada_1]])+(tb_ponto[[#This Row],[Saida_2]]-tb_ponto[[#This Row],[Entrada_2]]) -> 06:57:32.872 | N34: =VLOOKUP(tb_ponto[[#This Row],[Cod_Funcionario]],tb_funcionarios[[Cod_Funcionario]:[Jornada_Diaria_Horas]],14,0) -> 08:00:00 | O34: =IF(tb_ponto[[#This Row],[Horas_Trabalhadas]]>tb_ponto[[#This Row],[Jornada_Padrao]],tb_ponto[[#This Row],[Jornada_Padrao]],tb_ponto[[#This Row],[Horas_Trabalhadas]]) -> 06:57:32.872 | P34: =IF(tb_ponto[[#This Row],[Horas_Trabalhadas]]>tb_ponto[[#This Row],[Horas_Normais]],tb_ponto[[#This Row],[Horas_Trabalhadas]]-tb_ponto[[#This Row],[Jornada_Padrao]],0) -> 00:00:00 | Q34: 00:00:00 | R34: =COUNTIFS(tb_ponto[Status_Dia],"Falta",tb_ponto[Cod_Funcionario],tb_ponto[[#This Row],[Cod_Funcionario]],tb_ponto[Competencia],tb_ponto[[#This Row],[Competencia]]) -> 0 | T34: =TEXT(tb_ponto[[#This Row],[Data]],"MMM-YY") -> Jan-26 | U34: =tb_ponto[[#This Row],[Horas_Extras]]*(24*VLOOKUP(tb_ponto[[#This Row],[Cod_Funcionario]],tb_funcionarios[[Cod_Funcionario]:[Valor_Hora]],19,0)) -> 0.00
C35: P00028 | D35: 2026-01-27 | E35: F001 | F35: =VLOOKUP(tb_ponto[[#This Row],[Cod_Funcionario]],tb_funcionarios[[Cod_Funcionario]:[Nome_Completo]],2,0) -> Ana Lima | G35: =VLOOKUP(tb_ponto[[#This Row],[Cod_Funcionario]],tb_funcionarios[[Cod_Funcionario]:[Setor]],8,0) -> RH | H35: Normal | I35: 08:00:13.361 | J35: 11:59:52.176 | K35: 13:00:10.538 | L35: 16:14:51.732 | M35: =(tb_ponto[[#This Row],[Saida_1]]-tb_ponto[[#This Row],[Entrada_1]])+(tb_ponto[[#This Row],[Saida_2]]-tb_ponto[[#This Row],[Entrada_2]]) -> 07:14:20.009 | N35: =VLOOKUP(tb_ponto[[#This Row],[Cod_Funcionario]],tb_funcionarios[[Cod_Funcionario]:[Jornada_Diaria_Horas]],14,0) -> 08:00:00 | O35: =IF(tb_ponto[[#This Row],[Horas_Trabalhadas]]>tb_ponto[[#This Row],[Jornada_Padrao]],tb_ponto[[#This Row],[Jornada_Padrao]],tb_ponto[[#This Row],[Horas_Trabalhadas]]) -> 07:14:20.009 | P35: =IF(tb_ponto[[#This Row],[Horas_Trabalhadas]]>tb_ponto[[#This Row],[Horas_Normais]],tb_ponto[[#This Row],[Horas_Trabalhadas]]-tb_ponto[[#This Row],[Jornada_Padrao]],0) -> 00:00:00 | Q35: 00:00:00 | R35: =COUNTIFS(tb_ponto[Status_Dia],"Falta",tb_ponto[Cod_Funcionario],tb_ponto[[#This Row],[Cod_Funcionario]],tb_ponto[Competencia],tb_ponto[[#This Row],[Competencia]]) -> 0 | T35: =TEXT(tb_ponto[[#This Row],[Data]],"MMM-YY") -> Jan-26 | U35: =tb_ponto[[#This Row],[Horas_Extras]]*(24*VLOOKUP(tb_ponto[[#This Row],[Cod_Funcionario]],tb_funcionarios[[Cod_Funcionario]:[Valor_Hora]],19,0)) -> 0.00
C36: P00029 | D36: 2026-01-28 | E36: F001 | F36: =VLOOKUP(tb_ponto[[#This Row],[Cod_Funcionario]],tb_funcionarios[[Cod_Funcionario]:[Nome_Completo]],2,0) -> Ana Lima | G36: =VLOOKUP(tb_ponto[[#This Row],[Cod_Funcionario]],tb_funcionarios[[Cod_Funcionario]:[Setor]],8,0) -> RH | H36: Normal | I36: 07:59:37.701 | J36: 12:00:02.482 | K36: 13:00:06.228 | L36: 16:10:52.286 | M36: =(tb_ponto[[#This Row],[Saida_1]]-tb_ponto[[#This Row],[Entrada_1]])+(tb_ponto[[#This Row],[Saida_2]]-tb_ponto[[#This Row],[Entrada_2]]) -> 07:11:10.839 | N36: =VLOOKUP(tb_ponto[[#This Row],[Cod_Funcionario]],tb_funcionarios[[Cod_Funcionario]:[Jornada_Diaria_Horas]],14,0) -> 08:00:00 | O36: =IF(tb_ponto[[#This Row],[Horas_Trabalhadas]]>tb_ponto[[#This Row],[Jornada_Padrao]],tb_ponto[[#This Row],[Jornada_Padrao]],tb_ponto[[#This Row],[Horas_Trabalhadas]]) -> 07:11:10.839 | P36: =IF(tb_ponto[[#This Row],[Horas_Trabalhadas]]>tb_ponto[[#This Row],[Horas_Normais]],tb_ponto[[#This Row],[Horas_Trabalhadas]]-tb_ponto[[#This Row],[Jornada_Padrao]],0) -> 00:00:00 | Q36: 00:00:00 | R36: =COUNTIFS(tb_ponto[Status_Dia],"Falta",tb_ponto[Cod_Funcionario],tb_ponto[[#This Row],[Cod_Funcionario]],tb_ponto[Competencia],tb_ponto[[#This Row],[Competencia]]) -> 0 | T36: =TEXT(tb_ponto[[#This Row],[Data]],"MMM-YY") -> Jan-26 | U36: =tb_ponto[[#This Row],[Horas_Extras]]*(24*VLOOKUP(tb_ponto[[#This Row],[Cod_Funcionario]],tb_funcionarios[[Cod_Funcionario]:[Valor_Hora]],19,0)) -> 0.00
C37: P00030 | D37: 2026-01-29 | E37: F001 | F37: =VLOOKUP(tb_ponto[[#This Row],[Cod_Funcionario]],tb_funcionarios[[Cod_Funcionario]:[Nome_Completo]],2,0) -> Ana Lima | G37: =VLOOKUP(tb_ponto[[#This Row],[Cod_Funcionario]],tb_funcionarios[[Cod_Funcionario]:[Setor]],8,0) -> RH | H37: Normal | I37: 08:00:13.899 | J37: 11:59:45.104 | K37: 13:00:15.631 | L37: 15:47:37.422 | M37: =(tb_ponto[[#This Row],[Saida_1]]-tb_ponto[[#This Row],[Entrada_1]])+(tb_ponto[[#This Row],[Saida_2]]-tb_ponto[[#This Row],[Entrada_2]]) -> 06:46:52.996 | N37: =VLOOKUP(tb_ponto[[#This Row],[Cod_Funcionario]],tb_funcionarios[[Cod_Funcionario]:[Jornada_Diaria_Horas]],14,0) -> 08:00:00 | O37: =IF(tb_ponto[[#This Row],[Horas_Trabalhadas]]>tb_ponto[[#This Row],[Jornada_Padrao]],tb_ponto[[#This Row],[Jornada_Padrao]],tb_ponto[[#This Row],[Horas_Trabalhadas]]) -> 06:46:52.996 | P37: =IF(tb_ponto[[#This Row],[Horas_Trabalhadas]]>tb_ponto[[#This Row],[Horas_Normais]],tb_ponto[[#This Row],[Horas_Trabalhadas]]-tb_ponto[[#This Row],[Jornada_Padrao]],0) -> 00:00:00 | Q37: 00:00:00 | R37: =COUNTIFS(tb_ponto[Status_Dia],"Falta",tb_ponto[Cod_Funcionario],tb_ponto[[#This Row],[Cod_Funcionario]],tb_ponto[Competencia],tb_ponto[[#This Row],[Competencia]]) -> 0 | T37: =TEXT(tb_ponto[[#This Row],[Data]],"MMM-YY") -> Jan-26 | U37: =tb_ponto[[#This Row],[Horas_Extras]]*(24*VLOOKUP(tb_ponto[[#This Row],[Cod_Funcionario]],tb_funcionarios[[Cod_Funcionario]:[Valor_Hora]],19,0)) -> 0.00
C38: P00031 | D38: 2026-01-30 | E38: F001 | F38: =VLOOKUP(tb_ponto[[#This Row],[Cod_Funcionario]],tb_funcionarios[[Cod_Funcionario]:[Nome_Completo]],2,0) -> Ana Lima | G38: =VLOOKUP(tb_ponto[[#This Row],[Cod_Funcionario]],tb_funcionarios[[Cod_Funcionario]:[Setor]],8,0) -> RH | H38: Normal | I38: 07:59:56.632 | J38: 12:00:10.957 | K38: 12:59:53.151 | L38: 16:10:49.525 | M38: =(tb_ponto[[#This Row],[Saida_1]]-tb_ponto[[#This Row],[Entrada_1]])+(tb_ponto[[#This Row],[Saida_2]]-tb_ponto[[#This Row],[Entrada_2]]) -> 07:11:10.698 | N38: =VLOOKUP(tb_ponto[[#This Row],[Cod_Funcionario]],tb_funcionarios[[Cod_Funcionario]:[Jornada_Diaria_Horas]],14,0) -> 08:00:00 | O38: =IF(tb_ponto[[#This Row],[Horas_Trabalhadas]]>tb_ponto[[#This Row],[Jornada_Padrao]],tb_ponto[[#This Row],[Jornada_Padrao]],tb_ponto[[#This Row],[Horas_Trabalhadas]]) -> 07:11:10.698 | P38: =IF(tb_ponto[[#This Row],[Horas_Trabalhadas]]>tb_ponto[[#This Row],[Horas_Normais]],tb_ponto[[#This Row],[Horas_Trabalhadas]]-tb_ponto[[#This Row],[Jornada_Padrao]],0) -> 00:00:00 | Q38: 00:00:00 | R38: =COUNTIFS(tb_ponto[Status_Dia],"Falta",tb_ponto[Cod_Funcionario],tb_ponto[[#This Row],[Cod_Funcionario]],tb_ponto[Competencia],tb_ponto[[#This Row],[Competencia]]) -> 0 | T38: =TEXT(tb_ponto[[#This Row],[Data]],"MMM-YY") -> Jan-26 | U38: =tb_ponto[[#This Row],[Horas_Extras]]*(24*VLOOKUP(tb_ponto[[#This Row],[Cod_Funcionario]],tb_funcionarios[[Cod_Funcionario]:[Valor_Hora]],19,0)) -> 0.00
C39: P00032 | D39: 2026-01-31 | E39: F001 | F39: =VLOOKUP(tb_ponto[[#This Row],[Cod_Funcionario]],tb_funcionarios[[Cod_Funcionario]:[Nome_Completo]],2,0) -> Ana Lima | G39: =VLOOKUP(tb_ponto[[#This Row],[Cod_Funcionario]],tb_funcionarios[[Cod_Funcionario]:[Setor]],8,0) -> RH | H39: Folga | M39: =(tb_ponto[[#This Row],[Saida_1]]-tb_ponto[[#This Row],[Entrada_1]])+(tb_ponto[[#This Row],[Saida_2]]-tb_ponto[[#This Row],[Entrada_2]]) -> 00:00:00 | N39: =VLOOKUP(tb_ponto[[#This Row],[Cod_Funcionario]],tb_funcionarios[[Cod_Funcionario]:[Jornada_Diaria_Horas]],14,0) -> 08:00:00 | O39: =IF(tb_ponto[[#This Row],[Horas_Trabalhadas]]>tb_ponto[[#This Row],[Jornada_Padrao]],tb_ponto[[#This Row],[Jornada_Padrao]],tb_ponto[[#This Row],[Horas_Trabalhadas]]) -> 00:00:00 | P39: =IF(tb_ponto[[#This Row],[Horas_Trabalhadas]]>tb_ponto[[#This Row],[Horas_Normais]],tb_ponto[[#This Row],[Horas_Trabalhadas]]-tb_ponto[[#This Row],[Jornada_Padrao]],0) -> 00:00:00 | Q39: 00:00:00 | R39: =COUNTIFS(tb_ponto[Status_Dia],"Falta",tb_ponto[Cod_Funcionario],tb_ponto[[#This Row],[Cod_Funcionario]],tb_ponto[Competencia],tb_ponto[[#This Row],[Competencia]]) -> 0 | T39: =TEXT(tb_ponto[[#This Row],[Data]],"MMM-YY") -> Jan-26 | U39: =tb_ponto[[#This Row],[Horas_Extras]]*(24*VLOOKUP(tb_ponto[[#This Row],[Cod_Funcionario]],tb_funcionarios[[Cod_Funcionario]:[Valor_Hora]],19,0)) -> 0.00
C40: P00033 | D40: 2026-02-01 | E40: F001 | F40: =VLOOKUP(tb_ponto[[#This Row],[Cod_Funcionario]],tb_funcionarios[[Cod_Funcionario]:[Nome_Completo]],2,0) -> Ana Lima | G40: =VLOOKUP(tb_ponto[[#This Row],[Cod_Funcionario]],tb_funcionarios[[Cod_Funcionario]:[Setor]],8,0) -> RH | H40: Folga | M40: =(tb_ponto[[#This Row],[Saida_1]]-tb_ponto[[#This Row],[Entrada_1]])+(tb_ponto[[#This Row],[Saida_2]]-tb_ponto[[#This Row],[Entrada_2]]) -> 00:00:00 | N40: =VLOOKUP(tb_ponto[[#This Row],[Cod_Funcionario]],tb_funcionarios[[Cod_Funcionario]:[Jornada_Diaria_Horas]],14,0) -> 08:00:00 | O40: =IF(tb_ponto[[#This Row],[Horas_Trabalhadas]]>tb_ponto[[#This Row],[Jornada_Padrao]],tb_ponto[[#This Row],[Jornada_Padrao]],tb_ponto[[#This Row],[Horas_Trabalhadas]]) -> 00:00:00 | P40: =IF(tb_ponto[[#This Row],[Horas_Trabalhadas]]>tb_ponto[[#This Row],[Horas_Normais]],tb_ponto[[#This Row],[Horas_Trabalhadas]]-tb_ponto[[#This Row],[Jornada_Padrao]],0) -> 00:00:00 | Q40: 00:00:00 | R40: =COUNTIFS(tb_ponto[Status_Dia],"Falta",tb_ponto[Cod_Funcionario],tb_ponto[[#This Row],[Cod_Funcionario]],tb_ponto[Competencia],tb_ponto[[#This Row],[Competencia]]) -> 1 | T40: =TEXT(tb_ponto[[#This Row],[Data]],"MMM-YY") -> Feb-26 | U40: =tb_ponto[[#This Row],[Horas_Extras]]*(24*VLOOKUP(tb_ponto[[#This Row],[Cod_Funcionario]],tb_funcionarios[[Cod_Funcionario]:[Valor_Hora]],19,0)) -> 0.00
C41: P00034 | D41: 2026-02-02 | E41: F001 | F41: =VLOOKUP(tb_ponto[[#This Row],[Cod_Funcionario]],tb_funcionarios[[Cod_Funcionario]:[Nome_Completo]],2,0) -> Ana Lima | G41: =VLOOKUP(tb_ponto[[#This Row],[Cod_Funcionario]],tb_funcionarios[[Cod_Funcionario]:[Setor]],8,0) -> RH | H41: Normal | I41: 08:00:21.935 | J41: 11:59:56.723 | K41: 12:59:57.488 | L41: 15:45:16.109 | M41: =(tb_ponto[[#This Row],[Saida_1]]-tb_ponto[[#This Row],[Entrada_1]])+(tb_ponto[[#This Row],[Saida_2]]-tb_ponto[[#This Row],[Entrada_2]]) -> 06:44:53.409 | N41: =VLOOKUP(tb_ponto[[#This Row],[Cod_Funcionario]],tb_funcionarios[[Cod_Funcionario]:[Jornada_Diaria_Horas]],14,0) -> 08:00:00 | O41: =IF(tb_ponto[[#This Row],[Horas_Trabalhadas]]>tb_ponto[[#This Row],[Jornada_Padrao]],tb_ponto[[#This Row],[Jornada_Padrao]],tb_ponto[[#This Row],[Horas_Trabalhadas]]) -> 06:44:53.409 | P41: =IF(tb_ponto[[#This Row],[Horas_Trabalhadas]]>tb_ponto[[#This Row],[Horas_Normais]],tb_ponto[[#This Row],[Horas_Trabalhadas]]-tb_ponto[[#This Row],[Jornada_Padrao]],0) -> 00:00:00 | Q41: 00:00:00 | R41: =COUNTIFS(tb_ponto[Status_Dia],"Falta",tb_ponto[Cod_Funcionario],tb_ponto[[#This Row],[Cod_Funcionario]],tb_ponto[Competencia],tb_ponto[[#This Row],[Competencia]]) -> 1 | T41: =TEXT(tb_ponto[[#This Row],[Data]],"MMM-YY") -> Feb-26 | U41: =tb_ponto[[#This Row],[Horas_Extras]]*(24*VLOOKUP(tb_ponto[[#This Row],[Cod_Funcionario]],tb_funcionarios[[Cod_Funcionario]:[Valor_Hora]],19,0)) -> 0.00
C42: P00035 | D42: 2026-02-03 | E42: F001 | F42: =VLOOKUP(tb_ponto[[#This Row],[Cod_Funcionario]],tb_funcionarios[[Cod_Funcionario]:[Nome_Completo]],2,0) -> Ana Lima | G42: =VLOOKUP(tb_ponto[[#This Row],[Cod_Funcionario]],tb_funcionarios[[Cod_Funcionario]:[Setor]],8,0) -> RH | H42: Normal | I42: 08:00:15.004 | J42: 12:00:11.745 | K42: 13:00:10.593 | L42: 16:14:55.149 | M42: =(tb_ponto[[#This Row],[Saida_1]]-tb_ponto[[#This Row],[Entrada_1]])+(tb_ponto[[#This Row],[Saida_2]]-tb_ponto[[#This Row],[Entrada_2]]) -> 07:14:41.297 | N42: =VLOOKUP(tb_ponto[[#This Row],[Cod_Funcionario]],tb_funcionarios[[Cod_Funcionario]:[Jornada_Diaria_Horas]],14,0) -> 08:00:00 | O42: =IF(tb_ponto[[#This Row],[Horas_Trabalhadas]]>tb_ponto[[#This Row],[Jornada_Padrao]],tb_ponto[[#This Row],[Jornada_Padrao]],tb_ponto[[#This Row],[Horas_Trabalhadas]]) -> 07:14:41.297 | P42: =IF(tb_ponto[[#This Row],[Horas_Trabalhadas]]>tb_ponto[[#This Row],[Horas_Normais]],tb_ponto[[#This Row],[Horas_Trabalhadas]]-tb_ponto[[#This Row],[Jornada_Padrao]],0) -> 00:00:00 | Q42: 00:00:00 | R42: =COUNTIFS(tb_ponto[Status_Dia],"Falta",tb_ponto[Cod_Funcionario],tb_ponto[[#This Row],[Cod_Funcionario]],tb_ponto[Competencia],tb_ponto[[#This Row],[Competencia]]) -> 1 | T42: =TEXT(tb_ponto[[#This Row],[Data]],"MMM-YY") -> Feb-26 | U42: =tb_ponto[[#This Row],[Horas_Extras]]*(24*VLOOKUP(tb_ponto[[#This Row],[Cod_Funcionario]],tb_funcionarios[[Cod_Funcionario]:[Valor_Hora]],19,0)) -> 0.00
C43: P00036 | D43: 2026-02-04 | E43: F001 | F43: =VLOOKUP(tb_ponto[[#This Row],[Cod_Funcionario]],tb_funcionarios[[Cod_Funcionario]:[Nome_Completo]],2,0) -> Ana Lima | G43: =VLOOKUP(tb_ponto[[#This Row],[Cod_Funcionario]],tb_funcionarios[[Cod_Funcionario]:[Setor]],8,0) -> RH | H43: Normal | I43: 08:00:25.910 | J43: 11:59:53.063 | K43: 12:59:42.205 | L43: 15:52:37.537 | M43: =(tb_ponto[[#This Row],[Saida_1]]-tb_ponto[[#This Row],[Entrada_1]])+(tb_ponto[[#This Row],[Saida_2]]-tb_ponto[[#This Row],[Entrada_2]]) -> 06:52:22.485 | N43: =VLOOKUP(tb_ponto[[#This Row],[Cod_Funcionario]],tb_funcionarios[[Cod_Funcionario]:[Jornada_Diaria_Horas]],14,0) -> 08:00:00 | O43: =IF(tb_ponto[[#This Row],[Horas_Trabalhadas]]>tb_ponto[[#This Row],[Jornada_Padrao]],tb_ponto[[#This Row],[Jornada_Padrao]],tb_ponto[[#This Row],[Horas_Trabalhadas]]) -> 06:52:22.485 | P43: =IF(tb_ponto[[#This Row],[Horas_Trabalhadas]]>tb_ponto[[#This Row],[Horas_Normais]],tb_ponto[[#This Row],[Horas_Trabalhadas]]-tb_ponto[[#This Row],[Jornada_Padrao]],0) -> 00:00:00 | Q43: 00:00:00 | R43: =COUNTIFS(tb_ponto[Status_Dia],"Falta",tb_ponto[Cod_Funcionario],tb_ponto[[#This Row],[Cod_Funcionario]],tb_ponto[Competencia],tb_ponto[[#This Row],[Competencia]]) -> 1 | T43: =TEXT(tb_ponto[[#This Row],[Data]],"MMM-YY") -> Feb-26 | U43: =tb_ponto[[#This Row],[Horas_Extras]]*(24*VLOOKUP(tb_ponto[[#This Row],[Cod_Funcionario]],tb_funcionarios[[Cod_Funcionario]:[Valor_Hora]],19,0)) -> 0.00
C44: P00037 | D44: 2026-02-05 | E44: F001 | F44: =VLOOKUP(tb_ponto[[#This Row],[Cod_Funcionario]],tb_funcionarios[[Cod_Funcionario]:[Nome_Completo]],2,0) -> Ana Lima | G44: =VLOOKUP(tb_ponto[[#This Row],[Cod_Funcionario]],tb_funcionarios[[Cod_Funcionario]:[Setor]],8,0) -> RH | H44: Normal | I44: 08:00:10.584 | J44: 12:00:06.684 | K44: 13:00:06.192 | L44: 15:59:38.603 | M44: =(tb_ponto[[#This Row],[Saida_1]]-tb_ponto[[#This Row],[Entrada_1]])+(tb_ponto[[#This Row],[Saida_2]]-tb_ponto[[#This Row],[Entrada_2]]) -> 06:59:28.511 | N44: =VLOOKUP(tb_ponto[[#This Row],[Cod_Funcionario]],tb_funcionarios[[Cod_Funcionario]:[Jornada_Diaria_Horas]],14,0) -> 08:00:00 | O44: =IF(tb_ponto[[#This Row],[Horas_Trabalhadas]]>tb_ponto[[#This Row],[Jornada_Padrao]],tb_ponto[[#This Row],[Jornada_Padrao]],tb_ponto[[#This Row],[Horas_Trabalhadas]]) -> 06:59:28.511 | P44: =IF(tb_ponto[[#This Row],[Horas_Trabalhadas]]>tb_ponto[[#This Row],[Horas_Normais]],tb_ponto[[#This Row],[Horas_Trabalhadas]]-tb_ponto[[#This Row],[Jornada_Padrao]],0) -> 00:00:00 | Q44: 00:00:00 | R44: =COUNTIFS(tb_ponto[Status_Dia],"Falta",tb_ponto[Cod_Funcionario],tb_ponto[[#This Row],[Cod_Funcionario]],tb_ponto[Competencia],tb_ponto[[#This Row],[Competencia]]) -> 1 | T44: =TEXT(tb_ponto[[#This Row],[Data]],"MMM-YY") -> Feb-26 | U44: =tb_ponto[[#This Row],[Horas_Extras]]*(24*VLOOKUP(tb_ponto[[#This Row],[Cod_Funcionario]],tb_funcionarios[[Cod_Funcionario]:[Valor_Hora]],19,0)) -> 0.00
C45: P00038 | D45: 2026-02-06 | E45: F001 | F45: =VLOOKUP(tb_ponto[[#This Row],[Cod_Funcionario]],tb_funcionarios[[Cod_Funcionario]:[Nome_Completo]],2,0) -> Ana Lima | G45: =VLOOKUP(tb_ponto[[#This Row],[Cod_Funcionario]],tb_funcionarios[[Cod_Funcionario]:[Setor]],8,0) -> RH | H45: Normal | I45: 08:00:30.115 | J45: 12:00:06.559 | K45: 12:59:46.694 | L45: 16:02:05.518 | M45: =(tb_ponto[[#This Row],[Saida_1]]-tb_ponto[[#This Row],[Entrada_1]])+(tb_ponto[[#This Row],[Saida_2]]-tb_ponto[[#This Row],[Entrada_2]]) -> 07:01:55.268 | N45: =VLOOKUP(tb_ponto[[#This Row],[Cod_Funcionario]],tb_funcionarios[[Cod_Funcionario]:[Jornada_Diaria_Horas]],14,0) -> 08:00:00 | O45: =IF(tb_ponto[[#This Row],[Horas_Trabalhadas]]>tb_ponto[[#This Row],[Jornada_Padrao]],tb_ponto[[#This Row],[Jornada_Padrao]],tb_ponto[[#This Row],[Horas_Trabalhadas]]) -> 07:01:55.268 | P45: =IF(tb_ponto[[#This Row],[Horas_Trabalhadas]]>tb_ponto[[#This Row],[Horas_Normais]],tb_ponto[[#This Row],[Horas_Trabalhadas]]-tb_ponto[[#This Row],[Jornada_Padrao]],0) -> 00:00:00 | Q45: 00:00:00 | R45: =COUNTIFS(tb_ponto[Status_Dia],"Falta",tb_ponto[Cod_Funcionario],tb_ponto[[#This Row],[Cod_Funcionario]],tb_ponto[Competencia],tb_ponto[[#This Row],[Competencia]]) -> 1 | T45: =TEXT(tb_ponto[[#This Row],[Data]],"MMM-YY") -> Feb-26 | U45: =tb_ponto[[#This Row],[Horas_Extras]]*(24*VLOOKUP(tb_ponto[[#This Row],[Cod_Funcionario]],tb_funcionarios[[Cod_Funcionario]:[Valor_Hora]],19,0)) -> 0.00
C46: P00039 | D46: 2026-02-07 | E46: F001 | F46: =VLOOKUP(tb_ponto[[#This Row],[Cod_Funcionario]],tb_funcionarios[[Cod_Funcionario]:[Nome_Completo]],2,0) -> Ana Lima | G46: =VLOOKUP(tb_ponto[[#This Row],[Cod_Funcionario]],tb_funcionarios[[Cod_Funcionario]:[Setor]],8,0) -> RH | H46: Folga | M46: =(tb_ponto[[#This Row],[Saida_1]]-tb_ponto[[#This Row],[Entrada_1]])+(tb_ponto[[#This Row],[Saida_2]]-tb_ponto[[#This Row],[Entrada_2]]) -> 00:00:00 | N46: =VLOOKUP(tb_ponto[[#This Row],[Cod_Funcionario]],tb_funcionarios[[Cod_Funcionario]:[Jornada_Diaria_Horas]],14,0) -> 08:00:00 | O46: =IF(tb_ponto[[#This Row],[Horas_Trabalhadas]]>tb_ponto[[#This Row],[Jornada_Padrao]],tb_ponto[[#This Row],[Jornada_Padrao]],tb_ponto[[#This Row],[Horas_Trabalhadas]]) -> 00:00:00 | P46: =IF(tb_ponto[[#This Row],[Horas_Trabalhadas]]>tb_ponto[[#This Row],[Horas_Normais]],tb_ponto[[#This Row],[Horas_Trabalhadas]]-tb_ponto[[#This Row],[Jornada_Padrao]],0) -> 00:00:00 | Q46: 00:00:00 | R46: =COUNTIFS(tb_ponto[Status_Dia],"Falta",tb_ponto[Cod_Funcionario],tb_ponto[[#This Row],[Cod_Funcionario]],tb_ponto[Competencia],tb_ponto[[#This Row],[Competencia]]) -> 1 | T46: =TEXT(tb_ponto[[#This Row],[Data]],"MMM-YY") -> Feb-26 | U46: =tb_ponto[[#This Row],[Horas_Extras]]*(24*VLOOKUP(tb_ponto[[#This Row],[Cod_Funcionario]],tb_funcionarios[[Cod_Funcionario]:[Valor_Hora]],19,0)) -> 0.00
C47: P00040 | D47: 2026-02-08 | E47: F001 | F47: =VLOOKUP(tb_ponto[[#This Row],[Cod_Funcionario]],tb_funcionarios[[Cod_Funcionario]:[Nome_Completo]],2,0) -> Ana Lima | G47: =VLOOKUP(tb_ponto[[#This Row],[Cod_Funcionario]],tb_funcionarios[[Cod_Funcionario]:[Setor]],8,0) -> RH | H47: Folga | M47: =(tb_ponto[[#This Row],[Saida_1]]-tb_ponto[[#This Row],[Entrada_1]])+(tb_ponto[[#This Row],[Saida_2]]-tb_ponto[[#This Row],[Entrada_2]]) -> 00:00:00 | N47: =VLOOKUP(tb_ponto[[#This Row],[Cod_Funcionario]],tb_funcionarios[[Cod_Funcionario]:[Jornada_Diaria_Horas]],14,0) -> 08:00:00 | O47: =IF(tb_ponto[[#This Row],[Horas_Trabalhadas]]>tb_ponto[[#This Row],[Jornada_Padrao]],tb_ponto[[#This Row],[Jornada_Padrao]],tb_ponto[[#This Row],[Horas_Trabalhadas]]) -> 00:00:00 | P47: =IF(tb_ponto[[#This Row],[Horas_Trabalhadas]]>tb_ponto[[#This Row],[Horas_Normais]],tb_ponto[[#This Row],[Horas_Trabalhadas]]-tb_ponto[[#This Row],[Jornada_Padrao]],0) -> 00:00:00 | Q47: 00:00:00 | R47: =COUNTIFS(tb_ponto[Status_Dia],"Falta",tb_ponto[Cod_Funcionario],tb_ponto[[#This Row],[Cod_Funcionario]],tb_ponto[Competencia],tb_ponto[[#This Row],[Competencia]]) -> 1 | T47: =TEXT(tb_ponto[[#This Row],[Data]],"MMM-YY") -> Feb-26 | U47: =tb_ponto[[#This Row],[Horas_Extras]]*(24*VLOOKUP(tb_ponto[[#This Row],[Cod_Funcionario]],tb_funcionarios[[Cod_Funcionario]:[Valor_Hora]],19,0)) -> 0.00
C48: P00041 | D48: 2026-02-09 | E48: F001 | F48: =VLOOKUP(tb_ponto[[#This Row],[Cod_Funcionario]],tb_funcionarios[[Cod_Funcionario]:[Nome_Completo]],2,0) -> Ana Lima | G48: =VLOOKUP(tb_ponto[[#This Row],[Cod_Funcionario]],tb_funcionarios[[Cod_Funcionario]:[Setor]],8,0) -> RH | H48: Normal | I48: 08:00:12.698 | J48: 11:59:57.929 | K48: 12:59:53.547 | L48: 16:05:33.125 | M48: =(tb_ponto[[#This Row],[Saida_1]]-tb_ponto[[#This Row],[Entrada_1]])+(tb_ponto[[#This Row],[Saida_2]]-tb_ponto[[#This Row],[Entrada_2]]) -> 07:05:24.808 | N48: =VLOOKUP(tb_ponto[[#This Row],[Cod_Funcionario]],tb_funcionarios[[Cod_Funcionario]:[Jornada_Diaria_Horas]],14,0) -> 08:00:00 | O48: =IF(tb_ponto[[#This Row],[Horas_Trabalhadas]]>tb_ponto[[#This Row],[Jornada_Padrao]],tb_ponto[[#This Row],[Jornada_Padrao]],tb_ponto[[#This Row],[Horas_Trabalhadas]]) -> 07:05:24.808 | P48: =IF(tb_ponto[[#This Row],[Horas_Trabalhadas]]>tb_ponto[[#This Row],[Horas_Normais]],tb_ponto[[#This Row],[Horas_Trabalhadas]]-tb_ponto[[#This Row],[Jornada_Padrao]],0) -> 00:00:00 | Q48: 00:00:00 | R48: =COUNTIFS(tb_ponto[Status_Dia],"Falta",tb_ponto[Cod_Funcionario],tb_ponto[[#This Row],[Cod_Funcionario]],tb_ponto[Competencia],tb_ponto[[#This Row],[Competencia]]) -> 1 | T48: =TEXT(tb_ponto[[#This Row],[Data]],"MMM-YY") -> Feb-26 | U48: =tb_ponto[[#This Row],[Horas_Extras]]*(24*VLOOKUP(tb_ponto[[#This Row],[Cod_Funcionario]],tb_funcionarios[[Cod_Funcionario]:[Valor_Hora]],19,0)) -> 0.00
C49: P00042 | D49: 2026-02-10 | E49: F001 | F49: =VLOOKUP(tb_ponto[[#This Row],[Cod_Funcionario]],tb_funcionarios[[Cod_Funcionario]:[Nome_Completo]],2,0) -> Ana Lima | G49: =VLOOKUP(tb_ponto[[#This Row],[Cod_Funcionario]],tb_funcionarios[[Cod_Funcionario]:[Setor]],8,0) -> RH | H49: Normal | I49: 07:59:51.100 | J49: 11:59:50.842 | K49: 12:59:53.925 | L49: 15:48:33.733 | M49: =(tb_ponto[[#This Row],[Saida_1]]-tb_ponto[[#This Row],[Entrada_1]])+(tb_ponto[[#This Row],[Saida_2]]-tb_ponto[[#This Row],[Entrada_2]]) -> 06:48:39.549 | N49: =VLOOKUP(tb_ponto[[#This Row],[Cod_Funcionario]],tb_funcionarios[[Cod_Funcionario]:[Jornada_Diaria_Horas]],14,0) -> 08:00:00 | O49: =IF(tb_ponto[[#This Row],[Horas_Trabalhadas]]>tb_ponto[[#This Row],[Jornada_Padrao]],tb_ponto[[#This Row],[Jornada_Padrao]],tb_ponto[[#This Row],[Horas_Trabalhadas]]) -> 06:48:39.549 | P49: =IF(tb_ponto[[#This Row],[Horas_Trabalhadas]]>tb_ponto[[#This Row],[Horas_Normais]],tb_ponto[[#This Row],[Horas_Trabalhadas]]-tb_ponto[[#This Row],[Jornada_Padrao]],0) -> 00:00:00 | Q49: 00:00:00 | R49: =COUNTIFS(tb_ponto[Status_Dia],"Falta",tb_ponto[Cod_Funcionario],tb_ponto[[#This Row],[Cod_Funcionario]],tb_ponto[Competencia],tb_ponto[[#This Row],[Competencia]]) -> 1 | T49: =TEXT(tb_ponto[[#This Row],[Data]],"MMM-YY") -> Feb-26 | U49: =tb_ponto[[#This Row],[Horas_Extras]]*(24*VLOOKUP(tb_ponto[[#This Row],[Cod_Funcionario]],tb_funcionarios[[Cod_Funcionario]:[Valor_Hora]],19,0)) -> 0.00
C50: P00043 | D50: 2026-02-11 | E50: F001 | F50: =VLOOKUP(tb_ponto[[#This Row],[Cod_Funcionario]],tb_funcionarios[[Cod_Funcionario]:[Nome_Completo]],2,0) -> Ana Lima | G50: =VLOOKUP(tb_ponto[[#This Row],[Cod_Funcionario]],tb_funcionarios[[Cod_Funcionario]:[Setor]],8,0) -> RH | H50: Normal | I50: 08:00:33.809 | J50: 12:00:07.221 | K50: 13:00:00.652 | L50: 16:09:46.993 | M50: =(tb_ponto[[#This Row],[Saida_1]]-tb_ponto[[#This Row],[Entrada_1]])+(tb_ponto[[#This Row],[Saida_2]]-tb_ponto[[#This Row],[Entrada_2]]) -> 07:09:19.753 | N50: =VLOOKUP(tb_ponto[[#This Row],[Cod_Funcionario]],tb_funcionarios[[Cod_Funcionario]:[Jornada_Diaria_Horas]],14,0) -> 08:00:00 | O50: =IF(tb_ponto[[#This Row],[Horas_Trabalhadas]]>tb_ponto[[#This Row],[Jornada_Padrao]],tb_ponto[[#This Row],[Jornada_Padrao]],tb_ponto[[#This Row],[Horas_Trabalhadas]]) -> 07:09:19.753 | P50: =IF(tb_ponto[[#This Row],[Horas_Trabalhadas]]>tb_ponto[[#This Row],[Horas_Normais]],tb_ponto[[#This Row],[Horas_Trabalhadas]]-tb_ponto[[#This Row],[Jornada_Padrao]],0) -> 00:00:00 | Q50: 00:00:00 | R50: =COUNTIFS(tb_ponto[Status_Dia],"Falta",tb_ponto[Cod_Funcionario],tb_ponto[[#This Row],[Cod_Funcionario]],tb_ponto[Competencia],tb_ponto[[#This Row],[Competencia]]) -> 1 | T50: =TEXT(tb_ponto[[#This Row],[Data]],"MMM-YY") -> Feb-26 | U50: =tb_ponto[[#This Row],[Horas_Extras]]*(24*VLOOKUP(tb_ponto[[#This Row],[Cod_Funcionario]],tb_funcionarios[[Cod_Funcionario]:[Valor_Hora]],19,0)) -> 0.00
C51: P00044 | D51: 2026-02-12 | E51: F001 | F51: =VLOOKUP(tb_ponto[[#This Row],[Cod_Funcionario]],tb_funcionarios[[Cod_Funcionario]:[Nome_Completo]],2,0) -> Ana Lima | G51: =VLOOKUP(tb_ponto[[#This Row],[Cod_Funcionario]],tb_funcionarios[[Cod_Funcionario]:[Setor]],8,0) -> RH | H51: Normal | I51: 07:59:47.027 | J51: 11:59:59.196 | K51: 12:59:59.232 | L51: 15:49:04.558 | M51: =(tb_ponto[[#This Row],[Saida_1]]-tb_ponto[[#This Row],[Entrada_1]])+(tb_ponto[[#This Row],[Saida_2]]-tb_ponto[[#This Row],[Entrada_2]]) -> 06:49:17.495 | N51: =VLOOKUP(tb_ponto[[#This Row],[Cod_Funcionario]],tb_funcionarios[[Cod_Funcionario]:[Jornada_Diaria_Horas]],14,0) -> 08:00:00 | O51: =IF(tb_ponto[[#This Row],[Horas_Trabalhadas]]>tb_ponto[[#This Row],[Jornada_Padrao]],tb_ponto[[#This Row],[Jornada_Padrao]],tb_ponto[[#This Row],[Horas_Trabalhadas]]) -> 06:49:17.495 | P51: =IF(tb_ponto[[#This Row],[Horas_Trabalhadas]]>tb_ponto[[#This Row],[Horas_Normais]],tb_ponto[[#This Row],[Horas_Trabalhadas]]-tb_ponto[[#This Row],[Jornada_Padrao]],0) -> 00:00:00 | Q51: 00:00:00 | R51: =COUNTIFS(tb_ponto[Status_Dia],"Falta",tb_ponto[Cod_Funcionario],tb_ponto[[#This Row],[Cod_Funcionario]],tb_ponto[Competencia],tb_ponto[[#This Row],[Competencia]]) -> 1 | T51: =TEXT(tb_ponto[[#This Row],[Data]],"MMM-YY") -> Feb-26 | U51: =tb_ponto[[#This Row],[Horas_Extras]]*(24*VLOOKUP(tb_ponto[[#This Row],[Cod_Funcionario]],tb_funcionarios[[Cod_Funcionario]:[Valor_Hora]],19,0)) -> 0.00
C52: P00045 | D52: 2026-02-13 | E52: F001 | F52: =VLOOKUP(tb_ponto[[#This Row],[Cod_Funcionario]],tb_funcionarios[[Cod_Funcionario]:[Nome_Completo]],2,0) -> Ana Lima | G52: =VLOOKUP(tb_ponto[[#This Row],[Cod_Funcionario]],tb_funcionarios[[Cod_Funcionario]:[Setor]],8,0) -> RH | H52: Normal | I52: 07:59:48.828 | J52: 11:59:42.286 | K52: 13:00:03.914 | L52: 15:56:42.152 | M52: =(tb_ponto[[#This Row],[Saida_1]]-tb_ponto[[#This Row],[Entrada_1]])+(tb_ponto[[#This Row],[Saida_2]]-tb_ponto[[#This Row],[Entrada_2]]) -> 06:56:31.696 | N52: =VLOOKUP(tb_ponto[[#This Row],[Cod_Funcionario]],tb_funcionarios[[Cod_Funcionario]:[Jornada_Diaria_Horas]],14,0) -> 08:00:00 | O52: =IF(tb_ponto[[#This Row],[Horas_Trabalhadas]]>tb_ponto[[#This Row],[Jornada_Padrao]],tb_ponto[[#This Row],[Jornada_Padrao]],tb_ponto[[#This Row],[Horas_Trabalhadas]]) -> 06:56:31.696 | P52: =IF(tb_ponto[[#This Row],[Horas_Trabalhadas]]>tb_ponto[[#This Row],[Horas_Normais]],tb_ponto[[#This Row],[Horas_Trabalhadas]]-tb_ponto[[#This Row],[Jornada_Padrao]],0) -> 00:00:00 | Q52: 00:00:00 | R52: =COUNTIFS(tb_ponto[Status_Dia],"Falta",tb_ponto[Cod_Funcionario],tb_ponto[[#This Row],[Cod_Funcionario]],tb_ponto[Competencia],tb_ponto[[#This Row],[Competencia]]) -> 1 | T52: =TEXT(tb_ponto[[#This Row],[Data]],"MMM-YY") -> Feb-26 | U52: =tb_ponto[[#This Row],[Horas_Extras]]*(24*VLOOKUP(tb_ponto[[#This Row],[Cod_Funcionario]],tb_funcionarios[[Cod_Funcionario]:[Valor_Hora]],19,0)) -> 0.00
C53: P00046 | D53: 2026-02-14 | E53: F001 | F53: =VLOOKUP(tb_ponto[[#This Row],[Cod_Funcionario]],tb_funcionarios[[Cod_Funcionario]:[Nome_Completo]],2,0) -> Ana Lima | G53: =VLOOKUP(tb_ponto[[#This Row],[Cod_Funcionario]],tb_funcionarios[[Cod_Funcionario]:[Setor]],8,0) -> RH | H53: Folga | M53: =(tb_ponto[[#This Row],[Saida_1]]-tb_ponto[[#This Row],[Entrada_1]])+(tb_ponto[[#This Row],[Saida_2]]-tb_ponto[[#This Row],[Entrada_2]]) -> 00:00:00 | N53: =VLOOKUP(tb_ponto[[#This Row],[Cod_Funcionario]],tb_funcionarios[[Cod_Funcionario]:[Jornada_Diaria_Horas]],14,0) -> 08:00:00 | O53: =IF(tb_ponto[[#This Row],[Horas_Trabalhadas]]>tb_ponto[[#This Row],[Jornada_Padrao]],tb_ponto[[#This Row],[Jornada_Padrao]],tb_ponto[[#This Row],[Horas_Trabalhadas]]) -> 00:00:00 | P53: =IF(tb_ponto[[#This Row],[Horas_Trabalhadas]]>tb_ponto[[#This Row],[Horas_Normais]],tb_ponto[[#This Row],[Horas_Trabalhadas]]-tb_ponto[[#This Row],[Jornada_Padrao]],0) -> 00:00:00 | Q53: 00:00:00 | R53: =COUNTIFS(tb_ponto[Status_Dia],"Falta",tb_ponto[Cod_Funcionario],tb_ponto[[#This Row],[Cod_Funcionario]],tb_ponto[Competencia],tb_ponto[[#This Row],[Competencia]]) -> 1 | T53: =TEXT(tb_ponto[[#This Row],[Data]],"MMM-YY") -> Feb-26 | U53: =tb_ponto[[#This Row],[Horas_Extras]]*(24*VLOOKUP(tb_ponto[[#This Row],[Cod_Funcionario]],tb_funcionarios[[Cod_Funcionario]:[Valor_Hora]],19,0)) -> 0.00
C54: P00047 | D54: 2026-02-15 | E54: F001 | F54: =VLOOKUP(tb_ponto[[#This Row],[Cod_Funcionario]],tb_funcionarios[[Cod_Funcionario]:[Nome_Completo]],2,0) -> Ana Lima | G54: =VLOOKUP(tb_ponto[[#This Row],[Cod_Funcionario]],tb_funcionarios[[Cod_Funcionario]:[Setor]],8,0) -> RH | H54: Folga | M54: =(tb_ponto[[#This Row],[Saida_1]]-tb_ponto[[#This Row],[Entrada_1]])+(tb_ponto[[#This Row],[Saida_2]]-tb_ponto[[#This Row],[Entrada_2]]) -> 00:00:00 | N54: =VLOOKUP(tb_ponto[[#This Row],[Cod_Funcionario]],tb_funcionarios[[Cod_Funcionario]:[Jornada_Diaria_Horas]],14,0) -> 08:00:00 | O54: =IF(tb_ponto[[#This Row],[Horas_Trabalhadas]]>tb_ponto[[#This Row],[Jornada_Padrao]],tb_ponto[[#This Row],[Jornada_Padrao]],tb_ponto[[#This Row],[Horas_Trabalhadas]]) -> 00:00:00 | P54: =IF(tb_ponto[[#This Row],[Horas_Trabalhadas]]>tb_ponto[[#This Row],[Horas_Normais]],tb_ponto[[#This Row],[Horas_Trabalhadas]]-tb_ponto[[#This Row],[Jornada_Padrao]],0) -> 00:00:00 | Q54: 00:00:00 | R54: =COUNTIFS(tb_ponto[Status_Dia],"Falta",tb_ponto[Cod_Funcionario],tb_ponto[[#This Row],[Cod_Funcionario]],tb_ponto[Competencia],tb_ponto[[#This Row],[Competencia]]) -> 1 | T54: =TEXT(tb_ponto[[#This Row],[Data]],"MMM-YY") -> Feb-26 | U54: =tb_ponto[[#This Row],[Horas_Extras]]*(24*VLOOKUP(tb_ponto[[#This Row],[Cod_Funcionario]],tb_funcionarios[[Cod_Funcionario]:[Valor_Hora]],19,0)) -> 0.00
C55: P00048 | D55: 2026-02-16 | E55: F001 | F55: =VLOOKUP(tb_ponto[[#This Row],[Cod_Funcionario]],tb_funcionarios[[Cod_Funcionario]:[Nome_Completo]],2,0) -> Ana Lima | G55: =VLOOKUP(tb_ponto[[#This Row],[Cod_Funcionario]],tb_funcionarios[[Cod_Funcionario]:[Setor]],8,0) -> RH | H55: Feriado | M55: =(tb_ponto[[#This Row],[Saida_1]]-tb_ponto[[#This Row],[Entrada_1]])+(tb_ponto[[#This Row],[Saida_2]]-tb_ponto[[#This Row],[Entrada_2]]) -> 00:00:00 | N55: =VLOOKUP(tb_ponto[[#This Row],[Cod_Funcionario]],tb_funcionarios[[Cod_Funcionario]:[Jornada_Diaria_Horas]],14,0) -> 08:00:00 | O55: =IF(tb_ponto[[#This Row],[Horas_Trabalhadas]]>tb_ponto[[#This Row],[Jornada_Padrao]],tb_ponto[[#This Row],[Jornada_Padrao]],tb_ponto[[#This Row],[Horas_Trabalhadas]]) -> 00:00:00 | P55: =IF(tb_ponto[[#This Row],[Horas_Trabalhadas]]>tb_ponto[[#This Row],[Horas_Normais]],tb_ponto[[#This Row],[Horas_Trabalhadas]]-tb_ponto[[#This Row],[Jornada_Padrao]],0) -> 00:00:00 | Q55: 00:00:00 | R55: =COUNTIFS(tb_ponto[Status_Dia],"Falta",tb_ponto[Cod_Funcionario],tb_ponto[[#This Row],[Cod_Funcionario]],tb_ponto[Competencia],tb_ponto[[#This Row],[Competencia]]) -> 1 | T55: =TEXT(tb_ponto[[#This Row],[Data]],"MMM-YY") -> Feb-26 | U55: =tb_ponto[[#This Row],[Horas_Extras]]*(24*VLOOKUP(tb_ponto[[#This Row],[Cod_Funcionario]],tb_funcionarios[[Cod_Funcionario]:[Valor_Hora]],19,0)) -> 0.00
C56: P00049 | D56: 2026-02-17 | E56: F001 | F56: =VLOOKUP(tb_ponto[[#This Row],[Cod_Funcionario]],tb_funcionarios[[Cod_Funcionario]:[Nome_Completo]],2,0) -> Ana Lima | G56: =VLOOKUP(tb_ponto[[#This Row],[Cod_Funcionario]],tb_funcionarios[[Cod_Funcionario]:[Setor]],8,0) -> RH | H56: Normal | I56: 07:59:33.422 | J56: 11:59:46.382 | K56: 12:59:46.446 | L56: 16:08:05.924 | M56: =(tb_ponto[[#This Row],[Saida_1]]-tb_ponto[[#This Row],[Entrada_1]])+(tb_ponto[[#This Row],[Saida_2]]-tb_ponto[[#This Row],[Entrada_2]]) -> 07:08:32.438 | N56: =VLOOKUP(tb_ponto[[#This Row],[Cod_Funcionario]],tb_funcionarios[[Cod_Funcionario]:[Jornada_Diaria_Horas]],14,0) -> 08:00:00 | O56: =IF(tb_ponto[[#This Row],[Horas_Trabalhadas]]>tb_ponto[[#This Row],[Jornada_Padrao]],tb_ponto[[#This Row],[Jornada_Padrao]],tb_ponto[[#This Row],[Horas_Trabalhadas]]) -> 07:08:32.438 | P56: =IF(tb_ponto[[#This Row],[Horas_Trabalhadas]]>tb_ponto[[#This Row],[Horas_Normais]],tb_ponto[[#This Row],[Horas_Trabalhadas]]-tb_ponto[[#This Row],[Jornada_Padrao]],0) -> 00:00:00 | Q56: 00:00:00 | R56: =COUNTIFS(tb_ponto[Status_Dia],"Falta",tb_ponto[Cod_Funcionario],tb_ponto[[#This Row],[Cod_Funcionario]],tb_ponto[Competencia],tb_ponto[[#This Row],[Competencia]]) -> 1 | T56: =TEXT(tb_ponto[[#This Row],[Data]],"MMM-YY") -> Feb-26 | U56: =tb_ponto[[#This Row],[Horas_Extras]]*(24*VLOOKUP(tb_ponto[[#This Row],[Cod_Funcionario]],tb_funcionarios[[Cod_Funcionario]:[Valor_Hora]],19,0)) -> 0.00
C57: P00050 | D57: 2026-02-18 | E57: F001 | F57: =VLOOKUP(tb_ponto[[#This Row],[Cod_Funcionario]],tb_funcionarios[[Cod_Funcionario]:[Nome_Completo]],2,0) -> Ana Lima | G57: =VLOOKUP(tb_ponto[[#This Row],[Cod_Funcionario]],tb_funcionarios[[Cod_Funcionario]:[Setor]],8,0) -> RH | H57: Falta | M57: =(tb_ponto[[#This Row],[Saida_1]]-tb_ponto[[#This Row],[Entrada_1]])+(tb_ponto[[#This Row],[Saida_2]]-tb_ponto[[#This Row],[Entrada_2]]) -> 00:00:00 | N57: =VLOOKUP(tb_ponto[[#This Row],[Cod_Funcionario]],tb_funcionarios[[Cod_Funcionario]:[Jornada_Diaria_Horas]],14,0) -> 08:00:00 | O57: =IF(tb_ponto[[#This Row],[Horas_Trabalhadas]]>tb_ponto[[#This Row],[Jornada_Padrao]],tb_ponto[[#This Row],[Jornada_Padrao]],tb_ponto[[#This Row],[Horas_Trabalhadas]]) -> 00:00:00 | P57: =IF(tb_ponto[[#This Row],[Horas_Trabalhadas]]>tb_ponto[[#This Row],[Horas_Normais]],tb_ponto[[#This Row],[Horas_Trabalhadas]]-tb_ponto[[#This Row],[Jornada_Padrao]],0) -> 00:00:00 | Q57: 00:00:00 | R57: =COUNTIFS(tb_ponto[Status_Dia],"Falta",tb_ponto[Cod_Funcionario],tb_ponto[[#This Row],[Cod_Funcionario]],tb_ponto[Competencia],tb_ponto[[#This Row],[Competencia]]) -> 1 | T57: =TEXT(tb_ponto[[#This Row],[Data]],"MMM-YY") -> Feb-26 | U57: =tb_ponto[[#This Row],[Horas_Extras]]*(24*VLOOKUP(tb_ponto[[#This Row],[Cod_Funcionario]],tb_funcionarios[[Cod_Funcionario]:[Valor_Hora]],19,0)) -> 0.00
C58: P00051 | D58: 2026-02-19 | E58: F001 | F58: =VLOOKUP(tb_ponto[[#This Row],[Cod_Funcionario]],tb_funcionarios[[Cod_Funcionario]:[Nome_Completo]],2,0) -> Ana Lima | G58: =VLOOKUP(tb_ponto[[#This Row],[Cod_Funcionario]],tb_funcionarios[[Cod_Funcionario]:[Setor]],8,0) -> RH | H58: Normal | I58: 07:59:46.574 | J58: 11:59:45.432 | K58: 13:00:13.898 | L58: 15:55:40.522 | M58: =(tb_ponto[[#This Row],[Saida_1]]-tb_ponto[[#This Row],[Entrada_1]])+(tb_ponto[[#This Row],[Saida_2]]-tb_ponto[[#This Row],[Entrada_2]]) -> 06:55:25.482 | N58: =VLOOKUP(tb_ponto[[#This Row],[Cod_Funcionario]],tb_funcionarios[[Cod_Funcionario]:[Jornada_Diaria_Horas]],14,0) -> 08:00:00 | O58: =IF(tb_ponto[[#This Row],[Horas_Trabalhadas]]>tb_ponto[[#This Row],[Jornada_Padrao]],tb_ponto[[#This Row],[Jornada_Padrao]],tb_ponto[[#This Row],[Horas_Trabalhadas]]) -> 06:55:25.482 | P58: =IF(tb_ponto[[#This Row],[Horas_Trabalhadas]]>tb_ponto[[#This Row],[Horas_Normais]],tb_ponto[[#This Row],[Horas_Trabalhadas]]-tb_ponto[[#This Row],[Jornada_Padrao]],0) -> 00:00:00 | Q58: 00:00:00 | R58: =COUNTIFS(tb_ponto[Status_Dia],"Falta",tb_ponto[Cod_Funcionario],tb_ponto[[#This Row],[Cod_Funcionario]],tb_ponto[Competencia],tb_ponto[[#This Row],[Competencia]]) -> 1 | T58: =TEXT(tb_ponto[[#This Row],[Data]],"MMM-YY") -> Feb-26 | U58: =tb_ponto[[#This Row],[Horas_Extras]]*(24*VLOOKUP(tb_ponto[[#This Row],[Cod_Funcionario]],tb_funcionarios[[Cod_Funcionario]:[Valor_Hora]],19,0)) -> 0.00
C59: P00052 | D59: 2026-02-20 | E59: F001 | F59: =VLOOKUP(tb_ponto[[#This Row],[Cod_Funcionario]],tb_funcionarios[[Cod_Funcionario]:[Nome_Completo]],2,0) -> Ana Lima | G59: =VLOOKUP(tb_ponto[[#This Row],[Cod_Funcionario]],tb_funcionarios[[Cod_Funcionario]:[Setor]],8,0) -> RH | H59: Normal | I59: 07:59:40.205 | J59: 11:59:50.983 | K59: 13:00:02.949 | L59: 16:14:13.250 | M59: =(tb_ponto[[#This Row],[Saida_1]]-tb_ponto[[#This Row],[Entrada_1]])+(tb_ponto[[#This Row],[Saida_2]]-tb_ponto[[#This Row],[Entrada_2]]) -> 07:14:21.079 | N59: =VLOOKUP(tb_ponto[[#This Row],[Cod_Funcionario]],tb_funcionarios[[Cod_Funcionario]:[Jornada_Diaria_Horas]],14,0) -> 08:00:00 | O59: =IF(tb_ponto[[#This Row],[Horas_Trabalhadas]]>tb_ponto[[#This Row],[Jornada_Padrao]],tb_ponto[[#This Row],[Jornada_Padrao]],tb_ponto[[#This Row],[Horas_Trabalhadas]]) -> 07:14:21.079 | P59: =IF(tb_ponto[[#This Row],[Horas_Trabalhadas]]>tb_ponto[[#This Row],[Horas_Normais]],tb_ponto[[#This Row],[Horas_Trabalhadas]]-tb_ponto[[#This Row],[Jornada_Padrao]],0) -> 00:00:00 | Q59: 00:00:00 | R59: =COUNTIFS(tb_ponto[Status_Dia],"Falta",tb_ponto[Cod_Funcionario],tb_ponto[[#This Row],[Cod_Funcionario]],tb_ponto[Competencia],tb_ponto[[#This Row],[Competencia]]) -> 1 | T59: =TEXT(tb_ponto[[#This Row],[Data]],"MMM-YY") -> Feb-26 | U59: =tb_ponto[[#This Row],[Horas_Extras]]*(24*VLOOKUP(tb_ponto[[#This Row],[Cod_Funcionario]],tb_funcionarios[[Cod_Funcionario]:[Valor_Hora]],19,0)) -> 0.00
C60: P00053 | D60: 2026-02-21 | E60: F001 | F60: =VLOOKUP(tb_ponto[[#This Row],[Cod_Funcionario]],tb_funcionarios[[Cod_Funcionario]:[Nome_Completo]],2,0) -> Ana Lima | G60: =VLOOKUP(tb_ponto[[#This Row],[Cod_Funcionario]],tb_funcionarios[[Cod_Funcionario]:[Setor]],8,0) -> RH | H60: Folga | M60: =(tb_ponto[[#This Row],[Saida_1]]-tb_ponto[[#This Row],[Entrada_1]])+(tb_ponto[[#This Row],[Saida_2]]-tb_ponto[[#This Row],[Entrada_2]]) -> 00:00:00 | N60: =VLOOKUP(tb_ponto[[#This Row],[Cod_Funcionario]],tb_funcionarios[[Cod_Funcionario]:[Jornada_Diaria_Horas]],14,0) -> 08:00:00 | O60: =IF(tb_ponto[[#This Row],[Horas_Trabalhadas]]>tb_ponto[[#This Row],[Jornada_Padrao]],tb_ponto[[#This Row],[Jornada_Padrao]],tb_ponto[[#This Row],[Horas_Trabalhadas]]) -> 00:00:00 | P60: =IF(tb_ponto[[#This Row],[Horas_Trabalhadas]]>tb_ponto[[#This Row],[Horas_Normais]],tb_ponto[[#This Row],[Horas_Trabalhadas]]-tb_ponto[[#This Row],[Jornada_Padrao]],0) -> 00:00:00 | Q60: 00:00:00 | R60: =COUNTIFS(tb_ponto[Status_Dia],"Falta",tb_ponto[Cod_Funcionario],tb_ponto[[#This Row],[Cod_Funcionario]],tb_ponto[Competencia],tb_ponto[[#This Row],[Competencia]]) -> 1 | T60: =TEXT(tb_ponto[[#This Row],[Data]],"MMM-YY") -> Feb-26 | U60: =tb_ponto[[#This Row],[Horas_Extras]]*(24*VLOOKUP(tb_ponto[[#This Row],[Cod_Funcionario]],tb_funcionarios[[Cod_Funcionario]:[Valor_Hora]],19,0)) -> 0.00
C61: P00054 | D61: 2026-02-22 | E61: F001 | F61: =VLOOKUP(tb_ponto[[#This Row],[Cod_Funcionario]],tb_funcionarios[[Cod_Funcionario]:[Nome_Completo]],2,0) -> Ana Lima | G61: =VLOOKUP(tb_ponto[[#This Row],[Cod_Funcionario]],tb_funcionarios[[Cod_Funcionario]:[Setor]],8,0) -> RH | H61: Folga | M61: =(tb_ponto[[#This Row],[Saida_1]]-tb_ponto[[#This Row],[Entrada_1]])+(tb_ponto[[#This Row],[Saida_2]]-tb_ponto[[#This Row],[Entrada_2]]) -> 00:00:00 | N61: =VLOOKUP(tb_ponto[[#This Row],[Cod_Funcionario]],tb_funcionarios[[Cod_Funcionario]:[Jornada_Diaria_Horas]],14,0) -> 08:00:00 | O61: =IF(tb_ponto[[#This Row],[Horas_Trabalhadas]]>tb_ponto[[#This Row],[Jornada_Padrao]],tb_ponto[[#This Row],[Jornada_Padrao]],tb_ponto[[#This Row],[Horas_Trabalhadas]]) -> 00:00:00 | P61: =IF(tb_ponto[[#This Row],[Horas_Trabalhadas]]>tb_ponto[[#This Row],[Horas_Normais]],tb_ponto[[#This Row],[Horas_Trabalhadas]]-tb_ponto[[#This Row],[Jornada_Padrao]],0) -> 00:00:00 | Q61: 00:00:00 | R61: =COUNTIFS(tb_ponto[Status_Dia],"Falta",tb_ponto[Cod_Funcionario],tb_ponto[[#This Row],[Cod_Funcionario]],tb_ponto[Competencia],tb_ponto[[#This Row],[Competencia]]) -> 1 | T61: =TEXT(tb_ponto[[#This Row],[Data]],"MMM-YY") -> Feb-26 | U61: =tb_ponto[[#This Row],[Horas_Extras]]*(24*VLOOKUP(tb_ponto[[#This Row],[Cod_Funcionario]],tb_funcionarios[[Cod_Funcionario]:[Valor_Hora]],19,0)) -> 0.00
C62: P00055 | D62: 2026-02-23 | E62: F001 | F62: =VLOOKUP(tb_ponto[[#This Row],[Cod_Funcionario]],tb_funcionarios[[Cod_Funcionario]:[Nome_Completo]],2,0) -> Ana Lima | G62: =VLOOKUP(tb_ponto[[#This Row],[Cod_Funcionario]],tb_funcionarios[[Cod_Funcionario]:[Setor]],8,0) -> RH | H62: Normal | I62: 08:00:16.715 | J62: 11:59:52.982 | K62: 13:00:11.483 | L62: 15:53:37.316 | M62: =(tb_ponto[[#This Row],[Saida_1]]-tb_ponto[[#This Row],[Entrada_1]])+(tb_ponto[[#This Row],[Saida_2]]-tb_ponto[[#This Row],[Entrada_2]]) -> 06:53:02.100 | N62: =VLOOKUP(tb_ponto[[#This Row],[Cod_Funcionario]],tb_funcionarios[[Cod_Funcionario]:[Jornada_Diaria_Horas]],14,0) -> 08:00:00 | O62: =IF(tb_ponto[[#This Row],[Horas_Trabalhadas]]>tb_ponto[[#This Row],[Jornada_Padrao]],tb_ponto[[#This Row],[Jornada_Padrao]],tb_ponto[[#This Row],[Horas_Trabalhadas]]) -> 06:53:02.100 | P62: =IF(tb_ponto[[#This Row],[Horas_Trabalhadas]]>tb_ponto[[#This Row],[Horas_Normais]],tb_ponto[[#This Row],[Horas_Trabalhadas]]-tb_ponto[[#This Row],[Jornada_Padrao]],0) -> 00:00:00 | Q62: 00:00:00 | R62: =COUNTIFS(tb_ponto[Status_Dia],"Falta",tb_ponto[Cod_Funcionario],tb_ponto[[#This Row],[Cod_Funcionario]],tb_ponto[Competencia],tb_ponto[[#This Row],[Competencia]]) -> 1 | T62: =TEXT(tb_ponto[[#This Row],[Data]],"MMM-YY") -> Feb-26 | U62: =tb_ponto[[#This Row],[Horas_Extras]]*(24*VLOOKUP(tb_ponto[[#This Row],[Cod_Funcionario]],tb_funcionarios[[Cod_Funcionario]:[Valor_Hora]],19,0)) -> 0.00
C63: P00056 | D63: 2026-02-24 | E63: F001 | F63: =VLOOKUP(tb_ponto[[#This Row],[Cod_Funcionario]],tb_funcionarios[[Cod_Funcionario]:[Nome_Completo]],2,0) -> Ana Lima | G63: =VLOOKUP(tb_ponto[[#This Row],[Cod_Funcionario]],tb_funcionarios[[Cod_Funcionario]:[Setor]],8,0) -> RH | H63: Normal | I63: 08:00:16.377 | J63: 12:00:00.922 | K63: 13:00:07.021 | L63: 16:05:30.363 | M63: =(tb_ponto[[#This Row],[Saida_1]]-tb_ponto[[#This Row],[Entrada_1]])+(tb_ponto[[#This Row],[Saida_2]]-tb_ponto[[#This Row],[Entrada_2]]) -> 07:05:07.887 | N63: =VLOOKUP(tb_ponto[[#This Row],[Cod_Funcionario]],tb_funcionarios[[Cod_Funcionario]:[Jornada_Diaria_Horas]],14,0) -> 08:00:00 | O63: =IF(tb_ponto[[#This Row],[Horas_Trabalhadas]]>tb_ponto[[#This Row],[Jornada_Padrao]],tb_ponto[[#This Row],[Jornada_Padrao]],tb_ponto[[#This Row],[Horas_Trabalhadas]]) -> 07:05:07.887 | P63: =IF(tb_ponto[[#This Row],[Horas_Trabalhadas]]>tb_ponto[[#This Row],[Horas_Normais]],tb_ponto[[#This Row],[Horas_Trabalhadas]]-tb_ponto[[#This Row],[Jornada_Padrao]],0) -> 00:00:00 | Q63: 00:00:00 | R63: =COUNTIFS(tb_ponto[Status_Dia],"Falta",tb_ponto[Cod_Funcionario],tb_ponto[[#This Row],[Cod_Funcionario]],tb_ponto[Competencia],tb_ponto[[#This Row],[Competencia]]) -> 1 | T63: =TEXT(tb_ponto[[#This Row],[Data]],"MMM-YY") -> Feb-26 | U63: =tb_ponto[[#This Row],[Horas_Extras]]*(24*VLOOKUP(tb_ponto[[#This Row],[Cod_Funcionario]],tb_funcionarios[[Cod_Funcionario]:[Valor_Hora]],19,0)) -> 0.00
C64: P00057 | D64: 2026-02-25 | E64: F001 | F64: =VLOOKUP(tb_ponto[[#This Row],[Cod_Funcionario]],tb_funcionarios[[Cod_Funcionario]:[Nome_Completo]],2,0) -> Ana Lima | G64: =VLOOKUP(tb_ponto[[#This Row],[Cod_Funcionario]],tb_funcionarios[[Cod_Funcionario]:[Setor]],8,0) -> RH | H64: Normal | I64: 07:59:33.815 | J64: 12:00:09.699 | K64: 12:59:43.100 | L64: 15:48:53.525 | M64: =(tb_ponto[[#This Row],[Saida_1]]-tb_ponto[[#This Row],[Entrada_1]])+(tb_ponto[[#This Row],[Saida_2]]-tb_ponto[[#This Row],[Entrada_2]]) -> 06:49:46.310 | N64: =VLOOKUP(tb_ponto[[#This Row],[Cod_Funcionario]],tb_funcionarios[[Cod_Funcionario]:[Jornada_Diaria_Horas]],14,0) -> 08:00:00 | O64: =IF(tb_ponto[[#This Row],[Horas_Trabalhadas]]>tb_ponto[[#This Row],[Jornada_Padrao]],tb_ponto[[#This Row],[Jornada_Padrao]],tb_ponto[[#This Row],[Horas_Trabalhadas]]) -> 06:49:46.310 | P64: =IF(tb_ponto[[#This Row],[Horas_Trabalhadas]]>tb_ponto[[#This Row],[Horas_Normais]],tb_ponto[[#This Row],[Horas_Trabalhadas]]-tb_ponto[[#This Row],[Jornada_Padrao]],0) -> 00:00:00 | Q64: 00:00:00 | R64: =COUNTIFS(tb_ponto[Status_Dia],"Falta",tb_ponto[Cod_Funcionario],tb_ponto[[#This Row],[Cod_Funcionario]],tb_ponto[Competencia],tb_ponto[[#This Row],[Competencia]]) -> 1 | T64: =TEXT(tb_ponto[[#This Row],[Data]],"MMM-YY") -> Feb-26 | U64: =tb_ponto[[#This Row],[Horas_Extras]]*(24*VLOOKUP(tb_ponto[[#This Row],[Cod_Funcionario]],tb_funcionarios[[Cod_Funcionario]:[Valor_Hora]],19,0)) -> 0.00
C65: P00058 | D65: 2026-02-26 | E65: F001 | F65: =VLOOKUP(tb_ponto[[#This Row],[Cod_Funcionario]],tb_funcionarios[[Cod_Funcionario]:[Nome_Completo]],2,0) -> Ana Lima | G65: =VLOOKUP(tb_ponto[[#This Row],[Cod_Funcionario]],tb_funcionarios[[Cod_Funcionario]:[Setor]],8,0) -> RH | H65: Normal | I65: 07:59:57.339 | J65: 11:59:55.155 | K65: 13:00:07.145 | L65: 16:03:48.739 | M65: =(tb_ponto[[#This Row],[Saida_1]]-tb_ponto[[#This Row],[Entrada_1]])+(tb_ponto[[#This Row],[Saida_2]]-tb_ponto[[#This Row],[Entrada_2]]) -> 07:03:39.410 | N65: =VLOOKUP(tb_ponto[[#This Row],[Cod_Funcionario]],tb_funcionarios[[Cod_Funcionario]:[Jornada_Diaria_Horas]],14,0) -> 08:00:00 | O65: =IF(tb_ponto[[#This Row],[Horas_Trabalhadas]]>tb_ponto[[#This Row],[Jornada_Padrao]],tb_ponto[[#This Row],[Jornada_Padrao]],tb_ponto[[#This Row],[Horas_Trabalhadas]]) -> 07:03:39.410 | P65: =IF(tb_ponto[[#This Row],[Horas_Trabalhadas]]>tb_ponto[[#This Row],[Horas_Normais]],tb_ponto[[#This Row],[Horas_Trabalhadas]]-tb_ponto[[#This Row],[Jornada_Padrao]],0) -> 00:00:00 | Q65: 00:00:00 | R65: =COUNTIFS(tb_ponto[Status_Dia],"Falta",tb_ponto[Cod_Funcionario],tb_ponto[[#This Row],[Cod_Funcionario]],tb_ponto[Competencia],tb_ponto[[#This Row],[Competencia]]) -> 1 | T65: =TEXT(tb_ponto[[#This Row],[Data]],"MMM-YY") -> Feb-26 | U65: =tb_ponto[[#This Row],[Horas_Extras]]*(24*VLOOKUP(tb_ponto[[#This Row],[Cod_Funcionario]],tb_funcionarios[[Cod_Funcionario]:[Valor_Hora]],19,0)) -> 0.00
C66: P00059 | D66: 2026-02-27 | E66: F001 | F66: =VLOOKUP(tb_ponto[[#This Row],[Cod_Funcionario]],tb_funcionarios[[Cod_Funcionario]:[Nome_Completo]],2,0) -> Ana Lima | G66: =VLOOKUP(tb_ponto[[#This Row],[Cod_Funcionario]],tb_funcionarios[[Cod_Funcionario]:[Setor]],8,0) -> RH | H66: Normal | I66: 07:59:48.889 | J66: 11:59:57.618 | K66: 12:59:57.609 | L66: 16:02:42.886 | M66: =(tb_ponto[[#This Row],[Saida_1]]-tb_ponto[[#This Row],[Entrada_1]])+(tb_ponto[[#This Row],[Saida_2]]-tb_ponto[[#This Row],[Entrada_2]]) -> 07:02:54.006 | N66: =VLOOKUP(tb_ponto[[#This Row],[Cod_Funcionario]],tb_funcionarios[[Cod_Funcionario]:[Jornada_Diaria_Horas]],14,0) -> 08:00:00 | O66: =IF(tb_ponto[[#This Row],[Horas_Trabalhadas]]>tb_ponto[[#This Row],[Jornada_Padrao]],tb_ponto[[#This Row],[Jornada_Padrao]],tb_ponto[[#This Row],[Horas_Trabalhadas]]) -> 07:02:54.006 | P66: =IF(tb_ponto[[#This Row],[Horas_Trabalhadas]]>tb_ponto[[#This Row],[Horas_Normais]],tb_ponto[[#This Row],[Horas_Trabalhadas]]-tb_ponto[[#This Row],[Jornada_Padrao]],0) -> 00:00:00 | Q66: 00:00:00 | R66: =COUNTIFS(tb_ponto[Status_Dia],"Falta",tb_ponto[Cod_Funcionario],tb_ponto[[#This Row],[Cod_Funcionario]],tb_ponto[Competencia],tb_ponto[[#This Row],[Competencia]]) -> 1 | T66: =TEXT(tb_ponto[[#This Row],[Data]],"MMM-YY") -> Feb-26 | U66: =tb_ponto[[#This Row],[Horas_Extras]]*(24*VLOOKUP(tb_ponto[[#This Row],[Cod_Funcionario]],tb_funcionarios[[Cod_Funcionario]:[Valor_Hora]],19,0)) -> 0.00
C67: P00060 | D67: 2026-02-28 | E67: F001 | F67: =VLOOKUP(tb_ponto[[#This Row],[Cod_Funcionario]],tb_funcionarios[[Cod_Funcionario]:[Nome_Completo]],2,0) -> Ana Lima | G67: =VLOOKUP(tb_ponto[[#This Row],[Cod_Funcionario]],tb_funcionarios[[Cod_Funcionario]:[Setor]],8,0) -> RH | H67: Folga | M67: =(tb_ponto[[#This Row],[Saida_1]]-tb_ponto[[#This Row],[Entrada_1]])+(tb_ponto[[#This Row],[Saida_2]]-tb_ponto[[#This Row],[Entrada_2]]) -> 00:00:00 | N67: =VLOOKUP(tb_ponto[[#This Row],[Cod_Funcionario]],tb_funcionarios[[Cod_Funcionario]:[Jornada_Diaria_Horas]],14,0) -> 08:00:00 | O67: =IF(tb_ponto[[#This Row],[Horas_Trabalhadas]]>tb_ponto[[#This Row],[Jornada_Padrao]],tb_ponto[[#This Row],[Jornada_Padrao]],tb_ponto[[#This Row],[Horas_Trabalhadas]]) -> 00:00:00 | P67: =IF(tb_ponto[[#This Row],[Horas_Trabalhadas]]>tb_ponto[[#This Row],[Horas_Normais]],tb_ponto[[#This Row],[Horas_Trabalhadas]]-tb_ponto[[#This Row],[Jornada_Padrao]],0) -> 00:00:00 | Q67: 00:00:00 | R67: =COUNTIFS(tb_ponto[Status_Dia],"Falta",tb_ponto[Cod_Funcionario],tb_ponto[[#This Row],[Cod_Funcionario]],tb_ponto[Competencia],tb_ponto[[#This Row],[Competencia]]) -> 1 | T67: =TEXT(tb_ponto[[#This Row],[Data]],"MMM-YY") -> Feb-26 | U67: =tb_ponto[[#This Row],[Horas_Extras]]*(24*VLOOKUP(tb_ponto[[#This Row],[Cod_Funcionario]],tb_funcionarios[[Cod_Funcionario]:[Valor_Hora]],19,0)) -> 0.00
C68: P00061 | D68: 2026-03-01 | E68: F001 | F68: =VLOOKUP(tb_ponto[[#This Row],[Cod_Funcionario]],tb_funcionarios[[Cod_Funcionario]:[Nome_Completo]],2,0) -> Ana Lima | G68: =VLOOKUP(tb_ponto[[#This Row],[Cod_Funcionario]],tb_funcionarios[[Cod_Funcionario]:[Setor]],8,0) -> RH | H68: Folga | M68: =(tb_ponto[[#This Row],[Saida_1]]-tb_ponto[[#This Row],[Entrada_1]])+(tb_ponto[[#This Row],[Saida_2]]-tb_ponto[[#This Row],[Entrada_2]]) -> 00:00:00 | N68: =VLOOKUP(tb_ponto[[#This Row],[Cod_Funcionario]],tb_funcionarios[[Cod_Funcionario]:[Jornada_Diaria_Horas]],14,0) -> 08:00:00 | O68: =IF(tb_ponto[[#This Row],[Horas_Trabalhadas]]>tb_ponto[[#This Row],[Jornada_Padrao]],tb_ponto[[#This Row],[Jornada_Padrao]],tb_ponto[[#This Row],[Horas_Trabalhadas]]) -> 00:00:00 | P68: =IF(tb_ponto[[#This Row],[Horas_Trabalhadas]]>tb_ponto[[#This Row],[Horas_Normais]],tb_ponto[[#This Row],[Horas_Trabalhadas]]-tb_ponto[[#This Row],[Jornada_Padrao]],0) -> 00:00:00 | Q68: 00:00:00 | R68: =COUNTIFS(tb_ponto[Status_Dia],"Falta",tb_ponto[Cod_Funcionario],tb_ponto[[#This Row],[Cod_Funcionario]],tb_ponto[Competencia],tb_ponto[[#This Row],[Competencia]]) -> 0 | T68: =TEXT(tb_ponto[[#This Row],[Data]],"MMM-YY") -> Mar-26 | U68: =tb_ponto[[#This Row],[Horas_Extras]]*(24*VLOOKUP(tb_ponto[[#This Row],[Cod_Funcionario]],tb_funcionarios[[Cod_Funcionario]:[Valor_Hora]],19,0)) -> 0.00
C69: P00062 | D69: 2026-03-02 | E69: F001 | F69: =VLOOKUP(tb_ponto[[#This Row],[Cod_Funcionario]],tb_funcionarios[[Cod_Funcionario]:[Nome_Completo]],2,0) -> Ana Lima | G69: =VLOOKUP(tb_ponto[[#This Row],[Cod_Funcionario]],tb_funcionarios[[Cod_Funcionario]:[Setor]],8,0) -> RH | H69: Normal | I69: 08:00:31.175 | J69: 12:00:15.520 | K69: 13:00:04.135 | L69: 15:57:03.213 | M69: =(tb_ponto[[#This Row],[Saida_1]]-tb_ponto[[#This Row],[Entrada_1]])+(tb_ponto[[#This Row],[Saida_2]]-tb_ponto[[#This Row],[Entrada_2]]) -> 06:56:43.423 | N69: =VLOOKUP(tb_ponto[[#This Row],[Cod_Funcionario]],tb_funcionarios[[Cod_Funcionario]:[Jornada_Diaria_Horas]],14,0) -> 08:00:00 | O69: =IF(tb_ponto[[#This Row],[Horas_Trabalhadas]]>tb_ponto[[#This Row],[Jornada_Padrao]],tb_ponto[[#This Row],[Jornada_Padrao]],tb_ponto[[#This Row],[Horas_Trabalhadas]]) -> 06:56:43.423 | P69: =IF(tb_ponto[[#This Row],[Horas_Trabalhadas]]>tb_ponto[[#This Row],[Horas_Normais]],tb_ponto[[#This Row],[Horas_Trabalhadas]]-tb_ponto[[#This Row],[Jornada_Padrao]],0) -> 00:00:00 | Q69: 00:00:00 | R69: =COUNTIFS(tb_ponto[Status_Dia],"Falta",tb_ponto[Cod_Funcionario],tb_ponto[[#This Row],[Cod_Funcionario]],tb_ponto[Competencia],tb_ponto[[#This Row],[Competencia]]) -> 0 | T69: =TEXT(tb_ponto[[#This Row],[Data]],"MMM-YY") -> Mar-26 | U69: =tb_ponto[[#This Row],[Horas_Extras]]*(24*VLOOKUP(tb_ponto[[#This Row],[Cod_Funcionario]],tb_funcionarios[[Cod_Funcionario]:[Valor_Hora]],19,0)) -> 0.00
C70: P00063 | D70: 2026-03-03 | E70: F001 | F70: =VLOOKUP(tb_ponto[[#This Row],[Cod_Funcionario]],tb_funcionarios[[Cod_Funcionario]:[Nome_Completo]],2,0) -> Ana Lima | G70: =VLOOKUP(tb_ponto[[#This Row],[Cod_Funcionario]],tb_funcionarios[[Cod_Funcionario]:[Setor]],8,0) -> RH | H70: Normal | I70: 07:59:43.445 | J70: 11:59:43.536 | K70: 12:59:56.523 | L70: 15:56:58.285 | M70: =(tb_ponto[[#This Row],[Saida_1]]-tb_ponto[[#This Row],[Entrada_1]])+(tb_ponto[[#This Row],[Saida_2]]-tb_ponto[[#This Row],[Entrada_2]]) -> 06:57:01.853 | N70: =VLOOKUP(tb_ponto[[#This Row],[Cod_Funcionario]],tb_funcionarios[[Cod_Funcionario]:[Jornada_Diaria_Horas]],14,0) -> 08:00:00 | O70: =IF(tb_ponto[[#This Row],[Horas_Trabalhadas]]>tb_ponto[[#This Row],[Jornada_Padrao]],tb_ponto[[#This Row],[Jornada_Padrao]],tb_ponto[[#This Row],[Horas_Trabalhadas]]) -> 06:57:01.853 | P70: =IF(tb_ponto[[#This Row],[Horas_Trabalhadas]]>tb_ponto[[#This Row],[Horas_Normais]],tb_ponto[[#This Row],[Horas_Trabalhadas]]-tb_ponto[[#This Row],[Jornada_Padrao]],0) -> 00:00:00 | Q70: 00:00:00 | R70: =COUNTIFS(tb_ponto[Status_Dia],"Falta",tb_ponto[Cod_Funcionario],tb_ponto[[#This Row],[Cod_Funcionario]],tb_ponto[Competencia],tb_ponto[[#This Row],[Competencia]]) -> 0 | T70: =TEXT(tb_ponto[[#This Row],[Data]],"MMM-YY") -> Mar-26 | U70: =tb_ponto[[#This Row],[Horas_Extras]]*(24*VLOOKUP(tb_ponto[[#This Row],[Cod_Funcionario]],tb_funcionarios[[Cod_Funcionario]:[Valor_Hora]],19,0)) -> 0.00
C71: P00064 | D71: 2026-03-04 | E71: F001 | F71: =VLOOKUP(tb_ponto[[#This Row],[Cod_Funcionario]],tb_funcionarios[[Cod_Funcionario]:[Nome_Completo]],2,0) -> Ana Lima | G71: =VLOOKUP(tb_ponto[[#This Row],[Cod_Funcionario]],tb_funcionarios[[Cod_Funcionario]:[Setor]],8,0) -> RH | H71: Normal | I71: 08:00:34.252 | J71: 11:59:43.157 | K71: 12:59:56.960 | L71: 15:56:20.617 | M71: =(tb_ponto[[#This Row],[Saida_1]]-tb_ponto[[#This Row],[Entrada_1]])+(tb_ponto[[#This Row],[Saida_2]]-tb_ponto[[#This Row],[Entrada_2]]) -> 06:55:32.561 | N71: =VLOOKUP(tb_ponto[[#This Row],[Cod_Funcionario]],tb_funcionarios[[Cod_Funcionario]:[Jornada_Diaria_Horas]],14,0) -> 08:00:00 | O71: =IF(tb_ponto[[#This Row],[Horas_Trabalhadas]]>tb_ponto[[#This Row],[Jornada_Padrao]],tb_ponto[[#This Row],[Jornada_Padrao]],tb_ponto[[#This Row],[Horas_Trabalhadas]]) -> 06:55:32.561 | P71: =IF(tb_ponto[[#This Row],[Horas_Trabalhadas]]>tb_ponto[[#This Row],[Horas_Normais]],tb_ponto[[#This Row],[Horas_Trabalhadas]]-tb_ponto[[#This Row],[Jornada_Padrao]],0) -> 00:00:00 | Q71: 00:00:00 | R71: =COUNTIFS(tb_ponto[Status_Dia],"Falta",tb_ponto[Cod_Funcionario],tb_ponto[[#This Row],[Cod_Funcionario]],tb_ponto[Competencia],tb_ponto[[#This Row],[Competencia]]) -> 0 | T71: =TEXT(tb_ponto[[#This Row],[Data]],"MMM-YY") -> Mar-26 | U71: =tb_ponto[[#This Row],[Horas_Extras]]*(24*VLOOKUP(tb_ponto[[#This Row],[Cod_Funcionario]],tb_funcionarios[[Cod_Funcionario]:[Valor_Hora]],19,0)) -> 0.00
C72: P00065 | D72: 2026-03-05 | E72: F001 | F72: =VLOOKUP(tb_ponto[[#This Row],[Cod_Funcionario]],tb_funcionarios[[Cod_Funcionario]:[Nome_Completo]],2,0) -> Ana Lima | G72: =VLOOKUP(tb_ponto[[#This Row],[Cod_Funcionario]],tb_funcionarios[[Cod_Funcionario]:[Setor]],8,0) -> RH | H72: Normal | I72: 08:00:28.661 | J72: 11:59:52.614 | K72: 13:00:16.353 | L72: 16:06:31.771 | M72: =(tb_ponto[[#This Row],[Saida_1]]-tb_ponto[[#This Row],[Entrada_1]])+(tb_ponto[[#This Row],[Saida_2]]-tb_ponto[[#This Row],[Entrada_2]]) -> 07:05:39.371 | N72: =VLOOKUP(tb_ponto[[#This Row],[Cod_Funcionario]],tb_funcionarios[[Cod_Funcionario]:[Jornada_Diaria_Horas]],14,0) -> 08:00:00 | O72: =IF(tb_ponto[[#This Row],[Horas_Trabalhadas]]>tb_ponto[[#This Row],[Jornada_Padrao]],tb_ponto[[#This Row],[Jornada_Padrao]],tb_ponto[[#This Row],[Horas_Trabalhadas]]) -> 07:05:39.371 | P72: =IF(tb_ponto[[#This Row],[Horas_Trabalhadas]]>tb_ponto[[#This Row],[Horas_Normais]],tb_ponto[[#This Row],[Horas_Trabalhadas]]-tb_ponto[[#This Row],[Jornada_Padrao]],0) -> 00:00:00 | Q72: 00:00:00 | R72: =COUNTIFS(tb_ponto[Status_Dia],"Falta",tb_ponto[Cod_Funcionario],tb_ponto[[#This Row],[Cod_Funcionario]],tb_ponto[Competencia],tb_ponto[[#This Row],[Competencia]]) -> 0 | T72: =TEXT(tb_ponto[[#This Row],[Data]],"MMM-YY") -> Mar-26 | U72: =tb_ponto[[#This Row],[Horas_Extras]]*(24*VLOOKUP(tb_ponto[[#This Row],[Cod_Funcionario]],tb_funcionarios[[Cod_Funcionario]:[Valor_Hora]],19,0)) -> 0.00
C73: P00066 | D73: 2026-03-06 | E73: F001 | F73: =VLOOKUP(tb_ponto[[#This Row],[Cod_Funcionario]],tb_funcionarios[[Cod_Funcionario]:[Nome_Completo]],2,0) -> Ana Lima | G73: =VLOOKUP(tb_ponto[[#This Row],[Cod_Funcionario]],tb_funcionarios[[Cod_Funcionario]:[Setor]],8,0) -> RH | H73: Normal | I73: 08:00:20.431 | J73: 11:59:58.814 | K73: 13:00:06.095 | L73: 16:11:51.475 | M73: =(tb_ponto[[#This Row],[Saida_1]]-tb_ponto[[#This Row],[Entrada_1]])+(tb_ponto[[#This Row],[Saida_2]]-tb_ponto[[#This Row],[Entrada_2]]) -> 07:11:23.763 | N73: =VLOOKUP(tb_ponto[[#This Row],[Cod_Funcionario]],tb_funcionarios[[Cod_Funcionario]:[Jornada_Diaria_Horas]],14,0) -> 08:00:00 | O73: =IF(tb_ponto[[#This Row],[Horas_Trabalhadas]]>tb_ponto[[#This Row],[Jornada_Padrao]],tb_ponto[[#This Row],[Jornada_Padrao]],tb_ponto[[#This Row],[Horas_Trabalhadas]]) -> 07:11:23.763 | P73: =IF(tb_ponto[[#This Row],[Horas_Trabalhadas]]>tb_ponto[[#This Row],[Horas_Normais]],tb_ponto[[#This Row],[Horas_Trabalhadas]]-tb_ponto[[#This Row],[Jornada_Padrao]],0) -> 00:00:00 | Q73: 00:00:00 | R73: =COUNTIFS(tb_ponto[Status_Dia],"Falta",tb_ponto[Cod_Funcionario],tb_ponto[[#This Row],[Cod_Funcionario]],tb_ponto[Competencia],tb_ponto[[#This Row],[Competencia]]) -> 0 | T73: =TEXT(tb_ponto[[#This Row],[Data]],"MMM-YY") -> Mar-26 | U73: =tb_ponto[[#This Row],[Horas_Extras]]*(24*VLOOKUP(tb_ponto[[#This Row],[Cod_Funcionario]],tb_funcionarios[[Cod_Funcionario]:[Valor_Hora]],19,0)) -> 0.00
C74: P00067 | D74: 2026-03-07 | E74: F001 | F74: =VLOOKUP(tb_ponto[[#This Row],[Cod_Funcionario]],tb_funcionarios[[Cod_Funcionario]:[Nome_Completo]],2,0) -> Ana Lima | G74: =VLOOKUP(tb_ponto[[#This Row],[Cod_Funcionario]],tb_funcionarios[[Cod_Funcionario]:[Setor]],8,0) -> RH | H74: Folga | M74: =(tb_ponto[[#This Row],[Saida_1]]-tb_ponto[[#This Row],[Entrada_1]])+(tb_ponto[[#This Row],[Saida_2]]-tb_ponto[[#This Row],[Entrada_2]]) -> 00:00:00 | N74: =VLOOKUP(tb_ponto[[#This Row],[Cod_Funcionario]],tb_funcionarios[[Cod_Funcionario]:[Jornada_Diaria_Horas]],14,0) -> 08:00:00 | O74: =IF(tb_ponto[[#This Row],[Horas_Trabalhadas]]>tb_ponto[[#This Row],[Jornada_Padrao]],tb_ponto[[#This Row],[Jornada_Padrao]],tb_ponto[[#This Row],[Horas_Trabalhadas]]) -> 00:00:00 | P74: =IF(tb_ponto[[#This Row],[Horas_Trabalhadas]]>tb_ponto[[#This Row],[Horas_Normais]],tb_ponto[[#This Row],[Horas_Trabalhadas]]-tb_ponto[[#This Row],[Jornada_Padrao]],0) -> 00:00:00 | Q74: 00:00:00 | R74: =COUNTIFS(tb_ponto[Status_Dia],"Falta",tb_ponto[Cod_Funcionario],tb_ponto[[#This Row],[Cod_Funcionario]],tb_ponto[Competencia],tb_ponto[[#This Row],[Competencia]]) -> 0 | T74: =TEXT(tb_ponto[[#This Row],[Data]],"MMM-YY") -> Mar-26 | U74: =tb_ponto[[#This Row],[Horas_Extras]]*(24*VLOOKUP(tb_ponto[[#This Row],[Cod_Funcionario]],tb_funcionarios[[Cod_Funcionario]:[Valor_Hora]],19,0)) -> 0.00
C75: P00068 | D75: 2026-03-08 | E75: F001 | F75: =VLOOKUP(tb_ponto[[#This Row],[Cod_Funcionario]],tb_funcionarios[[Cod_Funcionario]:[Nome_Completo]],2,0) -> Ana Lima | G75: =VLOOKUP(tb_ponto[[#This Row],[Cod_Funcionario]],tb_funcionarios[[Cod_Funcionario]:[Setor]],8,0) -> RH | H75: Folga | M75: =(tb_ponto[[#This Row],[Saida_1]]-tb_ponto[[#This Row],[Entrada_1]])+(tb_ponto[[#This Row],[Saida_2]]-tb_ponto[[#This Row],[Entrada_2]]) -> 00:00:00 | N75: =VLOOKUP(tb_ponto[[#This Row],[Cod_Funcionario]],tb_funcionarios[[Cod_Funcionario]:[Jornada_Diaria_Horas]],14,0) -> 08:00:00 | O75: =IF(tb_ponto[[#This Row],[Horas_Trabalhadas]]>tb_ponto[[#This Row],[Jornada_Padrao]],tb_ponto[[#This Row],[Jornada_Padrao]],tb_ponto[[#This Row],[Horas_Trabalhadas]]) -> 00:00:00 | P75: =IF(tb_ponto[[#This Row],[Horas_Trabalhadas]]>tb_ponto[[#This Row],[Horas_Normais]],tb_ponto[[#This Row],[Horas_Trabalhadas]]-tb_ponto[[#This Row],[Jornada_Padrao]],0) -> 00:00:00 | Q75: 00:00:00 | R75: =COUNTIFS(tb_ponto[Status_Dia],"Falta",tb_ponto[Cod_Funcionario],tb_ponto[[#This Row],[Cod_Funcionario]],tb_ponto[Competencia],tb_ponto[[#This Row],[Competencia]]) -> 0 | T75: =TEXT(tb_ponto[[#This Row],[Data]],"MMM-YY") -> Mar-26 | U75: =tb_ponto[[#This Row],[Horas_Extras]]*(24*VLOOKUP(tb_ponto[[#This Row],[Cod_Funcionario]],tb_funcionarios[[Cod_Funcionario]:[Valor_Hora]],19,0)) -> 0.00
C76: P00069 | D76: 2026-03-09 | E76: F001 | F76: =VLOOKUP(tb_ponto[[#This Row],[Cod_Funcionario]],tb_funcionarios[[Cod_Funcionario]:[Nome_Completo]],2,0) -> Ana Lima | G76: =VLOOKUP(tb_ponto[[#This Row],[Cod_Funcionario]],tb_funcionarios[[Cod_Funcionario]:[Setor]],8,0) -> RH | H76: Normal | I76: 08:00:20.394 | J76: 12:00:03.544 | K76: 13:00:04.536 | L76: 16:01:47.551 | M76: =(tb_ponto[[#This Row],[Saida_1]]-tb_ponto[[#This Row],[Entrada_1]])+(tb_ponto[[#This Row],[Saida_2]]-tb_ponto[[#This Row],[Entrada_2]]) -> 07:01:26.166 | N76: =VLOOKUP(tb_ponto[[#This Row],[Cod_Funcionario]],tb_funcionarios[[Cod_Funcionario]:[Jornada_Diaria_Horas]],14,0) -> 08:00:00 | O76: =IF(tb_ponto[[#This Row],[Horas_Trabalhadas]]>tb_ponto[[#This Row],[Jornada_Padrao]],tb_ponto[[#This Row],[Jornada_Padrao]],tb_ponto[[#This Row],[Horas_Trabalhadas]]) -> 07:01:26.166 | P76: =IF(tb_ponto[[#This Row],[Horas_Trabalhadas]]>tb_ponto[[#This Row],[Horas_Normais]],tb_ponto[[#This Row],[Horas_Trabalhadas]]-tb_ponto[[#This Row],[Jornada_Padrao]],0) -> 00:00:00 | Q76: 00:00:00 | R76: =COUNTIFS(tb_ponto[Status_Dia],"Falta",tb_ponto[Cod_Funcionario],tb_ponto[[#This Row],[Cod_Funcionario]],tb_ponto[Competencia],tb_ponto[[#This Row],[Competencia]]) -> 0 | T76: =TEXT(tb_ponto[[#This Row],[Data]],"MMM-YY") -> Mar-26 | U76: =tb_ponto[[#This Row],[Horas_Extras]]*(24*VLOOKUP(tb_ponto[[#This Row],[Cod_Funcionario]],tb_funcionarios[[Cod_Funcionario]:[Valor_Hora]],19,0)) -> 0.00
C77: P00070 | D77: 2026-03-10 | E77: F001 | F77: =VLOOKUP(tb_ponto[[#This Row],[Cod_Funcionario]],tb_funcionarios[[Cod_Funcionario]:[Nome_Completo]],2,0) -> Ana Lima | G77: =VLOOKUP(tb_ponto[[#This Row],[Cod_Funcionario]],tb_funcionarios[[Cod_Funcionario]:[Setor]],8,0) -> RH | H77: Normal | I77: 08:00:29.544 | J77: 12:00:08.827 | K77: 12:59:42.905 | L77: 16:04:41.182 | M77: =(tb_ponto[[#This Row],[Saida_1]]-tb_ponto[[#This Row],[Entrada_1]])+(tb_ponto[[#This Row],[Saida_2]]-tb_ponto[[#This Row],[Entrada_2]]) -> 07:04:37.561 | N77: =VLOOKUP(tb_ponto[[#This Row],[Cod_Funcionario]],tb_funcionarios[[Cod_Funcionario]:[Jornada_Diaria_Horas]],14,0) -> 08:00:00 | O77: =IF(tb_ponto[[#This Row],[Horas_Trabalhadas]]>tb_ponto[[#This Row],[Jornada_Padrao]],tb_ponto[[#This Row],[Jornada_Padrao]],tb_ponto[[#This Row],[Horas_Trabalhadas]]) -> 07:04:37.561 | P77: =IF(tb_ponto[[#This Row],[Horas_Trabalhadas]]>tb_ponto[[#This Row],[Horas_Normais]],tb_ponto[[#This Row],[Horas_Trabalhadas]]-tb_ponto[[#This Row],[Jornada_Padrao]],0) -> 00:00:00 | Q77: 00:00:00 | R77: =COUNTIFS(tb_ponto[Status_Dia],"Falta",tb_ponto[Cod_Funcionario],tb_ponto[[#This Row],[Cod_Funcionario]],tb_ponto[Competencia],tb_ponto[[#This Row],[Competencia]]) -> 0 | T77: =TEXT(tb_ponto[[#This Row],[Data]],"MMM-YY") -> Mar-26 | U77: =tb_ponto[[#This Row],[Horas_Extras]]*(24*VLOOKUP(tb_ponto[[#This Row],[Cod_Funcionario]],tb_funcionarios[[Cod_Funcionario]:[Valor_Hora]],19,0)) -> 0.00
C78: P00071 | D78: 2026-03-11 | E78: F001 | F78: =VLOOKUP(tb_ponto[[#This Row],[Cod_Funcionario]],tb_funcionarios[[Cod_Funcionario]:[Nome_Completo]],2,0) -> Ana Lima | G78: =VLOOKUP(tb_ponto[[#This Row],[Cod_Funcionario]],tb_funcionarios[[Cod_Funcionario]:[Setor]],8,0) -> RH | H78: Normal | I78: 08:00:23.211 | J78: 12:00:08.261 | K78: 13:00:16.244 | L78: 16:00:46.035 | M78: =(tb_ponto[[#This Row],[Saida_1]]-tb_ponto[[#This Row],[Entrada_1]])+(tb_ponto[[#This Row],[Saida_2]]-tb_ponto[[#This Row],[Entrada_2]]) -> 07:00:14.841 | N78: =VLOOKUP(tb_ponto[[#This Row],[Cod_Funcionario]],tb_funcionarios[[Cod_Funcionario]:[Jornada_Diaria_Horas]],14,0) -> 08:00:00 | O78: =IF(tb_ponto[[#This Row],[Horas_Trabalhadas]]>tb_ponto[[#This Row],[Jornada_Padrao]],tb_ponto[[#This Row],[Jornada_Padrao]],tb_ponto[[#This Row],[Horas_Trabalhadas]]) -> 07:00:14.841 | P78: =IF(tb_ponto[[#This Row],[Horas_Trabalhadas]]>tb_ponto[[#This Row],[Horas_Normais]],tb_ponto[[#This Row],[Horas_Trabalhadas]]-tb_ponto[[#This Row],[Jornada_Padrao]],0) -> 00:00:00 | Q78: 00:00:00 | R78: =COUNTIFS(tb_ponto[Status_Dia],"Falta",tb_ponto[Cod_Funcionario],tb_ponto[[#This Row],[Cod_Funcionario]],tb_ponto[Competencia],tb_ponto[[#This Row],[Competencia]]) -> 0 | T78: =TEXT(tb_ponto[[#This Row],[Data]],"MMM-YY") -> Mar-26 | U78: =tb_ponto[[#This Row],[Horas_Extras]]*(24*VLOOKUP(tb_ponto[[#This Row],[Cod_Funcionario]],tb_funcionarios[[Cod_Funcionario]:[Valor_Hora]],19,0)) -> 0.00
C79: P00072 | D79: 2026-03-12 | E79: F001 | F79: =VLOOKUP(tb_ponto[[#This Row],[Cod_Funcionario]],tb_funcionarios[[Cod_Funcionario]:[Nome_Completo]],2,0) -> Ana Lima | G79: =VLOOKUP(tb_ponto[[#This Row],[Cod_Funcionario]],tb_funcionarios[[Cod_Funcionario]:[Setor]],8,0) -> RH | H79: Normal | I79: 07:59:38.538 | J79: 11:59:46.439 | K79: 12:59:50.081 | L79: 16:12:15.633 | M79: =(tb_ponto[[#This Row],[Saida_1]]-tb_ponto[[#This Row],[Entrada_1]])+(tb_ponto[[#This Row],[Saida_2]]-tb_ponto[[#This Row],[Entrada_2]]) -> 07:12:33.454 | N79: =VLOOKUP(tb_ponto[[#This Row],[Cod_Funcionario]],tb_funcionarios[[Cod_Funcionario]:[Jornada_Diaria_Horas]],14,0) -> 08:00:00 | O79: =IF(tb_ponto[[#This Row],[Horas_Trabalhadas]]>tb_ponto[[#This Row],[Jornada_Padrao]],tb_ponto[[#This Row],[Jornada_Padrao]],tb_ponto[[#This Row],[Horas_Trabalhadas]]) -> 07:12:33.454 | P79: =IF(tb_ponto[[#This Row],[Horas_Trabalhadas]]>tb_ponto[[#This Row],[Horas_Normais]],tb_ponto[[#This Row],[Horas_Trabalhadas]]-tb_ponto[[#This Row],[Jornada_Padrao]],0) -> 00:00:00 | Q79: 00:00:00 | R79: =COUNTIFS(tb_ponto[Status_Dia],"Falta",tb_ponto[Cod_Funcionario],tb_ponto[[#This Row],[Cod_Funcionario]],tb_ponto[Competencia],tb_ponto[[#This Row],[Competencia]]) -> 0 | T79: =TEXT(tb_ponto[[#This Row],[Data]],"MMM-YY") -> Mar-26 | U79: =tb_ponto[[#This Row],[Horas_Extras]]*(24*VLOOKUP(tb_ponto[[#This Row],[Cod_Funcionario]],tb_funcionarios[[Cod_Funcionario]:[Valor_Hora]],19,0)) -> 0.00
C80: P00073 | D80: 2026-03-13 | E80: F001 | F80: =VLOOKUP(tb_ponto[[#This Row],[Cod_Funcionario]],tb_funcionarios[[Cod_Funcionario]:[Nome_Completo]],2,0) -> Ana Lima | G80: =VLOOKUP(tb_ponto[[#This Row],[Cod_Funcionario]],tb_funcionarios[[Cod_Funcionario]:[Setor]],8,0) -> RH | H80: Normal | I80: 07:59:43.393 | J80: 11:59:53.635 | K80: 13:00:12.897 | L80: 16:08:16.061 | M80: =(tb_ponto[[#This Row],[Saida_1]]-tb_ponto[[#This Row],[Entrada_1]])+(tb_ponto[[#This Row],[Saida_2]]-tb_ponto[[#This Row],[Entrada_2]]) -> 07:08:13.406 | N80: =VLOOKUP(tb_ponto[[#This Row],[Cod_Funcionario]],tb_funcionarios[[Cod_Funcionario]:[Jornada_Diaria_Horas]],14,0) -> 08:00:00 | O80: =IF(tb_ponto[[#This Row],[Horas_Trabalhadas]]>tb_ponto[[#This Row],[Jornada_Padrao]],tb_ponto[[#This Row],[Jornada_Padrao]],tb_ponto[[#This Row],[Horas_Trabalhadas]]) -> 07:08:13.406 | P80: =IF(tb_ponto[[#This Row],[Horas_Trabalhadas]]>tb_ponto[[#This Row],[Horas_Normais]],tb_ponto[[#This Row],[Horas_Trabalhadas]]-tb_ponto[[#This Row],[Jornada_Padrao]],0) -> 00:00:00 | Q80: 00:00:00 | R80: =COUNTIFS(tb_ponto[Status_Dia],"Falta",tb_ponto[Cod_Funcionario],tb_ponto[[#This Row],[Cod_Funcionario]],tb_ponto[Competencia],tb_ponto[[#This Row],[Competencia]]) -> 0 | T80: =TEXT(tb_ponto[[#This Row],[Data]],"MMM-YY") -> Mar-26 | U80: =tb_ponto[[#This Row],[Horas_Extras]]*(24*VLOOKUP(tb_ponto[[#This Row],[Cod_Funcionario]],tb_funcionarios[[Cod_Funcionario]:[Valor_Hora]],19,0)) -> 0.00
C81: P00074 | D81: 2026-03-14 | E81: F001 | F81: =VLOOKUP(tb_ponto[[#This Row],[Cod_Funcionario]],tb_funcionarios[[Cod_Funcionario]:[Nome_Completo]],2,0) -> Ana Lima | G81: =VLOOKUP(tb_ponto[[#This Row],[Cod_Funcionario]],tb_funcionarios[[Cod_Funcionario]:[Setor]],8,0) -> RH | H81: Folga | M81: =(tb_ponto[[#This Row],[Saida_1]]-tb_ponto[[#This Row],[Entrada_1]])+(tb_ponto[[#This Row],[Saida_2]]-tb_ponto[[#This Row],[Entrada_2]]) -> 00:00:00 | N81: =VLOOKUP(tb_ponto[[#This Row],[Cod_Funcionario]],tb_funcionarios[[Cod_Funcionario]:[Jornada_Diaria_Horas]],14,0) -> 08:00:00 | O81: =IF(tb_ponto[[#This Row],[Horas_Trabalhadas]]>tb_ponto[[#This Row],[Jornada_Padrao]],tb_ponto[[#This Row],[Jornada_Padrao]],tb_ponto[[#This Row],[Horas_Trabalhadas]]) -> 00:00:00 | P81: =IF(tb_ponto[[#This Row],[Horas_Trabalhadas]]>tb_ponto[[#This Row],[Horas_Normais]],tb_ponto[[#This Row],[Horas_Trabalhadas]]-tb_ponto[[#This Row],[Jornada_Padrao]],0) -> 00:00:00 | Q81: 00:00:00 | R81: =COUNTIFS(tb_ponto[Status_Dia],"Falta",tb_ponto[Cod_Funcionario],tb_ponto[[#This Row],[Cod_Funcionario]],tb_ponto[Competencia],tb_ponto[[#This Row],[Competencia]]) -> 0 | T81: =TEXT(tb_ponto[[#This Row],[Data]],"MMM-YY") -> Mar-26 | U81: =tb_ponto[[#This Row],[Horas_Extras]]*(24*VLOOKUP(tb_ponto[[#This Row],[Cod_Funcionario]],tb_funcionarios[[Cod_Funcionario]:[Valor_Hora]],19,0)) -> 0.00
C82: P00075 | D82: 2026-03-15 | E82: F001 | F82: =VLOOKUP(tb_ponto[[#This Row],[Cod_Funcionario]],tb_funcionarios[[Cod_Funcionario]:[Nome_Completo]],2,0) -> Ana Lima | G82: =VLOOKUP(tb_ponto[[#This Row],[Cod_Funcionario]],tb_funcionarios[[Cod_Funcionario]:[Setor]],8,0) -> RH | H82: Folga | M82: =(tb_ponto[[#This Row],[Saida_1]]-tb_ponto[[#This Row],[Entrada_1]])+(tb_ponto[[#This Row],[Saida_2]]-tb_ponto[[#This Row],[Entrada_2]]) -> 00:00:00 | N82: =VLOOKUP(tb_ponto[[#This Row],[Cod_Funcionario]],tb_funcionarios[[Cod_Funcionario]:[Jornada_Diaria_Horas]],14,0) -> 08:00:00 | O82: =IF(tb_ponto[[#This Row],[Horas_Trabalhadas]]>tb_ponto[[#This Row],[Jornada_Padrao]],tb_ponto[[#This Row],[Jornada_Padrao]],tb_ponto[[#This Row],[Horas_Trabalhadas]]) -> 00:00:00 | P82: =IF(tb_ponto[[#This Row],[Horas_Trabalhadas]]>tb_ponto[[#This Row],[Horas_Normais]],tb_ponto[[#This Row],[Horas_Trabalhadas]]-tb_ponto[[#This Row],[Jornada_Padrao]],0) -> 00:00:00 | Q82: 00:00:00 | R82: =COUNTIFS(tb_ponto[Status_Dia],"Falta",tb_ponto[Cod_Funcionario],tb_ponto[[#This Row],[Cod_Funcionario]],tb_ponto[Competencia],tb_ponto[[#This Row],[Competencia]]) -> 0 | T82: =TEXT(tb_ponto[[#This Row],[Data]],"MMM-YY") -> Mar-26 | U82: =tb_ponto[[#This Row],[Horas_Extras]]*(24*VLOOKUP(tb_ponto[[#This Row],[Cod_Funcionario]],tb_funcionarios[[Cod_Funcionario]:[Valor_Hora]],19,0)) -> 0.00
C83: P00076 | D83: 2026-03-16 | E83: F001 | F83: =VLOOKUP(tb_ponto[[#This Row],[Cod_Funcionario]],tb_funcionarios[[Cod_Funcionario]:[Nome_Completo]],2,0) -> Ana Lima | G83: =VLOOKUP(tb_ponto[[#This Row],[Cod_Funcionario]],tb_funcionarios[[Cod_Funcionario]:[Setor]],8,0) -> RH | H83: Normal | I83: 08:00:14.644 | J83: 11:59:49.158 | K83: 13:00:11.871 | L83: 16:09:41.753 | M83: =(tb_ponto[[#This Row],[Saida_1]]-tb_ponto[[#This Row],[Entrada_1]])+(tb_ponto[[#This Row],[Saida_2]]-tb_ponto[[#This Row],[Entrada_2]]) -> 07:09:04.397 | N83: =VLOOKUP(tb_ponto[[#This Row],[Cod_Funcionario]],tb_funcionarios[[Cod_Funcionario]:[Jornada_Diaria_Horas]],14,0) -> 08:00:00 | O83: =IF(tb_ponto[[#This Row],[Horas_Trabalhadas]]>tb_ponto[[#This Row],[Jornada_Padrao]],tb_ponto[[#This Row],[Jornada_Padrao]],tb_ponto[[#This Row],[Horas_Trabalhadas]]) -> 07:09:04.397 | P83: =IF(tb_ponto[[#This Row],[Horas_Trabalhadas]]>tb_ponto[[#This Row],[Horas_Normais]],tb_ponto[[#This Row],[Horas_Trabalhadas]]-tb_ponto[[#This Row],[Jornada_Padrao]],0) -> 00:00:00 | Q83: 00:00:00 | R83: =COUNTIFS(tb_ponto[Status_Dia],"Falta",tb_ponto[Cod_Funcionario],tb_ponto[[#This Row],[Cod_Funcionario]],tb_ponto[Competencia],tb_ponto[[#This Row],[Competencia]]) -> 0 | T83: =TEXT(tb_ponto[[#This Row],[Data]],"MMM-YY") -> Mar-26 | U83: =tb_ponto[[#This Row],[Horas_Extras]]*(24*VLOOKUP(tb_ponto[[#This Row],[Cod_Funcionario]],tb_funcionarios[[Cod_Funcionario]:[Valor_Hora]],19,0)) -> 0.00
C84: P00077 | D84: 2026-03-17 | E84: F001 | F84: =VLOOKUP(tb_ponto[[#This Row],[Cod_Funcionario]],tb_funcionarios[[Cod_Funcionario]:[Nome_Completo]],2,0) -> Ana Lima | G84: =VLOOKUP(tb_ponto[[#This Row],[Cod_Funcionario]],tb_funcionarios[[Cod_Funcionario]:[Setor]],8,0) -> RH | H84: Normal | I84: 07:59:40.235 | J84: 11:59:47.550 | K84: 12:59:45.064 | L84: 15:52:20.547 | M84: =(tb_ponto[[#This Row],[Saida_1]]-tb_ponto[[#This Row],[Entrada_1]])+(tb_ponto[[#This Row],[Saida_2]]-tb_ponto[[#This Row],[Entrada_2]]) -> 06:52:42.798 | N84: =VLOOKUP(tb_ponto[[#This Row],[Cod_Funcionario]],tb_funcionarios[[Cod_Funcionario]:[Jornada_Diaria_Horas]],14,0) -> 08:00:00 | O84: =IF(tb_ponto[[#This Row],[Horas_Trabalhadas]]>tb_ponto[[#This Row],[Jornada_Padrao]],tb_ponto[[#This Row],[Jornada_Padrao]],tb_ponto[[#This Row],[Horas_Trabalhadas]]) -> 06:52:42.798 | P84: =IF(tb_ponto[[#This Row],[Horas_Trabalhadas]]>tb_ponto[[#This Row],[Horas_Normais]],tb_ponto[[#This Row],[Horas_Trabalhadas]]-tb_ponto[[#This Row],[Jornada_Padrao]],0) -> 00:00:00 | Q84: 00:00:00 | R84: =COUNTIFS(tb_ponto[Status_Dia],"Falta",tb_ponto[Cod_Funcionario],tb_ponto[[#This Row],[Cod_Funcionario]],tb_ponto[Competencia],tb_ponto[[#This Row],[Competencia]]) -> 0 | T84: =TEXT(tb_ponto[[#This Row],[Data]],"MMM-YY") -> Mar-26 | U84: =tb_ponto[[#This Row],[Horas_Extras]]*(24*VLOOKUP(tb_ponto[[#This Row],[Cod_Funcionario]],tb_funcionarios[[Cod_Funcionario]:[Valor_Hora]],19,0)) -> 0.00
C85: P00078 | D85: 2026-03-18 | E85: F001 | F85: =VLOOKUP(tb_ponto[[#This Row],[Cod_Funcionario]],tb_funcionarios[[Cod_Funcionario]:[Nome_Completo]],2,0) -> Ana Lima | G85: =VLOOKUP(tb_ponto[[#This Row],[Cod_Funcionario]],tb_funcionarios[[Cod_Funcionario]:[Setor]],8,0) -> RH | H85: Normal | I85: 07:59:58.432 | J85: 11:59:59.806 | K85: 12:59:44.253 | L85: 15:54:46.322 | M85: =(tb_ponto[[#This Row],[Saida_1]]-tb_ponto[[#This Row],[Entrada_1]])+(tb_ponto[[#This Row],[Saida_2]]-tb_ponto[[#This Row],[Entrada_2]]) -> 06:55:03.443 | N85: =VLOOKUP(tb_ponto[[#This Row],[Cod_Funcionario]],tb_funcionarios[[Cod_Funcionario]:[Jornada_Diaria_Horas]],14,0) -> 08:00:00 | O85: =IF(tb_ponto[[#This Row],[Horas_Trabalhadas]]>tb_ponto[[#This Row],[Jornada_Padrao]],tb_ponto[[#This Row],[Jornada_Padrao]],tb_ponto[[#This Row],[Horas_Trabalhadas]]) -> 06:55:03.443 | P85: =IF(tb_ponto[[#This Row],[Horas_Trabalhadas]]>tb_ponto[[#This Row],[Horas_Normais]],tb_ponto[[#This Row],[Horas_Trabalhadas]]-tb_ponto[[#This Row],[Jornada_Padrao]],0) -> 00:00:00 | Q85: 00:00:00 | R85: =COUNTIFS(tb_ponto[Status_Dia],"Falta",tb_ponto[Cod_Funcionario],tb_ponto[[#This Row],[Cod_Funcionario]],tb_ponto[Competencia],tb_ponto[[#This Row],[Competencia]]) -> 0 | T85: =TEXT(tb_ponto[[#This Row],[Data]],"MMM-YY") -> Mar-26 | U85: =tb_ponto[[#This Row],[Horas_Extras]]*(24*VLOOKUP(tb_ponto[[#This Row],[Cod_Funcionario]],tb_funcionarios[[Cod_Funcionario]:[Valor_Hora]],19,0)) -> 0.00
C86: P00079 | D86: 2026-03-19 | E86: F001 | F86: =VLOOKUP(tb_ponto[[#This Row],[Cod_Funcionario]],tb_funcionarios[[Cod_Funcionario]:[Nome_Completo]],2,0) -> Ana Lima | G86: =VLOOKUP(tb_ponto[[#This Row],[Cod_Funcionario]],tb_funcionarios[[Cod_Funcionario]:[Setor]],8,0) -> RH | H86: Normal | I86: 08:00:29.202 | J86: 11:59:48.722 | K86: 12:59:43.509 | L86: 15:52:34.002 | M86: =(tb_ponto[[#This Row],[Saida_1]]-tb_ponto[[#This Row],[Entrada_1]])+(tb_ponto[[#This Row],[Saida_2]]-tb_ponto[[#This Row],[Entrada_2]]) -> 06:52:10.012 | N86: =VLOOKUP(tb_ponto[[#This Row],[Cod_Funcionario]],tb_funcionarios[[Cod_Funcionario]:[Jornada_Diaria_Horas]],14,0) -> 08:00:00 | O86: =IF(tb_ponto[[#This Row],[Horas_Trabalhadas]]>tb_ponto[[#This Row],[Jornada_Padrao]],tb_ponto[[#This Row],[Jornada_Padrao]],tb_ponto[[#This Row],[Horas_Trabalhadas]]) -> 06:52:10.012 | P86: =IF(tb_ponto[[#This Row],[Horas_Trabalhadas]]>tb_ponto[[#This Row],[Horas_Normais]],tb_ponto[[#This Row],[Horas_Trabalhadas]]-tb_ponto[[#This Row],[Jornada_Padrao]],0) -> 00:00:00 | Q86: 00:00:00 | R86: =COUNTIFS(tb_ponto[Status_Dia],"Falta",tb_ponto[Cod_Funcionario],tb_ponto[[#This Row],[Cod_Funcionario]],tb_ponto[Competencia],tb_ponto[[#This Row],[Competencia]]) -> 0 | T86: =TEXT(tb_ponto[[#This Row],[Data]],"MMM-YY") -> Mar-26 | U86: =tb_ponto[[#This Row],[Horas_Extras]]*(24*VLOOKUP(tb_ponto[[#This Row],[Cod_Funcionario]],tb_funcionarios[[Cod_Funcionario]:[Valor_Hora]],19,0)) -> 0.00
C87: P00080 | D87: 2026-03-20 | E87: F001 | F87: =VLOOKUP(tb_ponto[[#This Row],[Cod_Funcionario]],tb_funcionarios[[Cod_Funcionario]:[Nome_Completo]],2,0) -> Ana Lima | G87: =VLOOKUP(tb_ponto[[#This Row],[Cod_Funcionario]],tb_funcionarios[[Cod_Funcionario]:[Setor]],8,0) -> RH | H87: Normal | I87: 07:59:59.900 | J87: 12:00:04.922 | K87: 13:00:02.526 | L87: 15:48:27.349 | M87: =(tb_ponto[[#This Row],[Saida_1]]-tb_ponto[[#This Row],[Entrada_1]])+(tb_ponto[[#This Row],[Saida_2]]-tb_ponto[[#This Row],[Entrada_2]]) -> 06:48:29.845 | N87: =VLOOKUP(tb_ponto[[#This Row],[Cod_Funcionario]],tb_funcionarios[[Cod_Funcionario]:[Jornada_Diaria_Horas]],14,0) -> 08:00:00 | O87: =IF(tb_ponto[[#This Row],[Horas_Trabalhadas]]>tb_ponto[[#This Row],[Jornada_Padrao]],tb_ponto[[#This Row],[Jornada_Padrao]],tb_ponto[[#This Row],[Horas_Trabalhadas]]) -> 06:48:29.845 | P87: =IF(tb_ponto[[#This Row],[Horas_Trabalhadas]]>tb_ponto[[#This Row],[Horas_Normais]],tb_ponto[[#This Row],[Horas_Trabalhadas]]-tb_ponto[[#This Row],[Jornada_Padrao]],0) -> 00:00:00 | Q87: 00:00:00 | R87: =COUNTIFS(tb_ponto[Status_Dia],"Falta",tb_ponto[Cod_Funcionario],tb_ponto[[#This Row],[Cod_Funcionario]],tb_ponto[Competencia],tb_ponto[[#This Row],[Competencia]]) -> 0 | T87: =TEXT(tb_ponto[[#This Row],[Data]],"MMM-YY") -> Mar-26 | U87: =tb_ponto[[#This Row],[Horas_Extras]]*(24*VLOOKUP(tb_ponto[[#This Row],[Cod_Funcionario]],tb_funcionarios[[Cod_Funcionario]:[Valor_Hora]],19,0)) -> 0.00
C88: P00081 | D88: 2026-03-21 | E88: F001 | F88: =VLOOKUP(tb_ponto[[#This Row],[Cod_Funcionario]],tb_funcionarios[[Cod_Funcionario]:[Nome_Completo]],2,0) -> Ana Lima | G88: =VLOOKUP(tb_ponto[[#This Row],[Cod_Funcionario]],tb_funcionarios[[Cod_Funcionario]:[Setor]],8,0) -> RH | H88: Folga | M88: =(tb_ponto[[#This Row],[Saida_1]]-tb_ponto[[#This Row],[Entrada_1]])+(tb_ponto[[#This Row],[Saida_2]]-tb_ponto[[#This Row],[Entrada_2]]) -> 00:00:00 | N88: =VLOOKUP(tb_ponto[[#This Row],[Cod_Funcionario]],tb_funcionarios[[Cod_Funcionario]:[Jornada_Diaria_Horas]],14,0) -> 08:00:00 | O88: =IF(tb_ponto[[#This Row],[Horas_Trabalhadas]]>tb_ponto[[#This Row],[Jornada_Padrao]],tb_ponto[[#This Row],[Jornada_Padrao]],tb_ponto[[#This Row],[Horas_Trabalhadas]]) -> 00:00:00 | P88: =IF(tb_ponto[[#This Row],[Horas_Trabalhadas]]>tb_ponto[[#This Row],[Horas_Normais]],tb_ponto[[#This Row],[Horas_Trabalhadas]]-tb_ponto[[#This Row],[Jornada_Padrao]],0) -> 00:00:00 | Q88: 00:00:00 | R88: =COUNTIFS(tb_ponto[Status_Dia],"Falta",tb_ponto[Cod_Funcionario],tb_ponto[[#This Row],[Cod_Funcionario]],tb_ponto[Competencia],tb_ponto[[#This Row],[Competencia]]) -> 0 | T88: =TEXT(tb_ponto[[#This Row],[Data]],"MMM-YY") -> Mar-26 | U88: =tb_ponto[[#This Row],[Horas_Extras]]*(24*VLOOKUP(tb_ponto[[#This Row],[Cod_Funcionario]],tb_funcionarios[[Cod_Funcionario]:[Valor_Hora]],19,0)) -> 0.00
C89: P00082 | D89: 2026-03-22 | E89: F001 | F89: =VLOOKUP(tb_ponto[[#This Row],[Cod_Funcionario]],tb_funcionarios[[Cod_Funcionario]:[Nome_Completo]],2,0) -> Ana Lima | G89: =VLOOKUP(tb_ponto[[#This Row],[Cod_Funcionario]],tb_funcionarios[[Cod_Funcionario]:[Setor]],8,0) -> RH | H89: Folga | M89: =(tb_ponto[[#This Row],[Saida_1]]-tb_ponto[[#This Row],[Entrada_1]])+(tb_ponto[[#This Row],[Saida_2]]-tb_ponto[[#This Row],[Entrada_2]]) -> 00:00:00 | N89: =VLOOKUP(tb_ponto[[#This Row],[Cod_Funcionario]],tb_funcionarios[[Cod_Funcionario]:[Jornada_Diaria_Horas]],14,0) -> 08:00:00 | O89: =IF(tb_ponto[[#This Row],[Horas_Trabalhadas]]>tb_ponto[[#This Row],[Jornada_Padrao]],tb_ponto[[#This Row],[Jornada_Padrao]],tb_ponto[[#This Row],[Horas_Trabalhadas]]) -> 00:00:00 | P89: =IF(tb_ponto[[#This Row],[Horas_Trabalhadas]]>tb_ponto[[#This Row],[Horas_Normais]],tb_ponto[[#This Row],[Horas_Trabalhadas]]-tb_ponto[[#This Row],[Jornada_Padrao]],0) -> 00:00:00 | Q89: 00:00:00 | R89: =COUNTIFS(tb_ponto[Status_Dia],"Falta",tb_ponto[Cod_Funcionario],tb_ponto[[#This Row],[Cod_Funcionario]],tb_ponto[Competencia],tb_ponto[[#This Row],[Competencia]]) -> 0 | T89: =TEXT(tb_ponto[[#This Row],[Data]],"MMM-YY") -> Mar-26 | U89: =tb_ponto[[#This Row],[Horas_Extras]]*(24*VLOOKUP(tb_ponto[[#This Row],[Cod_Funcionario]],tb_funcionarios[[Cod_Funcionario]:[Valor_Hora]],19,0)) -> 0.00
C90: P00083 | D90: 2026-03-23 | E90: F001 | F90: =VLOOKUP(tb_ponto[[#This Row],[Cod_Funcionario]],tb_funcionarios[[Cod_Funcionario]:[Nome_Completo]],2,0) -> Ana Lima | G90: =VLOOKUP(tb_ponto[[#This Row],[Cod_Funcionario]],tb_funcionarios[[Cod_Funcionario]:[Setor]],8,0) -> RH | H90: Normal | I90: 07:59:55.475 | J90: 12:00:05.022 | K90: 13:00:04.448 | L90: 15:54:34.641 | M90: =(tb_ponto[[#This Row],[Saida_1]]-tb_ponto[[#This Row],[Entrada_1]])+(tb_ponto[[#This Row],[Saida_2]]-tb_ponto[[#This Row],[Entrada_2]]) -> 06:54:39.739 | N90: =VLOOKUP(tb_ponto[[#This Row],[Cod_Funcionario]],tb_funcionarios[[Cod_Funcionario]:[Jornada_Diaria_Horas]],14,0) -> 08:00:00 | O90: =IF(tb_ponto[[#This Row],[Horas_Trabalhadas]]>tb_ponto[[#This Row],[Jornada_Padrao]],tb_ponto[[#This Row],[Jornada_Padrao]],tb_ponto[[#This Row],[Horas_Trabalhadas]]) -> 06:54:39.739 | P90: =IF(tb_ponto[[#This Row],[Horas_Trabalhadas]]>tb_ponto[[#This Row],[Horas_Normais]],tb_ponto[[#This Row],[Horas_Trabalhadas]]-tb_ponto[[#This Row],[Jornada_Padrao]],0) -> 00:00:00 | Q90: 00:00:00 | R90: =COUNTIFS(tb_ponto[Status_Dia],"Falta",tb_ponto[Cod_Funcionario],tb_ponto[[#This Row],[Cod_Funcionario]],tb_ponto[Competencia],tb_ponto[[#This Row],[Competencia]]) -> 0 | T90: =TEXT(tb_ponto[[#This Row],[Data]],"MMM-YY") -> Mar-26 | U90: =tb_ponto[[#This Row],[Horas_Extras]]*(24*VLOOKUP(tb_ponto[[#This Row],[Cod_Funcionario]],tb_funcionarios[[Cod_Funcionario]:[Valor_Hora]],19,0)) -> 0.00
C91: P00084 | D91: 2026-03-24 | E91: F001 | F91: =VLOOKUP(tb_ponto[[#This Row],[Cod_Funcionario]],tb_funcionarios[[Cod_Funcionario]:[Nome_Completo]],2,0) -> Ana Lima | G91: =VLOOKUP(tb_ponto[[#This Row],[Cod_Funcionario]],tb_funcionarios[[Cod_Funcionario]:[Setor]],8,0) -> RH | H91: Normal | I91: 08:00:06.277 | J91: 12:00:01.884 | K91: 13:00:09.922 | L91: 15:57:41.557 | M91: =(tb_ponto[[#This Row],[Saida_1]]-tb_ponto[[#This Row],[Entrada_1]])+(tb_ponto[[#This Row],[Saida_2]]-tb_ponto[[#This Row],[Entrada_2]]) -> 06:57:27.242 | N91: =VLOOKUP(tb_ponto[[#This Row],[Cod_Funcionario]],tb_funcionarios[[Cod_Funcionario]:[Jornada_Diaria_Horas]],14,0) -> 08:00:00 | O91: =IF(tb_ponto[[#This Row],[Horas_Trabalhadas]]>tb_ponto[[#This Row],[Jornada_Padrao]],tb_ponto[[#This Row],[Jornada_Padrao]],tb_ponto[[#This Row],[Horas_Trabalhadas]]) -> 06:57:27.242 | P91: =IF(tb_ponto[[#This Row],[Horas_Trabalhadas]]>tb_ponto[[#This Row],[Horas_Normais]],tb_ponto[[#This Row],[Horas_Trabalhadas]]-tb_ponto[[#This Row],[Jornada_Padrao]],0) -> 00:00:00 | Q91: 00:00:00 | R91: =COUNTIFS(tb_ponto[Status_Dia],"Falta",tb_ponto[Cod_Funcionario],tb_ponto[[#This Row],[Cod_Funcionario]],tb_ponto[Competencia],tb_ponto[[#This Row],[Competencia]]) -> 0 | T91: =TEXT(tb_ponto[[#This Row],[Data]],"MMM-YY") -> Mar-26 | U91: =tb_ponto[[#This Row],[Horas_Extras]]*(24*VLOOKUP(tb_ponto[[#This Row],[Cod_Funcionario]],tb_funcionarios[[Cod_Funcionario]:[Valor_Hora]],19,0)) -> 0.00
C92: P00085 | D92: 2026-03-25 | E92: F001 | F92: =VLOOKUP(tb_ponto[[#This Row],[Cod_Funcionario]],tb_funcionarios[[Cod_Funcionario]:[Nome_Completo]],2,0) -> Ana Lima | G92: =VLOOKUP(tb_ponto[[#This Row],[Cod_Funcionario]],tb_funcionarios[[Cod_Funcionario]:[Setor]],8,0) -> RH | H92: Atestado | M92: =(tb_ponto[[#This Row],[Saida_1]]-tb_ponto[[#This Row],[Entrada_1]])+(tb_ponto[[#This Row],[Saida_2]]-tb_ponto[[#This Row],[Entrada_2]]) -> 00:00:00 | N92: =VLOOKUP(tb_ponto[[#This Row],[Cod_Funcionario]],tb_funcionarios[[Cod_Funcionario]:[Jornada_Diaria_Horas]],14,0) -> 08:00:00 | O92: =IF(tb_ponto[[#This Row],[Horas_Trabalhadas]]>tb_ponto[[#This Row],[Jornada_Padrao]],tb_ponto[[#This Row],[Jornada_Padrao]],tb_ponto[[#This Row],[Horas_Trabalhadas]]) -> 00:00:00 | P92: =IF(tb_ponto[[#This Row],[Horas_Trabalhadas]]>tb_ponto[[#This Row],[Horas_Normais]],tb_ponto[[#This Row],[Horas_Trabalhadas]]-tb_ponto[[#This Row],[Jornada_Padrao]],0) -> 00:00:00 | Q92: 00:00:00 | R92: =COUNTIFS(tb_ponto[Status_Dia],"Falta",tb_ponto[Cod_Funcionario],tb_ponto[[#This Row],[Cod_Funcionario]],tb_ponto[Competencia],tb_ponto[[#This Row],[Competencia]]) -> 0 | T92: =TEXT(tb_ponto[[#This Row],[Data]],"MMM-YY") -> Mar-26 | U92: =tb_ponto[[#This Row],[Horas_Extras]]*(24*VLOOKUP(tb_ponto[[#This Row],[Cod_Funcionario]],tb_funcionarios[[Cod_Funcionario]:[Valor_Hora]],19,0)) -> 0.00
C93: P00086 | D93: 2026-03-26 | E93: F001 | F93: =VLOOKUP(tb_ponto[[#This Row],[Cod_Funcionario]],tb_funcionarios[[Cod_Funcionario]:[Nome_Completo]],2,0) -> Ana Lima | G93: =VLOOKUP(tb_ponto[[#This Row],[Cod_Funcionario]],tb_funcionarios[[Cod_Funcionario]:[Setor]],8,0) -> RH | H93: Normal | I93: 08:00:21.328 | J93: 12:00:10.781 | K93: 12:59:50.446 | L93: 15:50:54.204 | M93: =(tb_ponto[[#This Row],[Saida_1]]-tb_ponto[[#This Row],[Entrada_1]])+(tb_ponto[[#This Row],[Saida_2]]-tb_ponto[[#This Row],[Entrada_2]]) -> 06:50:53.211 | N93: =VLOOKUP(tb_ponto[[#This Row],[Cod_Funcionario]],tb_funcionarios[[Cod_Funcionario]:[Jornada_Diaria_Horas]],14,0) -> 08:00:00 | O93: =IF(tb_ponto[[#This Row],[Horas_Trabalhadas]]>tb_ponto[[#This Row],[Jornada_Padrao]],tb_ponto[[#This Row],[Jornada_Padrao]],tb_ponto[[#This Row],[Horas_Trabalhadas]]) -> 06:50:53.211 | P93: =IF(tb_ponto[[#This Row],[Horas_Trabalhadas]]>tb_ponto[[#This Row],[Horas_Normais]],tb_ponto[[#This Row],[Horas_Trabalhadas]]-tb_ponto[[#This Row],[Jornada_Padrao]],0) -> 00:00:00 | Q93: 00:00:00 | R93: =COUNTIFS(tb_ponto[Status_Dia],"Falta",tb_ponto[Cod_Funcionario],tb_ponto[[#This Row],[Cod_Funcionario]],tb_ponto[Competencia],tb_ponto[[#This Row],[Competencia]]) -> 0 | T93: =TEXT(tb_ponto[[#This Row],[Data]],"MMM-YY") -> Mar-26 | U93: =tb_ponto[[#This Row],[Horas_Extras]]*(24*VLOOKUP(tb_ponto[[#This Row],[Cod_Funcionario]],tb_funcionarios[[Cod_Funcionario]:[Valor_Hora]],19,0)) -> 0.00
C94: P00087 | D94: 2026-03-27 | E94: F001 | F94: =VLOOKUP(tb_ponto[[#This Row],[Cod_Funcionario]],tb_funcionarios[[Cod_Funcionario]:[Nome_Completo]],2,0) -> Ana Lima | G94: =VLOOKUP(tb_ponto[[#This Row],[Cod_Funcionario]],tb_funcionarios[[Cod_Funcionario]:[Setor]],8,0) -> RH | H94: Normal | I94: 08:00:30.876 | J94: 11:59:56.639 | K94: 12:59:59.018 | L94: 16:14:08.302 | M94: =(tb_ponto[[#This Row],[Saida_1]]-tb_ponto[[#This Row],[Entrada_1]])+(tb_ponto[[#This Row],[Saida_2]]-tb_ponto[[#This Row],[Entrada_2]]) -> 07:13:35.047 | N94: =VLOOKUP(tb_ponto[[#This Row],[Cod_Funcionario]],tb_funcionarios[[Cod_Funcionario]:[Jornada_Diaria_Horas]],14,0) -> 08:00:00 | O94: =IF(tb_ponto[[#This Row],[Horas_Trabalhadas]]>tb_ponto[[#This Row],[Jornada_Padrao]],tb_ponto[[#This Row],[Jornada_Padrao]],tb_ponto[[#This Row],[Horas_Trabalhadas]]) -> 07:13:35.047 | P94: =IF(tb_ponto[[#This Row],[Horas_Trabalhadas]]>tb_ponto[[#This Row],[Horas_Normais]],tb_ponto[[#This Row],[Horas_Trabalhadas]]-tb_ponto[[#This Row],[Jornada_Padrao]],0) -> 00:00:00 | Q94: 00:00:00 | R94: =COUNTIFS(tb_ponto[Status_Dia],"Falta",tb_ponto[Cod_Funcionario],tb_ponto[[#This Row],[Cod_Funcionario]],tb_ponto[Competencia],tb_ponto[[#This Row],[Competencia]]) -> 0 | T94: =TEXT(tb_ponto[[#This Row],[Data]],"MMM-YY") -> Mar-26 | U94: =tb_ponto[[#This Row],[Horas_Extras]]*(24*VLOOKUP(tb_ponto[[#This Row],[Cod_Funcionario]],tb_funcionarios[[Cod_Funcionario]:[Valor_Hora]],19,0)) -> 0.00
C95: P00088 | D95: 2026-03-28 | E95: F001 | F95: =VLOOKUP(tb_ponto[[#This Row],[Cod_Funcionario]],tb_funcionarios[[Cod_Funcionario]:[Nome_Completo]],2,0) -> Ana Lima | G95: =VLOOKUP(tb_ponto[[#This Row],[Cod_Funcionario]],tb_funcionarios[[Cod_Funcionario]:[Setor]],8,0) -> RH | H95: Folga | M95: =(tb_ponto[[#This Row],[Saida_1]]-tb_ponto[[#This Row],[Entrada_1]])+(tb_ponto[[#This Row],[Saida_2]]-tb_ponto[[#This Row],[Entrada_2]]) -> 00:00:00 | N95: =VLOOKUP(tb_ponto[[#This Row],[Cod_Funcionario]],tb_funcionarios[[Cod_Funcionario]:[Jornada_Diaria_Horas]],14,0) -> 08:00:00 | O95: =IF(tb_ponto[[#This Row],[Horas_Trabalhadas]]>tb_ponto[[#This Row],[Jornada_Padrao]],tb_ponto[[#This Row],[Jornada_Padrao]],tb_ponto[[#This Row],[Horas_Trabalhadas]]) -> 00:00:00 | P95: =IF(tb_ponto[[#This Row],[Horas_Trabalhadas]]>tb_ponto[[#This Row],[Horas_Normais]],tb_ponto[[#This Row],[Horas_Trabalhadas]]-tb_ponto[[#This Row],[Jornada_Padrao]],0) -> 00:00:00 | Q95: 00:00:00 | R95: =COUNTIFS(tb_ponto[Status_Dia],"Falta",tb_ponto[Cod_Funcionario],tb_ponto[[#This Row],[Cod_Funcionario]],tb_ponto[Competencia],tb_ponto[[#This Row],[Competencia]]) -> 0 | T95: =TEXT(tb_ponto[[#This Row],[Data]],"MMM-YY") -> Mar-26 | U95: =tb_ponto[[#This Row],[Horas_Extras]]*(24*VLOOKUP(tb_ponto[[#This Row],[Cod_Funcionario]],tb_funcionarios[[Cod_Funcionario]:[Valor_Hora]],19,0)) -> 0.00
C96: P00089 | D96: 2026-03-29 | E96: F001 | F96: =VLOOKUP(tb_ponto[[#This Row],[Cod_Funcionario]],tb_funcionarios[[Cod_Funcionario]:[Nome_Completo]],2,0) -> Ana Lima | G96: =VLOOKUP(tb_ponto[[#This Row],[Cod_Funcionario]],tb_funcionarios[[Cod_Funcionario]:[Setor]],8,0) -> RH | H96: Folga | M96: =(tb_ponto[[#This Row],[Saida_1]]-tb_ponto[[#This Row],[Entrada_1]])+(tb_ponto[[#This Row],[Saida_2]]-tb_ponto[[#This Row],[Entrada_2]]) -> 00:00:00 | N96: =VLOOKUP(tb_ponto[[#This Row],[Cod_Funcionario]],tb_funcionarios[[Cod_Funcionario]:[Jornada_Diaria_Horas]],14,0) -> 08:00:00 | O96: =IF(tb_ponto[[#This Row],[Horas_Trabalhadas]]>tb_ponto[[#This Row],[Jornada_Padrao]],tb_ponto[[#This Row],[Jornada_Padrao]],tb_ponto[[#This Row],[Horas_Trabalhadas]]) -> 00:00:00 | P96: =IF(tb_ponto[[#This Row],[Horas_Trabalhadas]]>tb_ponto[[#This Row],[Horas_Normais]],tb_ponto[[#This Row],[Horas_Trabalhadas]]-tb_ponto[[#This Row],[Jornada_Padrao]],0) -> 00:00:00 | Q96: 00:00:00 | R96: =COUNTIFS(tb_ponto[Status_Dia],"Falta",tb_ponto[Cod_Funcionario],tb_ponto[[#This Row],[Cod_Funcionario]],tb_ponto[Competencia],tb_ponto[[#This Row],[Competencia]]) -> 0 | T96: =TEXT(tb_ponto[[#This Row],[Data]],"MMM-YY") -> Mar-26 | U96: =tb_ponto[[#This Row],[Horas_Extras]]*(24*VLOOKUP(tb_ponto[[#This Row],[Cod_Funcionario]],tb_funcionarios[[Cod_Funcionario]:[Valor_Hora]],19,0)) -> 0.00
C97: P00090 | D97: 2026-03-30 | E97: F001 | F97: =VLOOKUP(tb_ponto[[#This Row],[Cod_Funcionario]],tb_funcionarios[[Cod_Funcionario]:[Nome_Completo]],2,0) -> Ana Lima | G97: =VLOOKUP(tb_ponto[[#This Row],[Cod_Funcionario]],tb_funcionarios[[Cod_Funcionario]:[Setor]],8,0) -> RH | H97: Normal | I97: 07:59:58.332 | J97: 12:00:06.695 | K97: 13:00:01.036 | L97: 16:00:06.804 | M97: =(tb_ponto[[#This Row],[Saida_1]]-tb_ponto[[#This Row],[Entrada_1]])+(tb_ponto[[#This Row],[Saida_2]]-tb_ponto[[#This Row],[Entrada_2]]) -> 07:00:14.131 | N97: =VLOOKUP(tb_ponto[[#This Row],[Cod_Funcionario]],tb_funcionarios[[Cod_Funcionario]:[Jornada_Diaria_Horas]],14,0) -> 08:00:00 | O97: =IF(tb_ponto[[#This Row],[Horas_Trabalhadas]]>tb_ponto[[#This Row],[Jornada_Padrao]],tb_ponto[[#This Row],[Jornada_Padrao]],tb_ponto[[#This Row],[Horas_Trabalhadas]]) -> 07:00:14.131 | P97: =IF(tb_ponto[[#This Row],[Horas_Trabalhadas]]>tb_ponto[[#This Row],[Horas_Normais]],tb_ponto[[#This Row],[Horas_Trabalhadas]]-tb_ponto[[#This Row],[Jornada_Padrao]],0) -> 00:00:00 | Q97: 00:00:00 | R97: =COUNTIFS(tb_ponto[Status_Dia],"Falta",tb_ponto[Cod_Funcionario],tb_ponto[[#This Row],[Cod_Funcionario]],tb_ponto[Competencia],tb_ponto[[#This Row],[Competencia]]) -> 0 | T97: =TEXT(tb_ponto[[#This Row],[Data]],"MMM-YY") -> Mar-26 | U97: =tb_ponto[[#This Row],[Horas_Extras]]*(24*VLOOKUP(tb_ponto[[#This Row],[Cod_Funcionario]],tb_funcionarios[[Cod_Funcionario]:[Valor_Hora]],19,0)) -> 0.00
C98: P00091 | D98: 2026-03-31 | E98: F001 | F98: =VLOOKUP(tb_ponto[[#This Row],[Cod_Funcionario]],tb_funcionarios[[Cod_Funcionario]:[Nome_Completo]],2,0) -> Ana Lima | G98: =VLOOKUP(tb_ponto[[#This Row],[Cod_Funcionario]],tb_funcionarios[[Cod_Funcionario]:[Setor]],8,0) -> RH | H98: Normal | I98: 08:00:15.666 | J98: 11:59:52.348 | K98: 12:59:51.395 | L98: 15:46:27.938 | M98: =(tb_ponto[[#This Row],[Saida_1]]-tb_ponto[[#This Row],[Entrada_1]])+(tb_ponto[[#This Row],[Saida_2]]-tb_ponto[[#This Row],[Entrada_2]]) -> 06:46:13.224 | N98: =VLOOKUP(tb_ponto[[#This Row],[Cod_Funcionario]],tb_funcionarios[[Cod_Funcionario]:[Jornada_Diaria_Horas]],14,0) -> 08:00:00 | O98: =IF(tb_ponto[[#This Row],[Horas_Trabalhadas]]>tb_ponto[[#This Row],[Jornada_Padrao]],tb_ponto[[#This Row],[Jornada_Padrao]],tb_ponto[[#This Row],[Horas_Trabalhadas]]) -> 06:46:13.224 | P98: =IF(tb_ponto[[#This Row],[Horas_Trabalhadas]]>tb_ponto[[#This Row],[Horas_Normais]],tb_ponto[[#This Row],[Horas_Trabalhadas]]-tb_ponto[[#This Row],[Jornada_Padrao]],0) -> 00:00:00 | Q98: 00:00:00 | R98: =COUNTIFS(tb_ponto[Status_Dia],"Falta",tb_ponto[Cod_Funcionario],tb_ponto[[#This Row],[Cod_Funcionario]],tb_ponto[Competencia],tb_ponto[[#This Row],[Competencia]]) -> 0 | T98: =TEXT(tb_ponto[[#This Row],[Data]],"MMM-YY") -> Mar-26 | U98: =tb_ponto[[#This Row],[Horas_Extras]]*(24*VLOOKUP(tb_ponto[[#This Row],[Cod_Funcionario]],tb_funcionarios[[Cod_Funcionario]:[Valor_Hora]],19,0)) -> 0.00
C99: P00092 | D99: 2025-12-31 | E99: F002 | F99: =VLOOKUP(tb_ponto[[#This Row],[Cod_Funcionario]],tb_funcionarios[[Cod_Funcionario]:[Nome_Completo]],2,0) -> Bruno Costa | G99: =VLOOKUP(tb_ponto[[#This Row],[Cod_Funcionario]],tb_funcionarios[[Cod_Funcionario]:[Setor]],8,0) -> TI | H99: Feriado | M99: =(tb_ponto[[#This Row],[Saida_1]]-tb_ponto[[#This Row],[Entrada_1]])+(tb_ponto[[#This Row],[Saida_2]]-tb_ponto[[#This Row],[Entrada_2]]) -> 00:00:00 | N99: =VLOOKUP(tb_ponto[[#This Row],[Cod_Funcionario]],tb_funcionarios[[Cod_Funcionario]:[Jornada_Diaria_Horas]],14,0) -> 08:00:00 | O99: =IF(tb_ponto[[#This Row],[Horas_Trabalhadas]]>tb_ponto[[#This Row],[Jornada_Padrao]],tb_ponto[[#This Row],[Jornada_Padrao]],tb_ponto[[#This Row],[Horas_Trabalhadas]]) -> 00:00:00 | P99: =IF(tb_ponto[[#This Row],[Horas_Trabalhadas]]>tb_ponto[[#This Row],[Horas_Normais]],tb_ponto[[#This Row],[Horas_Trabalhadas]]-tb_ponto[[#This Row],[Jornada_Padrao]],0) -> 00:00:00 | Q99: 00:00:00 | R99: =COUNTIFS(tb_ponto[Status_Dia],"Falta",tb_ponto[Cod_Funcionario],tb_ponto[[#This Row],[Cod_Funcionario]],tb_ponto[Competencia],tb_ponto[[#This Row],[Competencia]]) -> 0 | T99: =TEXT(tb_ponto[[#This Row],[Data]],"MMM-YY") -> Dec-25 | U99: =tb_ponto[[#This Row],[Horas_Extras]]*(24*VLOOKUP(tb_ponto[[#This Row],[Cod_Funcionario]],tb_funcionarios[[Cod_Funcionario]:[Valor_Hora]],19,0)) -> 0.00
C100: P00093 | D100: 2026-01-01 | E100: F002 | F100: =VLOOKUP(tb_ponto[[#This Row],[Cod_Funcionario]],tb_funcionarios[[Cod_Funcionario]:[Nome_Completo]],2,0) -> Bruno Costa | G100: =VLOOKUP(tb_ponto[[#This Row],[Cod_Funcionario]],tb_funcionarios[[Cod_Funcionario]:[Setor]],8,0) -> TI | H100: Normal | I100: 08:00:25.441 | J100: 11:59:59.805 | K100: 12:59:53.735 | L100: 15:45:07.801 | M100: =(tb_ponto[[#This Row],[Saida_1]]-tb_ponto[[#This Row],[Entrada_1]])+(tb_ponto[[#This Row],[Saida_2]]-tb_ponto[[#This Row],[Entrada_2]]) -> 06:44:48.429 | N100: =VLOOKUP(tb_ponto[[#This Row],[Cod_Funcionario]],tb_funcionarios[[Cod_Funcionario]:[Jornada_Diaria_Horas]],14,0) -> 08:00:00 | O100: =IF(tb_ponto[[#This Row],[Horas_Trabalhadas]]>tb_ponto[[#This Row],[Jornada_Padrao]],tb_ponto[[#This Row],[Jornada_Padrao]],tb_ponto[[#This Row],[Horas_Trabalhadas]]) -> 06:44:48.429 | P100: =IF(tb_ponto[[#This Row],[Horas_Trabalhadas]]>tb_ponto[[#This Row],[Horas_Normais]],tb_ponto[[#This Row],[Horas_Trabalhadas]]-tb_ponto[[#This Row],[Jornada_Padrao]],0) -> 00:00:00 | Q100: 00:00:00 | R100: =COUNTIFS(tb_ponto[Status_Dia],"Falta",tb_ponto[Cod_Funcionario],tb_ponto[[#This Row],[Cod_Funcionario]],tb_ponto[Competencia],tb_ponto[[#This Row],[Competencia]]) -> 0 | T100: =TEXT(tb_ponto[[#This Row],[Data]],"MMM-YY") -> Jan-26 | U100: =tb_ponto[[#This Row],[Horas_Extras]]*(24*VLOOKUP(tb_ponto[[#This Row],[Cod_Funcionario]],tb_funcionarios[[Cod_Funcionario]:[Valor_Hora]],19,0)) -> 0.00
C101: P00094 | D101: 2026-01-02 | E101: F002 | F101: =VLOOKUP(tb_ponto[[#This Row],[Cod_Funcionario]],tb_funcionarios[[Cod_Funcionario]:[Nome_Completo]],2,0) -> Bruno Costa | G101: =VLOOKUP(tb_ponto[[#This Row],[Cod_Funcionario]],tb_funcionarios[[Cod_Funcionario]:[Setor]],8,0) -> TI | H101: Normal | I101: 08:00:34.613 | J101: 12:00:10.933 | K101: 13:00:03.112 | L101: 16:14:18.180 | M101: =(tb_ponto[[#This Row],[Saida_1]]-tb_ponto[[#This Row],[Entrada_1]])+(tb_ponto[[#This Row],[Saida_2]]-tb_ponto[[#This Row],[Entrada_2]]) -> 07:13:51.388 | N101: =VLOOKUP(tb_ponto[[#This Row],[Cod_Funcionario]],tb_funcionarios[[Cod_Funcionario]:[Jornada_Diaria_Horas]],14,0) -> 08:00:00 | O101: =IF(tb_ponto[[#This Row],[Horas_Trabalhadas]]>tb_ponto[[#This Row],[Jornada_Padrao]],tb_ponto[[#This Row],[Jornada_Padrao]],tb_ponto[[#This Row],[Horas_Trabalhadas]]) -> 07:13:51.388 | P101: =IF(tb_ponto[[#This Row],[Horas_Trabalhadas]]>tb_ponto[[#This Row],[Horas_Normais]],tb_ponto[[#This Row],[Horas_Trabalhadas]]-tb_ponto[[#This Row],[Jornada_Padrao]],0) -> 00:00:00 | Q101: 00:00:00 | R101: =COUNTIFS(tb_ponto[Status_Dia],"Falta",tb_ponto[Cod_Funcionario],tb_ponto[[#This Row],[Cod_Funcionario]],tb_ponto[Competencia],tb_ponto[[#This Row],[Competencia]]) -> 0 | T101: =TEXT(tb_ponto[[#This Row],[Data]],"MMM-YY") -> Jan-26 | U101: =tb_ponto[[#This Row],[Horas_Extras]]*(24*VLOOKUP(tb_ponto[[#This Row],[Cod_Funcionario]],tb_funcionarios[[Cod_Funcionario]:[Valor_Hora]],19,0)) -> 0.00
C102: P00095 | D102: 2026-01-03 | E102: F002 | F102: =VLOOKUP(tb_ponto[[#This Row],[Cod_Funcionario]],tb_funcionarios[[Cod_Funcionario]:[Nome_Completo]],2,0) -> Bruno Costa | G102: =VLOOKUP(tb_ponto[[#This Row],[Cod_Funcionario]],tb_funcionarios[[Cod_Funcionario]:[Setor]],8,0) -> TI | H102: Folga | M102: =(tb_ponto[[#This Row],[Saida_1]]-tb_ponto[[#This Row],[Entrada_1]])+(tb_ponto[[#This Row],[Saida_2]]-tb_ponto[[#This Row],[Entrada_2]]) -> 00:00:00 | N102: =VLOOKUP(tb_ponto[[#This Row],[Cod_Funcionario]],tb_funcionarios[[Cod_Funcionario]:[Jornada_Diaria_Horas]],14,0) -> 08:00:00 | O102: =IF(tb_ponto[[#This Row],[Horas_Trabalhadas]]>tb_ponto[[#This Row],[Jornada_Padrao]],tb_ponto[[#This Row],[Jornada_Padrao]],tb_ponto[[#This Row],[Horas_Trabalhadas]]) -> 00:00:00 | P102: =IF(tb_ponto[[#This Row],[Horas_Trabalhadas]]>tb_ponto[[#This Row],[Horas_Normais]],tb_ponto[[#This Row],[Horas_Trabalhadas]]-tb_ponto[[#This Row],[Jornada_Padrao]],0) -> 00:00:00 | Q102: 00:00:00 | R102: =COUNTIFS(tb_ponto[Status_Dia],"Falta",tb_ponto[Cod_Funcionario],tb_ponto[[#This Row],[Cod_Funcionario]],tb_ponto[Competencia],tb_ponto[[#This Row],[Competencia]]) -> 0 | T102: =TEXT(tb_ponto[[#This Row],[Data]],"MMM-YY") -> Jan-26 | U102: =tb_ponto[[#This Row],[Horas_Extras]]*(24*VLOOKUP(tb_ponto[[#This Row],[Cod_Funcionario]],tb_funcionarios[[Cod_Funcionario]:[Valor_Hora]],19,0)) -> 0.00
C103: P00096 | D103: 2026-01-04 | E103: F002 | F103: =VLOOKUP(tb_ponto[[#This Row],[Cod_Funcionario]],tb_funcionarios[[Cod_Funcionario]:[Nome_Completo]],2,0) -> Bruno Costa | G103: =VLOOKUP(tb_ponto[[#This Row],[Cod_Funcionario]],tb_funcionarios[[Cod_Funcionario]:[Setor]],8,0) -> TI | H103: Folga | M103: =(tb_ponto[[#This Row],[Saida_1]]-tb_ponto[[#This Row],[Entrada_1]])+(tb_ponto[[#This Row],[Saida_2]]-tb_ponto[[#This Row],[Entrada_2]]) -> 00:00:00 | N103: =VLOOKUP(tb_ponto[[#This Row],[Cod_Funcionario]],tb_funcionarios[[Cod_Funcionario]:[Jornada_Diaria_Horas]],14,0) -> 08:00:00 | O103: =IF(tb_ponto[[#This Row],[Horas_Trabalhadas]]>tb_ponto[[#This Row],[Jornada_Padrao]],tb_ponto[[#This Row],[Jornada_Padrao]],tb_ponto[[#This Row],[Horas_Trabalhadas]]) -> 00:00:00 | P103: =IF(tb_ponto[[#This Row],[Horas_Trabalhadas]]>tb_ponto[[#This Row],[Horas_Normais]],tb_ponto[[#This Row],[Horas_Trabalhadas]]-tb_ponto[[#This Row],[Jornada_Padrao]],0) -> 00:00:00 | Q103: 00:00:00 | R103: =COUNTIFS(tb_ponto[Status_Dia],"Falta",tb_ponto[Cod_Funcionario],tb_ponto[[#This Row],[Cod_Funcionario]],tb_ponto[Competencia],tb_ponto[[#This Row],[Competencia]]) -> 0 | T103: =TEXT(tb_ponto[[#This Row],[Data]],"MMM-YY") -> Jan-26 | U103: =tb_ponto[[#This Row],[Horas_Extras]]*(24*VLOOKUP(tb_ponto[[#This Row],[Cod_Funcionario]],tb_funcionarios[[Cod_Funcionario]:[Valor_Hora]],19,0)) -> 0.00
C104: P00097 | D104: 2026-01-05 | E104: F002 | F104: =VLOOKUP(tb_ponto[[#This Row],[Cod_Funcionario]],tb_funcionarios[[Cod_Funcionario]:[Nome_Completo]],2,0) -> Bruno Costa | G104: =VLOOKUP(tb_ponto[[#This Row],[Cod_Funcionario]],tb_funcionarios[[Cod_Funcionario]:[Setor]],8,0) -> TI | H104: Férias | M104: =(tb_ponto[[#This Row],[Saida_1]]-tb_ponto[[#This Row],[Entrada_1]])+(tb_ponto[[#This Row],[Saida_2]]-tb_ponto[[#This Row],[Entrada_2]]) -> 00:00:00 | N104: =VLOOKUP(tb_ponto[[#This Row],[Cod_Funcionario]],tb_funcionarios[[Cod_Funcionario]:[Jornada_Diaria_Horas]],14,0) -> 08:00:00 | O104: =IF(tb_ponto[[#This Row],[Horas_Trabalhadas]]>tb_ponto[[#This Row],[Jornada_Padrao]],tb_ponto[[#This Row],[Jornada_Padrao]],tb_ponto[[#This Row],[Horas_Trabalhadas]]) -> 00:00:00 | P104: =IF(tb_ponto[[#This Row],[Horas_Trabalhadas]]>tb_ponto[[#This Row],[Horas_Normais]],tb_ponto[[#This Row],[Horas_Trabalhadas]]-tb_ponto[[#This Row],[Jornada_Padrao]],0) -> 00:00:00 | Q104: 00:00:00 | R104: =COUNTIFS(tb_ponto[Status_Dia],"Falta",tb_ponto[Cod_Funcionario],tb_ponto[[#This Row],[Cod_Funcionario]],tb_ponto[Competencia],tb_ponto[[#This Row],[Competencia]]) -> 0 | T104: =TEXT(tb_ponto[[#This Row],[Data]],"MMM-YY") -> Jan-26 | U104: =tb_ponto[[#This Row],[Horas_Extras]]*(24*VLOOKUP(tb_ponto[[#This Row],[Cod_Funcionario]],tb_funcionarios[[Cod_Funcionario]:[Valor_Hora]],19,0)) -> 0.00
C105: P00098 | D105: 2026-01-06 | E105: F002 | F105: =VLOOKUP(tb_ponto[[#This Row],[Cod_Funcionario]],tb_funcionarios[[Cod_Funcionario]:[Nome_Completo]],2,0) -> Bruno Costa | G105: =VLOOKUP(tb_ponto[[#This Row],[Cod_Funcionario]],tb_funcionarios[[Cod_Funcionario]:[Setor]],8,0) -> TI | H105: Férias | M105: =(tb_ponto[[#This Row],[Saida_1]]-tb_ponto[[#This Row],[Entrada_1]])+(tb_ponto[[#This Row],[Saida_2]]-tb_ponto[[#This Row],[Entrada_2]]) -> 00:00:00 | N105: =VLOOKUP(tb_ponto[[#This Row],[Cod_Funcionario]],tb_funcionarios[[Cod_Funcionario]:[Jornada_Diaria_Horas]],14,0) -> 08:00:00 | O105: =IF(tb_ponto[[#This Row],[Horas_Trabalhadas]]>tb_ponto[[#This Row],[Jornada_Padrao]],tb_ponto[[#This Row],[Jornada_Padrao]],tb_ponto[[#This Row],[Horas_Trabalhadas]]) -> 00:00:00 | P105: =IF(tb_ponto[[#This Row],[Horas_Trabalhadas]]>tb_ponto[[#This Row],[Horas_Normais]],tb_ponto[[#This Row],[Horas_Trabalhadas]]-tb_ponto[[#This Row],[Jornada_Padrao]],0) -> 00:00:00 | Q105: 00:00:00 | R105: =COUNTIFS(tb_ponto[Status_Dia],"Falta",tb_ponto[Cod_Funcionario],tb_ponto[[#This Row],[Cod_Funcionario]],tb_ponto[Competencia],tb_ponto[[#This Row],[Competencia]]) -> 0 | T105: =TEXT(tb_ponto[[#This Row],[Data]],"MMM-YY") -> Jan-26 | U105: =tb_ponto[[#This Row],[Horas_Extras]]*(24*VLOOKUP(tb_ponto[[#This Row],[Cod_Funcionario]],tb_funcionarios[[Cod_Funcionario]:[Valor_Hora]],19,0)) -> 0.00
C106: P00099 | D106: 2026-01-07 | E106: F002 | F106: =VLOOKUP(tb_ponto[[#This Row],[Cod_Funcionario]],tb_funcionarios[[Cod_Funcionario]:[Nome_Completo]],2,0) -> Bruno Costa | G106: =VLOOKUP(tb_ponto[[#This Row],[Cod_Funcionario]],tb_funcionarios[[Cod_Funcionario]:[Setor]],8,0) -> TI | H106: Férias | M106: =(tb_ponto[[#This Row],[Saida_1]]-tb_ponto[[#This Row],[Entrada_1]])+(tb_ponto[[#This Row],[Saida_2]]-tb_ponto[[#This Row],[Entrada_2]]) -> 00:00:00 | N106: =VLOOKUP(tb_ponto[[#This Row],[Cod_Funcionario]],tb_funcionarios[[Cod_Funcionario]:[Jornada_Diaria_Horas]],14,0) -> 08:00:00 | O106: =IF(tb_ponto[[#This Row],[Horas_Trabalhadas]]>tb_ponto[[#This Row],[Jornada_Padrao]],tb_ponto[[#This Row],[Jornada_Padrao]],tb_ponto[[#This Row],[Horas_Trabalhadas]]) -> 00:00:00 | P106: =IF(tb_ponto[[#This Row],[Horas_Trabalhadas]]>tb_ponto[[#This Row],[Horas_Normais]],tb_ponto[[#This Row],[Horas_Trabalhadas]]-tb_ponto[[#This Row],[Jornada_Padrao]],0) -> 00:00:00 | Q106: 00:00:00 | R106: =COUNTIFS(tb_ponto[Status_Dia],"Falta",tb_ponto[Cod_Funcionario],tb_ponto[[#This Row],[Cod_Funcionario]],tb_ponto[Competencia],tb_ponto[[#This Row],[Competencia]]) -> 0 | T106: =TEXT(tb_ponto[[#This Row],[Data]],"MMM-YY") -> Jan-26 | U106: =tb_ponto[[#This Row],[Horas_Extras]]*(24*VLOOKUP(tb_ponto[[#This Row],[Cod_Funcionario]],tb_funcionarios[[Cod_Funcionario]:[Valor_Hora]],19,0)) -> 0.00
C107: P00100 | D107: 2026-01-08 | E107: F002 | F107: =VLOOKUP(tb_ponto[[#This Row],[Cod_Funcionario]],tb_funcionarios[[Cod_Funcionario]:[Nome_Completo]],2,0) -> Bruno Costa | G107: =VLOOKUP(tb_ponto[[#This Row],[Cod_Funcionario]],tb_funcionarios[[Cod_Funcionario]:[Setor]],8,0) -> TI | H107: Férias | M107: =(tb_ponto[[#This Row],[Saida_1]]-tb_ponto[[#This Row],[Entrada_1]])+(tb_ponto[[#This Row],[Saida_2]]-tb_ponto[[#This Row],[Entrada_2]]) -> 00:00:00 | N107: =VLOOKUP(tb_ponto[[#This Row],[Cod_Funcionario]],tb_funcionarios[[Cod_Funcionario]:[Jornada_Diaria_Horas]],14,0) -> 08:00:00 | O107: =IF(tb_ponto[[#This Row],[Horas_Trabalhadas]]>tb_ponto[[#This Row],[Jornada_Padrao]],tb_ponto[[#This Row],[Jornada_Padrao]],tb_ponto[[#This Row],[Horas_Trabalhadas]]) -> 00:00:00 | P107: =IF(tb_ponto[[#This Row],[Horas_Trabalhadas]]>tb_ponto[[#This Row],[Horas_Normais]],tb_ponto[[#This Row],[Horas_Trabalhadas]]-tb_ponto[[#This Row],[Jornada_Padrao]],0) -> 00:00:00 | Q107: 00:00:00 | R107: =COUNTIFS(tb_ponto[Status_Dia],"Falta",tb_ponto[Cod_Funcionario],tb_ponto[[#This Row],[Cod_Funcionario]],tb_ponto[Competencia],tb_ponto[[#This Row],[Competencia]]) -> 0 | T107: =TEXT(tb_ponto[[#This Row],[Data]],"MMM-YY") -> Jan-26 | U107: =tb_ponto[[#This Row],[Horas_Extras]]*(24*VLOOKUP(tb_ponto[[#This Row],[Cod_Funcionario]],tb_funcionarios[[Cod_Funcionario]:[Valor_Hora]],19,0)) -> 0.00
C108: P00101 | D108: 2026-01-09 | E108: F002 | F108: =VLOOKUP(tb_ponto[[#This Row],[Cod_Funcionario]],tb_funcionarios[[Cod_Funcionario]:[Nome_Completo]],2,0) -> Bruno Costa | G108: =VLOOKUP(tb_ponto[[#This Row],[Cod_Funcionario]],tb_funcionarios[[Cod_Funcionario]:[Setor]],8,0) -> TI | H108: Férias | M108: =(tb_ponto[[#This Row],[Saida_1]]-tb_ponto[[#This Row],[Entrada_1]])+(tb_ponto[[#This Row],[Saida_2]]-tb_ponto[[#This Row],[Entrada_2]]) -> 00:00:00 | N108: =VLOOKUP(tb_ponto[[#This Row],[Cod_Funcionario]],tb_funcionarios[[Cod_Funcionario]:[Jornada_Diaria_Horas]],14,0) -> 08:00:00 | O108: =IF(tb_ponto[[#This Row],[Horas_Trabalhadas]]>tb_ponto[[#This Row],[Jornada_Padrao]],tb_ponto[[#This Row],[Jornada_Padrao]],tb_ponto[[#This Row],[Horas_Trabalhadas]]) -> 00:00:00 | P108: =IF(tb_ponto[[#This Row],[Horas_Trabalhadas]]>tb_ponto[[#This Row],[Horas_Normais]],tb_ponto[[#This Row],[Horas_Trabalhadas]]-tb_ponto[[#This Row],[Jornada_Padrao]],0) -> 00:00:00 | Q108: 00:00:00 | R108: =COUNTIFS(tb_ponto[Status_Dia],"Falta",tb_ponto[Cod_Funcionario],tb_ponto[[#This Row],[Cod_Funcionario]],tb_ponto[Competencia],tb_ponto[[#This Row],[Competencia]]) -> 0 | T108: =TEXT(tb_ponto[[#This Row],[Data]],"MMM-YY") -> Jan-26 | U108: =tb_ponto[[#This Row],[Horas_Extras]]*(24*VLOOKUP(tb_ponto[[#This Row],[Cod_Funcionario]],tb_funcionarios[[Cod_Funcionario]:[Valor_Hora]],19,0)) -> 0.00
C109: P00102 | D109: 2026-01-10 | E109: F002 | F109: =VLOOKUP(tb_ponto[[#This Row],[Cod_Funcionario]],tb_funcionarios[[Cod_Funcionario]:[Nome_Completo]],2,0) -> Bruno Costa | G109: =VLOOKUP(tb_ponto[[#This Row],[Cod_Funcionario]],tb_funcionarios[[Cod_Funcionario]:[Setor]],8,0) -> TI | H109: Folga | M109: =(tb_ponto[[#This Row],[Saida_1]]-tb_ponto[[#This Row],[Entrada_1]])+(tb_ponto[[#This Row],[Saida_2]]-tb_ponto[[#This Row],[Entrada_2]]) -> 00:00:00 | N109: =VLOOKUP(tb_ponto[[#This Row],[Cod_Funcionario]],tb_funcionarios[[Cod_Funcionario]:[Jornada_Diaria_Horas]],14,0) -> 08:00:00 | O109: =IF(tb_ponto[[#This Row],[Horas_Trabalhadas]]>tb_ponto[[#This Row],[Jornada_Padrao]],tb_ponto[[#This Row],[Jornada_Padrao]],tb_ponto[[#This Row],[Horas_Trabalhadas]]) -> 00:00:00 | P109: =IF(tb_ponto[[#This Row],[Horas_Trabalhadas]]>tb_ponto[[#This Row],[Horas_Normais]],tb_ponto[[#This Row],[Horas_Trabalhadas]]-tb_ponto[[#This Row],[Jornada_Padrao]],0) -> 00:00:00 | Q109: 00:00:00 | R109: =COUNTIFS(tb_ponto[Status_Dia],"Falta",tb_ponto[Cod_Funcionario],tb_ponto[[#This Row],[Cod_Funcionario]],tb_ponto[Competencia],tb_ponto[[#This Row],[Competencia]]) -> 0 | T109: =TEXT(tb_ponto[[#This Row],[Data]],"MMM-YY") -> Jan-26 | U109: =tb_ponto[[#This Row],[Horas_Extras]]*(24*VLOOKUP(tb_ponto[[#This Row],[Cod_Funcionario]],tb_funcionarios[[Cod_Funcionario]:[Valor_Hora]],19,0)) -> 0.00
C110: P00103 | D110: 2026-01-11 | E110: F002 | F110: =VLOOKUP(tb_ponto[[#This Row],[Cod_Funcionario]],tb_funcionarios[[Cod_Funcionario]:[Nome_Completo]],2,0) -> Bruno Costa | G110: =VLOOKUP(tb_ponto[[#This Row],[Cod_Funcionario]],tb_funcionarios[[Cod_Funcionario]:[Setor]],8,0) -> TI | H110: Folga | M110: =(tb_ponto[[#This Row],[Saida_1]]-tb_ponto[[#This Row],[Entrada_1]])+(tb_ponto[[#This Row],[Saida_2]]-tb_ponto[[#This Row],[Entrada_2]]) -> 00:00:00 | N110: =VLOOKUP(tb_ponto[[#This Row],[Cod_Funcionario]],tb_funcionarios[[Cod_Funcionario]:[Jornada_Diaria_Horas]],14,0) -> 08:00:00 | O110: =IF(tb_ponto[[#This Row],[Horas_Trabalhadas]]>tb_ponto[[#This Row],[Jornada_Padrao]],tb_ponto[[#This Row],[Jornada_Padrao]],tb_ponto[[#This Row],[Horas_Trabalhadas]]) -> 00:00:00 | P110: =IF(tb_ponto[[#This Row],[Horas_Trabalhadas]]>tb_ponto[[#This Row],[Horas_Normais]],tb_ponto[[#This Row],[Horas_Trabalhadas]]-tb_ponto[[#This Row],[Jornada_Padrao]],0) -> 00:00:00 | Q110: 00:00:00 | R110: =COUNTIFS(tb_ponto[Status_Dia],"Falta",tb_ponto[Cod_Funcionario],tb_ponto[[#This Row],[Cod_Funcionario]],tb_ponto[Competencia],tb_ponto[[#This Row],[Competencia]]) -> 0 | T110: =TEXT(tb_ponto[[#This Row],[Data]],"MMM-YY") -> Jan-26 | U110: =tb_ponto[[#This Row],[Horas_Extras]]*(24*VLOOKUP(tb_ponto[[#This Row],[Cod_Funcionario]],tb_funcionarios[[Cod_Funcionario]:[Valor_Hora]],19,0)) -> 0.00
C111: P00104 | D111: 2026-01-12 | E111: F002 | F111: =VLOOKUP(tb_ponto[[#This Row],[Cod_Funcionario]],tb_funcionarios[[Cod_Funcionario]:[Nome_Completo]],2,0) -> Bruno Costa | G111: =VLOOKUP(tb_ponto[[#This Row],[Cod_Funcionario]],tb_funcionarios[[Cod_Funcionario]:[Setor]],8,0) -> TI | H111: Férias | M111: =(tb_ponto[[#This Row],[Saida_1]]-tb_ponto[[#This Row],[Entrada_1]])+(tb_ponto[[#This Row],[Saida_2]]-tb_ponto[[#This Row],[Entrada_2]]) -> 00:00:00 | N111: =VLOOKUP(tb_ponto[[#This Row],[Cod_Funcionario]],tb_funcionarios[[Cod_Funcionario]:[Jornada_Diaria_Horas]],14,0) -> 08:00:00 | O111: =IF(tb_ponto[[#This Row],[Horas_Trabalhadas]]>tb_ponto[[#This Row],[Jornada_Padrao]],tb_ponto[[#This Row],[Jornada_Padrao]],tb_ponto[[#This Row],[Horas_Trabalhadas]]) -> 00:00:00 | P111: =IF(tb_ponto[[#This Row],[Horas_Trabalhadas]]>tb_ponto[[#This Row],[Horas_Normais]],tb_ponto[[#This Row],[Horas_Trabalhadas]]-tb_ponto[[#This Row],[Jornada_Padrao]],0) -> 00:00:00 | Q111: 00:00:00 | R111: =COUNTIFS(tb_ponto[Status_Dia],"Falta",tb_ponto[Cod_Funcionario],tb_ponto[[#This Row],[Cod_Funcionario]],tb_ponto[Competencia],tb_ponto[[#This Row],[Competencia]]) -> 0 | T111: =TEXT(tb_ponto[[#This Row],[Data]],"MMM-YY") -> Jan-26 | U111: =tb_ponto[[#This Row],[Horas_Extras]]*(24*VLOOKUP(tb_ponto[[#This Row],[Cod_Funcionario]],tb_funcionarios[[Cod_Funcionario]:[Valor_Hora]],19,0)) -> 0.00
C112: P00105 | D112: 2026-01-13 | E112: F002 | F112: =VLOOKUP(tb_ponto[[#This Row],[Cod_Funcionario]],tb_funcionarios[[Cod_Funcionario]:[Nome_Completo]],2,0) -> Bruno Costa | G112: =VLOOKUP(tb_ponto[[#This Row],[Cod_Funcionario]],tb_funcionarios[[Cod_Funcionario]:[Setor]],8,0) -> TI | H112: Férias | M112: =(tb_ponto[[#This Row],[Saida_1]]-tb_ponto[[#This Row],[Entrada_1]])+(tb_ponto[[#This Row],[Saida_2]]-tb_ponto[[#This Row],[Entrada_2]]) -> 00:00:00 | N112: =VLOOKUP(tb_ponto[[#This Row],[Cod_Funcionario]],tb_funcionarios[[Cod_Funcionario]:[Jornada_Diaria_Horas]],14,0) -> 08:00:00 | O112: =IF(tb_ponto[[#This Row],[Horas_Trabalhadas]]>tb_ponto[[#This Row],[Jornada_Padrao]],tb_ponto[[#This Row],[Jornada_Padrao]],tb_ponto[[#This Row],[Horas_Trabalhadas]]) -> 00:00:00 | P112: =IF(tb_ponto[[#This Row],[Horas_Trabalhadas]]>tb_ponto[[#This Row],[Horas_Normais]],tb_ponto[[#This Row],[Horas_Trabalhadas]]-tb_ponto[[#This Row],[Jornada_Padrao]],0) -> 00:00:00 | Q112: 00:00:00 | R112: =COUNTIFS(tb_ponto[Status_Dia],"Falta",tb_ponto[Cod_Funcionario],tb_ponto[[#This Row],[Cod_Funcionario]],tb_ponto[Competencia],tb_ponto[[#This Row],[Competencia]]) -> 0 | T112: =TEXT(tb_ponto[[#This Row],[Data]],"MMM-YY") -> Jan-26 | U112: =tb_ponto[[#This Row],[Horas_Extras]]*(24*VLOOKUP(tb_ponto[[#This Row],[Cod_Funcionario]],tb_funcionarios[[Cod_Funcionario]:[Valor_Hora]],19,0)) -> 0.00
C113: P00106 | D113: 2026-01-14 | E113: F002 | F113: =VLOOKUP(tb_ponto[[#This Row],[Cod_Funcionario]],tb_funcionarios[[Cod_Funcionario]:[Nome_Completo]],2,0) -> Bruno Costa | G113: =VLOOKUP(tb_ponto[[#This Row],[Cod_Funcionario]],tb_funcionarios[[Cod_Funcionario]:[Setor]],8,0) -> TI | H113: Férias | M113: =(tb_ponto[[#This Row],[Saida_1]]-tb_ponto[[#This Row],[Entrada_1]])+(tb_ponto[[#This Row],[Saida_2]]-tb_ponto[[#This Row],[Entrada_2]]) -> 00:00:00 | N113: =VLOOKUP(tb_ponto[[#This Row],[Cod_Funcionario]],tb_funcionarios[[Cod_Funcionario]:[Jornada_Diaria_Horas]],14,0) -> 08:00:00 | O113: =IF(tb_ponto[[#This Row],[Horas_Trabalhadas]]>tb_ponto[[#This Row],[Jornada_Padrao]],tb_ponto[[#This Row],[Jornada_Padrao]],tb_ponto[[#This Row],[Horas_Trabalhadas]]) -> 00:00:00 | P113: =IF(tb_ponto[[#This Row],[Horas_Trabalhadas]]>tb_ponto[[#This Row],[Horas_Normais]],tb_ponto[[#This Row],[Horas_Trabalhadas]]-tb_ponto[[#This Row],[Jornada_Padrao]],0) -> 00:00:00 | Q113: 00:00:00 | R113: =COUNTIFS(tb_ponto[Status_Dia],"Falta",tb_ponto[Cod_Funcionario],tb_ponto[[#This Row],[Cod_Funcionario]],tb_ponto[Competencia],tb_ponto[[#This Row],[Competencia]]) -> 0 | T113: =TEXT(tb_ponto[[#This Row],[Data]],"MMM-YY") -> Jan-26 | U113: =tb_ponto[[#This Row],[Horas_Extras]]*(24*VLOOKUP(tb_ponto[[#This Row],[Cod_Funcionario]],tb_funcionarios[[Cod_Funcionario]:[Valor_Hora]],19,0)) -> 0.00
C114: P00107 | D114: 2026-01-15 | E114: F002 | F114: =VLOOKUP(tb_ponto[[#This Row],[Cod_Funcionario]],tb_funcionarios[[Cod_Funcionario]:[Nome_Completo]],2,0) -> Bruno Costa | G114: =VLOOKUP(tb_ponto[[#This Row],[Cod_Funcionario]],tb_funcionarios[[Cod_Funcionario]:[Setor]],8,0) -> TI | H114: Férias | M114: =(tb_ponto[[#This Row],[Saida_1]]-tb_ponto[[#This Row],[Entrada_1]])+(tb_ponto[[#This Row],[Saida_2]]-tb_ponto[[#This Row],[Entrada_2]]) -> 00:00:00 | N114: =VLOOKUP(tb_ponto[[#This Row],[Cod_Funcionario]],tb_funcionarios[[Cod_Funcionario]:[Jornada_Diaria_Horas]],14,0) -> 08:00:00 | O114: =IF(tb_ponto[[#This Row],[Horas_Trabalhadas]]>tb_ponto[[#This Row],[Jornada_Padrao]],tb_ponto[[#This Row],[Jornada_Padrao]],tb_ponto[[#This Row],[Horas_Trabalhadas]]) -> 00:00:00 | P114: =IF(tb_ponto[[#This Row],[Horas_Trabalhadas]]>tb_ponto[[#This Row],[Horas_Normais]],tb_ponto[[#This Row],[Horas_Trabalhadas]]-tb_ponto[[#This Row],[Jornada_Padrao]],0) -> 00:00:00 | Q114: 00:00:00 | R114: =COUNTIFS(tb_ponto[Status_Dia],"Falta",tb_ponto[Cod_Funcionario],tb_ponto[[#This Row],[Cod_Funcionario]],tb_ponto[Competencia],tb_ponto[[#This Row],[Competencia]]) -> 0 | T114: =TEXT(tb_ponto[[#This Row],[Data]],"MMM-YY") -> Jan-26 | U114: =tb_ponto[[#This Row],[Horas_Extras]]*(24*VLOOKUP(tb_ponto[[#This Row],[Cod_Funcionario]],tb_funcionarios[[Cod_Funcionario]:[Valor_Hora]],19,0)) -> 0.00
C115: P00108 | D115: 2026-01-16 | E115: F002 | F115: =VLOOKUP(tb_ponto[[#This Row],[Cod_Funcionario]],tb_funcionarios[[Cod_Funcionario]:[Nome_Completo]],2,0) -> Bruno Costa | G115: =VLOOKUP(tb_ponto[[#This Row],[Cod_Funcionario]],tb_funcionarios[[Cod_Funcionario]:[Setor]],8,0) -> TI | H115: Férias | M115: =(tb_ponto[[#This Row],[Saida_1]]-tb_ponto[[#This Row],[Entrada_1]])+(tb_ponto[[#This Row],[Saida_2]]-tb_ponto[[#This Row],[Entrada_2]]) -> 00:00:00 | N115: =VLOOKUP(tb_ponto[[#This Row],[Cod_Funcionario]],tb_funcionarios[[Cod_Funcionario]:[Jornada_Diaria_Horas]],14,0) -> 08:00:00 | O115: =IF(tb_ponto[[#This Row],[Horas_Trabalhadas]]>tb_ponto[[#This Row],[Jornada_Padrao]],tb_ponto[[#This Row],[Jornada_Padrao]],tb_ponto[[#This Row],[Horas_Trabalhadas]]) -> 00:00:00 | P115: =IF(tb_ponto[[#This Row],[Horas_Trabalhadas]]>tb_ponto[[#This Row],[Horas_Normais]],tb_ponto[[#This Row],[Horas_Trabalhadas]]-tb_ponto[[#This Row],[Jornada_Padrao]],0) -> 00:00:00 | Q115: 00:00:00 | R115: =COUNTIFS(tb_ponto[Status_Dia],"Falta",tb_ponto[Cod_Funcionario],tb_ponto[[#This Row],[Cod_Funcionario]],tb_ponto[Competencia],tb_ponto[[#This Row],[Competencia]]) -> 0 | T115: =TEXT(tb_ponto[[#This Row],[Data]],"MMM-YY") -> Jan-26 | U115: =tb_ponto[[#This Row],[Horas_Extras]]*(24*VLOOKUP(tb_ponto[[#This Row],[Cod_Funcionario]],tb_funcionarios[[Cod_Funcionario]:[Valor_Hora]],19,0)) -> 0.00
C116: P00109 | D116: 2026-01-17 | E116: F002 | F116: =VLOOKUP(tb_ponto[[#This Row],[Cod_Funcionario]],tb_funcionarios[[Cod_Funcionario]:[Nome_Completo]],2,0) -> Bruno Costa | G116: =VLOOKUP(tb_ponto[[#This Row],[Cod_Funcionario]],tb_funcionarios[[Cod_Funcionario]:[Setor]],8,0) -> TI | H116: Folga | M116: =(tb_ponto[[#This Row],[Saida_1]]-tb_ponto[[#This Row],[Entrada_1]])+(tb_ponto[[#This Row],[Saida_2]]-tb_ponto[[#This Row],[Entrada_2]]) -> 00:00:00 | N116: =VLOOKUP(tb_ponto[[#This Row],[Cod_Funcionario]],tb_funcionarios[[Cod_Funcionario]:[Jornada_Diaria_Horas]],14,0) -> 08:00:00 | O116: =IF(tb_ponto[[#This Row],[Horas_Trabalhadas]]>tb_ponto[[#This Row],[Jornada_Padrao]],tb_ponto[[#This Row],[Jornada_Padrao]],tb_ponto[[#This Row],[Horas_Trabalhadas]]) -> 00:00:00 | P116: =IF(tb_ponto[[#This Row],[Horas_Trabalhadas]]>tb_ponto[[#This Row],[Horas_Normais]],tb_ponto[[#This Row],[Horas_Trabalhadas]]-tb_ponto[[#This Row],[Jornada_Padrao]],0) -> 00:00:00 | Q116: 00:00:00 | R116: =COUNTIFS(tb_ponto[Status_Dia],"Falta",tb_ponto[Cod_Funcionario],tb_ponto[[#This Row],[Cod_Funcionario]],tb_ponto[Competencia],tb_ponto[[#This Row],[Competencia]]) -> 0 | T116: =TEXT(tb_ponto[[#This Row],[Data]],"MMM-YY") -> Jan-26 | U116: =tb_ponto[[#This Row],[Horas_Extras]]*(24*VLOOKUP(tb_ponto[[#This Row],[Cod_Funcionario]],tb_funcionarios[[Cod_Funcionario]:[Valor_Hora]],19,0)) -> 0.00
C117: P00110 | D117: 2026-01-18 | E117: F002 | F117: =VLOOKUP(tb_ponto[[#This Row],[Cod_Funcionario]],tb_funcionarios[[Cod_Funcionario]:[Nome_Completo]],2,0) -> Bruno Costa | G117: =VLOOKUP(tb_ponto[[#This Row],[Cod_Funcionario]],tb_funcionarios[[Cod_Funcionario]:[Setor]],8,0) -> TI | H117: Folga | M117: =(tb_ponto[[#This Row],[Saida_1]]-tb_ponto[[#This Row],[Entrada_1]])+(tb_ponto[[#This Row],[Saida_2]]-tb_ponto[[#This Row],[Entrada_2]]) -> 00:00:00 | N117: =VLOOKUP(tb_ponto[[#This Row],[Cod_Funcionario]],tb_funcionarios[[Cod_Funcionario]:[Jornada_Diaria_Horas]],14,0) -> 08:00:00 | O117: =IF(tb_ponto[[#This Row],[Horas_Trabalhadas]]>tb_ponto[[#This Row],[Jornada_Padrao]],tb_ponto[[#This Row],[Jornada_Padrao]],tb_ponto[[#This Row],[Horas_Trabalhadas]]) -> 00:00:00 | P117: =IF(tb_ponto[[#This Row],[Horas_Trabalhadas]]>tb_ponto[[#This Row],[Horas_Normais]],tb_ponto[[#This Row],[Horas_Trabalhadas]]-tb_ponto[[#This Row],[Jornada_Padrao]],0) -> 00:00:00 | Q117: 00:00:00 | R117: =COUNTIFS(tb_ponto[Status_Dia],"Falta",tb_ponto[Cod_Funcionario],tb_ponto[[#This Row],[Cod_Funcionario]],tb_ponto[Competencia],tb_ponto[[#This Row],[Competencia]]) -> 0 | T117: =TEXT(tb_ponto[[#This Row],[Data]],"MMM-YY") -> Jan-26 | U117: =tb_ponto[[#This Row],[Horas_Extras]]*(24*VLOOKUP(tb_ponto[[#This Row],[Cod_Funcionario]],tb_funcionarios[[Cod_Funcionario]:[Valor_Hora]],19,0)) -> 0.00
C118: P00111 | D118: 2026-01-19 | E118: F002 | F118: =VLOOKUP(tb_ponto[[#This Row],[Cod_Funcionario]],tb_funcionarios[[Cod_Funcionario]:[Nome_Completo]],2,0) -> Bruno Costa | G118: =VLOOKUP(tb_ponto[[#This Row],[Cod_Funcionario]],tb_funcionarios[[Cod_Funcionario]:[Setor]],8,0) -> TI | H118: Normal | I118: 08:00:15.932 | J118: 12:00:11.991 | K118: 13:00:17.380 | L118: 16:04:26.604 | M118: =(tb_ponto[[#This Row],[Saida_1]]-tb_ponto[[#This Row],[Entrada_1]])+(tb_ponto[[#This Row],[Saida_2]]-tb_ponto[[#This Row],[Entrada_2]]) -> 07:04:05.283 | N118: =VLOOKUP(tb_ponto[[#This Row],[Cod_Funcionario]],tb_funcionarios[[Cod_Funcionario]:[Jornada_Diaria_Horas]],14,0) -> 08:00:00 | O118: =IF(tb_ponto[[#This Row],[Horas_Trabalhadas]]>tb_ponto[[#This Row],[Jornada_Padrao]],tb_ponto[[#This Row],[Jornada_Padrao]],tb_ponto[[#This Row],[Horas_Trabalhadas]]) -> 07:04:05.283 | P118: =IF(tb_ponto[[#This Row],[Horas_Trabalhadas]]>tb_ponto[[#This Row],[Horas_Normais]],tb_ponto[[#This Row],[Horas_Trabalhadas]]-tb_ponto[[#This Row],[Jornada_Padrao]],0) -> 00:00:00 | Q118: 00:00:00 | R118: =COUNTIFS(tb_ponto[Status_Dia],"Falta",tb_ponto[Cod_Funcionario],tb_ponto[[#This Row],[Cod_Funcionario]],tb_ponto[Competencia],tb_ponto[[#This Row],[Competencia]]) -> 0 | T118: =TEXT(tb_ponto[[#This Row],[Data]],"MMM-YY") -> Jan-26 | U118: =tb_ponto[[#This Row],[Horas_Extras]]*(24*VLOOKUP(tb_ponto[[#This Row],[Cod_Funcionario]],tb_funcionarios[[Cod_Funcionario]:[Valor_Hora]],19,0)) -> 0.00
C119: P00112 | D119: 2026-01-20 | E119: F002 | F119: =VLOOKUP(tb_ponto[[#This Row],[Cod_Funcionario]],tb_funcionarios[[Cod_Funcionario]:[Nome_Completo]],2,0) -> Bruno Costa | G119: =VLOOKUP(tb_ponto[[#This Row],[Cod_Funcionario]],tb_funcionarios[[Cod_Funcionario]:[Setor]],8,0) -> TI | H119: Normal | I119: 07:59:33.617 | J119: 12:00:10.588 | K119: 12:59:54.807 | L119: 16:05:01.042 | M119: =(tb_ponto[[#This Row],[Saida_1]]-tb_ponto[[#This Row],[Entrada_1]])+(tb_ponto[[#This Row],[Saida_2]]-tb_ponto[[#This Row],[Entrada_2]]) -> 07:05:43.206 | N119: =VLOOKUP(tb_ponto[[#This Row],[Cod_Funcionario]],tb_funcionarios[[Cod_Funcionario]:[Jornada_Diaria_Horas]],14,0) -> 08:00:00 | O119: =IF(tb_ponto[[#This Row],[Horas_Trabalhadas]]>tb_ponto[[#This Row],[Jornada_Padrao]],tb_ponto[[#This Row],[Jornada_Padrao]],tb_ponto[[#This Row],[Horas_Trabalhadas]]) -> 07:05:43.206 | P119: =IF(tb_ponto[[#This Row],[Horas_Trabalhadas]]>tb_ponto[[#This Row],[Horas_Normais]],tb_ponto[[#This Row],[Horas_Trabalhadas]]-tb_ponto[[#This Row],[Jornada_Padrao]],0) -> 00:00:00 | Q119: 00:00:00 | R119: =COUNTIFS(tb_ponto[Status_Dia],"Falta",tb_ponto[Cod_Funcionario],tb_ponto[[#This Row],[Cod_Funcionario]],tb_ponto[Competencia],tb_ponto[[#This Row],[Competencia]]) -> 0 | T119: =TEXT(tb_ponto[[#This Row],[Data]],"MMM-YY") -> Jan-26 | U119: =tb_ponto[[#This Row],[Horas_Extras]]*(24*VLOOKUP(tb_ponto[[#This Row],[Cod_Funcionario]],tb_funcionarios[[Cod_Funcionario]:[Valor_Hora]],19,0)) -> 0.00
C120: P00113 | D120: 2026-01-21 | E120: F002 | F120: =VLOOKUP(tb_ponto[[#This Row],[Cod_Funcionario]],tb_funcionarios[[Cod_Funcionario]:[Nome_Completo]],2,0) -> Bruno Costa | G120: =VLOOKUP(tb_ponto[[#This Row],[Cod_Funcionario]],tb_funcionarios[[Cod_Funcionario]:[Setor]],8,0) -> TI | H120: Normal | I120: 08:00:29.257 | J120: 11:59:58.713 | K120: 12:59:43.169 | L120: 16:05:08.511 | M120: =(tb_ponto[[#This Row],[Saida_1]]-tb_ponto[[#This Row],[Entrada_1]])+(tb_ponto[[#This Row],[Saida_2]]-tb_ponto[[#This Row],[Entrada_2]]) -> 07:04:54.797 | N120: =VLOOKUP(tb_ponto[[#This Row],[Cod_Funcionario]],tb_funcionarios[[Cod_Funcionario]:[Jornada_Diaria_Horas]],14,0) -> 08:00:00 | O120: =IF(tb_ponto[[#This Row],[Horas_Trabalhadas]]>tb_ponto[[#This Row],[Jornada_Padrao]],tb_ponto[[#This Row],[Jornada_Padrao]],tb_ponto[[#This Row],[Horas_Trabalhadas]]) -> 07:04:54.797 | P120: =IF(tb_ponto[[#This Row],[Horas_Trabalhadas]]>tb_ponto[[#This Row],[Horas_Normais]],tb_ponto[[#This Row],[Horas_Trabalhadas]]-tb_ponto[[#This Row],[Jornada_Padrao]],0) -> 00:00:00 | Q120: 00:00:00 | R120: =COUNTIFS(tb_ponto[Status_Dia],"Falta",tb_ponto[Cod_Funcionario],tb_ponto[[#This Row],[Cod_Funcionario]],tb_ponto[Competencia],tb_ponto[[#This Row],[Competencia]]) -> 0 | T120: =TEXT(tb_ponto[[#This Row],[Data]],"MMM-YY") -> Jan-26 | U120: =tb_ponto[[#This Row],[Horas_Extras]]*(24*VLOOKUP(tb_ponto[[#This Row],[Cod_Funcionario]],tb_funcionarios[[Cod_Funcionario]:[Valor_Hora]],19,0)) -> 0.00
C121: P00114 | D121: 2026-01-22 | E121: F002 | F121: =VLOOKUP(tb_ponto[[#This Row],[Cod_Funcionario]],tb_funcionarios[[Cod_Funcionario]:[Nome_Completo]],2,0) -> Bruno Costa | G121: =VLOOKUP(tb_ponto[[#This Row],[Cod_Funcionario]],tb_funcionarios[[Cod_Funcionario]:[Setor]],8,0) -> TI | H121: Normal | I121: 07:59:35.041 | J121: 12:00:17.745 | K121: 12:59:56.527 | L121: 15:58:20.062 | M121: =(tb_ponto[[#This Row],[Saida_1]]-tb_ponto[[#This Row],[Entrada_1]])+(tb_ponto[[#This Row],[Saida_2]]-tb_ponto[[#This Row],[Entrada_2]]) -> 06:59:06.239 | N121: =VLOOKUP(tb_ponto[[#This Row],[Cod_Funcionario]],tb_funcionarios[[Cod_Funcionario]:[Jornada_Diaria_Horas]],14,0) -> 08:00:00 | O121: =IF(tb_ponto[[#This Row],[Horas_Trabalhadas]]>tb_ponto[[#This Row],[Jornada_Padrao]],tb_ponto[[#This Row],[Jornada_Padrao]],tb_ponto[[#This Row],[Horas_Trabalhadas]]) -> 06:59:06.239 | P121: =IF(tb_ponto[[#This Row],[Horas_Trabalhadas]]>tb_ponto[[#This Row],[Horas_Normais]],tb_ponto[[#This Row],[Horas_Trabalhadas]]-tb_ponto[[#This Row],[Jornada_Padrao]],0) -> 00:00:00 | Q121: 00:00:00 | R121: =COUNTIFS(tb_ponto[Status_Dia],"Falta",tb_ponto[Cod_Funcionario],tb_ponto[[#This Row],[Cod_Funcionario]],tb_ponto[Competencia],tb_ponto[[#This Row],[Competencia]]) -> 0 | T121: =TEXT(tb_ponto[[#This Row],[Data]],"MMM-YY") -> Jan-26 | U121: =tb_ponto[[#This Row],[Horas_Extras]]*(24*VLOOKUP(tb_ponto[[#This Row],[Cod_Funcionario]],tb_funcionarios[[Cod_Funcionario]:[Valor_Hora]],19,0)) -> 0.00
C122: P00115 | D122: 2026-01-23 | E122: F002 | F122: =VLOOKUP(tb_ponto[[#This Row],[Cod_Funcionario]],tb_funcionarios[[Cod_Funcionario]:[Nome_Completo]],2,0) -> Bruno Costa | G122: =VLOOKUP(tb_ponto[[#This Row],[Cod_Funcionario]],tb_funcionarios[[Cod_Funcionario]:[Setor]],8,0) -> TI | H122: Normal | I122: 08:00:30.588 | J122: 11:59:57.799 | K122: 13:00:04.672 | L122: 16:14:26.819 | M122: =(tb_ponto[[#This Row],[Saida_1]]-tb_ponto[[#This Row],[Entrada_1]])+(tb_ponto[[#This Row],[Saida_2]]-tb_ponto[[#This Row],[Entrada_2]]) -> 07:13:49.357 | N122: =VLOOKUP(tb_ponto[[#This Row],[Cod_Funcionario]],tb_funcionarios[[Cod_Funcionario]:[Jornada_Diaria_Horas]],14,0) -> 08:00:00 | O122: =IF(tb_ponto[[#This Row],[Horas_Trabalhadas]]>tb_ponto[[#This Row],[Jornada_Padrao]],tb_ponto[[#This Row],[Jornada_Padrao]],tb_ponto[[#This Row],[Horas_Trabalhadas]]) -> 07:13:49.357 | P122: =IF(tb_ponto[[#This Row],[Horas_Trabalhadas]]>tb_ponto[[#This Row],[Horas_Normais]],tb_ponto[[#This Row],[Horas_Trabalhadas]]-tb_ponto[[#This Row],[Jornada_Padrao]],0) -> 00:00:00 | Q122: 00:00:00 | R122: =COUNTIFS(tb_ponto[Status_Dia],"Falta",tb_ponto[Cod_Funcionario],tb_ponto[[#This Row],[Cod_Funcionario]],tb_ponto[Competencia],tb_ponto[[#This Row],[Competencia]]) -> 0 | T122: =TEXT(tb_ponto[[#This Row],[Data]],"MMM-YY") -> Jan-26 | U122: =tb_ponto[[#This Row],[Horas_Extras]]*(24*VLOOKUP(tb_ponto[[#This Row],[Cod_Funcionario]],tb_funcionarios[[Cod_Funcionario]:[Valor_Hora]],19,0)) -> 0.00
C123: P00116 | D123: 2026-01-24 | E123: F002 | F123: =VLOOKUP(tb_ponto[[#This Row],[Cod_Funcionario]],tb_funcionarios[[Cod_Funcionario]:[Nome_Completo]],2,0) -> Bruno Costa | G123: =VLOOKUP(tb_ponto[[#This Row],[Cod_Funcionario]],tb_funcionarios[[Cod_Funcionario]:[Setor]],8,0) -> TI | H123: Folga | M123: =(tb_ponto[[#This Row],[Saida_1]]-tb_ponto[[#This Row],[Entrada_1]])+(tb_ponto[[#This Row],[Saida_2]]-tb_ponto[[#This Row],[Entrada_2]]) -> 00:00:00 | N123: =VLOOKUP(tb_ponto[[#This Row],[Cod_Funcionario]],tb_funcionarios[[Cod_Funcionario]:[Jornada_Diaria_Horas]],14,0) -> 08:00:00 | O123: =IF(tb_ponto[[#This Row],[Horas_Trabalhadas]]>tb_ponto[[#This Row],[Jornada_Padrao]],tb_ponto[[#This Row],[Jornada_Padrao]],tb_ponto[[#This Row],[Horas_Trabalhadas]]) -> 00:00:00 | P123: =IF(tb_ponto[[#This Row],[Horas_Trabalhadas]]>tb_ponto[[#This Row],[Horas_Normais]],tb_ponto[[#This Row],[Horas_Trabalhadas]]-tb_ponto[[#This Row],[Jornada_Padrao]],0) -> 00:00:00 | Q123: 00:00:00 | R123: =COUNTIFS(tb_ponto[Status_Dia],"Falta",tb_ponto[Cod_Funcionario],tb_ponto[[#This Row],[Cod_Funcionario]],tb_ponto[Competencia],tb_ponto[[#This Row],[Competencia]]) -> 0 | T123: =TEXT(tb_ponto[[#This Row],[Data]],"MMM-YY") -> Jan-26 | U123: =tb_ponto[[#This Row],[Horas_Extras]]*(24*VLOOKUP(tb_ponto[[#This Row],[Cod_Funcionario]],tb_funcionarios[[Cod_Funcionario]:[Valor_Hora]],19,0)) -> 0.00
C124: P00117 | D124: 2026-01-25 | E124: F002 | F124: =VLOOKUP(tb_ponto[[#This Row],[Cod_Funcionario]],tb_funcionarios[[Cod_Funcionario]:[Nome_Completo]],2,0) -> Bruno Costa | G124: =VLOOKUP(tb_ponto[[#This Row],[Cod_Funcionario]],tb_funcionarios[[Cod_Funcionario]:[Setor]],8,0) -> TI | H124: Folga | M124: =(tb_ponto[[#This Row],[Saida_1]]-tb_ponto[[#This Row],[Entrada_1]])+(tb_ponto[[#This Row],[Saida_2]]-tb_ponto[[#This Row],[Entrada_2]]) -> 00:00:00 | N124: =VLOOKUP(tb_ponto[[#This Row],[Cod_Funcionario]],tb_funcionarios[[Cod_Funcionario]:[Jornada_Diaria_Horas]],14,0) -> 08:00:00 | O124: =IF(tb_ponto[[#This Row],[Horas_Trabalhadas]]>tb_ponto[[#This Row],[Jornada_Padrao]],tb_ponto[[#This Row],[Jornada_Padrao]],tb_ponto[[#This Row],[Horas_Trabalhadas]]) -> 00:00:00 | P124: =IF(tb_ponto[[#This Row],[Horas_Trabalhadas]]>tb_ponto[[#This Row],[Horas_Normais]],tb_ponto[[#This Row],[Horas_Trabalhadas]]-tb_ponto[[#This Row],[Jornada_Padrao]],0) -> 00:00:00 | Q124: 00:00:00 | R124: =COUNTIFS(tb_ponto[Status_Dia],"Falta",tb_ponto[Cod_Funcionario],tb_ponto[[#This Row],[Cod_Funcionario]],tb_ponto[Competencia],tb_ponto[[#This Row],[Competencia]]) -> 0 | T124: =TEXT(tb_ponto[[#This Row],[Data]],"MMM-YY") -> Jan-26 | U124: =tb_ponto[[#This Row],[Horas_Extras]]*(24*VLOOKUP(tb_ponto[[#This Row],[Cod_Funcionario]],tb_funcionarios[[Cod_Funcionario]:[Valor_Hora]],19,0)) -> 0.00
C125: P00118 | D125: 2026-01-26 | E125: F002 | F125: =VLOOKUP(tb_ponto[[#This Row],[Cod_Funcionario]],tb_funcionarios[[Cod_Funcionario]:[Nome_Completo]],2,0) -> Bruno Costa | G125: =VLOOKUP(tb_ponto[[#This Row],[Cod_Funcionario]],tb_funcionarios[[Cod_Funcionario]:[Setor]],8,0) -> TI | H125: Normal | I125: 08:00:19.933 | J125: 11:59:55.677 | K125: 12:59:49.936 | L125: 16:06:44.594 | M125: =(tb_ponto[[#This Row],[Saida_1]]-tb_ponto[[#This Row],[Entrada_1]])+(tb_ponto[[#This Row],[Saida_2]]-tb_ponto[[#This Row],[Entrada_2]]) -> 07:06:30.403 | N125: =VLOOKUP(tb_ponto[[#This Row],[Cod_Funcionario]],tb_funcionarios[[Cod_Funcionario]:[Jornada_Diaria_Horas]],14,0) -> 08:00:00 | O125: =IF(tb_ponto[[#This Row],[Horas_Trabalhadas]]>tb_ponto[[#This Row],[Jornada_Padrao]],tb_ponto[[#This Row],[Jornada_Padrao]],tb_ponto[[#This Row],[Horas_Trabalhadas]]) -> 07:06:30.403 | P125: =IF(tb_ponto[[#This Row],[Horas_Trabalhadas]]>tb_ponto[[#This Row],[Horas_Normais]],tb_ponto[[#This Row],[Horas_Trabalhadas]]-tb_ponto[[#This Row],[Jornada_Padrao]],0) -> 00:00:00 | Q125: 00:00:00 | R125: =COUNTIFS(tb_ponto[Status_Dia],"Falta",tb_ponto[Cod_Funcionario],tb_ponto[[#This Row],[Cod_Funcionario]],tb_ponto[Competencia],tb_ponto[[#This Row],[Competencia]]) -> 0 | T125: =TEXT(tb_ponto[[#This Row],[Data]],"MMM-YY") -> Jan-26 | U125: =tb_ponto[[#This Row],[Horas_Extras]]*(24*VLOOKUP(tb_ponto[[#This Row],[Cod_Funcionario]],tb_funcionarios[[Cod_Funcionario]:[Valor_Hora]],19,0)) -> 0.00
C126: P00119 | D126: 2026-01-27 | E126: F002 | F126: =VLOOKUP(tb_ponto[[#This Row],[Cod_Funcionario]],tb_funcionarios[[Cod_Funcionario]:[Nome_Completo]],2,0) -> Bruno Costa | G126: =VLOOKUP(tb_ponto[[#This Row],[Cod_Funcionario]],tb_funcionarios[[Cod_Funcionario]:[Setor]],8,0) -> TI | H126: Normal | I126: 07:59:25.862 | J126: 12:00:12.365 | K126: 12:59:56.896 | L126: 16:10:50.562 | M126: =(tb_ponto[[#This Row],[Saida_1]]-tb_ponto[[#This Row],[Entrada_1]])+(tb_ponto[[#This Row],[Saida_2]]-tb_ponto[[#This Row],[Entrada_2]]) -> 07:11:40.169 | N126: =VLOOKUP(tb_ponto[[#This Row],[Cod_Funcionario]],tb_funcionarios[[Cod_Funcionario]:[Jornada_Diaria_Horas]],14,0) -> 08:00:00 | O126: =IF(tb_ponto[[#This Row],[Horas_Trabalhadas]]>tb_ponto[[#This Row],[Jornada_Padrao]],tb_ponto[[#This Row],[Jornada_Padrao]],tb_ponto[[#This Row],[Horas_Trabalhadas]]) -> 07:11:40.169 | P126: =IF(tb_ponto[[#This Row],[Horas_Trabalhadas]]>tb_ponto[[#This Row],[Horas_Normais]],tb_ponto[[#This Row],[Horas_Trabalhadas]]-tb_ponto[[#This Row],[Jornada_Padrao]],0) -> 00:00:00 | Q126: 00:00:00 | R126: =COUNTIFS(tb_ponto[Status_Dia],"Falta",tb_ponto[Cod_Funcionario],tb_ponto[[#This Row],[Cod_Funcionario]],tb_ponto[Competencia],tb_ponto[[#This Row],[Competencia]]) -> 0 | T126: =TEXT(tb_ponto[[#This Row],[Data]],"MMM-YY") -> Jan-26 | U126: =tb_ponto[[#This Row],[Horas_Extras]]*(24*VLOOKUP(tb_ponto[[#This Row],[Cod_Funcionario]],tb_funcionarios[[Cod_Funcionario]:[Valor_Hora]],19,0)) -> 0.00
C127: P00120 | D127: 2026-01-28 | E127: F002 | F127: =VLOOKUP(tb_ponto[[#This Row],[Cod_Funcionario]],tb_funcionarios[[Cod_Funcionario]:[Nome_Completo]],2,0) -> Bruno Costa | G127: =VLOOKUP(tb_ponto[[#This Row],[Cod_Funcionario]],tb_funcionarios[[Cod_Funcionario]:[Setor]],8,0) -> TI | H127: Normal | I127: 07:59:42.944 | J127: 11:59:47.458 | K127: 12:59:45.061 | L127: 16:02:42.980 | M127: =(tb_ponto[[#This Row],[Saida_1]]-tb_ponto[[#This Row],[Entrada_1]])+(tb_ponto[[#This Row],[Saida_2]]-tb_ponto[[#This Row],[Entrada_2]]) -> 07:03:02.433 | N127: =VLOOKUP(tb_ponto[[#This Row],[Cod_Funcionario]],tb_funcionarios[[Cod_Funcionario]:[Jornada_Diaria_Horas]],14,0) -> 08:00:00 | O127: =IF(tb_ponto[[#This Row],[Horas_Trabalhadas]]>tb_ponto[[#This Row],[Jornada_Padrao]],tb_ponto[[#This Row],[Jornada_Padrao]],tb_ponto[[#This Row],[Horas_Trabalhadas]]) -> 07:03:02.433 | P127: =IF(tb_ponto[[#This Row],[Horas_Trabalhadas]]>tb_ponto[[#This Row],[Horas_Normais]],tb_ponto[[#This Row],[Horas_Trabalhadas]]-tb_ponto[[#This Row],[Jornada_Padrao]],0) -> 00:00:00 | Q127: 00:00:00 | R127: =COUNTIFS(tb_ponto[Status_Dia],"Falta",tb_ponto[Cod_Funcionario],tb_ponto[[#This Row],[Cod_Funcionario]],tb_ponto[Competencia],tb_ponto[[#This Row],[Competencia]]) -> 0 | T127: =TEXT(tb_ponto[[#This Row],[Data]],"MMM-YY") -> Jan-26 | U127: =tb_ponto[[#This Row],[Horas_Extras]]*(24*VLOOKUP(tb_ponto[[#This Row],[Cod_Funcionario]],tb_funcionarios[[Cod_Funcionario]:[Valor_Hora]],19,0)) -> 0.00
C128: P00121 | D128: 2026-01-29 | E128: F002 | F128: =VLOOKUP(tb_ponto[[#This Row],[Cod_Funcionario]],tb_funcionarios[[Cod_Funcionario]:[Nome_Completo]],2,0) -> Bruno Costa | G128: =VLOOKUP(tb_ponto[[#This Row],[Cod_Funcionario]],tb_funcionarios[[Cod_Funcionario]:[Setor]],8,0) -> TI | H128: Normal | I128: 08:00:11.559 | J128: 11:59:44.852 | K128: 12:59:51.982 | L128: 15:52:50.092 | M128: =(tb_ponto[[#This Row],[Saida_1]]-tb_ponto[[#This Row],[Entrada_1]])+(tb_ponto[[#This Row],[Saida_2]]-tb_ponto[[#This Row],[Entrada_2]]) -> 06:52:31.403 | N128: =VLOOKUP(tb_ponto[[#This Row],[Cod_Funcionario]],tb_funcionarios[[Cod_Funcionario]:[Jornada_Diaria_Horas]],14,0) -> 08:00:00 | O128: =IF(tb_ponto[[#This Row],[Horas_Trabalhadas]]>tb_ponto[[#This Row],[Jornada_Padrao]],tb_ponto[[#This Row],[Jornada_Padrao]],tb_ponto[[#This Row],[Horas_Trabalhadas]]) -> 06:52:31.403 | P128: =IF(tb_ponto[[#This Row],[Horas_Trabalhadas]]>tb_ponto[[#This Row],[Horas_Normais]],tb_ponto[[#This Row],[Horas_Trabalhadas]]-tb_ponto[[#This Row],[Jornada_Padrao]],0) -> 00:00:00 | Q128: 00:00:00 | R128: =COUNTIFS(tb_ponto[Status_Dia],"Falta",tb_ponto[Cod_Funcionario],tb_ponto[[#This Row],[Cod_Funcionario]],tb_ponto[Competencia],tb_ponto[[#This Row],[Competencia]]) -> 0 | T128: =TEXT(tb_ponto[[#This Row],[Data]],"MMM-YY") -> Jan-26 | U128: =tb_ponto[[#This Row],[Horas_Extras]]*(24*VLOOKUP(tb_ponto[[#This Row],[Cod_Funcionario]],tb_funcionarios[[Cod_Funcionario]:[Valor_Hora]],19,0)) -> 0.00
C129: P00122 | D129: 2026-01-30 | E129: F002 | F129: =VLOOKUP(tb_ponto[[#This Row],[Cod_Funcionario]],tb_funcionarios[[Cod_Funcionario]:[Nome_Completo]],2,0) -> Bruno Costa | G129: =VLOOKUP(tb_ponto[[#This Row],[Cod_Funcionario]],tb_funcionarios[[Cod_Funcionario]:[Setor]],8,0) -> TI | H129: Normal | I129: 07:59:37.070 | J129: 11:59:45.801 | K129: 12:59:52.206 | L129: 16:10:20.001 | M129: =(tb_ponto[[#This Row],[Saida_1]]-tb_ponto[[#This Row],[Entrada_1]])+(tb_ponto[[#This Row],[Saida_2]]-tb_ponto[[#This Row],[Entrada_2]]) -> 07:10:36.526 | N129: =VLOOKUP(tb_ponto[[#This Row],[Cod_Funcionario]],tb_funcionarios[[Cod_Funcionario]:[Jornada_Diaria_Horas]],14,0) -> 08:00:00 | O129: =IF(tb_ponto[[#This Row],[Horas_Trabalhadas]]>tb_ponto[[#This Row],[Jornada_Padrao]],tb_ponto[[#This Row],[Jornada_Padrao]],tb_ponto[[#This Row],[Horas_Trabalhadas]]) -> 07:10:36.526 | P129: =IF(tb_ponto[[#This Row],[Horas_Trabalhadas]]>tb_ponto[[#This Row],[Horas_Normais]],tb_ponto[[#This Row],[Horas_Trabalhadas]]-tb_ponto[[#This Row],[Jornada_Padrao]],0) -> 00:00:00 | Q129: 00:00:00 | R129: =COUNTIFS(tb_ponto[Status_Dia],"Falta",tb_ponto[Cod_Funcionario],tb_ponto[[#This Row],[Cod_Funcionario]],tb_ponto[Competencia],tb_ponto[[#This Row],[Competencia]]) -> 0 | T129: =TEXT(tb_ponto[[#This Row],[Data]],"MMM-YY") -> Jan-26 | U129: =tb_ponto[[#This Row],[Horas_Extras]]*(24*VLOOKUP(tb_ponto[[#This Row],[Cod_Funcionario]],tb_funcionarios[[Cod_Funcionario]:[Valor_Hora]],19,0)) -> 0.00
C130: P00123 | D130: 2026-01-31 | E130: F002 | F130: =VLOOKUP(tb_ponto[[#This Row],[Cod_Funcionario]],tb_funcionarios[[Cod_Funcionario]:[Nome_Completo]],2,0) -> Bruno Costa | G130: =VLOOKUP(tb_ponto[[#This Row],[Cod_Funcionario]],tb_funcionarios[[Cod_Funcionario]:[Setor]],8,0) -> TI | H130: Folga | M130: =(tb_ponto[[#This Row],[Saida_1]]-tb_ponto[[#This Row],[Entrada_1]])+(tb_ponto[[#This Row],[Saida_2]]-tb_ponto[[#This Row],[Entrada_2]]) -> 00:00:00 | N130: =VLOOKUP(tb_ponto[[#This Row],[Cod_Funcionario]],tb_funcionarios[[Cod_Funcionario]:[Jornada_Diaria_Horas]],14,0) -> 08:00:00 | O130: =IF(tb_ponto[[#This Row],[Horas_Trabalhadas]]>tb_ponto[[#This Row],[Jornada_Padrao]],tb_ponto[[#This Row],[Jornada_Padrao]],tb_ponto[[#This Row],[Horas_Trabalhadas]]) -> 00:00:00 | P130: =IF(tb_ponto[[#This Row],[Horas_Trabalhadas]]>tb_ponto[[#This Row],[Horas_Normais]],tb_ponto[[#This Row],[Horas_Trabalhadas]]-tb_ponto[[#This Row],[Jornada_Padrao]],0) -> 00:00:00 | Q130: 00:00:00 | R130: =COUNTIFS(tb_ponto[Status_Dia],"Falta",tb_ponto[Cod_Funcionario],tb_ponto[[#This Row],[Cod_Funcionario]],tb_ponto[Competencia],tb_ponto[[#This Row],[Competencia]]) -> 0 | T130: =TEXT(tb_ponto[[#This Row],[Data]],"MMM-YY") -> Jan-26 | U130: =tb_ponto[[#This Row],[Horas_Extras]]*(24*VLOOKUP(tb_ponto[[#This Row],[Cod_Funcionario]],tb_funcionarios[[Cod_Funcionario]:[Valor_Hora]],19,0)) -> 0.00
C131: P00124 | D131: 2026-02-01 | E131: F002 | F131: =VLOOKUP(tb_ponto[[#This Row],[Cod_Funcionario]],tb_funcionarios[[Cod_Funcionario]:[Nome_Completo]],2,0) -> Bruno Costa | G131: =VLOOKUP(tb_ponto[[#This Row],[Cod_Funcionario]],tb_funcionarios[[Cod_Funcionario]:[Setor]],8,0) -> TI | H131: Folga | M131: =(tb_ponto[[#This Row],[Saida_1]]-tb_ponto[[#This Row],[Entrada_1]])+(tb_ponto[[#This Row],[Saida_2]]-tb_ponto[[#This Row],[Entrada_2]]) -> 00:00:00 | N131: =VLOOKUP(tb_ponto[[#This Row],[Cod_Funcionario]],tb_funcionarios[[Cod_Funcionario]:[Jornada_Diaria_Horas]],14,0) -> 08:00:00 | O131: =IF(tb_ponto[[#This Row],[Horas_Trabalhadas]]>tb_ponto[[#This Row],[Jornada_Padrao]],tb_ponto[[#This Row],[Jornada_Padrao]],tb_ponto[[#This Row],[Horas_Trabalhadas]]) -> 00:00:00 | P131: =IF(tb_ponto[[#This Row],[Horas_Trabalhadas]]>tb_ponto[[#This Row],[Horas_Normais]],tb_ponto[[#This Row],[Horas_Trabalhadas]]-tb_ponto[[#This Row],[Jornada_Padrao]],0) -> 00:00:00 | Q131: 00:00:00 | R131: =COUNTIFS(tb_ponto[Status_Dia],"Falta",tb_ponto[Cod_Funcionario],tb_ponto[[#This Row],[Cod_Funcionario]],tb_ponto[Competencia],tb_ponto[[#This Row],[Competencia]]) -> 0 | T131: =TEXT(tb_ponto[[#This Row],[Data]],"MMM-YY") -> Feb-26 | U131: =tb_ponto[[#This Row],[Horas_Extras]]*(24*VLOOKUP(tb_ponto[[#This Row],[Cod_Funcionario]],tb_funcionarios[[Cod_Funcionario]:[Valor_Hora]],19,0)) -> 0.00
C132: P00125 | D132: 2026-02-02 | E132: F002 | F132: =VLOOKUP(tb_ponto[[#This Row],[Cod_Funcionario]],tb_funcionarios[[Cod_Funcionario]:[Nome_Completo]],2,0) -> Bruno Costa | G132: =VLOOKUP(tb_ponto[[#This Row],[Cod_Funcionario]],tb_funcionarios[[Cod_Funcionario]:[Setor]],8,0) -> TI | H132: Normal | I132: 07:59:58.846 | J132: 12:00:14.982 | K132: 12:59:43.929 | L132: 16:06:08.411 | M132: =(tb_ponto[[#This Row],[Saida_1]]-tb_ponto[[#This Row],[Entrada_1]])+(tb_ponto[[#This Row],[Saida_2]]-tb_ponto[[#This Row],[Entrada_2]]) -> 07:06:40.616 | N132: =VLOOKUP(tb_ponto[[#This Row],[Cod_Funcionario]],tb_funcionarios[[Cod_Funcionario]:[Jornada_Diaria_Horas]],14,0) -> 08:00:00 | O132: =IF(tb_ponto[[#This Row],[Horas_Trabalhadas]]>tb_ponto[[#This Row],[Jornada_Padrao]],tb_ponto[[#This Row],[Jornada_Padrao]],tb_ponto[[#This Row],[Horas_Trabalhadas]]) -> 07:06:40.616 | P132: =IF(tb_ponto[[#This Row],[Horas_Trabalhadas]]>tb_ponto[[#This Row],[Horas_Normais]],tb_ponto[[#This Row],[Horas_Trabalhadas]]-tb_ponto[[#This Row],[Jornada_Padrao]],0) -> 00:00:00 | Q132: 00:00:00 | R132: =COUNTIFS(tb_ponto[Status_Dia],"Falta",tb_ponto[Cod_Funcionario],tb_ponto[[#This Row],[Cod_Funcionario]],tb_ponto[Competencia],tb_ponto[[#This Row],[Competencia]]) -> 0 | T132: =TEXT(tb_ponto[[#This Row],[Data]],"MMM-YY") -> Feb-26 | U132: =tb_ponto[[#This Row],[Horas_Extras]]*(24*VLOOKUP(tb_ponto[[#This Row],[Cod_Funcionario]],tb_funcionarios[[Cod_Funcionario]:[Valor_Hora]],19,0)) -> 0.00
C133: P00126 | D133: 2026-02-03 | E133: F002 | F133: =VLOOKUP(tb_ponto[[#This Row],[Cod_Funcionario]],tb_funcionarios[[Cod_Funcionario]:[Nome_Completo]],2,0) -> Bruno Costa | G133: =VLOOKUP(tb_ponto[[#This Row],[Cod_Funcionario]],tb_funcionarios[[Cod_Funcionario]:[Setor]],8,0) -> TI | H133: Normal | I133: 07:59:53.625 | J133: 11:59:42.475 | K133: 12:59:46.889 | L133: 15:50:58.511 | M133: =(tb_ponto[[#This Row],[Saida_1]]-tb_ponto[[#This Row],[Entrada_1]])+(tb_ponto[[#This Row],[Saida_2]]-tb_ponto[[#This Row],[Entrada_2]]) -> 06:51:00.472 | N133: =VLOOKUP(tb_ponto[[#This Row],[Cod_Funcionario]],tb_funcionarios[[Cod_Funcionario]:[Jornada_Diaria_Horas]],14,0) -> 08:00:00 | O133: =IF(tb_ponto[[#This Row],[Horas_Trabalhadas]]>tb_ponto[[#This Row],[Jornada_Padrao]],tb_ponto[[#This Row],[Jornada_Padrao]],tb_ponto[[#This Row],[Horas_Trabalhadas]]) -> 06:51:00.472 | P133: =IF(tb_ponto[[#This Row],[Horas_Trabalhadas]]>tb_ponto[[#This Row],[Horas_Normais]],tb_ponto[[#This Row],[Horas_Trabalhadas]]-tb_ponto[[#This Row],[Jornada_Padrao]],0) -> 00:00:00 | Q133: 00:00:00 | R133: =COUNTIFS(tb_ponto[Status_Dia],"Falta",tb_ponto[Cod_Funcionario],tb_ponto[[#This Row],[Cod_Funcionario]],tb_ponto[Competencia],tb_ponto[[#This Row],[Competencia]]) -> 0 | T133: =TEXT(tb_ponto[[#This Row],[Data]],"MMM-YY") -> Feb-26 | U133: =tb_ponto[[#This Row],[Horas_Extras]]*(24*VLOOKUP(tb_ponto[[#This Row],[Cod_Funcionario]],tb_funcionarios[[Cod_Funcionario]:[Valor_Hora]],19,0)) -> 0.00
C134: P00127 | D134: 2026-02-04 | E134: F002 | F134: =VLOOKUP(tb_ponto[[#This Row],[Cod_Funcionario]],tb_funcionarios[[Cod_Funcionario]:[Nome_Completo]],2,0) -> Bruno Costa | G134: =VLOOKUP(tb_ponto[[#This Row],[Cod_Funcionario]],tb_funcionarios[[Cod_Funcionario]:[Setor]],8,0) -> TI | H134: Normal | I134: 08:00:23.040 | J134: 12:00:05.540 | K134: 12:59:49.799 | L134: 15:59:26.714 | M134: =(tb_ponto[[#This Row],[Saida_1]]-tb_ponto[[#This Row],[Entrada_1]])+(tb_ponto[[#This Row],[Saida_2]]-tb_ponto[[#This Row],[Entrada_2]]) -> 06:59:19.414 | N134: =VLOOKUP(tb_ponto[[#This Row],[Cod_Funcionario]],tb_funcionarios[[Cod_Funcionario]:[Jornada_Diaria_Horas]],14,0) -> 08:00:00 | O134: =IF(tb_ponto[[#This Row],[Horas_Trabalhadas]]>tb_ponto[[#This Row],[Jornada_Padrao]],tb_ponto[[#This Row],[Jornada_Padrao]],tb_ponto[[#This Row],[Horas_Trabalhadas]]) -> 06:59:19.414 | P134: =IF(tb_ponto[[#This Row],[Horas_Trabalhadas]]>tb_ponto[[#This Row],[Horas_Normais]],tb_ponto[[#This Row],[Horas_Trabalhadas]]-tb_ponto[[#This Row],[Jornada_Padrao]],0) -> 00:00:00 | Q134: 00:00:00 | R134: =COUNTIFS(tb_ponto[Status_Dia],"Falta",tb_ponto[Cod_Funcionario],tb_ponto[[#This Row],[Cod_Funcionario]],tb_ponto[Competencia],tb_ponto[[#This Row],[Competencia]]) -> 0 | T134: =TEXT(tb_ponto[[#This Row],[Data]],"MMM-YY") -> Feb-26 | U134: =tb_ponto[[#This Row],[Horas_Extras]]*(24*VLOOKUP(tb_ponto[[#This Row],[Cod_Funcionario]],tb_funcionarios[[Cod_Funcionario]:[Valor_Hora]],19,0)) -> 0.00
C135: P00128 | D135: 2026-02-05 | E135: F002 | F135: =VLOOKUP(tb_ponto[[#This Row],[Cod_Funcionario]],tb_funcionarios[[Cod_Funcionario]:[Nome_Completo]],2,0) -> Bruno Costa | G135: =VLOOKUP(tb_ponto[[#This Row],[Cod_Funcionario]],tb_funcionarios[[Cod_Funcionario]:[Setor]],8,0) -> TI | H135: Normal | I135: 08:00:19.725 | J135: 11:59:42.602 | K135: 12:59:51.707 | L135: 15:54:22.421 | M135: =(tb_ponto[[#This Row],[Saida_1]]-tb_ponto[[#This Row],[Entrada_1]])+(tb_ponto[[#This Row],[Saida_2]]-tb_ponto[[#This Row],[Entrada_2]]) -> 06:53:53.591 | N135: =VLOOKUP(tb_ponto[[#This Row],[Cod_Funcionario]],tb_funcionarios[[Cod_Funcionario]:[Jornada_Diaria_Horas]],14,0) -> 08:00:00 | O135: =IF(tb_ponto[[#This Row],[Horas_Trabalhadas]]>tb_ponto[[#This Row],[Jornada_Padrao]],tb_ponto[[#This Row],[Jornada_Padrao]],tb_ponto[[#This Row],[Horas_Trabalhadas]]) -> 06:53:53.591 | P135: =IF(tb_ponto[[#This Row],[Horas_Trabalhadas]]>tb_ponto[[#This Row],[Horas_Normais]],tb_ponto[[#This Row],[Horas_Trabalhadas]]-tb_ponto[[#This Row],[Jornada_Padrao]],0) -> 00:00:00 | Q135: 00:00:00 | R135: =COUNTIFS(tb_ponto[Status_Dia],"Falta",tb_ponto[Cod_Funcionario],tb_ponto[[#This Row],[Cod_Funcionario]],tb_ponto[Competencia],tb_ponto[[#This Row],[Competencia]]) -> 0 | T135: =TEXT(tb_ponto[[#This Row],[Data]],"MMM-YY") -> Feb-26 | U135: =tb_ponto[[#This Row],[Horas_Extras]]*(24*VLOOKUP(tb_ponto[[#This Row],[Cod_Funcionario]],tb_funcionarios[[Cod_Funcionario]:[Valor_Hora]],19,0)) -> 0.00
C136: P00129 | D136: 2026-02-06 | E136: F002 | F136: =VLOOKUP(tb_ponto[[#This Row],[Cod_Funcionario]],tb_funcionarios[[Cod_Funcionario]:[Nome_Completo]],2,0) -> Bruno Costa | G136: =VLOOKUP(tb_ponto[[#This Row],[Cod_Funcionario]],tb_funcionarios[[Cod_Funcionario]:[Setor]],8,0) -> TI | H136: Normal | I136: 07:59:54.453 | J136: 11:59:57.371 | K136: 12:59:44.780 | L136: 15:46:20.723 | M136: =(tb_ponto[[#This Row],[Saida_1]]-tb_ponto[[#This Row],[Entrada_1]])+(tb_ponto[[#This Row],[Saida_2]]-tb_ponto[[#This Row],[Entrada_2]]) -> 06:46:38.861 | N136: =VLOOKUP(tb_ponto[[#This Row],[Cod_Funcionario]],tb_funcionarios[[Cod_Funcionario]:[Jornada_Diaria_Horas]],14,0) -> 08:00:00 | O136: =IF(tb_ponto[[#This Row],[Horas_Trabalhadas]]>tb_ponto[[#This Row],[Jornada_Padrao]],tb_ponto[[#This Row],[Jornada_Padrao]],tb_ponto[[#This Row],[Horas_Trabalhadas]]) -> 06:46:38.861 | P136: =IF(tb_ponto[[#This Row],[Horas_Trabalhadas]]>tb_ponto[[#This Row],[Horas_Normais]],tb_ponto[[#This Row],[Horas_Trabalhadas]]-tb_ponto[[#This Row],[Jornada_Padrao]],0) -> 00:00:00 | Q136: 00:00:00 | R136: =COUNTIFS(tb_ponto[Status_Dia],"Falta",tb_ponto[Cod_Funcionario],tb_ponto[[#This Row],[Cod_Funcionario]],tb_ponto[Competencia],tb_ponto[[#This Row],[Competencia]]) -> 0 | T136: =TEXT(tb_ponto[[#This Row],[Data]],"MMM-YY") -> Feb-26 | U136: =tb_ponto[[#This Row],[Horas_Extras]]*(24*VLOOKUP(tb_ponto[[#This Row],[Cod_Funcionario]],tb_funcionarios[[Cod_Funcionario]:[Valor_Hora]],19,0)) -> 0.00
C137: P00130 | D137: 2026-02-07 | E137: F002 | F137: =VLOOKUP(tb_ponto[[#This Row],[Cod_Funcionario]],tb_funcionarios[[Cod_Funcionario]:[Nome_Completo]],2,0) -> Bruno Costa | G137: =VLOOKUP(tb_ponto[[#This Row],[Cod_Funcionario]],tb_funcionarios[[Cod_Funcionario]:[Setor]],8,0) -> TI | H137: Folga | M137: =(tb_ponto[[#This Row],[Saida_1]]-tb_ponto[[#This Row],[Entrada_1]])+(tb_ponto[[#This Row],[Saida_2]]-tb_ponto[[#This Row],[Entrada_2]]) -> 00:00:00 | N137: =VLOOKUP(tb_ponto[[#This Row],[Cod_Funcionario]],tb_funcionarios[[Cod_Funcionario]:[Jornada_Diaria_Horas]],14,0) -> 08:00:00 | O137: =IF(tb_ponto[[#This Row],[Horas_Trabalhadas]]>tb_ponto[[#This Row],[Jornada_Padrao]],tb_ponto[[#This Row],[Jornada_Padrao]],tb_ponto[[#This Row],[Horas_Trabalhadas]]) -> 00:00:00 | P137: =IF(tb_ponto[[#This Row],[Horas_Trabalhadas]]>tb_ponto[[#This Row],[Horas_Normais]],tb_ponto[[#This Row],[Horas_Trabalhadas]]-tb_ponto[[#This Row],[Jornada_Padrao]],0) -> 00:00:00 | Q137: 00:00:00 | R137: =COUNTIFS(tb_ponto[Status_Dia],"Falta",tb_ponto[Cod_Funcionario],tb_ponto[[#This Row],[Cod_Funcionario]],tb_ponto[Competencia],tb_ponto[[#This Row],[Competencia]]) -> 0 | T137: =TEXT(tb_ponto[[#This Row],[Data]],"MMM-YY") -> Feb-26 | U137: =tb_ponto[[#This Row],[Horas_Extras]]*(24*VLOOKUP(tb_ponto[[#This Row],[Cod_Funcionario]],tb_funcionarios[[Cod_Funcionario]:[Valor_Hora]],19,0)) -> 0.00
C138: P00131 | D138: 2026-02-08 | E138: F002 | F138: =VLOOKUP(tb_ponto[[#This Row],[Cod_Funcionario]],tb_funcionarios[[Cod_Funcionario]:[Nome_Completo]],2,0) -> Bruno Costa | G138: =VLOOKUP(tb_ponto[[#This Row],[Cod_Funcionario]],tb_funcionarios[[Cod_Funcionario]:[Setor]],8,0) -> TI | H138: Folga | M138: =(tb_ponto[[#This Row],[Saida_1]]-tb_ponto[[#This Row],[Entrada_1]])+(tb_ponto[[#This Row],[Saida_2]]-tb_ponto[[#This Row],[Entrada_2]]) -> 00:00:00 | N138: =VLOOKUP(tb_ponto[[#This Row],[Cod_Funcionario]],tb_funcionarios[[Cod_Funcionario]:[Jornada_Diaria_Horas]],14,0) -> 08:00:00 | O138: =IF(tb_ponto[[#This Row],[Horas_Trabalhadas]]>tb_ponto[[#This Row],[Jornada_Padrao]],tb_ponto[[#This Row],[Jornada_Padrao]],tb_ponto[[#This Row],[Horas_Trabalhadas]]) -> 00:00:00 | P138: =IF(tb_ponto[[#This Row],[Horas_Trabalhadas]]>tb_ponto[[#This Row],[Horas_Normais]],tb_ponto[[#This Row],[Horas_Trabalhadas]]-tb_ponto[[#This Row],[Jornada_Padrao]],0) -> 00:00:00 | Q138: 00:00:00 | R138: =COUNTIFS(tb_ponto[Status_Dia],"Falta",tb_ponto[Cod_Funcionario],tb_ponto[[#This Row],[Cod_Funcionario]],tb_ponto[Competencia],tb_ponto[[#This Row],[Competencia]]) -> 0 | T138: =TEXT(tb_ponto[[#This Row],[Data]],"MMM-YY") -> Feb-26 | U138: =tb_ponto[[#This Row],[Horas_Extras]]*(24*VLOOKUP(tb_ponto[[#This Row],[Cod_Funcionario]],tb_funcionarios[[Cod_Funcionario]:[Valor_Hora]],19,0)) -> 0.00
C139: P00132 | D139: 2026-02-09 | E139: F002 | F139: =VLOOKUP(tb_ponto[[#This Row],[Cod_Funcionario]],tb_funcionarios[[Cod_Funcionario]:[Nome_Completo]],2,0) -> Bruno Costa | G139: =VLOOKUP(tb_ponto[[#This Row],[Cod_Funcionario]],tb_funcionarios[[Cod_Funcionario]:[Setor]],8,0) -> TI | H139: Normal | I139: 07:59:29.888 | J139: 12:00:00.783 | K139: 13:00:15.735 | L139: 16:09:08.664 | M139: =(tb_ponto[[#This Row],[Saida_1]]-tb_ponto[[#This Row],[Entrada_1]])+(tb_ponto[[#This Row],[Saida_2]]-tb_ponto[[#This Row],[Entrada_2]]) -> 07:09:23.824 | N139: =VLOOKUP(tb_ponto[[#This Row],[Cod_Funcionario]],tb_funcionarios[[Cod_Funcionario]:[Jornada_Diaria_Horas]],14,0) -> 08:00:00 | O139: =IF(tb_ponto[[#This Row],[Horas_Trabalhadas]]>tb_ponto[[#This Row],[Jornada_Padrao]],tb_ponto[[#This Row],[Jornada_Padrao]],tb_ponto[[#This Row],[Horas_Trabalhadas]]) -> 07:09:23.824 | P139: =IF(tb_ponto[[#This Row],[Horas_Trabalhadas]]>tb_ponto[[#This Row],[Horas_Normais]],tb_ponto[[#This Row],[Horas_Trabalhadas]]-tb_ponto[[#This Row],[Jornada_Padrao]],0) -> 00:00:00 | Q139: 00:00:00 | R139: =COUNTIFS(tb_ponto[Status_Dia],"Falta",tb_ponto[Cod_Funcionario],tb_ponto[[#This Row],[Cod_Funcionario]],tb_ponto[Competencia],tb_ponto[[#This Row],[Competencia]]) -> 0 | T139: =TEXT(tb_ponto[[#This Row],[Data]],"MMM-YY") -> Feb-26 | U139: =tb_ponto[[#This Row],[Horas_Extras]]*(24*VLOOKUP(tb_ponto[[#This Row],[Cod_Funcionario]],tb_funcionarios[[Cod_Funcionario]:[Valor_Hora]],19,0)) -> 0.00
C140: P00133 | D140: 2026-02-10 | E140: F002 | F140: =VLOOKUP(tb_ponto[[#This Row],[Cod_Funcionario]],tb_funcionarios[[Cod_Funcionario]:[Nome_Completo]],2,0) -> Bruno Costa | G140: =VLOOKUP(tb_ponto[[#This Row],[Cod_Funcionario]],tb_funcionarios[[Cod_Funcionario]:[Setor]],8,0) -> TI | H140: Normal | I140: 07:59:28.525 | J140: 11:59:50.132 | K140: 13:00:15.165 | L140: 16:08:29.448 | M140: =(tb_ponto[[#This Row],[Saida_1]]-tb_ponto[[#This Row],[Entrada_1]])+(tb_ponto[[#This Row],[Saida_2]]-tb_ponto[[#This Row],[Entrada_2]]) -> 07:08:35.890 | N140: =VLOOKUP(tb_ponto[[#This Row],[Cod_Funcionario]],tb_funcionarios[[Cod_Funcionario]:[Jornada_Diaria_Horas]],14,0) -> 08:00:00 | O140: =IF(tb_ponto[[#This Row],[Horas_Trabalhadas]]>tb_ponto[[#This Row],[Jornada_Padrao]],tb_ponto[[#This Row],[Jornada_Padrao]],tb_ponto[[#This Row],[Horas_Trabalhadas]]) -> 07:08:35.890 | P140: =IF(tb_ponto[[#This Row],[Horas_Trabalhadas]]>tb_ponto[[#This Row],[Horas_Normais]],tb_ponto[[#This Row],[Horas_Trabalhadas]]-tb_ponto[[#This Row],[Jornada_Padrao]],0) -> 00:00:00 | Q140: 00:00:00 | R140: =COUNTIFS(tb_ponto[Status_Dia],"Falta",tb_ponto[Cod_Funcionario],tb_ponto[[#This Row],[Cod_Funcionario]],tb_ponto[Competencia],tb_ponto[[#This Row],[Competencia]]) -> 0 | T140: =TEXT(tb_ponto[[#This Row],[Data]],"MMM-YY") -> Feb-26 | U140: =tb_ponto[[#This Row],[Horas_Extras]]*(24*VLOOKUP(tb_ponto[[#This Row],[Cod_Funcionario]],tb_funcionarios[[Cod_Funcionario]:[Valor_Hora]],19,0)) -> 0.00
C141: P00134 | D141: 2026-02-11 | E141: F002 | F141: =VLOOKUP(tb_ponto[[#This Row],[Cod_Funcionario]],tb_funcionarios[[Cod_Funcionario]:[Nome_Completo]],2,0) -> Bruno Costa | G141: =VLOOKUP(tb_ponto[[#This Row],[Cod_Funcionario]],tb_funcionarios[[Cod_Funcionario]:[Setor]],8,0) -> TI | H141: Normal | I141: 08:00:33.224 | J141: 11:59:52.820 | K141: 12:59:45.289 | L141: 15:55:45.793 | M141: =(tb_ponto[[#This Row],[Saida_1]]-tb_ponto[[#This Row],[Entrada_1]])+(tb_ponto[[#This Row],[Saida_2]]-tb_ponto[[#This Row],[Entrada_2]]) -> 06:55:20.100 | N141: =VLOOKUP(tb_ponto[[#This Row],[Cod_Funcionario]],tb_funcionarios[[Cod_Funcionario]:[Jornada_Diaria_Horas]],14,0) -> 08:00:00 | O141: =IF(tb_ponto[[#This Row],[Horas_Trabalhadas]]>tb_ponto[[#This Row],[Jornada_Padrao]],tb_ponto[[#This Row],[Jornada_Padrao]],tb_ponto[[#This Row],[Horas_Trabalhadas]]) -> 06:55:20.100 | P141: =IF(tb_ponto[[#This Row],[Horas_Trabalhadas]]>tb_ponto[[#This Row],[Horas_Normais]],tb_ponto[[#This Row],[Horas_Trabalhadas]]-tb_ponto[[#This Row],[Jornada_Padrao]],0) -> 00:00:00 | Q141: 00:00:00 | R141: =COUNTIFS(tb_ponto[Status_Dia],"Falta",tb_ponto[Cod_Funcionario],tb_ponto[[#This Row],[Cod_Funcionario]],tb_ponto[Competencia],tb_ponto[[#This Row],[Competencia]]) -> 0 | T141: =TEXT(tb_ponto[[#This Row],[Data]],"MMM-YY") -> Feb-26 | U141: =tb_ponto[[#This Row],[Horas_Extras]]*(24*VLOOKUP(tb_ponto[[#This Row],[Cod_Funcionario]],tb_funcionarios[[Cod_Funcionario]:[Valor_Hora]],19,0)) -> 0.00
C142: P00135 | D142: 2026-02-12 | E142: F002 | F142: =VLOOKUP(tb_ponto[[#This Row],[Cod_Funcionario]],tb_funcionarios[[Cod_Funcionario]:[Nome_Completo]],2,0) -> Bruno Costa | G142: =VLOOKUP(tb_ponto[[#This Row],[Cod_Funcionario]],tb_funcionarios[[Cod_Funcionario]:[Setor]],8,0) -> TI | H142: Normal | I142: 07:59:59.226 | J142: 11:59:58.255 | K142: 12:59:59.049 | L142: 16:04:24.458 | M142: =(tb_ponto[[#This Row],[Saida_1]]-tb_ponto[[#This Row],[Entrada_1]])+(tb_ponto[[#This Row],[Saida_2]]-tb_ponto[[#This Row],[Entrada_2]]) -> 07:04:24.439 | N142: =VLOOKUP(tb_ponto[[#This Row],[Cod_Funcionario]],tb_funcionarios[[Cod_Funcionario]:[Jornada_Diaria_Horas]],14,0) -> 08:00:00 | O142: =IF(tb_ponto[[#This Row],[Horas_Trabalhadas]]>tb_ponto[[#This Row],[Jornada_Padrao]],tb_ponto[[#This Row],[Jornada_Padrao]],tb_ponto[[#This Row],[Horas_Trabalhadas]]) -> 07:04:24.439 | P142: =IF(tb_ponto[[#This Row],[Horas_Trabalhadas]]>tb_ponto[[#This Row],[Horas_Normais]],tb_ponto[[#This Row],[Horas_Trabalhadas]]-tb_ponto[[#This Row],[Jornada_Padrao]],0) -> 00:00:00 | Q142: 00:00:00 | R142: =COUNTIFS(tb_ponto[Status_Dia],"Falta",tb_ponto[Cod_Funcionario],tb_ponto[[#This Row],[Cod_Funcionario]],tb_ponto[Competencia],tb_ponto[[#This Row],[Competencia]]) -> 0 | T142: =TEXT(tb_ponto[[#This Row],[Data]],"MMM-YY") -> Feb-26 | U142: =tb_ponto[[#This Row],[Horas_Extras]]*(24*VLOOKUP(tb_ponto[[#This Row],[Cod_Funcionario]],tb_funcionarios[[Cod_Funcionario]:[Valor_Hora]],19,0)) -> 0.00
C143: P00136 | D143: 2026-02-13 | E143: F002 | F143: =VLOOKUP(tb_ponto[[#This Row],[Cod_Funcionario]],tb_funcionarios[[Cod_Funcionario]:[Nome_Completo]],2,0) -> Bruno Costa | G143: =VLOOKUP(tb_ponto[[#This Row],[Cod_Funcionario]],tb_funcionarios[[Cod_Funcionario]:[Setor]],8,0) -> TI | H143: Normal | I143: 07:59:26.280 | J143: 12:00:02.254 | K143: 13:00:13.641 | L143: 16:07:42.400 | M143: =(tb_ponto[[#This Row],[Saida_1]]-tb_ponto[[#This Row],[Entrada_1]])+(tb_ponto[[#This Row],[Saida_2]]-tb_ponto[[#This Row],[Entrada_2]]) -> 07:08:04.733 | N143: =VLOOKUP(tb_ponto[[#This Row],[Cod_Funcionario]],tb_funcionarios[[Cod_Funcionario]:[Jornada_Diaria_Horas]],14,0) -> 08:00:00 | O143: =IF(tb_ponto[[#This Row],[Horas_Trabalhadas]]>tb_ponto[[#This Row],[Jornada_Padrao]],tb_ponto[[#This Row],[Jornada_Padrao]],tb_ponto[[#This Row],[Horas_Trabalhadas]]) -> 07:08:04.733 | P143: =IF(tb_ponto[[#This Row],[Horas_Trabalhadas]]>tb_ponto[[#This Row],[Horas_Normais]],tb_ponto[[#This Row],[Horas_Trabalhadas]]-tb_ponto[[#This Row],[Jornada_Padrao]],0) -> 00:00:00 | Q143: 00:00:00 | R143: =COUNTIFS(tb_ponto[Status_Dia],"Falta",tb_ponto[Cod_Funcionario],tb_ponto[[#This Row],[Cod_Funcionario]],tb_ponto[Competencia],tb_ponto[[#This Row],[Competencia]]) -> 0 | T143: =TEXT(tb_ponto[[#This Row],[Data]],"MMM-YY") -> Feb-26 | U143: =tb_ponto[[#This Row],[Horas_Extras]]*(24*VLOOKUP(tb_ponto[[#This Row],[Cod_Funcionario]],tb_funcionarios[[Cod_Funcionario]:[Valor_Hora]],19,0)) -> 0.00
C144: P00137 | D144: 2026-02-14 | E144: F002 | F144: =VLOOKUP(tb_ponto[[#This Row],[Cod_Funcionario]],tb_funcionarios[[Cod_Funcionario]:[Nome_Completo]],2,0) -> Bruno Costa | G144: =VLOOKUP(tb_ponto[[#This Row],[Cod_Funcionario]],tb_funcionarios[[Cod_Funcionario]:[Setor]],8,0) -> TI | H144: Folga | M144: =(tb_ponto[[#This Row],[Saida_1]]-tb_ponto[[#This Row],[Entrada_1]])+(tb_ponto[[#This Row],[Saida_2]]-tb_ponto[[#This Row],[Entrada_2]]) -> 00:00:00 | N144: =VLOOKUP(tb_ponto[[#This Row],[Cod_Funcionario]],tb_funcionarios[[Cod_Funcionario]:[Jornada_Diaria_Horas]],14,0) -> 08:00:00 | O144: =IF(tb_ponto[[#This Row],[Horas_Trabalhadas]]>tb_ponto[[#This Row],[Jornada_Padrao]],tb_ponto[[#This Row],[Jornada_Padrao]],tb_ponto[[#This Row],[Horas_Trabalhadas]]) -> 00:00:00 | P144: =IF(tb_ponto[[#This Row],[Horas_Trabalhadas]]>tb_ponto[[#This Row],[Horas_Normais]],tb_ponto[[#This Row],[Horas_Trabalhadas]]-tb_ponto[[#This Row],[Jornada_Padrao]],0) -> 00:00:00 | Q144: 00:00:00 | R144: =COUNTIFS(tb_ponto[Status_Dia],"Falta",tb_ponto[Cod_Funcionario],tb_ponto[[#This Row],[Cod_Funcionario]],tb_ponto[Competencia],tb_ponto[[#This Row],[Competencia]]) -> 0 | T144: =TEXT(tb_ponto[[#This Row],[Data]],"MMM-YY") -> Feb-26 | U144: =tb_ponto[[#This Row],[Horas_Extras]]*(24*VLOOKUP(tb_ponto[[#This Row],[Cod_Funcionario]],tb_funcionarios[[Cod_Funcionario]:[Valor_Hora]],19,0)) -> 0.00
C145: P00138 | D145: 2026-02-15 | E145: F002 | F145: =VLOOKUP(tb_ponto[[#This Row],[Cod_Funcionario]],tb_funcionarios[[Cod_Funcionario]:[Nome_Completo]],2,0) -> Bruno Costa | G145: =VLOOKUP(tb_ponto[[#This Row],[Cod_Funcionario]],tb_funcionarios[[Cod_Funcionario]:[Setor]],8,0) -> TI | H145: Folga | M145: =(tb_ponto[[#This Row],[Saida_1]]-tb_ponto[[#This Row],[Entrada_1]])+(tb_ponto[[#This Row],[Saida_2]]-tb_ponto[[#This Row],[Entrada_2]]) -> 00:00:00 | N145: =VLOOKUP(tb_ponto[[#This Row],[Cod_Funcionario]],tb_funcionarios[[Cod_Funcionario]:[Jornada_Diaria_Horas]],14,0) -> 08:00:00 | O145: =IF(tb_ponto[[#This Row],[Horas_Trabalhadas]]>tb_ponto[[#This Row],[Jornada_Padrao]],tb_ponto[[#This Row],[Jornada_Padrao]],tb_ponto[[#This Row],[Horas_Trabalhadas]]) -> 00:00:00 | P145: =IF(tb_ponto[[#This Row],[Horas_Trabalhadas]]>tb_ponto[[#This Row],[Horas_Normais]],tb_ponto[[#This Row],[Horas_Trabalhadas]]-tb_ponto[[#This Row],[Jornada_Padrao]],0) -> 00:00:00 | Q145: 00:00:00 | R145: =COUNTIFS(tb_ponto[Status_Dia],"Falta",tb_ponto[Cod_Funcionario],tb_ponto[[#This Row],[Cod_Funcionario]],tb_ponto[Competencia],tb_ponto[[#This Row],[Competencia]]) -> 0 | T145: =TEXT(tb_ponto[[#This Row],[Data]],"MMM-YY") -> Feb-26 | U145: =tb_ponto[[#This Row],[Horas_Extras]]*(24*VLOOKUP(tb_ponto[[#This Row],[Cod_Funcionario]],tb_funcionarios[[Cod_Funcionario]:[Valor_Hora]],19,0)) -> 0.00
C146: P00139 | D146: 2026-02-16 | E146: F002 | F146: =VLOOKUP(tb_ponto[[#This Row],[Cod_Funcionario]],tb_funcionarios[[Cod_Funcionario]:[Nome_Completo]],2,0) -> Bruno Costa | G146: =VLOOKUP(tb_ponto[[#This Row],[Cod_Funcionario]],tb_funcionarios[[Cod_Funcionario]:[Setor]],8,0) -> TI | H146: Feriado | M146: =(tb_ponto[[#This Row],[Saida_1]]-tb_ponto[[#This Row],[Entrada_1]])+(tb_ponto[[#This Row],[Saida_2]]-tb_ponto[[#This Row],[Entrada_2]]) -> 00:00:00 | N146: =VLOOKUP(tb_ponto[[#This Row],[Cod_Funcionario]],tb_funcionarios[[Cod_Funcionario]:[Jornada_Diaria_Horas]],14,0) -> 08:00:00 | O146: =IF(tb_ponto[[#This Row],[Horas_Trabalhadas]]>tb_ponto[[#This Row],[Jornada_Padrao]],tb_ponto[[#This Row],[Jornada_Padrao]],tb_ponto[[#This Row],[Horas_Trabalhadas]]) -> 00:00:00 | P146: =IF(tb_ponto[[#This Row],[Horas_Trabalhadas]]>tb_ponto[[#This Row],[Horas_Normais]],tb_ponto[[#This Row],[Horas_Trabalhadas]]-tb_ponto[[#This Row],[Jornada_Padrao]],0) -> 00:00:00 | Q146: 00:00:00 | R146: =COUNTIFS(tb_ponto[Status_Dia],"Falta",tb_ponto[Cod_Funcionario],tb_ponto[[#This Row],[Cod_Funcionario]],tb_ponto[Competencia],tb_ponto[[#This Row],[Competencia]]) -> 0 | T146: =TEXT(tb_ponto[[#This Row],[Data]],"MMM-YY") -> Feb-26 | U146: =tb_ponto[[#This Row],[Horas_Extras]]*(24*VLOOKUP(tb_ponto[[#This Row],[Cod_Funcionario]],tb_funcionarios[[Cod_Funcionario]:[Valor_Hora]],19,0)) -> 0.00
C147: P00140 | D147: 2026-02-17 | E147: F002 | F147: =VLOOKUP(tb_ponto[[#This Row],[Cod_Funcionario]],tb_funcionarios[[Cod_Funcionario]:[Nome_Completo]],2,0) -> Bruno Costa | G147: =VLOOKUP(tb_ponto[[#This Row],[Cod_Funcionario]],tb_funcionarios[[Cod_Funcionario]:[Setor]],8,0) -> TI | H147: Normal | I147: 07:59:50.092 | J147: 11:59:59.247 | K147: 12:59:47.146 | L147: 16:01:17.741 | M147: =(tb_ponto[[#This Row],[Saida_1]]-tb_ponto[[#This Row],[Entrada_1]])+(tb_ponto[[#This Row],[Saida_2]]-tb_ponto[[#This Row],[Entrada_2]]) -> 07:01:39.750 | N147: =VLOOKUP(tb_ponto[[#This Row],[Cod_Funcionario]],tb_funcionarios[[Cod_Funcionario]:[Jornada_Diaria_Horas]],14,0) -> 08:00:00 | O147: =IF(tb_ponto[[#This Row],[Horas_Trabalhadas]]>tb_ponto[[#This Row],[Jornada_Padrao]],tb_ponto[[#This Row],[Jornada_Padrao]],tb_ponto[[#This Row],[Horas_Trabalhadas]]) -> 07:01:39.750 | P147: =IF(tb_ponto[[#This Row],[Horas_Trabalhadas]]>tb_ponto[[#This Row],[Horas_Normais]],tb_ponto[[#This Row],[Horas_Trabalhadas]]-tb_ponto[[#This Row],[Jornada_Padrao]],0) -> 00:00:00 | Q147: 00:00:00 | R147: =COUNTIFS(tb_ponto[Status_Dia],"Falta",tb_ponto[Cod_Funcionario],tb_ponto[[#This Row],[Cod_Funcionario]],tb_ponto[Competencia],tb_ponto[[#This Row],[Competencia]]) -> 0 | T147: =TEXT(tb_ponto[[#This Row],[Data]],"MMM-YY") -> Feb-26 | U147: =tb_ponto[[#This Row],[Horas_Extras]]*(24*VLOOKUP(tb_ponto[[#This Row],[Cod_Funcionario]],tb_funcionarios[[Cod_Funcionario]:[Valor_Hora]],19,0)) -> 0.00
C148: P00141 | D148: 2026-02-18 | E148: F002 | F148: =VLOOKUP(tb_ponto[[#This Row],[Cod_Funcionario]],tb_funcionarios[[Cod_Funcionario]:[Nome_Completo]],2,0) -> Bruno Costa | G148: =VLOOKUP(tb_ponto[[#This Row],[Cod_Funcionario]],tb_funcionarios[[Cod_Funcionario]:[Setor]],8,0) -> TI | H148: Normal | I148: 07:59:57.942 | J148: 12:00:11.002 | K148: 12:59:59.431 | L148: 15:57:06.472 | M148: =(tb_ponto[[#This Row],[Saida_1]]-tb_ponto[[#This Row],[Entrada_1]])+(tb_ponto[[#This Row],[Saida_2]]-tb_ponto[[#This Row],[Entrada_2]]) -> 06:57:20.102 | N148: =VLOOKUP(tb_ponto[[#This Row],[Cod_Funcionario]],tb_funcionarios[[Cod_Funcionario]:[Jornada_Diaria_Horas]],14,0) -> 08:00:00 | O148: =IF(tb_ponto[[#This Row],[Horas_Trabalhadas]]>tb_ponto[[#This Row],[Jornada_Padrao]],tb_ponto[[#This Row],[Jornada_Padrao]],tb_ponto[[#This Row],[Horas_Trabalhadas]]) -> 06:57:20.102 | P148: =IF(tb_ponto[[#This Row],[Horas_Trabalhadas]]>tb_ponto[[#This Row],[Horas_Normais]],tb_ponto[[#This Row],[Horas_Trabalhadas]]-tb_ponto[[#This Row],[Jornada_Padrao]],0) -> 00:00:00 | Q148: 00:00:00 | R148: =COUNTIFS(tb_ponto[Status_Dia],"Falta",tb_ponto[Cod_Funcionario],tb_ponto[[#This Row],[Cod_Funcionario]],tb_ponto[Competencia],tb_ponto[[#This Row],[Competencia]]) -> 0 | T148: =TEXT(tb_ponto[[#This Row],[Data]],"MMM-YY") -> Feb-26 | U148: =tb_ponto[[#This Row],[Horas_Extras]]*(24*VLOOKUP(tb_ponto[[#This Row],[Cod_Funcionario]],tb_funcionarios[[Cod_Funcionario]:[Valor_Hora]],19,0)) -> 0.00
C149: P00142 | D149: 2026-02-19 | E149: F002 | F149: =VLOOKUP(tb_ponto[[#This Row],[Cod_Funcionario]],tb_funcionarios[[Cod_Funcionario]:[Nome_Completo]],2,0) -> Bruno Costa | G149: =VLOOKUP(tb_ponto[[#This Row],[Cod_Funcionario]],tb_funcionarios[[Cod_Funcionario]:[Setor]],8,0) -> TI | H149: Normal | I149: 08:00:33.325 | J149: 11:59:59.523 | K149: 12:59:55.989 | L149: 15:57:54.981 | M149: =(tb_ponto[[#This Row],[Saida_1]]-tb_ponto[[#This Row],[Entrada_1]])+(tb_ponto[[#This Row],[Saida_2]]-tb_ponto[[#This Row],[Entrada_2]]) -> 06:57:25.191 | N149: =VLOOKUP(tb_ponto[[#This Row],[Cod_Funcionario]],tb_funcionarios[[Cod_Funcionario]:[Jornada_Diaria_Horas]],14,0) -> 08:00:00 | O149: =IF(tb_ponto[[#This Row],[Horas_Trabalhadas]]>tb_ponto[[#This Row],[Jornada_Padrao]],tb_ponto[[#This Row],[Jornada_Padrao]],tb_ponto[[#This Row],[Horas_Trabalhadas]]) -> 06:57:25.191 | P149: =IF(tb_ponto[[#This Row],[Horas_Trabalhadas]]>tb_ponto[[#This Row],[Horas_Normais]],tb_ponto[[#This Row],[Horas_Trabalhadas]]-tb_ponto[[#This Row],[Jornada_Padrao]],0) -> 00:00:00 | Q149: 00:00:00 | R149: =COUNTIFS(tb_ponto[Status_Dia],"Falta",tb_ponto[Cod_Funcionario],tb_ponto[[#This Row],[Cod_Funcionario]],tb_ponto[Competencia],tb_ponto[[#This Row],[Competencia]]) -> 0 | T149: =TEXT(tb_ponto[[#This Row],[Data]],"MMM-YY") -> Feb-26 | U149: =tb_ponto[[#This Row],[Horas_Extras]]*(24*VLOOKUP(tb_ponto[[#This Row],[Cod_Funcionario]],tb_funcionarios[[Cod_Funcionario]:[Valor_Hora]],19,0)) -> 0.00
C150: P00143 | D150: 2026-02-20 | E150: F002 | F150: =VLOOKUP(tb_ponto[[#This Row],[Cod_Funcionario]],tb_funcionarios[[Cod_Funcionario]:[Nome_Completo]],2,0) -> Bruno Costa | G150: =VLOOKUP(tb_ponto[[#This Row],[Cod_Funcionario]],tb_funcionarios[[Cod_Funcionario]:[Setor]],8,0) -> TI | H150: Normal | I150: 08:00:04.205 | J150: 12:00:15.007 | K150: 13:00:16.678 | L150: 16:13:51.878 | M150: =(tb_ponto[[#This Row],[Saida_1]]-tb_ponto[[#This Row],[Entrada_1]])+(tb_ponto[[#This Row],[Saida_2]]-tb_ponto[[#This Row],[Entrada_2]]) -> 07:13:46.001 | N150: =VLOOKUP(tb_ponto[[#This Row],[Cod_Funcionario]],tb_funcionarios[[Cod_Funcionario]:[Jornada_Diaria_Horas]],14,0) -> 08:00:00 | O150: =IF(tb_ponto[[#This Row],[Horas_Trabalhadas]]>tb_ponto[[#This Row],[Jornada_Padrao]],tb_ponto[[#This Row],[Jornada_Padrao]],tb_ponto[[#This Row],[Horas_Trabalhadas]]) -> 07:13:46.001 | P150: =IF(tb_ponto[[#This Row],[Horas_Trabalhadas]]>tb_ponto[[#This Row],[Horas_Normais]],tb_ponto[[#This Row],[Horas_Trabalhadas]]-tb_ponto[[#This Row],[Jornada_Padrao]],0) -> 00:00:00 | Q150: 00:00:00 | R150: =COUNTIFS(tb_ponto[Status_Dia],"Falta",tb_ponto[Cod_Funcionario],tb_ponto[[#This Row],[Cod_Funcionario]],tb_ponto[Competencia],tb_ponto[[#This Row],[Competencia]]) -> 0 | T150: =TEXT(tb_ponto[[#This Row],[Data]],"MMM-YY") -> Feb-26 | U150: =tb_ponto[[#This Row],[Horas_Extras]]*(24*VLOOKUP(tb_ponto[[#This Row],[Cod_Funcionario]],tb_funcionarios[[Cod_Funcionario]:[Valor_Hora]],19,0)) -> 0.00
C151: P00144 | D151: 2026-02-21 | E151: F002 | F151: =VLOOKUP(tb_ponto[[#This Row],[Cod_Funcionario]],tb_funcionarios[[Cod_Funcionario]:[Nome_Completo]],2,0) -> Bruno Costa | G151: =VLOOKUP(tb_ponto[[#This Row],[Cod_Funcionario]],tb_funcionarios[[Cod_Funcionario]:[Setor]],8,0) -> TI | H151: Folga | M151: =(tb_ponto[[#This Row],[Saida_1]]-tb_ponto[[#This Row],[Entrada_1]])+(tb_ponto[[#This Row],[Saida_2]]-tb_ponto[[#This Row],[Entrada_2]]) -> 00:00:00 | N151: =VLOOKUP(tb_ponto[[#This Row],[Cod_Funcionario]],tb_funcionarios[[Cod_Funcionario]:[Jornada_Diaria_Horas]],14,0) -> 08:00:00 | O151: =IF(tb_ponto[[#This Row],[Horas_Trabalhadas]]>tb_ponto[[#This Row],[Jornada_Padrao]],tb_ponto[[#This Row],[Jornada_Padrao]],tb_ponto[[#This Row],[Horas_Trabalhadas]]) -> 00:00:00 | P151: =IF(tb_ponto[[#This Row],[Horas_Trabalhadas]]>tb_ponto[[#This Row],[Horas_Normais]],tb_ponto[[#This Row],[Horas_Trabalhadas]]-tb_ponto[[#This Row],[Jornada_Padrao]],0) -> 00:00:00 | Q151: 00:00:00 | R151: =COUNTIFS(tb_ponto[Status_Dia],"Falta",tb_ponto[Cod_Funcionario],tb_ponto[[#This Row],[Cod_Funcionario]],tb_ponto[Competencia],tb_ponto[[#This Row],[Competencia]]) -> 0 | T151: =TEXT(tb_ponto[[#This Row],[Data]],"MMM-YY") -> Feb-26 | U151: =tb_ponto[[#This Row],[Horas_Extras]]*(24*VLOOKUP(tb_ponto[[#This Row],[Cod_Funcionario]],tb_funcionarios[[Cod_Funcionario]:[Valor_Hora]],19,0)) -> 0.00
C152: P00145 | D152: 2026-02-22 | E152: F002 | F152: =VLOOKUP(tb_ponto[[#This Row],[Cod_Funcionario]],tb_funcionarios[[Cod_Funcionario]:[Nome_Completo]],2,0) -> Bruno Costa | G152: =VLOOKUP(tb_ponto[[#This Row],[Cod_Funcionario]],tb_funcionarios[[Cod_Funcionario]:[Setor]],8,0) -> TI | H152: Folga | M152: =(tb_ponto[[#This Row],[Saida_1]]-tb_ponto[[#This Row],[Entrada_1]])+(tb_ponto[[#This Row],[Saida_2]]-tb_ponto[[#This Row],[Entrada_2]]) -> 00:00:00 | N152: =VLOOKUP(tb_ponto[[#This Row],[Cod_Funcionario]],tb_funcionarios[[Cod_Funcionario]:[Jornada_Diaria_Horas]],14,0) -> 08:00:00 | O152: =IF(tb_ponto[[#This Row],[Horas_Trabalhadas]]>tb_ponto[[#This Row],[Jornada_Padrao]],tb_ponto[[#This Row],[Jornada_Padrao]],tb_ponto[[#This Row],[Horas_Trabalhadas]]) -> 00:00:00 | P152: =IF(tb_ponto[[#This Row],[Horas_Trabalhadas]]>tb_ponto[[#This Row],[Horas_Normais]],tb_ponto[[#This Row],[Horas_Trabalhadas]]-tb_ponto[[#This Row],[Jornada_Padrao]],0) -> 00:00:00 | Q152: 00:00:00 | R152: =COUNTIFS(tb_ponto[Status_Dia],"Falta",tb_ponto[Cod_Funcionario],tb_ponto[[#This Row],[Cod_Funcionario]],tb_ponto[Competencia],tb_ponto[[#This Row],[Competencia]]) -> 0 | T152: =TEXT(tb_ponto[[#This Row],[Data]],"MMM-YY") -> Feb-26 | U152: =tb_ponto[[#This Row],[Horas_Extras]]*(24*VLOOKUP(tb_ponto[[#This Row],[Cod_Funcionario]],tb_funcionarios[[Cod_Funcionario]:[Valor_Hora]],19,0)) -> 0.00
C153: P00146 | D153: 2026-02-23 | E153: F002 | F153: =VLOOKUP(tb_ponto[[#This Row],[Cod_Funcionario]],tb_funcionarios[[Cod_Funcionario]:[Nome_Completo]],2,0) -> Bruno Costa | G153: =VLOOKUP(tb_ponto[[#This Row],[Cod_Funcionario]],tb_funcionarios[[Cod_Funcionario]:[Setor]],8,0) -> TI | H153: Normal | I153: 08:00:06.867 | J153: 12:00:07.647 | K153: 12:59:52.516 | L153: 15:59:01.890 | M153: =(tb_ponto[[#This Row],[Saida_1]]-tb_ponto[[#This Row],[Entrada_1]])+(tb_ponto[[#This Row],[Saida_2]]-tb_ponto[[#This Row],[Entrada_2]]) -> 06:59:10.155 | N153: =VLOOKUP(tb_ponto[[#This Row],[Cod_Funcionario]],tb_funcionarios[[Cod_Funcionario]:[Jornada_Diaria_Horas]],14,0) -> 08:00:00 | O153: =IF(tb_ponto[[#This Row],[Horas_Trabalhadas]]>tb_ponto[[#This Row],[Jornada_Padrao]],tb_ponto[[#This Row],[Jornada_Padrao]],tb_ponto[[#This Row],[Horas_Trabalhadas]]) -> 06:59:10.155 | P153: =IF(tb_ponto[[#This Row],[Horas_Trabalhadas]]>tb_ponto[[#This Row],[Horas_Normais]],tb_ponto[[#This Row],[Horas_Trabalhadas]]-tb_ponto[[#This Row],[Jornada_Padrao]],0) -> 00:00:00 | Q153: 00:00:00 | R153: =COUNTIFS(tb_ponto[Status_Dia],"Falta",tb_ponto[Cod_Funcionario],tb_ponto[[#This Row],[Cod_Funcionario]],tb_ponto[Competencia],tb_ponto[[#This Row],[Competencia]]) -> 0 | T153: =TEXT(tb_ponto[[#This Row],[Data]],"MMM-YY") -> Feb-26 | U153: =tb_ponto[[#This Row],[Horas_Extras]]*(24*VLOOKUP(tb_ponto[[#This Row],[Cod_Funcionario]],tb_funcionarios[[Cod_Funcionario]:[Valor_Hora]],19,0)) -> 0.00
C154: P00147 | D154: 2026-02-24 | E154: F002 | F154: =VLOOKUP(tb_ponto[[#This Row],[Cod_Funcionario]],tb_funcionarios[[Cod_Funcionario]:[Nome_Completo]],2,0) -> Bruno Costa | G154: =VLOOKUP(tb_ponto[[#This Row],[Cod_Funcionario]],tb_funcionarios[[Cod_Funcionario]:[Setor]],8,0) -> TI | H154: Normal | I154: 08:00:24.570 | J154: 11:59:51.902 | K154: 12:59:44.452 | L154: 15:49:16.919 | M154: =(tb_ponto[[#This Row],[Saida_1]]-tb_ponto[[#This Row],[Entrada_1]])+(tb_ponto[[#This Row],[Saida_2]]-tb_ponto[[#This Row],[Entrada_2]]) -> 06:48:59.799 | N154: =VLOOKUP(tb_ponto[[#This Row],[Cod_Funcionario]],tb_funcionarios[[Cod_Funcionario]:[Jornada_Diaria_Horas]],14,0) -> 08:00:00 | O154: =IF(tb_ponto[[#This Row],[Horas_Trabalhadas]]>tb_ponto[[#This Row],[Jornada_Padrao]],tb_ponto[[#This Row],[Jornada_Padrao]],tb_ponto[[#This Row],[Horas_Trabalhadas]]) -> 06:48:59.799 | P154: =IF(tb_ponto[[#This Row],[Horas_Trabalhadas]]>tb_ponto[[#This Row],[Horas_Normais]],tb_ponto[[#This Row],[Horas_Trabalhadas]]-tb_ponto[[#This Row],[Jornada_Padrao]],0) -> 00:00:00 | Q154: 00:00:00 | R154: =COUNTIFS(tb_ponto[Status_Dia],"Falta",tb_ponto[Cod_Funcionario],tb_ponto[[#This Row],[Cod_Funcionario]],tb_ponto[Competencia],tb_ponto[[#This Row],[Competencia]]) -> 0 | T154: =TEXT(tb_ponto[[#This Row],[Data]],"MMM-YY") -> Feb-26 | U154: =tb_ponto[[#This Row],[Horas_Extras]]*(24*VLOOKUP(tb_ponto[[#This Row],[Cod_Funcionario]],tb_funcionarios[[Cod_Funcionario]:[Valor_Hora]],19,0)) -> 0.00
C155: P00148 | D155: 2026-02-25 | E155: F002 | F155: =VLOOKUP(tb_ponto[[#This Row],[Cod_Funcionario]],tb_funcionarios[[Cod_Funcionario]:[Nome_Completo]],2,0) -> Bruno Costa | G155: =VLOOKUP(tb_ponto[[#This Row],[Cod_Funcionario]],tb_funcionarios[[Cod_Funcionario]:[Setor]],8,0) -> TI | H155: Normal | I155: 07:59:36.087 | J155: 11:59:42.255 | K155: 13:00:09.111 | L155: 15:53:57.326 | M155: =(tb_ponto[[#This Row],[Saida_1]]-tb_ponto[[#This Row],[Entrada_1]])+(tb_ponto[[#This Row],[Saida_2]]-tb_ponto[[#This Row],[Entrada_2]]) -> 06:53:54.383 | N155: =VLOOKUP(tb_ponto[[#This Row],[Cod_Funcionario]],tb_funcionarios[[Cod_Funcionario]:[Jornada_Diaria_Horas]],14,0) -> 08:00:00 | O155: =IF(tb_ponto[[#This Row],[Horas_Trabalhadas]]>tb_ponto[[#This Row],[Jornada_Padrao]],tb_ponto[[#This Row],[Jornada_Padrao]],tb_ponto[[#This Row],[Horas_Trabalhadas]]) -> 06:53:54.383 | P155: =IF(tb_ponto[[#This Row],[Horas_Trabalhadas]]>tb_ponto[[#This Row],[Horas_Normais]],tb_ponto[[#This Row],[Horas_Trabalhadas]]-tb_ponto[[#This Row],[Jornada_Padrao]],0) -> 00:00:00 | Q155: 00:00:00 | R155: =COUNTIFS(tb_ponto[Status_Dia],"Falta",tb_ponto[Cod_Funcionario],tb_ponto[[#This Row],[Cod_Funcionario]],tb_ponto[Competencia],tb_ponto[[#This Row],[Competencia]]) -> 0 | T155: =TEXT(tb_ponto[[#This Row],[Data]],"MMM-YY") -> Feb-26 | U155: =tb_ponto[[#This Row],[Horas_Extras]]*(24*VLOOKUP(tb_ponto[[#This Row],[Cod_Funcionario]],tb_funcionarios[[Cod_Funcionario]:[Valor_Hora]],19,0)) -> 0.00
C156: P00149 | D156: 2026-02-26 | E156: F002 | F156: =VLOOKUP(tb_ponto[[#This Row],[Cod_Funcionario]],tb_funcionarios[[Cod_Funcionario]:[Nome_Completo]],2,0) -> Bruno Costa | G156: =VLOOKUP(tb_ponto[[#This Row],[Cod_Funcionario]],tb_funcionarios[[Cod_Funcionario]:[Setor]],8,0) -> TI | H156: Normal | I156: 07:59:39.427 | J156: 12:00:16.527 | K156: 12:59:55.631 | L156: 15:51:40.632 | M156: =(tb_ponto[[#This Row],[Saida_1]]-tb_ponto[[#This Row],[Entrada_1]])+(tb_ponto[[#This Row],[Saida_2]]-tb_ponto[[#This Row],[Entrada_2]]) -> 06:52:22.101 | N156: =VLOOKUP(tb_ponto[[#This Row],[Cod_Funcionario]],tb_funcionarios[[Cod_Funcionario]:[Jornada_Diaria_Horas]],14,0) -> 08:00:00 | O156: =IF(tb_ponto[[#This Row],[Horas_Trabalhadas]]>tb_ponto[[#This Row],[Jornada_Padrao]],tb_ponto[[#This Row],[Jornada_Padrao]],tb_ponto[[#This Row],[Horas_Trabalhadas]]) -> 06:52:22.101 | P156: =IF(tb_ponto[[#This Row],[Horas_Trabalhadas]]>tb_ponto[[#This Row],[Horas_Normais]],tb_ponto[[#This Row],[Horas_Trabalhadas]]-tb_ponto[[#This Row],[Jornada_Padrao]],0) -> 00:00:00 | Q156: 00:00:00 | R156: =COUNTIFS(tb_ponto[Status_Dia],"Falta",tb_ponto[Cod_Funcionario],tb_ponto[[#This Row],[Cod_Funcionario]],tb_ponto[Competencia],tb_ponto[[#This Row],[Competencia]]) -> 0 | T156: =TEXT(tb_ponto[[#This Row],[Data]],"MMM-YY") -> Feb-26 | U156: =tb_ponto[[#This Row],[Horas_Extras]]*(24*VLOOKUP(tb_ponto[[#This Row],[Cod_Funcionario]],tb_funcionarios[[Cod_Funcionario]:[Valor_Hora]],19,0)) -> 0.00
C157: P00150 | D157: 2026-02-27 | E157: F002 | F157: =VLOOKUP(tb_ponto[[#This Row],[Cod_Funcionario]],tb_funcionarios[[Cod_Funcionario]:[Nome_Completo]],2,0) -> Bruno Costa | G157: =VLOOKUP(tb_ponto[[#This Row],[Cod_Funcionario]],tb_funcionarios[[Cod_Funcionario]:[Setor]],8,0) -> TI | H157: Normal | I157: 07:59:38.837 | J157: 11:59:56.188 | K157: 13:00:07.859 | L157: 15:59:17.095 | M157: =(tb_ponto[[#This Row],[Saida_1]]-tb_ponto[[#This Row],[Entrada_1]])+(tb_ponto[[#This Row],[Saida_2]]-tb_ponto[[#This Row],[Entrada_2]]) -> 06:59:26.588 | N157: =VLOOKUP(tb_ponto[[#This Row],[Cod_Funcionario]],tb_funcionarios[[Cod_Funcionario]:[Jornada_Diaria_Horas]],14,0) -> 08:00:00 | O157: =IF(tb_ponto[[#This Row],[Horas_Trabalhadas]]>tb_ponto[[#This Row],[Jornada_Padrao]],tb_ponto[[#This Row],[Jornada_Padrao]],tb_ponto[[#This Row],[Horas_Trabalhadas]]) -> 06:59:26.588 | P157: =IF(tb_ponto[[#This Row],[Horas_Trabalhadas]]>tb_ponto[[#This Row],[Horas_Normais]],tb_ponto[[#This Row],[Horas_Trabalhadas]]-tb_ponto[[#This Row],[Jornada_Padrao]],0) -> 00:00:00 | Q157: 00:00:00 | R157: =COUNTIFS(tb_ponto[Status_Dia],"Falta",tb_ponto[Cod_Funcionario],tb_ponto[[#This Row],[Cod_Funcionario]],tb_ponto[Competencia],tb_ponto[[#This Row],[Competencia]]) -> 0 | T157: =TEXT(tb_ponto[[#This Row],[Data]],"MMM-YY") -> Feb-26 | U157: =tb_ponto[[#This Row],[Horas_Extras]]*(24*VLOOKUP(tb_ponto[[#This Row],[Cod_Funcionario]],tb_funcionarios[[Cod_Funcionario]:[Valor_Hora]],19,0)) -> 0.00
C158: P00151 | D158: 2026-02-28 | E158: F002 | F158: =VLOOKUP(tb_ponto[[#This Row],[Cod_Funcionario]],tb_funcionarios[[Cod_Funcionario]:[Nome_Completo]],2,0) -> Bruno Costa | G158: =VLOOKUP(tb_ponto[[#This Row],[Cod_Funcionario]],tb_funcionarios[[Cod_Funcionario]:[Setor]],8,0) -> TI | H158: Folga | M158: =(tb_ponto[[#This Row],[Saida_1]]-tb_ponto[[#This Row],[Entrada_1]])+(tb_ponto[[#This Row],[Saida_2]]-tb_ponto[[#This Row],[Entrada_2]]) -> 00:00:00 | N158: =VLOOKUP(tb_ponto[[#This Row],[Cod_Funcionario]],tb_funcionarios[[Cod_Funcionario]:[Jornada_Diaria_Horas]],14,0) -> 08:00:00 | O158: =IF(tb_ponto[[#This Row],[Horas_Trabalhadas]]>tb_ponto[[#This Row],[Jornada_Padrao]],tb_ponto[[#This Row],[Jornada_Padrao]],tb_ponto[[#This Row],[Horas_Trabalhadas]]) -> 00:00:00 | P158: =IF(tb_ponto[[#This Row],[Horas_Trabalhadas]]>tb_ponto[[#This Row],[Horas_Normais]],tb_ponto[[#This Row],[Horas_Trabalhadas]]-tb_ponto[[#This Row],[Jornada_Padrao]],0) -> 00:00:00 | Q158: 00:00:00 | R158: =COUNTIFS(tb_ponto[Status_Dia],"Falta",tb_ponto[Cod_Funcionario],tb_ponto[[#This Row],[Cod_Funcionario]],tb_ponto[Competencia],tb_ponto[[#This Row],[Competencia]]) -> 0 | T158: =TEXT(tb_ponto[[#This Row],[Data]],"MMM-YY") -> Feb-26 | U158: =tb_ponto[[#This Row],[Horas_Extras]]*(24*VLOOKUP(tb_ponto[[#This Row],[Cod_Funcionario]],tb_funcionarios[[Cod_Funcionario]:[Valor_Hora]],19,0)) -> 0.00
C159: P00152 | D159: 2026-03-01 | E159: F002 | F159: =VLOOKUP(tb_ponto[[#This Row],[Cod_Funcionario]],tb_funcionarios[[Cod_Funcionario]:[Nome_Completo]],2,0) -> Bruno Costa | G159: =VLOOKUP(tb_ponto[[#This Row],[Cod_Funcionario]],tb_funcionarios[[Cod_Funcionario]:[Setor]],8,0) -> TI | H159: Folga | M159: =(tb_ponto[[#This Row],[Saida_1]]-tb_ponto[[#This Row],[Entrada_1]])+(tb_ponto[[#This Row],[Saida_2]]-tb_ponto[[#This Row],[Entrada_2]]) -> 00:00:00 | N159: =VLOOKUP(tb_ponto[[#This Row],[Cod_Funcionario]],tb_funcionarios[[Cod_Funcionario]:[Jornada_Diaria_Horas]],14,0) -> 08:00:00 | O159: =IF(tb_ponto[[#This Row],[Horas_Trabalhadas]]>tb_ponto[[#This Row],[Jornada_Padrao]],tb_ponto[[#This Row],[Jornada_Padrao]],tb_ponto[[#This Row],[Horas_Trabalhadas]]) -> 00:00:00 | P159: =IF(tb_ponto[[#This Row],[Horas_Trabalhadas]]>tb_ponto[[#This Row],[Horas_Normais]],tb_ponto[[#This Row],[Horas_Trabalhadas]]-tb_ponto[[#This Row],[Jornada_Padrao]],0) -> 00:00:00 | Q159: 00:00:00 | R159: =COUNTIFS(tb_ponto[Status_Dia],"Falta",tb_ponto[Cod_Funcionario],tb_ponto[[#This Row],[Cod_Funcionario]],tb_ponto[Competencia],tb_ponto[[#This Row],[Competencia]]) -> 1 | T159: =TEXT(tb_ponto[[#This Row],[Data]],"MMM-YY") -> Mar-26 | U159: =tb_ponto[[#This Row],[Horas_Extras]]*(24*VLOOKUP(tb_ponto[[#This Row],[Cod_Funcionario]],tb_funcionarios[[Cod_Funcionario]:[Valor_Hora]],19,0)) -> 0.00
C160: P00153 | D160: 2026-03-02 | E160: F002 | F160: =VLOOKUP(tb_ponto[[#This Row],[Cod_Funcionario]],tb_funcionarios[[Cod_Funcionario]:[Nome_Completo]],2,0) -> Bruno Costa | G160: =VLOOKUP(tb_ponto[[#This Row],[Cod_Funcionario]],tb_funcionarios[[Cod_Funcionario]:[Setor]],8,0) -> TI | H160: Normal | I160: 08:00:11.996 | J160: 12:00:07.146 | K160: 13:00:15.393 | L160: 16:07:51.581 | M160: =(tb_ponto[[#This Row],[Saida_1]]-tb_ponto[[#This Row],[Entrada_1]])+(tb_ponto[[#This Row],[Saida_2]]-tb_ponto[[#This Row],[Entrada_2]]) -> 07:07:31.338 | N160: =VLOOKUP(tb_ponto[[#This Row],[Cod_Funcionario]],tb_funcionarios[[Cod_Funcionario]:[Jornada_Diaria_Horas]],14,0) -> 08:00:00 | O160: =IF(tb_ponto[[#This Row],[Horas_Trabalhadas]]>tb_ponto[[#This Row],[Jornada_Padrao]],tb_ponto[[#This Row],[Jornada_Padrao]],tb_ponto[[#This Row],[Horas_Trabalhadas]]) -> 07:07:31.338 | P160: =IF(tb_ponto[[#This Row],[Horas_Trabalhadas]]>tb_ponto[[#This Row],[Horas_Normais]],tb_ponto[[#This Row],[Horas_Trabalhadas]]-tb_ponto[[#This Row],[Jornada_Padrao]],0) -> 00:00:00 | Q160: 00:00:00 | R160: =COUNTIFS(tb_ponto[Status_Dia],"Falta",tb_ponto[Cod_Funcionario],tb_ponto[[#This Row],[Cod_Funcionario]],tb_ponto[Competencia],tb_ponto[[#This Row],[Competencia]]) -> 1 | T160: =TEXT(tb_ponto[[#This Row],[Data]],"MMM-YY") -> Mar-26 | U160: =tb_ponto[[#This Row],[Horas_Extras]]*(24*VLOOKUP(tb_ponto[[#This Row],[Cod_Funcionario]],tb_funcionarios[[Cod_Funcionario]:[Valor_Hora]],19,0)) -> 0.00
C161: P00154 | D161: 2026-03-03 | E161: F002 | F161: =VLOOKUP(tb_ponto[[#This Row],[Cod_Funcionario]],tb_funcionarios[[Cod_Funcionario]:[Nome_Completo]],2,0) -> Bruno Costa | G161: =VLOOKUP(tb_ponto[[#This Row],[Cod_Funcionario]],tb_funcionarios[[Cod_Funcionario]:[Setor]],8,0) -> TI | H161: Normal | I161: 08:00:17.317 | J161: 11:59:45.578 | K161: 13:00:03.590 | L161: 15:52:47.013 | M161: =(tb_ponto[[#This Row],[Saida_1]]-tb_ponto[[#This Row],[Entrada_1]])+(tb_ponto[[#This Row],[Saida_2]]-tb_ponto[[#This Row],[Entrada_2]]) -> 06:52:11.683 | N161: =VLOOKUP(tb_ponto[[#This Row],[Cod_Funcionario]],tb_funcionarios[[Cod_Funcionario]:[Jornada_Diaria_Horas]],14,0) -> 08:00:00 | O161: =IF(tb_ponto[[#This Row],[Horas_Trabalhadas]]>tb_ponto[[#This Row],[Jornada_Padrao]],tb_ponto[[#This Row],[Jornada_Padrao]],tb_ponto[[#This Row],[Horas_Trabalhadas]]) -> 06:52:11.683 | P161: =IF(tb_ponto[[#This Row],[Horas_Trabalhadas]]>tb_ponto[[#This Row],[Horas_Normais]],tb_ponto[[#This Row],[Horas_Trabalhadas]]-tb_ponto[[#This Row],[Jornada_Padrao]],0) -> 00:00:00 | Q161: 00:00:00 | R161: =COUNTIFS(tb_ponto[Status_Dia],"Falta",tb_ponto[Cod_Funcionario],tb_ponto[[#This Row],[Cod_Funcionario]],tb_ponto[Competencia],tb_ponto[[#This Row],[Competencia]]) -> 1 | T161: =TEXT(tb_ponto[[#This Row],[Data]],"MMM-YY") -> Mar-26 | U161: =tb_ponto[[#This Row],[Horas_Extras]]*(24*VLOOKUP(tb_ponto[[#This Row],[Cod_Funcionario]],tb_funcionarios[[Cod_Funcionario]:[Valor_Hora]],19,0)) -> 0.00
C162: P00155 | D162: 2026-03-04 | E162: F002 | F162: =VLOOKUP(tb_ponto[[#This Row],[Cod_Funcionario]],tb_funcionarios[[Cod_Funcionario]:[Nome_Completo]],2,0) -> Bruno Costa | G162: =VLOOKUP(tb_ponto[[#This Row],[Cod_Funcionario]],tb_funcionarios[[Cod_Funcionario]:[Setor]],8,0) -> TI | H162: Normal | I162: 07:59:26.258 | J162: 12:00:16.542 | K162: 13:00:00.416 | L162: 16:08:59.447 | M162: =(tb_ponto[[#This Row],[Saida_1]]-tb_ponto[[#This Row],[Entrada_1]])+(tb_ponto[[#This Row],[Saida_2]]-tb_ponto[[#This Row],[Entrada_2]]) -> 07:09:49.314 | N162: =VLOOKUP(tb_ponto[[#This Row],[Cod_Funcionario]],tb_funcionarios[[Cod_Funcionario]:[Jornada_Diaria_Horas]],14,0) -> 08:00:00 | O162: =IF(tb_ponto[[#This Row],[Horas_Trabalhadas]]>tb_ponto[[#This Row],[Jornada_Padrao]],tb_ponto[[#This Row],[Jornada_Padrao]],tb_ponto[[#This Row],[Horas_Trabalhadas]]) -> 07:09:49.314 | P162: =IF(tb_ponto[[#This Row],[Horas_Trabalhadas]]>tb_ponto[[#This Row],[Horas_Normais]],tb_ponto[[#This Row],[Horas_Trabalhadas]]-tb_ponto[[#This Row],[Jornada_Padrao]],0) -> 00:00:00 | Q162: 00:00:00 | R162: =COUNTIFS(tb_ponto[Status_Dia],"Falta",tb_ponto[Cod_Funcionario],tb_ponto[[#This Row],[Cod_Funcionario]],tb_ponto[Competencia],tb_ponto[[#This Row],[Competencia]]) -> 1 | T162: =TEXT(tb_ponto[[#This Row],[Data]],"MMM-YY") -> Mar-26 | U162: =tb_ponto[[#This Row],[Horas_Extras]]*(24*VLOOKUP(tb_ponto[[#This Row],[Cod_Funcionario]],tb_funcionarios[[Cod_Funcionario]:[Valor_Hora]],19,0)) -> 0.00
C163: P00156 | D163: 2026-03-05 | E163: F002 | F163: =VLOOKUP(tb_ponto[[#This Row],[Cod_Funcionario]],tb_funcionarios[[Cod_Funcionario]:[Nome_Completo]],2,0) -> Bruno Costa | G163: =VLOOKUP(tb_ponto[[#This Row],[Cod_Funcionario]],tb_funcionarios[[Cod_Funcionario]:[Setor]],8,0) -> TI | H163: Normal | I163: 07:59:56.908 | J163: 12:00:08.687 | K163: 13:00:02.910 | L163: 15:46:13.236 | M163: =(tb_ponto[[#This Row],[Saida_1]]-tb_ponto[[#This Row],[Entrada_1]])+(tb_ponto[[#This Row],[Saida_2]]-tb_ponto[[#This Row],[Entrada_2]]) -> 06:46:22.105 | N163: =VLOOKUP(tb_ponto[[#This Row],[Cod_Funcionario]],tb_funcionarios[[Cod_Funcionario]:[Jornada_Diaria_Horas]],14,0) -> 08:00:00 | O163: =IF(tb_ponto[[#This Row],[Horas_Trabalhadas]]>tb_ponto[[#This Row],[Jornada_Padrao]],tb_ponto[[#This Row],[Jornada_Padrao]],tb_ponto[[#This Row],[Horas_Trabalhadas]]) -> 06:46:22.105 | P163: =IF(tb_ponto[[#This Row],[Horas_Trabalhadas]]>tb_ponto[[#This Row],[Horas_Normais]],tb_ponto[[#This Row],[Horas_Trabalhadas]]-tb_ponto[[#This Row],[Jornada_Padrao]],0) -> 00:00:00 | Q163: 00:00:00 | R163: =COUNTIFS(tb_ponto[Status_Dia],"Falta",tb_ponto[Cod_Funcionario],tb_ponto[[#This Row],[Cod_Funcionario]],tb_ponto[Competencia],tb_ponto[[#This Row],[Competencia]]) -> 1 | T163: =TEXT(tb_ponto[[#This Row],[Data]],"MMM-YY") -> Mar-26 | U163: =tb_ponto[[#This Row],[Horas_Extras]]*(24*VLOOKUP(tb_ponto[[#This Row],[Cod_Funcionario]],tb_funcionarios[[Cod_Funcionario]:[Valor_Hora]],19,0)) -> 0.00
C164: P00157 | D164: 2026-03-06 | E164: F002 | F164: =VLOOKUP(tb_ponto[[#This Row],[Cod_Funcionario]],tb_funcionarios[[Cod_Funcionario]:[Nome_Completo]],2,0) -> Bruno Costa | G164: =VLOOKUP(tb_ponto[[#This Row],[Cod_Funcionario]],tb_funcionarios[[Cod_Funcionario]:[Setor]],8,0) -> TI | H164: Normal | I164: 07:59:35.359 | J164: 11:59:42.210 | K164: 12:59:55.562 | L164: 15:56:32.352 | M164: =(tb_ponto[[#This Row],[Saida_1]]-tb_ponto[[#This Row],[Entrada_1]])+(tb_ponto[[#This Row],[Saida_2]]-tb_ponto[[#This Row],[Entrada_2]]) -> 06:56:43.641 | N164: =VLOOKUP(tb_ponto[[#This Row],[Cod_Funcionario]],tb_funcionarios[[Cod_Funcionario]:[Jornada_Diaria_Horas]],14,0) -> 08:00:00 | O164: =IF(tb_ponto[[#This Row],[Horas_Trabalhadas]]>tb_ponto[[#This Row],[Jornada_Padrao]],tb_ponto[[#This Row],[Jornada_Padrao]],tb_ponto[[#This Row],[Horas_Trabalhadas]]) -> 06:56:43.641 | P164: =IF(tb_ponto[[#This Row],[Horas_Trabalhadas]]>tb_ponto[[#This Row],[Horas_Normais]],tb_ponto[[#This Row],[Horas_Trabalhadas]]-tb_ponto[[#This Row],[Jornada_Padrao]],0) -> 00:00:00 | Q164: 00:00:00 | R164: =COUNTIFS(tb_ponto[Status_Dia],"Falta",tb_ponto[Cod_Funcionario],tb_ponto[[#This Row],[Cod_Funcionario]],tb_ponto[Competencia],tb_ponto[[#This Row],[Competencia]]) -> 1 | T164: =TEXT(tb_ponto[[#This Row],[Data]],"MMM-YY") -> Mar-26 | U164: =tb_ponto[[#This Row],[Horas_Extras]]*(24*VLOOKUP(tb_ponto[[#This Row],[Cod_Funcionario]],tb_funcionarios[[Cod_Funcionario]:[Valor_Hora]],19,0)) -> 0.00
C165: P00158 | D165: 2026-03-07 | E165: F002 | F165: =VLOOKUP(tb_ponto[[#This Row],[Cod_Funcionario]],tb_funcionarios[[Cod_Funcionario]:[Nome_Completo]],2,0) -> Bruno Costa | G165: =VLOOKUP(tb_ponto[[#This Row],[Cod_Funcionario]],tb_funcionarios[[Cod_Funcionario]:[Setor]],8,0) -> TI | H165: Folga | M165: =(tb_ponto[[#This Row],[Saida_1]]-tb_ponto[[#This Row],[Entrada_1]])+(tb_ponto[[#This Row],[Saida_2]]-tb_ponto[[#This Row],[Entrada_2]]) -> 00:00:00 | N165: =VLOOKUP(tb_ponto[[#This Row],[Cod_Funcionario]],tb_funcionarios[[Cod_Funcionario]:[Jornada_Diaria_Horas]],14,0) -> 08:00:00 | O165: =IF(tb_ponto[[#This Row],[Horas_Trabalhadas]]>tb_ponto[[#This Row],[Jornada_Padrao]],tb_ponto[[#This Row],[Jornada_Padrao]],tb_ponto[[#This Row],[Horas_Trabalhadas]]) -> 00:00:00 | P165: =IF(tb_ponto[[#This Row],[Horas_Trabalhadas]]>tb_ponto[[#This Row],[Horas_Normais]],tb_ponto[[#This Row],[Horas_Trabalhadas]]-tb_ponto[[#This Row],[Jornada_Padrao]],0) -> 00:00:00 | Q165: 00:00:00 | R165: =COUNTIFS(tb_ponto[Status_Dia],"Falta",tb_ponto[Cod_Funcionario],tb_ponto[[#This Row],[Cod_Funcionario]],tb_ponto[Competencia],tb_ponto[[#This Row],[Competencia]]) -> 1 | T165: =TEXT(tb_ponto[[#This Row],[Data]],"MMM-YY") -> Mar-26 | U165: =tb_ponto[[#This Row],[Horas_Extras]]*(24*VLOOKUP(tb_ponto[[#This Row],[Cod_Funcionario]],tb_funcionarios[[Cod_Funcionario]:[Valor_Hora]],19,0)) -> 0.00
C166: P00159 | D166: 2026-03-08 | E166: F002 | F166: =VLOOKUP(tb_ponto[[#This Row],[Cod_Funcionario]],tb_funcionarios[[Cod_Funcionario]:[Nome_Completo]],2,0) -> Bruno Costa | G166: =VLOOKUP(tb_ponto[[#This Row],[Cod_Funcionario]],tb_funcionarios[[Cod_Funcionario]:[Setor]],8,0) -> TI | H166: Folga | M166: =(tb_ponto[[#This Row],[Saida_1]]-tb_ponto[[#This Row],[Entrada_1]])+(tb_ponto[[#This Row],[Saida_2]]-tb_ponto[[#This Row],[Entrada_2]]) -> 00:00:00 | N166: =VLOOKUP(tb_ponto[[#This Row],[Cod_Funcionario]],tb_funcionarios[[Cod_Funcionario]:[Jornada_Diaria_Horas]],14,0) -> 08:00:00 | O166: =IF(tb_ponto[[#This Row],[Horas_Trabalhadas]]>tb_ponto[[#This Row],[Jornada_Padrao]],tb_ponto[[#This Row],[Jornada_Padrao]],tb_ponto[[#This Row],[Horas_Trabalhadas]]) -> 00:00:00 | P166: =IF(tb_ponto[[#This Row],[Horas_Trabalhadas]]>tb_ponto[[#This Row],[Horas_Normais]],tb_ponto[[#This Row],[Horas_Trabalhadas]]-tb_ponto[[#This Row],[Jornada_Padrao]],0) -> 00:00:00 | Q166: 00:00:00 | R166: =COUNTIFS(tb_ponto[Status_Dia],"Falta",tb_ponto[Cod_Funcionario],tb_ponto[[#This Row],[Cod_Funcionario]],tb_ponto[Competencia],tb_ponto[[#This Row],[Competencia]]) -> 1 | T166: =TEXT(tb_ponto[[#This Row],[Data]],"MMM-YY") -> Mar-26 | U166: =tb_ponto[[#This Row],[Horas_Extras]]*(24*VLOOKUP(tb_ponto[[#This Row],[Cod_Funcionario]],tb_funcionarios[[Cod_Funcionario]:[Valor_Hora]],19,0)) -> 0.00
C167: P00160 | D167: 2026-03-09 | E167: F002 | F167: =VLOOKUP(tb_ponto[[#This Row],[Cod_Funcionario]],tb_funcionarios[[Cod_Funcionario]:[Nome_Completo]],2,0) -> Bruno Costa | G167: =VLOOKUP(tb_ponto[[#This Row],[Cod_Funcionario]],tb_funcionarios[[Cod_Funcionario]:[Setor]],8,0) -> TI | H167: Normal | I167: 07:59:50.677 | J167: 11:59:58.880 | K167: 13:00:02.588 | L167: 16:08:40.935 | M167: =(tb_ponto[[#This Row],[Saida_1]]-tb_ponto[[#This Row],[Entrada_1]])+(tb_ponto[[#This Row],[Saida_2]]-tb_ponto[[#This Row],[Entrada_2]]) -> 07:08:46.550 | N167: =VLOOKUP(tb_ponto[[#This Row],[Cod_Funcionario]],tb_funcionarios[[Cod_Funcionario]:[Jornada_Diaria_Horas]],14,0) -> 08:00:00 | O167: =IF(tb_ponto[[#This Row],[Horas_Trabalhadas]]>tb_ponto[[#This Row],[Jornada_Padrao]],tb_ponto[[#This Row],[Jornada_Padrao]],tb_ponto[[#This Row],[Horas_Trabalhadas]]) -> 07:08:46.550 | P167: =IF(tb_ponto[[#This Row],[Horas_Trabalhadas]]>tb_ponto[[#This Row],[Horas_Normais]],tb_ponto[[#This Row],[Horas_Trabalhadas]]-tb_ponto[[#This Row],[Jornada_Padrao]],0) -> 00:00:00 | Q167: 00:00:00 | R167: =COUNTIFS(tb_ponto[Status_Dia],"Falta",tb_ponto[Cod_Funcionario],tb_ponto[[#This Row],[Cod_Funcionario]],tb_ponto[Competencia],tb_ponto[[#This Row],[Competencia]]) -> 1 | T167: =TEXT(tb_ponto[[#This Row],[Data]],"MMM-YY") -> Mar-26 | U167: =tb_ponto[[#This Row],[Horas_Extras]]*(24*VLOOKUP(tb_ponto[[#This Row],[Cod_Funcionario]],tb_funcionarios[[Cod_Funcionario]:[Valor_Hora]],19,0)) -> 0.00
C168: P00161 | D168: 2026-03-10 | E168: F002 | F168: =VLOOKUP(tb_ponto[[#This Row],[Cod_Funcionario]],tb_funcionarios[[Cod_Funcionario]:[Nome_Completo]],2,0) -> Bruno Costa | G168: =VLOOKUP(tb_ponto[[#This Row],[Cod_Funcionario]],tb_funcionarios[[Cod_Funcionario]:[Setor]],8,0) -> TI | H168: Normal | I168: 07:59:24.390 | J168: 12:00:12.253 | K168: 12:59:42.656 | L168: 16:02:57.056 | M168: =(tb_ponto[[#This Row],[Saida_1]]-tb_ponto[[#This Row],[Entrada_1]])+(tb_ponto[[#This Row],[Saida_2]]-tb_ponto[[#This Row],[Entrada_2]]) -> 07:04:02.263 | N168: =VLOOKUP(tb_ponto[[#This Row],[Cod_Funcionario]],tb_funcionarios[[Cod_Funcionario]:[Jornada_Diaria_Horas]],14,0) -> 08:00:00 | O168: =IF(tb_ponto[[#This Row],[Horas_Trabalhadas]]>tb_ponto[[#This Row],[Jornada_Padrao]],tb_ponto[[#This Row],[Jornada_Padrao]],tb_ponto[[#This Row],[Horas_Trabalhadas]]) -> 07:04:02.263 | P168: =IF(tb_ponto[[#This Row],[Horas_Trabalhadas]]>tb_ponto[[#This Row],[Horas_Normais]],tb_ponto[[#This Row],[Horas_Trabalhadas]]-tb_ponto[[#This Row],[Jornada_Padrao]],0) -> 00:00:00 | Q168: 00:00:00 | R168: =COUNTIFS(tb_ponto[Status_Dia],"Falta",tb_ponto[Cod_Funcionario],tb_ponto[[#This Row],[Cod_Funcionario]],tb_ponto[Competencia],tb_ponto[[#This Row],[Competencia]]) -> 1 | T168: =TEXT(tb_ponto[[#This Row],[Data]],"MMM-YY") -> Mar-26 | U168: =tb_ponto[[#This Row],[Horas_Extras]]*(24*VLOOKUP(tb_ponto[[#This Row],[Cod_Funcionario]],tb_funcionarios[[Cod_Funcionario]:[Valor_Hora]],19,0)) -> 0.00
C169: P00162 | D169: 2026-03-11 | E169: F002 | F169: =VLOOKUP(tb_ponto[[#This Row],[Cod_Funcionario]],tb_funcionarios[[Cod_Funcionario]:[Nome_Completo]],2,0) -> Bruno Costa | G169: =VLOOKUP(tb_ponto[[#This Row],[Cod_Funcionario]],tb_funcionarios[[Cod_Funcionario]:[Setor]],8,0) -> TI | H169: Falta | M169: =(tb_ponto[[#This Row],[Saida_1]]-tb_ponto[[#This Row],[Entrada_1]])+(tb_ponto[[#This Row],[Saida_2]]-tb_ponto[[#This Row],[Entrada_2]]) -> 00:00:00 | N169: =VLOOKUP(tb_ponto[[#This Row],[Cod_Funcionario]],tb_funcionarios[[Cod_Funcionario]:[Jornada_Diaria_Horas]],14,0) -> 08:00:00 | O169: =IF(tb_ponto[[#This Row],[Horas_Trabalhadas]]>tb_ponto[[#This Row],[Jornada_Padrao]],tb_ponto[[#This Row],[Jornada_Padrao]],tb_ponto[[#This Row],[Horas_Trabalhadas]]) -> 00:00:00 | P169: =IF(tb_ponto[[#This Row],[Horas_Trabalhadas]]>tb_ponto[[#This Row],[Horas_Normais]],tb_ponto[[#This Row],[Horas_Trabalhadas]]-tb_ponto[[#This Row],[Jornada_Padrao]],0) -> 00:00:00 | Q169: 00:00:00 | R169: =COUNTIFS(tb_ponto[Status_Dia],"Falta",tb_ponto[Cod_Funcionario],tb_ponto[[#This Row],[Cod_Funcionario]],tb_ponto[Competencia],tb_ponto[[#This Row],[Competencia]]) -> 1 | T169: =TEXT(tb_ponto[[#This Row],[Data]],"MMM-YY") -> Mar-26 | U169: =tb_ponto[[#This Row],[Horas_Extras]]*(24*VLOOKUP(tb_ponto[[#This Row],[Cod_Funcionario]],tb_funcionarios[[Cod_Funcionario]:[Valor_Hora]],19,0)) -> 0.00
C170: P00163 | D170: 2026-03-12 | E170: F002 | F170: =VLOOKUP(tb_ponto[[#This Row],[Cod_Funcionario]],tb_funcionarios[[Cod_Funcionario]:[Nome_Completo]],2,0) -> Bruno Costa | G170: =VLOOKUP(tb_ponto[[#This Row],[Cod_Funcionario]],tb_funcionarios[[Cod_Funcionario]:[Setor]],8,0) -> TI | H170: Normal | I170: 07:59:48.359 | J170: 11:59:44.532 | K170: 12:59:46.906 | L170: 15:54:48.532 | M170: =(tb_ponto[[#This Row],[Saida_1]]-tb_ponto[[#This Row],[Entrada_1]])+(tb_ponto[[#This Row],[Saida_2]]-tb_ponto[[#This Row],[Entrada_2]]) -> 06:54:57.800 | N170: =VLOOKUP(tb_ponto[[#This Row],[Cod_Funcionario]],tb_funcionarios[[Cod_Funcionario]:[Jornada_Diaria_Horas]],14,0) -> 08:00:00 | O170: =IF(tb_ponto[[#This Row],[Horas_Trabalhadas]]>tb_ponto[[#This Row],[Jornada_Padrao]],tb_ponto[[#This Row],[Jornada_Padrao]],tb_ponto[[#This Row],[Horas_Trabalhadas]]) -> 06:54:57.800 | P170: =IF(tb_ponto[[#This Row],[Horas_Trabalhadas]]>tb_ponto[[#This Row],[Horas_Normais]],tb_ponto[[#This Row],[Horas_Trabalhadas]]-tb_ponto[[#This Row],[Jornada_Padrao]],0) -> 00:00:00 | Q170: 00:00:00 | R170: =COUNTIFS(tb_ponto[Status_Dia],"Falta",tb_ponto[Cod_Funcionario],tb_ponto[[#This Row],[Cod_Funcionario]],tb_ponto[Competencia],tb_ponto[[#This Row],[Competencia]]) -> 1 | T170: =TEXT(tb_ponto[[#This Row],[Data]],"MMM-YY") -> Mar-26 | U170: =tb_ponto[[#This Row],[Horas_Extras]]*(24*VLOOKUP(tb_ponto[[#This Row],[Cod_Funcionario]],tb_funcionarios[[Cod_Funcionario]:[Valor_Hora]],19,0)) -> 0.00
C171: P00164 | D171: 2026-03-13 | E171: F002 | F171: =VLOOKUP(tb_ponto[[#This Row],[Cod_Funcionario]],tb_funcionarios[[Cod_Funcionario]:[Nome_Completo]],2,0) -> Bruno Costa | G171: =VLOOKUP(tb_ponto[[#This Row],[Cod_Funcionario]],tb_funcionarios[[Cod_Funcionario]:[Setor]],8,0) -> TI | H171: Normal | I171: 08:00:06.041 | J171: 12:00:13.877 | K171: 12:59:57.063 | L171: 16:11:18.461 | M171: =(tb_ponto[[#This Row],[Saida_1]]-tb_ponto[[#This Row],[Entrada_1]])+(tb_ponto[[#This Row],[Saida_2]]-tb_ponto[[#This Row],[Entrada_2]]) -> 07:11:29.234 | N171: =VLOOKUP(tb_ponto[[#This Row],[Cod_Funcionario]],tb_funcionarios[[Cod_Funcionario]:[Jornada_Diaria_Horas]],14,0) -> 08:00:00 | O171: =IF(tb_ponto[[#This Row],[Horas_Trabalhadas]]>tb_ponto[[#This Row],[Jornada_Padrao]],tb_ponto[[#This Row],[Jornada_Padrao]],tb_ponto[[#This Row],[Horas_Trabalhadas]]) -> 07:11:29.234 | P171: =IF(tb_ponto[[#This Row],[Horas_Trabalhadas]]>tb_ponto[[#This Row],[Horas_Normais]],tb_ponto[[#This Row],[Horas_Trabalhadas]]-tb_ponto[[#This Row],[Jornada_Padrao]],0) -> 00:00:00 | Q171: 00:00:00 | R171: =COUNTIFS(tb_ponto[Status_Dia],"Falta",tb_ponto[Cod_Funcionario],tb_ponto[[#This Row],[Cod_Funcionario]],tb_ponto[Competencia],tb_ponto[[#This Row],[Competencia]]) -> 1 | T171: =TEXT(tb_ponto[[#This Row],[Data]],"MMM-YY") -> Mar-26 | U171: =tb_ponto[[#This Row],[Horas_Extras]]*(24*VLOOKUP(tb_ponto[[#This Row],[Cod_Funcionario]],tb_funcionarios[[Cod_Funcionario]:[Valor_Hora]],19,0)) -> 0.00
C172: P00165 | D172: 2026-03-14 | E172: F002 | F172: =VLOOKUP(tb_ponto[[#This Row],[Cod_Funcionario]],tb_funcionarios[[Cod_Funcionario]:[Nome_Completo]],2,0) -> Bruno Costa | G172: =VLOOKUP(tb_ponto[[#This Row],[Cod_Funcionario]],tb_funcionarios[[Cod_Funcionario]:[Setor]],8,0) -> TI | H172: Folga | M172: =(tb_ponto[[#This Row],[Saida_1]]-tb_ponto[[#This Row],[Entrada_1]])+(tb_ponto[[#This Row],[Saida_2]]-tb_ponto[[#This Row],[Entrada_2]]) -> 00:00:00 | N172: =VLOOKUP(tb_ponto[[#This Row],[Cod_Funcionario]],tb_funcionarios[[Cod_Funcionario]:[Jornada_Diaria_Horas]],14,0) -> 08:00:00 | O172: =IF(tb_ponto[[#This Row],[Horas_Trabalhadas]]>tb_ponto[[#This Row],[Jornada_Padrao]],tb_ponto[[#This Row],[Jornada_Padrao]],tb_ponto[[#This Row],[Horas_Trabalhadas]]) -> 00:00:00 | P172: =IF(tb_ponto[[#This Row],[Horas_Trabalhadas]]>tb_ponto[[#This Row],[Horas_Normais]],tb_ponto[[#This Row],[Horas_Trabalhadas]]-tb_ponto[[#This Row],[Jornada_Padrao]],0) -> 00:00:00 | Q172: 00:00:00 | R172: =COUNTIFS(tb_ponto[Status_Dia],"Falta",tb_ponto[Cod_Funcionario],tb_ponto[[#This Row],[Cod_Funcionario]],tb_ponto[Competencia],tb_ponto[[#This Row],[Competencia]]) -> 1 | T172: =TEXT(tb_ponto[[#This Row],[Data]],"MMM-YY") -> Mar-26 | U172: =tb_ponto[[#This Row],[Horas_Extras]]*(24*VLOOKUP(tb_ponto[[#This Row],[Cod_Funcionario]],tb_funcionarios[[Cod_Funcionario]:[Valor_Hora]],19,0)) -> 0.00
C173: P00166 | D173: 2026-03-15 | E173: F002 | F173: =VLOOKUP(tb_ponto[[#This Row],[Cod_Funcionario]],tb_funcionarios[[Cod_Funcionario]:[Nome_Completo]],2,0) -> Bruno Costa | G173: =VLOOKUP(tb_ponto[[#This Row],[Cod_Funcionario]],tb_funcionarios[[Cod_Funcionario]:[Setor]],8,0) -> TI | H173: Folga | M173: =(tb_ponto[[#This Row],[Saida_1]]-tb_ponto[[#This Row],[Entrada_1]])+(tb_ponto[[#This Row],[Saida_2]]-tb_ponto[[#This Row],[Entrada_2]]) -> 00:00:00 | N173: =VLOOKUP(tb_ponto[[#This Row],[Cod_Funcionario]],tb_funcionarios[[Cod_Funcionario]:[Jornada_Diaria_Horas]],14,0) -> 08:00:00 | O173: =IF(tb_ponto[[#This Row],[Horas_Trabalhadas]]>tb_ponto[[#This Row],[Jornada_Padrao]],tb_ponto[[#This Row],[Jornada_Padrao]],tb_ponto[[#This Row],[Horas_Trabalhadas]]) -> 00:00:00 | P173: =IF(tb_ponto[[#This Row],[Horas_Trabalhadas]]>tb_ponto[[#This Row],[Horas_Normais]],tb_ponto[[#This Row],[Horas_Trabalhadas]]-tb_ponto[[#This Row],[Jornada_Padrao]],0) -> 00:00:00 | Q173: 00:00:00 | R173: =COUNTIFS(tb_ponto[Status_Dia],"Falta",tb_ponto[Cod_Funcionario],tb_ponto[[#This Row],[Cod_Funcionario]],tb_ponto[Competencia],tb_ponto[[#This Row],[Competencia]]) -> 1 | T173: =TEXT(tb_ponto[[#This Row],[Data]],"MMM-YY") -> Mar-26 | U173: =tb_ponto[[#This Row],[Horas_Extras]]*(24*VLOOKUP(tb_ponto[[#This Row],[Cod_Funcionario]],tb_funcionarios[[Cod_Funcionario]:[Valor_Hora]],19,0)) -> 0.00
C174: P00167 | D174: 2026-03-16 | E174: F002 | F174: =VLOOKUP(tb_ponto[[#This Row],[Cod_Funcionario]],tb_funcionarios[[Cod_Funcionario]:[Nome_Completo]],2,0) -> Bruno Costa | G174: =VLOOKUP(tb_ponto[[#This Row],[Cod_Funcionario]],tb_funcionarios[[Cod_Funcionario]:[Setor]],8,0) -> TI | H174: Normal | I174: 08:00:20.110 | J174: 11:59:58.102 | K174: 12:59:57.832 | L174: 15:54:11.595 | M174: =(tb_ponto[[#This Row],[Saida_1]]-tb_ponto[[#This Row],[Entrada_1]])+(tb_ponto[[#This Row],[Saida_2]]-tb_ponto[[#This Row],[Entrada_2]]) -> 06:53:51.755 | N174: =VLOOKUP(tb_ponto[[#This Row],[Cod_Funcionario]],tb_funcionarios[[Cod_Funcionario]:[Jornada_Diaria_Horas]],14,0) -> 08:00:00 | O174: =IF(tb_ponto[[#This Row],[Horas_Trabalhadas]]>tb_ponto[[#This Row],[Jornada_Padrao]],tb_ponto[[#This Row],[Jornada_Padrao]],tb_ponto[[#This Row],[Horas_Trabalhadas]]) -> 06:53:51.755 | P174: =IF(tb_ponto[[#This Row],[Horas_Trabalhadas]]>tb_ponto[[#This Row],[Horas_Normais]],tb_ponto[[#This Row],[Horas_Trabalhadas]]-tb_ponto[[#This Row],[Jornada_Padrao]],0) -> 00:00:00 | Q174: 00:00:00 | R174: =COUNTIFS(tb_ponto[Status_Dia],"Falta",tb_ponto[Cod_Funcionario],tb_ponto[[#This Row],[Cod_Funcionario]],tb_ponto[Competencia],tb_ponto[[#This Row],[Competencia]]) -> 1 | T174: =TEXT(tb_ponto[[#This Row],[Data]],"MMM-YY") -> Mar-26 | U174: =tb_ponto[[#This Row],[Horas_Extras]]*(24*VLOOKUP(tb_ponto[[#This Row],[Cod_Funcionario]],tb_funcionarios[[Cod_Funcionario]:[Valor_Hora]],19,0)) -> 0.00
C175: P00168 | D175: 2026-03-17 | E175: F002 | F175: =VLOOKUP(tb_ponto[[#This Row],[Cod_Funcionario]],tb_funcionarios[[Cod_Funcionario]:[Nome_Completo]],2,0) -> Bruno Costa | G175: =VLOOKUP(tb_ponto[[#This Row],[Cod_Funcionario]],tb_funcionarios[[Cod_Funcionario]:[Setor]],8,0) -> TI | H175: Normal | I175: 08:00:29.520 | J175: 11:59:53.278 | K175: 13:00:03.620 | L175: 15:50:33.557 | M175: =(tb_ponto[[#This Row],[Saida_1]]-tb_ponto[[#This Row],[Entrada_1]])+(tb_ponto[[#This Row],[Saida_2]]-tb_ponto[[#This Row],[Entrada_2]]) -> 06:49:53.696 | N175: =VLOOKUP(tb_ponto[[#This Row],[Cod_Funcionario]],tb_funcionarios[[Cod_Funcionario]:[Jornada_Diaria_Horas]],14,0) -> 08:00:00 | O175: =IF(tb_ponto[[#This Row],[Horas_Trabalhadas]]>tb_ponto[[#This Row],[Jornada_Padrao]],tb_ponto[[#This Row],[Jornada_Padrao]],tb_ponto[[#This Row],[Horas_Trabalhadas]]) -> 06:49:53.696 | P175: =IF(tb_ponto[[#This Row],[Horas_Trabalhadas]]>tb_ponto[[#This Row],[Horas_Normais]],tb_ponto[[#This Row],[Horas_Trabalhadas]]-tb_ponto[[#This Row],[Jornada_Padrao]],0) -> 00:00:00 | Q175: 00:00:00 | R175: =COUNTIFS(tb_ponto[Status_Dia],"Falta",tb_ponto[Cod_Funcionario],tb_ponto[[#This Row],[Cod_Funcionario]],tb_ponto[Competencia],tb_ponto[[#This Row],[Competencia]]) -> 1 | T175: =TEXT(tb_ponto[[#This Row],[Data]],"MMM-YY") -> Mar-26 | U175: =tb_ponto[[#This Row],[Horas_Extras]]*(24*VLOOKUP(tb_ponto[[#This Row],[Cod_Funcionario]],tb_funcionarios[[Cod_Funcionario]:[Valor_Hora]],19,0)) -> 0.00
C176: P00169 | D176: 2026-03-18 | E176: F002 | F176: =VLOOKUP(tb_ponto[[#This Row],[Cod_Funcionario]],tb_funcionarios[[Cod_Funcionario]:[Nome_Completo]],2,0) -> Bruno Costa | G176: =VLOOKUP(tb_ponto[[#This Row],[Cod_Funcionario]],tb_funcionarios[[Cod_Funcionario]:[Setor]],8,0) -> TI | H176: Normal | I176: 07:59:59.511 | J176: 12:00:01.924 | K176: 12:59:42.938 | L176: 15:54:36.321 | M176: =(tb_ponto[[#This Row],[Saida_1]]-tb_ponto[[#This Row],[Entrada_1]])+(tb_ponto[[#This Row],[Saida_2]]-tb_ponto[[#This Row],[Entrada_2]]) -> 06:54:55.797 | N176: =VLOOKUP(tb_ponto[[#This Row],[Cod_Funcionario]],tb_funcionarios[[Cod_Funcionario]:[Jornada_Diaria_Horas]],14,0) -> 08:00:00 | O176: =IF(tb_ponto[[#This Row],[Horas_Trabalhadas]]>tb_ponto[[#This Row],[Jornada_Padrao]],tb_ponto[[#This Row],[Jornada_Padrao]],tb_ponto[[#This Row],[Horas_Trabalhadas]]) -> 06:54:55.797 | P176: =IF(tb_ponto[[#This Row],[Horas_Trabalhadas]]>tb_ponto[[#This Row],[Horas_Normais]],tb_ponto[[#This Row],[Horas_Trabalhadas]]-tb_ponto[[#This Row],[Jornada_Padrao]],0) -> 00:00:00 | Q176: 00:00:00 | R176: =COUNTIFS(tb_ponto[Status_Dia],"Falta",tb_ponto[Cod_Funcionario],tb_ponto[[#This Row],[Cod_Funcionario]],tb_ponto[Competencia],tb_ponto[[#This Row],[Competencia]]) -> 1 | T176: =TEXT(tb_ponto[[#This Row],[Data]],"MMM-YY") -> Mar-26 | U176: =tb_ponto[[#This Row],[Horas_Extras]]*(24*VLOOKUP(tb_ponto[[#This Row],[Cod_Funcionario]],tb_funcionarios[[Cod_Funcionario]:[Valor_Hora]],19,0)) -> 0.00
C177: P00170 | D177: 2026-03-19 | E177: F002 | F177: =VLOOKUP(tb_ponto[[#This Row],[Cod_Funcionario]],tb_funcionarios[[Cod_Funcionario]:[Nome_Completo]],2,0) -> Bruno Costa | G177: =VLOOKUP(tb_ponto[[#This Row],[Cod_Funcionario]],tb_funcionarios[[Cod_Funcionario]:[Setor]],8,0) -> TI | H177: Normal | I177: 08:00:24.921 | J177: 11:59:50.164 | K177: 12:59:48.527 | L177: 16:02:00.458 | M177: =(tb_ponto[[#This Row],[Saida_1]]-tb_ponto[[#This Row],[Entrada_1]])+(tb_ponto[[#This Row],[Saida_2]]-tb_ponto[[#This Row],[Entrada_2]]) -> 07:01:37.175 | N177: =VLOOKUP(tb_ponto[[#This Row],[Cod_Funcionario]],tb_funcionarios[[Cod_Funcionario]:[Jornada_Diaria_Horas]],14,0) -> 08:00:00 | O177: =IF(tb_ponto[[#This Row],[Horas_Trabalhadas]]>tb_ponto[[#This Row],[Jornada_Padrao]],tb_ponto[[#This Row],[Jornada_Padrao]],tb_ponto[[#This Row],[Horas_Trabalhadas]]) -> 07:01:37.175 | P177: =IF(tb_ponto[[#This Row],[Horas_Trabalhadas]]>tb_ponto[[#This Row],[Horas_Normais]],tb_ponto[[#This Row],[Horas_Trabalhadas]]-tb_ponto[[#This Row],[Jornada_Padrao]],0) -> 00:00:00 | Q177: 00:00:00 | R177: =COUNTIFS(tb_ponto[Status_Dia],"Falta",tb_ponto[Cod_Funcionario],tb_ponto[[#This Row],[Cod_Funcionario]],tb_ponto[Competencia],tb_ponto[[#This Row],[Competencia]]) -> 1 | T177: =TEXT(tb_ponto[[#This Row],[Data]],"MMM-YY") -> Mar-26 | U177: =tb_ponto[[#This Row],[Horas_Extras]]*(24*VLOOKUP(tb_ponto[[#This Row],[Cod_Funcionario]],tb_funcionarios[[Cod_Funcionario]:[Valor_Hora]],19,0)) -> 0.00
C178: P00171 | D178: 2026-03-20 | E178: F002 | F178: =VLOOKUP(tb_ponto[[#This Row],[Cod_Funcionario]],tb_funcionarios[[Cod_Funcionario]:[Nome_Completo]],2,0) -> Bruno Costa | G178: =VLOOKUP(tb_ponto[[#This Row],[Cod_Funcionario]],tb_funcionarios[[Cod_Funcionario]:[Setor]],8,0) -> TI | H178: Normal | I178: 08:00:24.035 | J178: 12:00:04.787 | K178: 13:00:12.208 | L178: 15:49:27.090 | M178: =(tb_ponto[[#This Row],[Saida_1]]-tb_ponto[[#This Row],[Entrada_1]])+(tb_ponto[[#This Row],[Saida_2]]-tb_ponto[[#This Row],[Entrada_2]]) -> 06:48:55.635 | N178: =VLOOKUP(tb_ponto[[#This Row],[Cod_Funcionario]],tb_funcionarios[[Cod_Funcionario]:[Jornada_Diaria_Horas]],14,0) -> 08:00:00 | O178: =IF(tb_ponto[[#This Row],[Horas_Trabalhadas]]>tb_ponto[[#This Row],[Jornada_Padrao]],tb_ponto[[#This Row],[Jornada_Padrao]],tb_ponto[[#This Row],[Horas_Trabalhadas]]) -> 06:48:55.635 | P178: =IF(tb_ponto[[#This Row],[Horas_Trabalhadas]]>tb_ponto[[#This Row],[Horas_Normais]],tb_ponto[[#This Row],[Horas_Trabalhadas]]-tb_ponto[[#This Row],[Jornada_Padrao]],0) -> 00:00:00 | Q178: 00:00:00 | R178: =COUNTIFS(tb_ponto[Status_Dia],"Falta",tb_ponto[Cod_Funcionario],tb_ponto[[#This Row],[Cod_Funcionario]],tb_ponto[Competencia],tb_ponto[[#This Row],[Competencia]]) -> 1 | T178: =TEXT(tb_ponto[[#This Row],[Data]],"MMM-YY") -> Mar-26 | U178: =tb_ponto[[#This Row],[Horas_Extras]]*(24*VLOOKUP(tb_ponto[[#This Row],[Cod_Funcionario]],tb_funcionarios[[Cod_Funcionario]:[Valor_Hora]],19,0)) -> 0.00
C179: P00172 | D179: 2026-03-21 | E179: F002 | F179: =VLOOKUP(tb_ponto[[#This Row],[Cod_Funcionario]],tb_funcionarios[[Cod_Funcionario]:[Nome_Completo]],2,0) -> Bruno Costa | G179: =VLOOKUP(tb_ponto[[#This Row],[Cod_Funcionario]],tb_funcionarios[[Cod_Funcionario]:[Setor]],8,0) -> TI | H179: Folga | M179: =(tb_ponto[[#This Row],[Saida_1]]-tb_ponto[[#This Row],[Entrada_1]])+(tb_ponto[[#This Row],[Saida_2]]-tb_ponto[[#This Row],[Entrada_2]]) -> 00:00:00 | N179: =VLOOKUP(tb_ponto[[#This Row],[Cod_Funcionario]],tb_funcionarios[[Cod_Funcionario]:[Jornada_Diaria_Horas]],14,0) -> 08:00:00 | O179: =IF(tb_ponto[[#This Row],[Horas_Trabalhadas]]>tb_ponto[[#This Row],[Jornada_Padrao]],tb_ponto[[#This Row],[Jornada_Padrao]],tb_ponto[[#This Row],[Horas_Trabalhadas]]) -> 00:00:00 | P179: =IF(tb_ponto[[#This Row],[Horas_Trabalhadas]]>tb_ponto[[#This Row],[Horas_Normais]],tb_ponto[[#This Row],[Horas_Trabalhadas]]-tb_ponto[[#This Row],[Jornada_Padrao]],0) -> 00:00:00 | Q179: 00:00:00 | R179: =COUNTIFS(tb_ponto[Status_Dia],"Falta",tb_ponto[Cod_Funcionario],tb_ponto[[#This Row],[Cod_Funcionario]],tb_ponto[Competencia],tb_ponto[[#This Row],[Competencia]]) -> 1 | T179: =TEXT(tb_ponto[[#This Row],[Data]],"MMM-YY") -> Mar-26 | U179: =tb_ponto[[#This Row],[Horas_Extras]]*(24*VLOOKUP(tb_ponto[[#This Row],[Cod_Funcionario]],tb_funcionarios[[Cod_Funcionario]:[Valor_Hora]],19,0)) -> 0.00
C180: P00173 | D180: 2026-03-22 | E180: F002 | F180: =VLOOKUP(tb_ponto[[#This Row],[Cod_Funcionario]],tb_funcionarios[[Cod_Funcionario]:[Nome_Completo]],2,0) -> Bruno Costa | G180: =VLOOKUP(tb_ponto[[#This Row],[Cod_Funcionario]],tb_funcionarios[[Cod_Funcionario]:[Setor]],8,0) -> TI | H180: Folga | M180: =(tb_ponto[[#This Row],[Saida_1]]-tb_ponto[[#This Row],[Entrada_1]])+(tb_ponto[[#This Row],[Saida_2]]-tb_ponto[[#This Row],[Entrada_2]]) -> 00:00:00 | N180: =VLOOKUP(tb_ponto[[#This Row],[Cod_Funcionario]],tb_funcionarios[[Cod_Funcionario]:[Jornada_Diaria_Horas]],14,0) -> 08:00:00 | O180: =IF(tb_ponto[[#This Row],[Horas_Trabalhadas]]>tb_ponto[[#This Row],[Jornada_Padrao]],tb_ponto[[#This Row],[Jornada_Padrao]],tb_ponto[[#This Row],[Horas_Trabalhadas]]) -> 00:00:00 | P180: =IF(tb_ponto[[#This Row],[Horas_Trabalhadas]]>tb_ponto[[#This Row],[Horas_Normais]],tb_ponto[[#This Row],[Horas_Trabalhadas]]-tb_ponto[[#This Row],[Jornada_Padrao]],0) -> 00:00:00 | Q180: 00:00:00 | R180: =COUNTIFS(tb_ponto[Status_Dia],"Falta",tb_ponto[Cod_Funcionario],tb_ponto[[#This Row],[Cod_Funcionario]],tb_ponto[Competencia],tb_ponto[[#This Row],[Competencia]]) -> 1 | T180: =TEXT(tb_ponto[[#This Row],[Data]],"MMM-YY") -> Mar-26 | U180: =tb_ponto[[#This Row],[Horas_Extras]]*(24*VLOOKUP(tb_ponto[[#This Row],[Cod_Funcionario]],tb_funcionarios[[Cod_Funcionario]:[Valor_Hora]],19,0)) -> 0.00
C181: P00174 | D181: 2026-03-23 | E181: F002 | F181: =VLOOKUP(tb_ponto[[#This Row],[Cod_Funcionario]],tb_funcionarios[[Cod_Funcionario]:[Nome_Completo]],2,0) -> Bruno Costa | G181: =VLOOKUP(tb_ponto[[#This Row],[Cod_Funcionario]],tb_funcionarios[[Cod_Funcionario]:[Setor]],8,0) -> TI | H181: Normal | I181: 07:59:31.563 | J181: 12:00:05.926 | K181: 13:00:10.422 | L181: 15:48:59.329 | M181: =(tb_ponto[[#This Row],[Saida_1]]-tb_ponto[[#This Row],[Entrada_1]])+(tb_ponto[[#This Row],[Saida_2]]-tb_ponto[[#This Row],[Entrada_2]]) -> 06:49:23.270 | N181: =VLOOKUP(tb_ponto[[#This Row],[Cod_Funcionario]],tb_funcionarios[[Cod_Funcionario]:[Jornada_Diaria_Horas]],14,0) -> 08:00:00 | O181: =IF(tb_ponto[[#This Row],[Horas_Trabalhadas]]>tb_ponto[[#This Row],[Jornada_Padrao]],tb_ponto[[#This Row],[Jornada_Padrao]],tb_ponto[[#This Row],[Horas_Trabalhadas]]) -> 06:49:23.270 | P181: =IF(tb_ponto[[#This Row],[Horas_Trabalhadas]]>tb_ponto[[#This Row],[Horas_Normais]],tb_ponto[[#This Row],[Horas_Trabalhadas]]-tb_ponto[[#This Row],[Jornada_Padrao]],0) -> 00:00:00 | Q181: 00:00:00 | R181: =COUNTIFS(tb_ponto[Status_Dia],"Falta",tb_ponto[Cod_Funcionario],tb_ponto[[#This Row],[Cod_Funcionario]],tb_ponto[Competencia],tb_ponto[[#This Row],[Competencia]]) -> 1 | T181: =TEXT(tb_ponto[[#This Row],[Data]],"MMM-YY") -> Mar-26 | U181: =tb_ponto[[#This Row],[Horas_Extras]]*(24*VLOOKUP(tb_ponto[[#This Row],[Cod_Funcionario]],tb_funcionarios[[Cod_Funcionario]:[Valor_Hora]],19,0)) -> 0.00
C182: P00175 | D182: 2026-03-24 | E182: F002 | F182: =VLOOKUP(tb_ponto[[#This Row],[Cod_Funcionario]],tb_funcionarios[[Cod_Funcionario]:[Nome_Completo]],2,0) -> Bruno Costa | G182: =VLOOKUP(tb_ponto[[#This Row],[Cod_Funcionario]],tb_funcionarios[[Cod_Funcionario]:[Setor]],8,0) -> TI | H182: Normal | I182: 07:59:53.929 | J182: 12:00:14.001 | K182: 13:00:04.022 | L182: 15:51:33.173 | M182: =(tb_ponto[[#This Row],[Saida_1]]-tb_ponto[[#This Row],[Entrada_1]])+(tb_ponto[[#This Row],[Saida_2]]-tb_ponto[[#This Row],[Entrada_2]]) -> 06:51:49.223 | N182: =VLOOKUP(tb_ponto[[#This Row],[Cod_Funcionario]],tb_funcionarios[[Cod_Funcionario]:[Jornada_Diaria_Horas]],14,0) -> 08:00:00 | O182: =IF(tb_ponto[[#This Row],[Horas_Trabalhadas]]>tb_ponto[[#This Row],[Jornada_Padrao]],tb_ponto[[#This Row],[Jornada_Padrao]],tb_ponto[[#This Row],[Horas_Trabalhadas]]) -> 06:51:49.223 | P182: =IF(tb_ponto[[#This Row],[Horas_Trabalhadas]]>tb_ponto[[#This Row],[Horas_Normais]],tb_ponto[[#This Row],[Horas_Trabalhadas]]-tb_ponto[[#This Row],[Jornada_Padrao]],0) -> 00:00:00 | Q182: 00:00:00 | R182: =COUNTIFS(tb_ponto[Status_Dia],"Falta",tb_ponto[Cod_Funcionario],tb_ponto[[#This Row],[Cod_Funcionario]],tb_ponto[Competencia],tb_ponto[[#This Row],[Competencia]]) -> 1 | T182: =TEXT(tb_ponto[[#This Row],[Data]],"MMM-YY") -> Mar-26 | U182: =tb_ponto[[#This Row],[Horas_Extras]]*(24*VLOOKUP(tb_ponto[[#This Row],[Cod_Funcionario]],tb_funcionarios[[Cod_Funcionario]:[Valor_Hora]],19,0)) -> 0.00
C183: P00176 | D183: 2026-03-25 | E183: F002 | F183: =VLOOKUP(tb_ponto[[#This Row],[Cod_Funcionario]],tb_funcionarios[[Cod_Funcionario]:[Nome_Completo]],2,0) -> Bruno Costa | G183: =VLOOKUP(tb_ponto[[#This Row],[Cod_Funcionario]],tb_funcionarios[[Cod_Funcionario]:[Setor]],8,0) -> TI | H183: Normal | I183: 07:59:44.459 | J183: 12:00:14.504 | K183: 13:00:05.943 | L183: 16:10:36.619 | M183: =(tb_ponto[[#This Row],[Saida_1]]-tb_ponto[[#This Row],[Entrada_1]])+(tb_ponto[[#This Row],[Saida_2]]-tb_ponto[[#This Row],[Entrada_2]]) -> 07:11:00.721 | N183: =VLOOKUP(tb_ponto[[#This Row],[Cod_Funcionario]],tb_funcionarios[[Cod_Funcionario]:[Jornada_Diaria_Horas]],14,0) -> 08:00:00 | O183: =IF(tb_ponto[[#This Row],[Horas_Trabalhadas]]>tb_ponto[[#This Row],[Jornada_Padrao]],tb_ponto[[#This Row],[Jornada_Padrao]],tb_ponto[[#This Row],[Horas_Trabalhadas]]) -> 07:11:00.721 | P183: =IF(tb_ponto[[#This Row],[Horas_Trabalhadas]]>tb_ponto[[#This Row],[Horas_Normais]],tb_ponto[[#This Row],[Horas_Trabalhadas]]-tb_ponto[[#This Row],[Jornada_Padrao]],0) -> 00:00:00 | Q183: 00:00:00 | R183: =COUNTIFS(tb_ponto[Status_Dia],"Falta",tb_ponto[Cod_Funcionario],tb_ponto[[#This Row],[Cod_Funcionario]],tb_ponto[Competencia],tb_ponto[[#This Row],[Competencia]]) -> 1 | T183: =TEXT(tb_ponto[[#This Row],[Data]],"MMM-YY") -> Mar-26 | U183: =tb_ponto[[#This Row],[Horas_Extras]]*(24*VLOOKUP(tb_ponto[[#This Row],[Cod_Funcionario]],tb_funcionarios[[Cod_Funcionario]:[Valor_Hora]],19,0)) -> 0.00
C184: P00177 | D184: 2026-03-26 | E184: F002 | F184: =VLOOKUP(tb_ponto[[#This Row],[Cod_Funcionario]],tb_funcionarios[[Cod_Funcionario]:[Nome_Completo]],2,0) -> Bruno Costa | G184: =VLOOKUP(tb_ponto[[#This Row],[Cod_Funcionario]],tb_funcionarios[[Cod_Funcionario]:[Setor]],8,0) -> TI | H184: Normal | I184: 07:59:25.485 | J184: 12:00:14.060 | K184: 13:00:17.925 | L184: 16:07:54.505 | M184: =(tb_ponto[[#This Row],[Saida_1]]-tb_ponto[[#This Row],[Entrada_1]])+(tb_ponto[[#This Row],[Saida_2]]-tb_ponto[[#This Row],[Entrada_2]]) -> 07:08:25.155 | N184: =VLOOKUP(tb_ponto[[#This Row],[Cod_Funcionario]],tb_funcionarios[[Cod_Funcionario]:[Jornada_Diaria_Horas]],14,0) -> 08:00:00 | O184: =IF(tb_ponto[[#This Row],[Horas_Trabalhadas]]>tb_ponto[[#This Row],[Jornada_Padrao]],tb_ponto[[#This Row],[Jornada_Padrao]],tb_ponto[[#This Row],[Horas_Trabalhadas]]) -> 07:08:25.155 | P184: =IF(tb_ponto[[#This Row],[Horas_Trabalhadas]]>tb_ponto[[#This Row],[Horas_Normais]],tb_ponto[[#This Row],[Horas_Trabalhadas]]-tb_ponto[[#This Row],[Jornada_Padrao]],0) -> 00:00:00 | Q184: 00:00:00 | R184: =COUNTIFS(tb_ponto[Status_Dia],"Falta",tb_ponto[Cod_Funcionario],tb_ponto[[#This Row],[Cod_Funcionario]],tb_ponto[Competencia],tb_ponto[[#This Row],[Competencia]]) -> 1 | T184: =TEXT(tb_ponto[[#This Row],[Data]],"MMM-YY") -> Mar-26 | U184: =tb_ponto[[#This Row],[Horas_Extras]]*(24*VLOOKUP(tb_ponto[[#This Row],[Cod_Funcionario]],tb_funcionarios[[Cod_Funcionario]:[Valor_Hora]],19,0)) -> 0.00
C185: P00178 | D185: 2026-03-27 | E185: F002 | F185: =VLOOKUP(tb_ponto[[#This Row],[Cod_Funcionario]],tb_funcionarios[[Cod_Funcionario]:[Nome_Completo]],2,0) -> Bruno Costa | G185: =VLOOKUP(tb_ponto[[#This Row],[Cod_Funcionario]],tb_funcionarios[[Cod_Funcionario]:[Setor]],8,0) -> TI | H185: Normal | I185: 07:59:35.991 | J185: 11:59:47.670 | K185: 12:59:49.070 | L185: 15:55:28.629 | M185: =(tb_ponto[[#This Row],[Saida_1]]-tb_ponto[[#This Row],[Entrada_1]])+(tb_ponto[[#This Row],[Saida_2]]-tb_ponto[[#This Row],[Entrada_2]]) -> 06:55:51.237 | N185: =VLOOKUP(tb_ponto[[#This Row],[Cod_Funcionario]],tb_funcionarios[[Cod_Funcionario]:[Jornada_Diaria_Horas]],14,0) -> 08:00:00 | O185: =IF(tb_ponto[[#This Row],[Horas_Trabalhadas]]>tb_ponto[[#This Row],[Jornada_Padrao]],tb_ponto[[#This Row],[Jornada_Padrao]],tb_ponto[[#This Row],[Horas_Trabalhadas]]) -> 06:55:51.237 | P185: =IF(tb_ponto[[#This Row],[Horas_Trabalhadas]]>tb_ponto[[#This Row],[Horas_Normais]],tb_ponto[[#This Row],[Horas_Trabalhadas]]-tb_ponto[[#This Row],[Jornada_Padrao]],0) -> 00:00:00 | Q185: 00:00:00 | R185: =COUNTIFS(tb_ponto[Status_Dia],"Falta",tb_ponto[Cod_Funcionario],tb_ponto[[#This Row],[Cod_Funcionario]],tb_ponto[Competencia],tb_ponto[[#This Row],[Competencia]]) -> 1 | T185: =TEXT(tb_ponto[[#This Row],[Data]],"MMM-YY") -> Mar-26 | U185: =tb_ponto[[#This Row],[Horas_Extras]]*(24*VLOOKUP(tb_ponto[[#This Row],[Cod_Funcionario]],tb_funcionarios[[Cod_Funcionario]:[Valor_Hora]],19,0)) -> 0.00
